Workbook

Sheet Contents
C3: Sheet Tab | D3: Description | E3: Author
B4: 1 | C4: Contents | D4: This sheet | E4: Barak Obama
B5: 2 | C5: Proofs | D5: Brief Explanation | E5: Usain Bolt
B6: 3 | C6: Proofs of EV to Equity Bridge | D6: Valuation Models | E6: Carla Bruni
B7: 4 | C7: Warranty Example
B8: 5 | C8: Taxes
B9: 6 | C9: Derivative Contracts
B10: 7 | C10: Deferred Taxes
B12: File Name: | D12: C:\Users\Monika\Documents\Proofs of Equity Value and Enterprise Value Bridge.xlsm
B14: Colour Codes
B16: Last Save Date | D16: 2013-06-08T21:07:05
B17: Last Save By | D17: Monika Lewenski

Sheet Proofs
C4: 1. Understand the accounting and the actual cash flow and make a model; need to understand accounting because the accounting amount will be in bridge
C5: 2. Compute the value assuming long-term period allowing for an initial period to build up the cash flow
C6: 3. Simulate alternative methods and compute error
C7: 4. Understand how the tax treatment follows the valuation treatment
C10: There are notes associated with each of the items that describe tricky issues

Sheet Proofs of EV to Equity Bridge
F2: 0 | I2: =+F2+1 -> 1 | J2: =+I2+1 -> 2 | K2: =+J2+1 -> 3 | L2: =+K2+1 -> 4 | M2: =+L2+1 -> 5 | N2: =+M2+1 -> 6 | O2: =+N2+1 -> 7 | P2: =+O2+1 -> 8 | Q2: =+P2+1 -> 9 | R2: =+Q2+1 -> 10 | S2: =+R2+1 -> 11 | T2: =+S2+1 -> 12 | U2: =+T2+1 -> 13 | V2: =+U2+1 -> 14 | W2: =+V2+1 -> 15 | X2: =+W2+1 -> 16 | Y2: =+X2+1 -> 17 | Z2: =+Y2+1 -> 18 | AA2: =+Z2+1 -> 19 | AB2: =+AA2+1 -> 20 | AC2: =+AB2+1 -> 21 | AD2: =+AC2+1 -> 22 | AE2: =+AD2+1 -> 23 | AF2: =+AE2+1 -> 24 | AG2: =+AF2+1 -> 25 | AH2: =+AG2+1 -> 26 | AI2: =+AH2+1 -> 27 | AJ2: =+AI2+1 -> 28 | AK2: =+AJ2+1 -> 29 | AL2: =+AK2+1 -> 30 | AM2: =+AL2+1 -> 31 | AN2: =+AM2+1 -> 32 | AO2: =+AN2+1 -> 33 | AP2: =+AO2+1 -> 34 | AQ2: =+AP2+1 -> 35 | AR2: =+AQ2+1 -> 36 | AS2: =+AR2+1 -> 37 | AT2: =+AS2+1 -> 38 | AU2: =+AT2+1 -> 39 | AV2: =+AU2+1 -> 40 | AW2: =+AV2+1 -> 41 | AX2: =+AW2+1 -> 42 | AY2: =+AX2+1 -> 43 | AZ2: =+AY2+1 -> 44 | BA2: =+AZ2+1 -> 45 | BB2: =+BA2+1 -> 46 | BC2: =+BB2+1 -> 47 | BD2: =+BC2+1 -> 48 | BE2: =+BD2+1 -> 49 | BF2: =+BE2+1 -> 50 | BG2: =+BF2+1 -> 51 | BH2: =+BG2+1 -> 52 | BI2: =+BH2+1 -> 53 | BJ2: =+BI2+1 -> 54 | BK2: =+BJ2+1 -> 55 | BL2: =+BK2+1 -> 56 | BM2: =+BL2+1 -> 57 | BN2: =+BM2+1 -> 58 | BO2: =+BN2+1 -> 59 | BP2: =+BO2+1 -> 60 | BQ2: =+BP2+1 -> 61 | BR2: =+BQ2+1 -> 62 | BS2: =+BR2+1 -> 63 | BT2: =+BS2+1 -> 64 | BU2: =+BT2+1 -> 65 | BV2: =+BU2+1 -> 66 | BW2: =+BV2+1 -> 67 | BX2: =+BW2+1 -> 68 | BY2: =+BX2+1 -> 69 | BZ2: =+BY2+1 -> 70 | CA2: =+BZ2+1 -> 71 | CB2: =+CA2+1 -> 72 | CC2: =+CB2+1 -> 73 | CD2: =+CC2+1 -> 74 | CE2: =+CD2+1 -> 75 | CF2: =+CE2+1 -> 76 | CG2: =+CF2+1 -> 77 | CH2: =+CG2+1 -> 78 | CI2: =+CH2+1 -> 79 | CJ2: =+CI2+1 -> 80 | CK2: =+CJ2+1 -> 81 | CL2: =+CK2+1 -> 82 | CM2: =+CL2+1 -> 83 | CN2: =+CM2+1 -> 84 | CO2: =+CN2+1 -> 85 | CP2: =+CO2+1 -> 86 | CQ2: =+CP2+1 -> 87 | CR2: =+CQ2+1 -> 88 | CS2: =+CR2+1 -> 89 | CT2: =+CS2+1 -> 90 | CU2: =+CT2+1 -> 91 | CV2: =+CU2+1 -> 92 | CW2: =+CV2+1 -> 93 | CX2: =+CW2+1 -> 94 | CY2: =+CX2+1 -> 95 | CZ2: =+CY2+1 -> 96 | DA2: =+CZ2+1 -> 97 | DB2: =+DA2+1 -> 98 | DC2: =+DB2+1 -> 99 | DD2: =+DC2+1 -> 100 | DE2: =+DD2+1 -> 101 | DF2: =+DE2+1 -> 102 | DG2: =+DF2+1 -> 103 | DH2: =+DG2+1 -> 104 | DI2: =+DH2+1 -> 105 | DJ2: =+DI2+1 -> 106 | DK2: =+DJ2+1 -> 107 | DL2: =+DK2+1 -> 108 | DM2: =+DL2+1 -> 109 | DN2: =+DM2+1 -> 110 | DO2: =+DN2+1 -> 111 | DP2: =+DO2+1 -> 112 | DQ2: =+DP2+1 -> 113 | DR2: =+DQ2+1 -> 114 | DS2: =+DR2+1 -> 115 | DT2: =+DS2+1 -> 116 | DU2: =+DT2+1 -> 117 | DV2: =+DU2+1 -> 118 | DW2: =+DV2+1 -> 119 | DX2: =+DW2+1 -> 120 | DY2: =+DX2+1 -> 121 | DZ2: =+DY2+1 -> 122 | EA2: =+DZ2+1 -> 123 | EB2: =+EA2+1 -> 124 | EC2: =+EB2+1 -> 125 | ED2: =+EC2+1 -> 126 | EE2: =+ED2+1 -> 127 | EF2: =+EE2+1 -> 128 | EG2: =+EF2+1 -> 129 | EH2: =+EG2+1 -> 130 | EI2: =+EH2+1 -> 131 | EJ2: =+EI2+1 -> 132 | EK2: =+EJ2+1 -> 133 | EL2: =+EK2+1 -> 134 | EM2: =+EL2+1 -> 135 | EN2: =+EM2+1 -> 136 | EO2: =+EN2+1 -> 137 | EP2: =+EO2+1 -> 138 | EQ2: =+EP2+1 -> 139 | ER2: =+EQ2+1 -> 140 | ES2: =+ER2+1 -> 141 | ET2: =+ES2+1 -> 142 | EU2: =+ET2+1 -> 143 | EV2: =+EU2+1 -> 144 | EW2: =+EV2+1 -> 145 | EX2: =+EW2+1 -> 146 | EY2: =+EX2+1 -> 147 | EZ2: =+EY2+1 -> 148 | FA2: =+EZ2+1 -> 149 | FB2: =+FA2+1 -> 150 | FC2: =+FB2+1 -> 151 | FD2: =+FC2+1 -> 152 | FE2: =+FD2+1 -> 153 | FF2: =+FE2+1 -> 154 | FG2: =+FF2+1 -> 155 | FH2: =+FG2+1 -> 156 | FI2: =+FH2+1 -> 157 | FJ2: =+FI2+1 -> 158 | FK2: =+FJ2+1 -> 159 | FL2: =+FK2+1 -> 160 | FM2: =+FL2+1 -> 161 | FN2: =+FM2+1 -> 162 | FO2: =+FN2+1 -> 163 | FP2: =+FO2+1 -> 164 | FQ2: =+FP2+1 -> 165 | FR2: =+FQ2+1 -> 166 | FS2: =+FR2+1 -> 167 | FT2: =+FS2+1 -> 168 | FU2: =+FT2+1 -> 169 | FV2: =+FU2+1 -> 170 | FW2: =+FV2+1 -> 171 | FX2: =+FW2+1 -> 172 | FY2: =+FX2+1 -> 173 | FZ2: =+FY2+1 -> 174 | GA2: =+FZ2+1 -> 175 | GB2: =+GA2+1 -> 176 | GC2: =+GB2+1 -> 177 | GD2: =+GC2+1 -> 178 | GE2: =+GD2+1 -> 179 | GF2: =+GE2+1 -> 180 | GG2: =+GF2+1 -> 181 | GH2: =+GG2+1 -> 182 | GI2: =+GH2+1 -> 183 | GJ2: =+GI2+1 -> 184 | GK2: =+GJ2+1 -> 185 | GL2: =+GK2+1 -> 186 | GM2: =+GL2+1 -> 187 | GN2: =+GM2+1 -> 188 | GO2: =+GN2+1 -> 189 | GP2: =+GO2+1 -> 190 | GQ2: =+GP2+1 -> 191 | GR2: =+GQ2+1 -> 192 | GS2: =+GR2+1 -> 193 | GT2: =+GS2+1 -> 194 | GU2: =+GT2+1 -> 195 | GV2: =+GU2+1 -> 196 | GW2: =+GV2+1 -> 197 | GX2: =+GW2+1 -> 198 | GY2: =+GX2+1 -> 199 | GZ2: =+GY2+1 -> 200 | HA2: =+GZ2+1 -> 201 | HB2: =+HA2+1 -> 202 | HC2: =+HB2+1 -> 203 | HD2: =+HC2+1 -> 204 | HE2: =+HD2+1 -> 205 | HF2: =+HE2+1 -> 206 | HG2: =+HF2+1 -> 207 | HH2: =+HG2+1 -> 208 | HI2: =+HH2+1 -> 209 | HJ2: =+HI2+1 -> 210 | HK2: =+HJ2+1 -> 211 | HL2: =+HK2+1 -> 212 | HM2: =+HL2+1 -> 213 | HN2: =+HM2+1 -> 214 | HO2: =+HN2+1 -> 215 | HP2: =+HO2+1 -> 216 | HQ2: =+HP2+1 -> 217 | HR2: =+HQ2+1 -> 218 | HS2: =+HR2+1 -> 219 | HT2: =+HS2+1 -> 220 | HU2: =+HT2+1 -> 221 | HV2: =+HU2+1 -> 222 | HW2: =+HV2+1 -> 223 | HX2: =+HW2+1 -> 224 | HY2: =+HX2+1 -> 225 | HZ2: =+HY2+1 -> 226 | IA2: =+HZ2+1 -> 227 | IB2: =+IA2+1 -> 228 | IC2: =+IB2+1 -> 229 | ID2: =+IC2+1 -> 230 | IE2: =+ID2+1 -> 231 | IF2: =+IE2+1 -> 232 | IG2: =+IF2+1 -> 233 | IH2: =+IG2+1 -> 234 | II2: =+IH2+1 -> 235 | IJ2: =+II2+1 -> 236 | IK2: =+IJ2+1 -> 237 | IL2: =+IK2+1 -> 238 | IM2: =+IL2+1 -> 239 | IN2: =+IM2+1 -> 240 | IO2: =+IN2+1 -> 241 | IP2: =+IO2+1 -> 242 | IQ2: =+IP2+1 -> 243 | IR2: =+IQ2+1 -> 244 | IS2: =+IR2+1 -> 245 | IT2: =+IS2+1 -> 246 | IU2: =+IT2+1 -> 247 | IV2: =+IU2+1 -> 248 | IW2: =+IV2+1 -> 249 | IX2: =+IW2+1 -> 250 | IY2: =+IX2+1 -> 251 | IZ2: =+IY2+1 -> 252 | JA2: =+IZ2+1 -> 253 | JB2: =+JA2+1 -> 254 | JC2: =+JB2+1 -> 255 | JD2: =+JC2+1 -> 256 | JE2: =+JD2+1 -> 257 | JF2: =+JE2+1 -> 258 | JG2: =+JF2+1 -> 259 | JH2: =+JG2+1 -> 260 | JI2: =+JH2+1 -> 261 | JJ2: =+JI2+1 -> 262 | JK2: =+JJ2+1 -> 263 | JL2: =+JK2+1 -> 264 | JM2: =+JL2+1 -> 265 | JN2: =+JM2+1 -> 266 | JO2: =+JN2+1 -> 267 | JP2: =+JO2+1 -> 268 | JQ2: =+JP2+1 -> 269 | JR2: =+JQ2+1 -> 270 | JS2: =+JR2+1 -> 271 | JT2: =+JS2+1 -> 272 | JU2: =+JT2+1 -> 273 | JV2: =+JU2+1 -> 274 | JW2: =+JV2+1 -> 275 | JX2: =+JW2+1 -> 276 | JY2: =+JX2+1 -> 277 | JZ2: =+JY2+1 -> 278 | KA2: =+JZ2+1 -> 279 | KB2: =+KA2+1 -> 280 | KC2: =+KB2+1 -> 281 | KD2: =+KC2+1 -> 282 | KE2: =+KD2+1 -> 283 | KF2: =+KE2+1 -> 284 | KG2: =+KF2+1 -> 285 | KH2: =+KG2+1 -> 286 | KI2: =+KH2+1 -> 287 | KJ2: =+KI2+1 -> 288 | KK2: =+KJ2+1 -> 289 | KL2: =+KK2+1 -> 290 | KM2: =+KL2+1 -> 291 | KN2: =+KM2+1 -> 292 | KO2: =+KN2+1 -> 293 | KP2: =+KO2+1 -> 294 | KQ2: =+KP2+1 -> 295 | KR2: =+KQ2+1 -> 296 | KS2: =+KR2+1 -> 297 | KT2: =+KS2+1 -> 298 | KU2: =+KT2+1 -> 299 | KV2: =+KU2+1 -> 300 | KW2: =+KV2+1 -> 301 | KX2: =+KW2+1 -> 302 | KY2: =+KX2+1 -> 303 | KZ2: =+KY2+1 -> 304 | LA2: =+KZ2+1 -> 305 | LB2: =+LA2+1 -> 306 | LC2: =+LB2+1 -> 307 | LD2: =+LC2+1 -> 308 | LE2: =+LD2+1 -> 309 | LF2: =+LE2+1 -> 310 | LG2: =+LF2+1 -> 311 | LH2: =+LG2+1 -> 312 | LI2: =+LH2+1 -> 313 | LJ2: =+LI2+1 -> 314 | LK2: =+LJ2+1 -> 315 | LL2: =+LK2+1 -> 316 | LM2: =+LL2+1 -> 317 | LN2: =+LM2+1 -> 318 | LO2: =+LN2+1 -> 319 | LP2: =+LO2+1 -> 320 | LQ2: =+LP2+1 -> 321 | LR2: =+LQ2+1 -> 322 | LS2: =+LR2+1 -> 323 | LT2: =+LS2+1 -> 324 | LU2: =+LT2+1 -> 325 | LV2: =+LU2+1 -> 326 | LW2: =+LV2+1 -> 327 | LX2: =+LW2+1 -> 328 | LY2: =+LX2+1 -> 329 | LZ2: =+LY2+1 -> 330 | MA2: =+LZ2+1 -> 331 | MB2: =+MA2+1 -> 332 | MC2: =+MB2+1 -> 333 | MD2: =+MC2+1 -> 334 | ME2: =+MD2+1 -> 335 | MF2: =+ME2+1 -> 336 | MG2: =+MF2+1 -> 337 | MH2: =+MG2+1 -> 338 | MI2: =+MH2+1 -> 339 | MJ2: =+MI2+1 -> 340 | MK2: =+MJ2+1 -> 341 | ML2: =+MK2+1 -> 342 | MM2: =+ML2+1 -> 343 | MN2: =+MM2+1 -> 344 | MO2: =+MN2+1 -> 345 | MP2: =+MO2+1 -> 346 | MQ2: =+MP2+1 -> 347 | MR2: =+MQ2+1 -> 348 | MS2: =+MR2+1 -> 349 | MT2: =+MS2+1 -> 350 | MU2: =+MT2+1 -> 351 | MV2: =+MU2+1 -> 352 | MW2: =+MV2+1 -> 353 | MX2: =+MW2+1 -> 354 | MY2: =+MX2+1 -> 355 | MZ2: =+MY2+1 -> 356 | NA2: =+MZ2+1 -> 357 | NB2: =+NA2+1 -> 358 | NC2: =+NB2+1 -> 359 | ND2: =+NC2+1 -> 360 | NE2: =+ND2+1 -> 361 | NF2: =+NE2+1 -> 362 | NG2: =+NF2+1 -> 363 | NH2: =+NG2+1 -> 364 | NI2: =+NH2+1 -> 365 | NJ2: =+NI2+1 -> 366 | NK2: =+NJ2+1 -> 367 | NL2: =+NK2+1 -> 368 | NM2: =+NL2+1 -> 369 | NN2: =+NM2+1 -> 370 | NO2: =+NN2+1 -> 371 | NP2: =+NO2+1 -> 372 | NQ2: =+NP2+1 -> 373 | NR2: =+NQ2+1 -> 374 | NS2: =+NR2+1 -> 375 | NT2: =+NS2+1 -> 376 | NU2: =+NT2+1 -> 377 | NV2: =+NU2+1 -> 378 | NW2: =+NV2+1 -> 379 | NX2: =+NW2+1 -> 380 | NY2: =+NX2+1 -> 381 | NZ2: =+NY2+1 -> 382 | OA2: =+NZ2+1 -> 383 | OB2: =+OA2+1 -> 384 | OC2: =+OB2+1 -> 385 | OD2: =+OC2+1 -> 386 | OE2: =+OD2+1 -> 387 | OF2: =+OE2+1 -> 388 | OG2: =+OF2+1 -> 389 | OH2: =+OG2+1 -> 390 | OI2: =+OH2+1 -> 391 | OJ2: =+OI2+1 -> 392 | OK2: =+OJ2+1 -> 393 | OL2: =+OK2+1 -> 394 | OM2: =+OL2+1 -> 395 | ON2: =+OM2+1 -> 396 | OO2: =+ON2+1 -> 397 | OP2: =+OO2+1 -> 398 | OQ2: =+OP2+1 -> 399 | OR2: =+OQ2+1 -> 400
C3: ST period switch | I3: =I2<=$F$764 -> TRUE | J3: TRUE | K3: TRUE | L3: TRUE | M3: TRUE | N3: TRUE | O3: TRUE | P3: TRUE | Q3: TRUE | R3: TRUE | S3: TRUE | T3: TRUE | U3: TRUE | V3: TRUE | W3: TRUE | X3: FALSE | Y3: FALSE | Z3: FALSE | AA3: FALSE | AB3: FALSE | AC3: FALSE | AD3: FALSE | AE3: FALSE | AF3: FALSE | AG3: FALSE | AH3: FALSE | AI3: FALSE | AJ3: FALSE | AK3: FALSE | AL3: FALSE | AM3: FALSE | AN3: FALSE | AO3: FALSE | AP3: FALSE | AQ3: FALSE | AR3: FALSE | AS3: FALSE | AT3: FALSE | AU3: FALSE | AV3: FALSE | AW3: FALSE | AX3: FALSE | AY3: FALSE | AZ3: FALSE | BA3: FALSE | BB3: FALSE | BC3: FALSE | BD3: FALSE | BE3: FALSE | BF3: FALSE | BG3: FALSE | BH3: FALSE | BI3: FALSE | BJ3: FALSE | BK3: FALSE | BL3: FALSE | BM3: FALSE | BN3: FALSE | BO3: FALSE | BP3: FALSE | BQ3: FALSE | BR3: FALSE | BS3: FALSE | BT3: FALSE | BU3: =BU2<=$F$764 -> FALSE | BV3: FALSE | BW3: FALSE | BX3: FALSE | BY3: FALSE | BZ3: FALSE | CA3: FALSE | CB3: FALSE | CC3: FALSE | CD3: FALSE | CE3: FALSE | CF3: FALSE | CG3: FALSE | CH3: FALSE | CI3: FALSE | CJ3: FALSE | CK3: FALSE | CL3: FALSE | CM3: FALSE | CN3: FALSE | CO3: FALSE | CP3: FALSE | CQ3: FALSE | CR3: FALSE | CS3: FALSE | CT3: FALSE | CU3: FALSE | CV3: FALSE | CW3: FALSE | CX3: FALSE | CY3: FALSE | CZ3: FALSE | DA3: FALSE | DB3: FALSE | DC3: FALSE | DD3: FALSE | DE3: FALSE | DF3: FALSE | DG3: FALSE | DH3: FALSE | DI3: FALSE | DJ3: FALSE | DK3: FALSE | DL3: FALSE | DM3: FALSE | DN3: FALSE | DO3: FALSE | DP3: FALSE | DQ3: FALSE | DR3: FALSE | DS3: FALSE | DT3: FALSE | DU3: FALSE | DV3: FALSE | DW3: FALSE | DX3: FALSE | DY3: FALSE | DZ3: FALSE | EA3: FALSE | EB3: FALSE | EC3: FALSE | ED3: FALSE | EE3: FALSE | EF3: FALSE | EG3: =EG2<=$F$764 -> FALSE | EH3: FALSE | EI3: FALSE | EJ3: FALSE | EK3: FALSE | EL3: FALSE | EM3: FALSE | EN3: FALSE | EO3: FALSE | EP3: FALSE | EQ3: FALSE | ER3: FALSE | ES3: FALSE | ET3: FALSE | EU3: FALSE | EV3: FALSE | EW3: FALSE | EX3: FALSE | EY3: FALSE | EZ3: FALSE | FA3: FALSE | FB3: FALSE | FC3: FALSE | FD3: FALSE | FE3: FALSE | FF3: FALSE | FG3: FALSE | FH3: FALSE | FI3: FALSE | FJ3: FALSE | FK3: FALSE | FL3: FALSE | FM3: FALSE | FN3: FALSE | FO3: FALSE | FP3: FALSE | FQ3: FALSE | FR3: FALSE | FS3: FALSE | FT3: FALSE | FU3: FALSE | FV3: FALSE | FW3: FALSE | FX3: FALSE | FY3: FALSE | FZ3: FALSE | GA3: FALSE | GB3: FALSE | GC3: FALSE | GD3: FALSE | GE3: FALSE | GF3: FALSE | GG3: FALSE | GH3: FALSE | GI3: FALSE | GJ3: FALSE | GK3: FALSE | GL3: FALSE | GM3: FALSE | GN3: FALSE | GO3: FALSE | GP3: FALSE | GQ3: FALSE | GR3: FALSE | GS3: =GS2<=$F$764 -> FALSE | GT3: FALSE | GU3: FALSE | GV3: FALSE | GW3: FALSE | GX3: FALSE | GY3: FALSE | GZ3: FALSE | HA3: FALSE | HB3: FALSE | HC3: FALSE | HD3: FALSE | HE3: FALSE | HF3: FALSE | HG3: FALSE | HH3: FALSE | HI3: FALSE | HJ3: FALSE | HK3: FALSE | HL3: FALSE | HM3: FALSE | HN3: FALSE | HO3: FALSE | HP3: FALSE | HQ3: FALSE | HR3: FALSE | HS3: FALSE | HT3: FALSE | HU3: FALSE | HV3: FALSE | HW3: FALSE | HX3: FALSE | HY3: FALSE | HZ3: FALSE | IA3: FALSE | IB3: FALSE | IC3: FALSE | ID3: FALSE | IE3: FALSE | IF3: FALSE | IG3: FALSE | IH3: FALSE | II3: FALSE | IJ3: FALSE | IK3: FALSE | IL3: FALSE | IM3: FALSE | IN3: FALSE | IO3: FALSE | IP3: FALSE | IQ3: FALSE | IR3: FALSE | IS3: FALSE | IT3: FALSE | IU3: FALSE | IV3: FALSE | IW3: FALSE | IX3: FALSE | IY3: FALSE | IZ3: FALSE | JA3: FALSE | JB3: FALSE | JC3: FALSE | JD3: FALSE | JE3: =JE2<=$F$764 -> FALSE | JF3: FALSE | JG3: FALSE | JH3: FALSE | JI3: FALSE | JJ3: FALSE | JK3: FALSE | JL3: FALSE | JM3: FALSE | JN3: FALSE | JO3: FALSE | JP3: FALSE | JQ3: FALSE | JR3: FALSE | JS3: FALSE | JT3: FALSE | JU3: FALSE | JV3: FALSE | JW3: FALSE | JX3: FALSE | JY3: FALSE | JZ3: FALSE | KA3: FALSE | KB3: FALSE | KC3: FALSE | KD3: FALSE | KE3: FALSE | KF3: FALSE | KG3: FALSE | KH3: FALSE | KI3: FALSE | KJ3: FALSE | KK3: FALSE | KL3: FALSE | KM3: FALSE | KN3: FALSE | KO3: FALSE | KP3: FALSE | KQ3: FALSE | KR3: FALSE | KS3: FALSE | KT3: FALSE | KU3: FALSE | KV3: FALSE | KW3: FALSE | KX3: FALSE | KY3: FALSE | KZ3: FALSE | LA3: FALSE | LB3: FALSE | LC3: FALSE | LD3: FALSE | LE3: FALSE | LF3: FALSE | LG3: FALSE | LH3: FALSE | LI3: FALSE | LJ3: FALSE | LK3: FALSE | LL3: FALSE | LM3: FALSE | LN3: FALSE | LO3: FALSE | LP3: FALSE | LQ3: =LQ2<=$F$764 -> FALSE | LR3: FALSE | LS3: FALSE | LT3: FALSE | LU3: FALSE | LV3: FALSE | LW3: FALSE | LX3: FALSE | LY3: FALSE | LZ3: FALSE | MA3: FALSE | MB3: FALSE | MC3: FALSE | MD3: FALSE | ME3: FALSE | MF3: FALSE | MG3: FALSE | MH3: FALSE | MI3: FALSE | MJ3: FALSE | MK3: FALSE | ML3: FALSE | MM3: FALSE | MN3: FALSE | MO3: FALSE | MP3: FALSE | MQ3: FALSE | MR3: FALSE | MS3: FALSE | MT3: FALSE | MU3: FALSE | MV3: FALSE | MW3: FALSE | MX3: FALSE | MY3: FALSE | MZ3: FALSE | NA3: FALSE | NB3: FALSE | NC3: FALSE | ND3: FALSE | NE3: FALSE | NF3: FALSE | NG3: FALSE | NH3: FALSE | NI3: FALSE | NJ3: FALSE | NK3: FALSE | NL3: FALSE | NM3: FALSE | NN3: FALSE | NO3: FALSE | NP3: FALSE | NQ3: FALSE | NR3: FALSE | NS3: FALSE | NT3: FALSE | NU3: FALSE | NV3: FALSE | NW3: FALSE | NX3: FALSE | NY3: FALSE | NZ3: FALSE | OA3: FALSE | OB3: FALSE | OC3: =OC2<=$F$764 -> FALSE | OD3: FALSE | OE3: FALSE | OF3: FALSE | OG3: FALSE | OH3: FALSE | OI3: FALSE | OJ3: FALSE | OK3: FALSE | OL3: FALSE | OM3: FALSE | ON3: FALSE | OO3: FALSE | OP3: FALSE | OQ3: FALSE | OR3: FALSE
C4: LT period switch | I4: =I2>$F$764 -> FALSE | J4: FALSE | K4: FALSE | L4: FALSE | M4: FALSE | N4: FALSE | O4: FALSE | P4: FALSE | Q4: FALSE | R4: FALSE | S4: FALSE | T4: FALSE | U4: FALSE | V4: FALSE | W4: FALSE | X4: TRUE | Y4: TRUE | Z4: TRUE | AA4: TRUE | AB4: TRUE | AC4: TRUE | AD4: TRUE | AE4: TRUE | AF4: TRUE | AG4: TRUE | AH4: TRUE | AI4: TRUE | AJ4: TRUE | AK4: TRUE | AL4: TRUE | AM4: TRUE | AN4: TRUE | AO4: TRUE | AP4: TRUE | AQ4: TRUE | AR4: TRUE | AS4: TRUE | AT4: TRUE | AU4: TRUE | AV4: TRUE | AW4: TRUE | AX4: TRUE | AY4: TRUE | AZ4: TRUE | BA4: TRUE | BB4: TRUE | BC4: TRUE | BD4: TRUE | BE4: TRUE | BF4: TRUE | BG4: TRUE | BH4: TRUE | BI4: TRUE | BJ4: TRUE | BK4: TRUE | BL4: TRUE | BM4: TRUE | BN4: TRUE | BO4: TRUE | BP4: TRUE | BQ4: TRUE | BR4: TRUE | BS4: TRUE | BT4: TRUE | BU4: =BU2>$F$764 -> TRUE | BV4: TRUE | BW4: TRUE | BX4: TRUE | BY4: TRUE | BZ4: TRUE | CA4: TRUE | CB4: TRUE | CC4: TRUE | CD4: TRUE | CE4: TRUE | CF4: TRUE | CG4: TRUE | CH4: TRUE | CI4: TRUE | CJ4: TRUE | CK4: TRUE | CL4: TRUE | CM4: TRUE | CN4: TRUE | CO4: TRUE | CP4: TRUE | CQ4: TRUE | CR4: TRUE | CS4: TRUE | CT4: TRUE | CU4: TRUE | CV4: TRUE | CW4: TRUE | CX4: TRUE | CY4: TRUE | CZ4: TRUE | DA4: TRUE | DB4: TRUE | DC4: TRUE | DD4: TRUE | DE4: TRUE | DF4: TRUE | DG4: TRUE | DH4: TRUE | DI4: TRUE | DJ4: TRUE | DK4: TRUE | DL4: TRUE | DM4: TRUE | DN4: TRUE | DO4: TRUE | DP4: TRUE | DQ4: TRUE | DR4: TRUE | DS4: TRUE | DT4: TRUE | DU4: TRUE | DV4: TRUE | DW4: TRUE | DX4: TRUE | DY4: TRUE | DZ4: TRUE | EA4: TRUE | EB4: TRUE | EC4: TRUE | ED4: TRUE | EE4: TRUE | EF4: TRUE | EG4: =EG2>$F$764 -> TRUE | EH4: TRUE | EI4: TRUE | EJ4: TRUE | EK4: TRUE | EL4: TRUE | EM4: TRUE | EN4: TRUE | EO4: TRUE | EP4: TRUE | EQ4: TRUE | ER4: TRUE | ES4: TRUE | ET4: TRUE | EU4: TRUE | EV4: TRUE | EW4: TRUE | EX4: TRUE | EY4: TRUE | EZ4: TRUE | FA4: TRUE | FB4: TRUE | FC4: TRUE | FD4: TRUE | FE4: TRUE | FF4: TRUE | FG4: TRUE | FH4: TRUE | FI4: TRUE | FJ4: TRUE | FK4: TRUE | FL4: TRUE | FM4: TRUE | FN4: TRUE | FO4: TRUE | FP4: TRUE | FQ4: TRUE | FR4: TRUE | FS4: TRUE | FT4: TRUE | FU4: TRUE | FV4: TRUE | FW4: TRUE | FX4: TRUE | FY4: TRUE | FZ4: TRUE | GA4: TRUE | GB4: TRUE | GC4: TRUE | GD4: TRUE | GE4: TRUE | GF4: TRUE | GG4: TRUE | GH4: TRUE | GI4: TRUE | GJ4: TRUE | GK4: TRUE | GL4: TRUE | GM4: TRUE | GN4: TRUE | GO4: TRUE | GP4: TRUE | GQ4: TRUE | GR4: TRUE | GS4: =GS2>$F$764 -> TRUE | GT4: TRUE | GU4: TRUE | GV4: TRUE | GW4: TRUE | GX4: TRUE | GY4: TRUE | GZ4: TRUE | HA4: TRUE | HB4: TRUE | HC4: TRUE | HD4: TRUE | HE4: TRUE | HF4: TRUE | HG4: TRUE | HH4: TRUE | HI4: TRUE | HJ4: TRUE | HK4: TRUE | HL4: TRUE | HM4: TRUE | HN4: TRUE | HO4: TRUE | HP4: TRUE | HQ4: TRUE | HR4: TRUE | HS4: TRUE | HT4: TRUE | HU4: TRUE | HV4: TRUE | HW4: TRUE | HX4: TRUE | HY4: TRUE | HZ4: TRUE | IA4: TRUE | IB4: TRUE | IC4: TRUE | ID4: TRUE | IE4: TRUE | IF4: TRUE | IG4: TRUE | IH4: TRUE | II4: TRUE | IJ4: TRUE | IK4: TRUE | IL4: TRUE | IM4: TRUE | IN4: TRUE | IO4: TRUE | IP4: TRUE | IQ4: TRUE | IR4: TRUE | IS4: TRUE | IT4: TRUE | IU4: TRUE | IV4: TRUE | IW4: TRUE | IX4: TRUE | IY4: TRUE | IZ4: TRUE | JA4: TRUE | JB4: TRUE | JC4: TRUE | JD4: TRUE | JE4: =JE2>$F$764 -> TRUE | JF4: TRUE | JG4: TRUE | JH4: TRUE | JI4: TRUE | JJ4: TRUE | JK4: TRUE | JL4: TRUE | JM4: TRUE | JN4: TRUE | JO4: TRUE | JP4: TRUE | JQ4: TRUE | JR4: TRUE | JS4: TRUE | JT4: TRUE | JU4: TRUE | JV4: TRUE | JW4: TRUE | JX4: TRUE | JY4: TRUE | JZ4: TRUE | KA4: TRUE | KB4: TRUE | KC4: TRUE | KD4: TRUE | KE4: TRUE | KF4: TRUE | KG4: TRUE | KH4: TRUE | KI4: TRUE | KJ4: TRUE | KK4: TRUE | KL4: TRUE | KM4: TRUE | KN4: TRUE | KO4: TRUE | KP4: TRUE | KQ4: TRUE | KR4: TRUE | KS4: TRUE | KT4: TRUE | KU4: TRUE | KV4: TRUE | KW4: TRUE | KX4: TRUE | KY4: TRUE | KZ4: TRUE | LA4: TRUE | LB4: TRUE | LC4: TRUE | LD4: TRUE | LE4: TRUE | LF4: TRUE | LG4: TRUE | LH4: TRUE | LI4: TRUE | LJ4: TRUE | LK4: TRUE | LL4: TRUE | LM4: TRUE | LN4: TRUE | LO4: TRUE | LP4: TRUE | LQ4: =LQ2>$F$764 -> TRUE | LR4: TRUE | LS4: TRUE | LT4: TRUE | LU4: TRUE | LV4: TRUE | LW4: TRUE | LX4: TRUE | LY4: TRUE | LZ4: TRUE | MA4: TRUE | MB4: TRUE | MC4: TRUE | MD4: TRUE | ME4: TRUE | MF4: TRUE | MG4: TRUE | MH4: TRUE | MI4: TRUE | MJ4: TRUE | MK4: TRUE | ML4: TRUE | MM4: TRUE | MN4: TRUE | MO4: TRUE | MP4: TRUE | MQ4: TRUE | MR4: TRUE | MS4: TRUE | MT4: TRUE | MU4: TRUE | MV4: TRUE | MW4: TRUE | MX4: TRUE | MY4: TRUE | MZ4: TRUE | NA4: TRUE | NB4: TRUE | NC4: TRUE | ND4: TRUE | NE4: TRUE | NF4: TRUE | NG4: TRUE | NH4: TRUE | NI4: TRUE | NJ4: TRUE | NK4: TRUE | NL4: TRUE | NM4: TRUE | NN4: TRUE | NO4: TRUE | NP4: TRUE | NQ4: TRUE | NR4: TRUE | NS4: TRUE | NT4: TRUE | NU4: TRUE | NV4: TRUE | NW4: TRUE | NX4: TRUE | NY4: TRUE | NZ4: TRUE | OA4: TRUE | OB4: TRUE | OC4: =OC2>$F$764 -> TRUE | OD4: TRUE | OE4: TRUE | OF4: TRUE | OG4: TRUE | OH4: TRUE | OI4: TRUE | OJ4: TRUE | OK4: TRUE | OL4: TRUE | OM4: TRUE | ON4: TRUE | OO4: TRUE | OP4: TRUE | OQ4: TRUE | OR4: TRUE
C5: Valuation year switch | I5: =I2=$F$10 -> FALSE | J5: FALSE | K5: FALSE | L5: FALSE | M5: TRUE | N5: FALSE | O5: FALSE | P5: FALSE | Q5: FALSE | R5: FALSE | S5: FALSE | T5: FALSE | U5: FALSE | V5: FALSE | W5: FALSE | X5: FALSE | Y5: FALSE | Z5: FALSE | AA5: FALSE | AB5: FALSE | AC5: FALSE | AD5: FALSE | AE5: FALSE | AF5: FALSE | AG5: FALSE | AH5: FALSE | AI5: FALSE | AJ5: FALSE | AK5: FALSE | AL5: FALSE | AM5: FALSE | AN5: FALSE | AO5: FALSE | AP5: FALSE | AQ5: FALSE | AR5: FALSE | AS5: FALSE | AT5: FALSE | AU5: FALSE | AV5: FALSE | AW5: FALSE | AX5: FALSE | AY5: FALSE | AZ5: FALSE | BA5: FALSE | BB5: FALSE | BC5: FALSE | BD5: FALSE | BE5: FALSE | BF5: FALSE | BG5: FALSE | BH5: FALSE | BI5: FALSE | BJ5: FALSE | BK5: FALSE | BL5: FALSE | BM5: FALSE | BN5: FALSE | BO5: FALSE | BP5: FALSE | BQ5: FALSE | BR5: FALSE | BS5: FALSE | BT5: FALSE | BU5: =BU2=$F$10 -> FALSE | BV5: FALSE | BW5: FALSE | BX5: FALSE | BY5: FALSE | BZ5: FALSE | CA5: FALSE | CB5: FALSE | CC5: FALSE | CD5: FALSE | CE5: FALSE | CF5: FALSE | CG5: FALSE | CH5: FALSE | CI5: FALSE | CJ5: FALSE | CK5: FALSE | CL5: FALSE | CM5: FALSE | CN5: FALSE | CO5: FALSE | CP5: FALSE | CQ5: FALSE | CR5: FALSE | CS5: FALSE | CT5: FALSE | CU5: FALSE | CV5: FALSE | CW5: FALSE | CX5: FALSE | CY5: FALSE | CZ5: FALSE | DA5: FALSE | DB5: FALSE | DC5: FALSE | DD5: FALSE | DE5: FALSE | DF5: FALSE | DG5: FALSE | DH5: FALSE | DI5: FALSE | DJ5: FALSE | DK5: FALSE | DL5: FALSE | DM5: FALSE | DN5: FALSE | DO5: FALSE | DP5: FALSE | DQ5: FALSE | DR5: FALSE | DS5: FALSE | DT5: FALSE | DU5: FALSE | DV5: FALSE | DW5: FALSE | DX5: FALSE | DY5: FALSE | DZ5: FALSE | EA5: FALSE | EB5: FALSE | EC5: FALSE | ED5: FALSE | EE5: FALSE | EF5: FALSE | EG5: =EG2=$F$10 -> FALSE | EH5: FALSE | EI5: FALSE | EJ5: FALSE | EK5: FALSE | EL5: FALSE | EM5: FALSE | EN5: FALSE | EO5: FALSE | EP5: FALSE | EQ5: FALSE | ER5: FALSE | ES5: FALSE | ET5: FALSE | EU5: FALSE | EV5: FALSE | EW5: FALSE | EX5: FALSE | EY5: FALSE | EZ5: FALSE | FA5: FALSE | FB5: FALSE | FC5: FALSE | FD5: FALSE | FE5: FALSE | FF5: FALSE | FG5: FALSE | FH5: FALSE | FI5: FALSE | FJ5: FALSE | FK5: FALSE | FL5: FALSE | FM5: FALSE | FN5: FALSE | FO5: FALSE | FP5: FALSE | FQ5: FALSE | FR5: FALSE | FS5: FALSE | FT5: FALSE | FU5: FALSE | FV5: FALSE | FW5: FALSE | FX5: FALSE | FY5: FALSE | FZ5: FALSE | GA5: FALSE | GB5: FALSE | GC5: FALSE | GD5: FALSE | GE5: FALSE | GF5: FALSE | GG5: FALSE | GH5: FALSE | GI5: FALSE | GJ5: FALSE | GK5: FALSE | GL5: FALSE | GM5: FALSE | GN5: FALSE | GO5: FALSE | GP5: FALSE | GQ5: FALSE | GR5: FALSE | GS5: =GS2=$F$10 -> FALSE | GT5: FALSE | GU5: FALSE | GV5: FALSE | GW5: FALSE | GX5: FALSE | GY5: FALSE | GZ5: FALSE | HA5: FALSE | HB5: FALSE | HC5: FALSE | HD5: FALSE | HE5: FALSE | HF5: FALSE | HG5: FALSE | HH5: FALSE | HI5: FALSE | HJ5: FALSE | HK5: FALSE | HL5: FALSE | HM5: FALSE | HN5: FALSE | HO5: FALSE | HP5: FALSE | HQ5: FALSE | HR5: FALSE | HS5: FALSE | HT5: FALSE | HU5: FALSE | HV5: FALSE | HW5: FALSE | HX5: FALSE | HY5: FALSE | HZ5: FALSE | IA5: FALSE | IB5: FALSE | IC5: FALSE | ID5: FALSE | IE5: FALSE | IF5: FALSE | IG5: FALSE | IH5: FALSE | II5: FALSE | IJ5: FALSE | IK5: FALSE | IL5: FALSE | IM5: FALSE | IN5: FALSE | IO5: FALSE | IP5: FALSE | IQ5: FALSE | IR5: FALSE | IS5: FALSE | IT5: FALSE | IU5: FALSE | IV5: FALSE | IW5: FALSE | IX5: FALSE | IY5: FALSE | IZ5: FALSE | JA5: FALSE | JB5: FALSE | JC5: FALSE | JD5: FALSE | JE5: =JE2=$F$10 -> FALSE | JF5: FALSE | JG5: FALSE | JH5: FALSE | JI5: FALSE | JJ5: FALSE | JK5: FALSE | JL5: FALSE | JM5: FALSE | JN5: FALSE | JO5: FALSE | JP5: FALSE | JQ5: FALSE | JR5: FALSE | JS5: FALSE | JT5: FALSE | JU5: FALSE | JV5: FALSE | JW5: FALSE | JX5: FALSE | JY5: FALSE | JZ5: FALSE | KA5: FALSE | KB5: FALSE | KC5: FALSE | KD5: FALSE | KE5: FALSE | KF5: FALSE | KG5: FALSE | KH5: FALSE | KI5: FALSE | KJ5: FALSE | KK5: FALSE | KL5: FALSE | KM5: FALSE | KN5: FALSE | KO5: FALSE | KP5: FALSE | KQ5: FALSE | KR5: FALSE | KS5: FALSE | KT5: FALSE | KU5: FALSE | KV5: FALSE | KW5: FALSE | KX5: FALSE | KY5: FALSE | KZ5: FALSE | LA5: FALSE | LB5: FALSE | LC5: FALSE | LD5: FALSE | LE5: FALSE | LF5: FALSE | LG5: FALSE | LH5: FALSE | LI5: FALSE | LJ5: FALSE | LK5: FALSE | LL5: FALSE | LM5: FALSE | LN5: FALSE | LO5: FALSE | LP5: FALSE | LQ5: =LQ2=$F$10 -> FALSE | LR5: FALSE | LS5: FALSE | LT5: FALSE | LU5: FALSE | LV5: FALSE | LW5: FALSE | LX5: FALSE | LY5: FALSE | LZ5: FALSE | MA5: FALSE | MB5: FALSE | MC5: FALSE | MD5: FALSE | ME5: FALSE | MF5: FALSE | MG5: FALSE | MH5: FALSE | MI5: FALSE | MJ5: FALSE | MK5: FALSE | ML5: FALSE | MM5: FALSE | MN5: FALSE | MO5: FALSE | MP5: FALSE | MQ5: FALSE | MR5: FALSE | MS5: FALSE | MT5: FALSE | MU5: FALSE | MV5: FALSE | MW5: FALSE | MX5: FALSE | MY5: FALSE | MZ5: FALSE | NA5: FALSE | NB5: FALSE | NC5: FALSE | ND5: FALSE | NE5: FALSE | NF5: FALSE | NG5: FALSE | NH5: FALSE | NI5: FALSE | NJ5: FALSE | NK5: FALSE | NL5: FALSE | NM5: FALSE | NN5: FALSE | NO5: FALSE | NP5: FALSE | NQ5: FALSE | NR5: FALSE | NS5: FALSE | NT5: FALSE | NU5: FALSE | NV5: FALSE | NW5: FALSE | NX5: FALSE | NY5: FALSE | NZ5: FALSE | OA5: FALSE | OB5: FALSE | OC5: =OC2=$F$10 -> FALSE | OD5: FALSE | OE5: FALSE | OF5: FALSE | OG5: FALSE | OH5: FALSE | OI5: FALSE | OJ5: FALSE | OK5: FALSE | OL5: FALSE | OM5: FALSE | ON5: FALSE | OO5: FALSE | OP5: FALSE | OQ5: FALSE | OR5: FALSE
C6: Terminal year switch | I6: =I2=$F$11 -> FALSE | J6: FALSE | K6: FALSE | L6: FALSE | M6: FALSE | N6: FALSE | O6: FALSE | P6: FALSE | Q6: FALSE | R6: FALSE | S6: FALSE | T6: FALSE | U6: FALSE | V6: FALSE | W6: TRUE | X6: FALSE | Y6: FALSE | Z6: FALSE | AA6: FALSE | AB6: FALSE | AC6: FALSE | AD6: FALSE | AE6: FALSE | AF6: FALSE | AG6: FALSE | AH6: FALSE | AI6: FALSE | AJ6: FALSE | AK6: FALSE | AL6: FALSE | AM6: FALSE | AN6: FALSE | AO6: FALSE | AP6: FALSE | AQ6: FALSE | AR6: FALSE | AS6: FALSE | AT6: FALSE | AU6: FALSE | AV6: FALSE | AW6: FALSE | AX6: FALSE | AY6: FALSE | AZ6: FALSE | BA6: FALSE | BB6: FALSE | BC6: FALSE | BD6: FALSE | BE6: FALSE | BF6: FALSE | BG6: FALSE | BH6: FALSE | BI6: FALSE | BJ6: FALSE | BK6: FALSE | BL6: FALSE | BM6: FALSE | BN6: FALSE | BO6: FALSE | BP6: FALSE | BQ6: FALSE | BR6: FALSE | BS6: FALSE | BT6: FALSE | BU6: =BU2=$F$11 -> FALSE | BV6: FALSE | BW6: FALSE | BX6: FALSE | BY6: FALSE | BZ6: FALSE | CA6: FALSE | CB6: FALSE | CC6: FALSE | CD6: FALSE | CE6: FALSE | CF6: FALSE | CG6: FALSE | CH6: FALSE | CI6: FALSE | CJ6: FALSE | CK6: FALSE | CL6: FALSE | CM6: FALSE | CN6: FALSE | CO6: FALSE | CP6: FALSE | CQ6: FALSE | CR6: FALSE | CS6: FALSE | CT6: FALSE | CU6: FALSE | CV6: FALSE | CW6: FALSE | CX6: FALSE | CY6: FALSE | CZ6: FALSE | DA6: FALSE | DB6: FALSE | DC6: FALSE | DD6: FALSE | DE6: FALSE | DF6: FALSE | DG6: FALSE | DH6: FALSE | DI6: FALSE | DJ6: FALSE | DK6: FALSE | DL6: FALSE | DM6: FALSE | DN6: FALSE | DO6: FALSE | DP6: FALSE | DQ6: FALSE | DR6: FALSE | DS6: FALSE | DT6: FALSE | DU6: FALSE | DV6: FALSE | DW6: FALSE | DX6: FALSE | DY6: FALSE | DZ6: FALSE | EA6: FALSE | EB6: FALSE | EC6: FALSE | ED6: FALSE | EE6: FALSE | EF6: FALSE | EG6: =EG2=$F$11 -> FALSE | EH6: FALSE | EI6: FALSE | EJ6: FALSE | EK6: FALSE | EL6: FALSE | EM6: FALSE | EN6: FALSE | EO6: FALSE | EP6: FALSE | EQ6: FALSE | ER6: FALSE | ES6: FALSE | ET6: FALSE | EU6: FALSE | EV6: FALSE | EW6: FALSE | EX6: FALSE | EY6: FALSE | EZ6: FALSE | FA6: FALSE | FB6: FALSE | FC6: FALSE | FD6: FALSE | FE6: FALSE | FF6: FALSE | FG6: FALSE | FH6: FALSE | FI6: FALSE | FJ6: FALSE | FK6: FALSE | FL6: FALSE | FM6: FALSE | FN6: FALSE | FO6: FALSE | FP6: FALSE | FQ6: FALSE | FR6: FALSE | FS6: FALSE | FT6: FALSE | FU6: FALSE | FV6: FALSE | FW6: FALSE | FX6: FALSE | FY6: FALSE | FZ6: FALSE | GA6: FALSE | GB6: FALSE | GC6: FALSE | GD6: FALSE | GE6: FALSE | GF6: FALSE | GG6: FALSE | GH6: FALSE | GI6: FALSE | GJ6: FALSE | GK6: FALSE | GL6: FALSE | GM6: FALSE | GN6: FALSE | GO6: FALSE | GP6: FALSE | GQ6: FALSE | GR6: FALSE | GS6: =GS2=$F$11 -> FALSE | GT6: FALSE | GU6: FALSE | GV6: FALSE | GW6: FALSE | GX6: FALSE | GY6: FALSE | GZ6: FALSE | HA6: FALSE | HB6: FALSE | HC6: FALSE | HD6: FALSE | HE6: FALSE | HF6: FALSE | HG6: FALSE | HH6: FALSE | HI6: FALSE | HJ6: FALSE | HK6: FALSE | HL6: FALSE | HM6: FALSE | HN6: FALSE | HO6: FALSE | HP6: FALSE | HQ6: FALSE | HR6: FALSE | HS6: FALSE | HT6: FALSE | HU6: FALSE | HV6: FALSE | HW6: FALSE | HX6: FALSE | HY6: FALSE | HZ6: FALSE | IA6: FALSE | IB6: FALSE | IC6: FALSE | ID6: FALSE | IE6: FALSE | IF6: FALSE | IG6: FALSE | IH6: FALSE | II6: FALSE | IJ6: FALSE | IK6: FALSE | IL6: FALSE | IM6: FALSE | IN6: FALSE | IO6: FALSE | IP6: FALSE | IQ6: FALSE | IR6: FALSE | IS6: FALSE | IT6: FALSE | IU6: FALSE | IV6: FALSE | IW6: FALSE | IX6: FALSE | IY6: FALSE | IZ6: FALSE | JA6: FALSE | JB6: FALSE | JC6: FALSE | JD6: FALSE | JE6: =JE2=$F$11 -> FALSE | JF6: FALSE | JG6: FALSE | JH6: FALSE | JI6: FALSE | JJ6: FALSE | JK6: FALSE | JL6: FALSE | JM6: FALSE | JN6: FALSE | JO6: FALSE | JP6: FALSE | JQ6: FALSE | JR6: FALSE | JS6: FALSE | JT6: FALSE | JU6: FALSE | JV6: FALSE | JW6: FALSE | JX6: FALSE | JY6: FALSE | JZ6: FALSE | KA6: FALSE | KB6: FALSE | KC6: FALSE | KD6: FALSE | KE6: FALSE | KF6: FALSE | KG6: FALSE | KH6: FALSE | KI6: FALSE | KJ6: FALSE | KK6: FALSE | KL6: FALSE | KM6: FALSE | KN6: FALSE | KO6: FALSE | KP6: FALSE | KQ6: FALSE | KR6: FALSE | KS6: FALSE | KT6: FALSE | KU6: FALSE | KV6: FALSE | KW6: FALSE | KX6: FALSE | KY6: FALSE | KZ6: FALSE | LA6: FALSE | LB6: FALSE | LC6: FALSE | LD6: FALSE | LE6: FALSE | LF6: FALSE | LG6: FALSE | LH6: FALSE | LI6: FALSE | LJ6: FALSE | LK6: FALSE | LL6: FALSE | LM6: FALSE | LN6: FALSE | LO6: FALSE | LP6: FALSE | LQ6: =LQ2=$F$11 -> FALSE | LR6: FALSE | LS6: FALSE | LT6: FALSE | LU6: FALSE | LV6: FALSE | LW6: FALSE | LX6: FALSE | LY6: FALSE | LZ6: FALSE | MA6: FALSE | MB6: FALSE | MC6: FALSE | MD6: FALSE | ME6: FALSE | MF6: FALSE | MG6: FALSE | MH6: FALSE | MI6: FALSE | MJ6: FALSE | MK6: FALSE | ML6: FALSE | MM6: FALSE | MN6: FALSE | MO6: FALSE | MP6: FALSE | MQ6: FALSE | MR6: FALSE | MS6: FALSE | MT6: FALSE | MU6: FALSE | MV6: FALSE | MW6: FALSE | MX6: FALSE | MY6: FALSE | MZ6: FALSE | NA6: FALSE | NB6: FALSE | NC6: FALSE | ND6: FALSE | NE6: FALSE | NF6: FALSE | NG6: FALSE | NH6: FALSE | NI6: FALSE | NJ6: FALSE | NK6: FALSE | NL6: FALSE | NM6: FALSE | NN6: FALSE | NO6: FALSE | NP6: FALSE | NQ6: FALSE | NR6: FALSE | NS6: FALSE | NT6: FALSE | NU6: FALSE | NV6: FALSE | NW6: FALSE | NX6: FALSE | NY6: FALSE | NZ6: FALSE | OA6: FALSE | OB6: FALSE | OC6: =OC2=$F$11 -> FALSE | OD6: FALSE | OE6: FALSE | OF6: FALSE | OG6: FALSE | OH6: FALSE | OI6: FALSE | OJ6: FALSE | OK6: FALSE | OL6: FALSE | OM6: FALSE | ON6: FALSE | OO6: FALSE | OP6: FALSE | OQ6: FALSE | OR6: FALSE
C7: Valuation period | I7: =AND(I2>$F$10,I2<=$F$11) -> FALSE | J7: FALSE | K7: FALSE | L7: FALSE | M7: FALSE | N7: TRUE | O7: TRUE | P7: TRUE | Q7: TRUE | R7: TRUE | S7: TRUE | T7: TRUE | U7: TRUE | V7: TRUE | W7: TRUE | X7: FALSE | Y7: FALSE | Z7: FALSE | AA7: FALSE | AB7: FALSE | AC7: FALSE | AD7: FALSE | AE7: FALSE | AF7: FALSE | AG7: FALSE | AH7: FALSE | AI7: FALSE | AJ7: FALSE | AK7: FALSE | AL7: FALSE | AM7: FALSE | AN7: FALSE | AO7: FALSE | AP7: FALSE | AQ7: FALSE | AR7: FALSE | AS7: FALSE | AT7: FALSE | AU7: FALSE | AV7: FALSE | AW7: FALSE | AX7: FALSE | AY7: FALSE | AZ7: FALSE | BA7: FALSE | BB7: FALSE | BC7: FALSE | BD7: FALSE | BE7: FALSE | BF7: FALSE | BG7: FALSE | BH7: FALSE | BI7: FALSE | BJ7: FALSE | BK7: FALSE | BL7: FALSE | BM7: FALSE | BN7: FALSE | BO7: FALSE | BP7: FALSE | BQ7: FALSE | BR7: FALSE | BS7: FALSE | BT7: FALSE | BU7: =AND(BU2>$F$10,BU2<=$F$11) -> FALSE | BV7: FALSE | BW7: FALSE | BX7: FALSE | BY7: FALSE | BZ7: FALSE | CA7: FALSE | CB7: FALSE | CC7: FALSE | CD7: FALSE | CE7: FALSE | CF7: FALSE | CG7: FALSE | CH7: FALSE | CI7: FALSE | CJ7: FALSE | CK7: FALSE | CL7: FALSE | CM7: FALSE | CN7: FALSE | CO7: FALSE | CP7: FALSE | CQ7: FALSE | CR7: FALSE | CS7: FALSE | CT7: FALSE | CU7: FALSE | CV7: FALSE | CW7: FALSE | CX7: FALSE | CY7: FALSE | CZ7: FALSE | DA7: FALSE | DB7: FALSE | DC7: FALSE | DD7: FALSE | DE7: FALSE | DF7: FALSE | DG7: FALSE | DH7: FALSE | DI7: FALSE | DJ7: FALSE | DK7: FALSE | DL7: FALSE | DM7: FALSE | DN7: FALSE | DO7: FALSE | DP7: FALSE | DQ7: FALSE | DR7: FALSE | DS7: FALSE | DT7: FALSE | DU7: FALSE | DV7: FALSE | DW7: FALSE | DX7: FALSE | DY7: FALSE | DZ7: FALSE | EA7: FALSE | EB7: FALSE | EC7: FALSE | ED7: FALSE | EE7: FALSE | EF7: FALSE | EG7: =AND(EG2>$F$10,EG2<=$F$11) -> FALSE | EH7: FALSE | EI7: FALSE | EJ7: FALSE | EK7: FALSE | EL7: FALSE | EM7: FALSE | EN7: FALSE | EO7: FALSE | EP7: FALSE | EQ7: FALSE | ER7: FALSE | ES7: FALSE | ET7: FALSE | EU7: FALSE | EV7: FALSE | EW7: FALSE | EX7: FALSE | EY7: FALSE | EZ7: FALSE | FA7: FALSE | FB7: FALSE | FC7: FALSE | FD7: FALSE | FE7: FALSE | FF7: FALSE | FG7: FALSE | FH7: FALSE | FI7: FALSE | FJ7: FALSE | FK7: FALSE | FL7: FALSE | FM7: FALSE | FN7: FALSE | FO7: FALSE | FP7: FALSE | FQ7: FALSE | FR7: FALSE | FS7: FALSE | FT7: FALSE | FU7: FALSE | FV7: FALSE | FW7: FALSE | FX7: FALSE | FY7: FALSE | FZ7: FALSE | GA7: FALSE | GB7: FALSE | GC7: FALSE | GD7: FALSE | GE7: FALSE | GF7: FALSE | GG7: FALSE | GH7: FALSE | GI7: FALSE | GJ7: FALSE | GK7: FALSE | GL7: FALSE | GM7: FALSE | GN7: FALSE | GO7: FALSE | GP7: FALSE | GQ7: FALSE | GR7: FALSE | GS7: =AND(GS2>$F$10,GS2<=$F$11) -> FALSE | GT7: FALSE | GU7: FALSE | GV7: FALSE | GW7: FALSE | GX7: FALSE | GY7: FALSE | GZ7: FALSE | HA7: FALSE | HB7: FALSE | HC7: FALSE | HD7: FALSE | HE7: FALSE | HF7: FALSE | HG7: FALSE | HH7: FALSE | HI7: FALSE | HJ7: FALSE | HK7: FALSE | HL7: FALSE | HM7: FALSE | HN7: FALSE | HO7: FALSE | HP7: FALSE | HQ7: FALSE | HR7: FALSE | HS7: FALSE | HT7: FALSE | HU7: FALSE | HV7: FALSE | HW7: FALSE | HX7: FALSE | HY7: FALSE | HZ7: FALSE | IA7: FALSE | IB7: FALSE | IC7: FALSE | ID7: FALSE | IE7: FALSE | IF7: FALSE | IG7: FALSE | IH7: FALSE | II7: FALSE | IJ7: FALSE | IK7: FALSE | IL7: FALSE | IM7: FALSE | IN7: FALSE | IO7: FALSE | IP7: FALSE | IQ7: FALSE | IR7: FALSE | IS7: FALSE | IT7: FALSE | IU7: FALSE | IV7: FALSE | IW7: FALSE | IX7: FALSE | IY7: FALSE | IZ7: FALSE | JA7: FALSE | JB7: FALSE | JC7: FALSE | JD7: FALSE | JE7: =AND(JE2>$F$10,JE2<=$F$11) -> FALSE | JF7: FALSE | JG7: FALSE | JH7: FALSE | JI7: FALSE | JJ7: FALSE | JK7: FALSE | JL7: FALSE | JM7: FALSE | JN7: FALSE | JO7: FALSE | JP7: FALSE | JQ7: FALSE | JR7: FALSE | JS7: FALSE | JT7: FALSE | JU7: FALSE | JV7: FALSE | JW7: FALSE | JX7: FALSE | JY7: FALSE | JZ7: FALSE | KA7: FALSE | KB7: FALSE | KC7: FALSE | KD7: FALSE | KE7: FALSE | KF7: FALSE | KG7: FALSE | KH7: FALSE | KI7: FALSE | KJ7: FALSE | KK7: FALSE | KL7: FALSE | KM7: FALSE | KN7: FALSE | KO7: FALSE | KP7: FALSE | KQ7: FALSE | KR7: FALSE | KS7: FALSE | KT7: FALSE | KU7: FALSE | KV7: FALSE | KW7: FALSE | KX7: FALSE | KY7: FALSE | KZ7: FALSE | LA7: FALSE | LB7: FALSE | LC7: FALSE | LD7: FALSE | LE7: FALSE | LF7: FALSE | LG7: FALSE | LH7: FALSE | LI7: FALSE | LJ7: FALSE | LK7: FALSE | LL7: FALSE | LM7: FALSE | LN7: FALSE | LO7: FALSE | LP7: FALSE | LQ7: =AND(LQ2>$F$10,LQ2<=$F$11) -> FALSE | LR7: FALSE | LS7: FALSE | LT7: FALSE | LU7: FALSE | LV7: FALSE | LW7: FALSE | LX7: FALSE | LY7: FALSE | LZ7: FALSE | MA7: FALSE | MB7: FALSE | MC7: FALSE | MD7: FALSE | ME7: FALSE | MF7: FALSE | MG7: FALSE | MH7: FALSE | MI7: FALSE | MJ7: FALSE | MK7: FALSE | ML7: FALSE | MM7: FALSE | MN7: FALSE | MO7: FALSE | MP7: FALSE | MQ7: FALSE | MR7: FALSE | MS7: FALSE | MT7: FALSE | MU7: FALSE | MV7: FALSE | MW7: FALSE | MX7: FALSE | MY7: FALSE | MZ7: FALSE | NA7: FALSE | NB7: FALSE | NC7: FALSE | ND7: FALSE | NE7: FALSE | NF7: FALSE | NG7: FALSE | NH7: FALSE | NI7: FALSE | NJ7: FALSE | NK7: FALSE | NL7: FALSE | NM7: FALSE | NN7: FALSE | NO7: FALSE | NP7: FALSE | NQ7: FALSE | NR7: FALSE | NS7: FALSE | NT7: FALSE | NU7: FALSE | NV7: FALSE | NW7: FALSE | NX7: FALSE | NY7: FALSE | NZ7: FALSE | OA7: FALSE | OB7: FALSE | OC7: =AND(OC2>$F$10,OC2<=$F$11) -> FALSE | OD7: FALSE | OE7: FALSE | OF7: FALSE | OG7: FALSE | OH7: FALSE | OI7: FALSE | OJ7: FALSE | OK7: FALSE | OL7: FALSE | OM7: FALSE | ON7: FALSE | OO7: FALSE | OP7: FALSE | OQ7: FALSE | OR7: FALSE
C8: True valuation period | I8: =I2>$F$10 -> FALSE | J8: FALSE | K8: FALSE | L8: FALSE | M8: FALSE | N8: TRUE | O8: TRUE | P8: TRUE | Q8: TRUE | R8: TRUE | S8: TRUE | T8: TRUE | U8: TRUE | V8: TRUE | W8: TRUE | X8: TRUE | Y8: TRUE | Z8: TRUE | AA8: TRUE | AB8: TRUE | AC8: TRUE | AD8: TRUE | AE8: TRUE | AF8: TRUE | AG8: TRUE | AH8: TRUE | AI8: TRUE | AJ8: TRUE | AK8: TRUE | AL8: TRUE | AM8: TRUE | AN8: TRUE | AO8: TRUE | AP8: TRUE | AQ8: TRUE | AR8: TRUE | AS8: TRUE | AT8: TRUE | AU8: TRUE | AV8: TRUE | AW8: TRUE | AX8: TRUE | AY8: TRUE | AZ8: TRUE | BA8: TRUE | BB8: TRUE | BC8: TRUE | BD8: TRUE | BE8: TRUE | BF8: TRUE | BG8: TRUE | BH8: TRUE | BI8: TRUE | BJ8: TRUE | BK8: TRUE | BL8: TRUE | BM8: TRUE | BN8: TRUE | BO8: TRUE | BP8: TRUE | BQ8: TRUE | BR8: TRUE | BS8: TRUE | BT8: TRUE | BU8: =BU2>$F$10 -> TRUE | BV8: TRUE | BW8: TRUE | BX8: TRUE | BY8: TRUE | BZ8: TRUE | CA8: TRUE | CB8: TRUE | CC8: TRUE | CD8: TRUE | CE8: TRUE | CF8: TRUE | CG8: TRUE | CH8: TRUE | CI8: TRUE | CJ8: TRUE | CK8: TRUE | CL8: TRUE | CM8: TRUE | CN8: TRUE | CO8: TRUE | CP8: TRUE | CQ8: TRUE | CR8: TRUE | CS8: TRUE | CT8: TRUE | CU8: TRUE | CV8: TRUE | CW8: TRUE | CX8: TRUE | CY8: TRUE | CZ8: TRUE | DA8: TRUE | DB8: TRUE | DC8: TRUE | DD8: TRUE | DE8: TRUE | DF8: TRUE | DG8: TRUE | DH8: TRUE | DI8: TRUE | DJ8: TRUE | DK8: TRUE | DL8: TRUE | DM8: TRUE | DN8: TRUE | DO8: TRUE | DP8: TRUE | DQ8: TRUE | DR8: TRUE | DS8: TRUE | DT8: TRUE | DU8: TRUE | DV8: TRUE | DW8: TRUE | DX8: TRUE | DY8: TRUE | DZ8: TRUE | EA8: TRUE | EB8: TRUE | EC8: TRUE | ED8: TRUE | EE8: TRUE | EF8: TRUE | EG8: =EG2>$F$10 -> TRUE | EH8: TRUE | EI8: TRUE | EJ8: TRUE | EK8: TRUE | EL8: TRUE | EM8: TRUE | EN8: TRUE | EO8: TRUE | EP8: TRUE | EQ8: TRUE | ER8: TRUE | ES8: TRUE | ET8: TRUE | EU8: TRUE | EV8: TRUE | EW8: TRUE | EX8: TRUE | EY8: TRUE | EZ8: TRUE | FA8: TRUE | FB8: TRUE | FC8: TRUE | FD8: TRUE | FE8: TRUE | FF8: TRUE | FG8: TRUE | FH8: TRUE | FI8: TRUE | FJ8: TRUE | FK8: TRUE | FL8: TRUE | FM8: TRUE | FN8: TRUE | FO8: TRUE | FP8: TRUE | FQ8: TRUE | FR8: TRUE | FS8: TRUE | FT8: TRUE | FU8: TRUE | FV8: TRUE | FW8: TRUE | FX8: TRUE | FY8: TRUE | FZ8: TRUE | GA8: TRUE | GB8: TRUE | GC8: TRUE | GD8: TRUE | GE8: TRUE | GF8: TRUE | GG8: TRUE | GH8: TRUE | GI8: TRUE | GJ8: TRUE | GK8: TRUE | GL8: TRUE | GM8: TRUE | GN8: TRUE | GO8: TRUE | GP8: TRUE | GQ8: TRUE | GR8: TRUE | GS8: =GS2>$F$10 -> TRUE | GT8: TRUE | GU8: TRUE | GV8: TRUE | GW8: TRUE | GX8: TRUE | GY8: TRUE | GZ8: TRUE | HA8: TRUE | HB8: TRUE | HC8: TRUE | HD8: TRUE | HE8: TRUE | HF8: TRUE | HG8: TRUE | HH8: TRUE | HI8: TRUE | HJ8: TRUE | HK8: TRUE | HL8: TRUE | HM8: TRUE | HN8: TRUE | HO8: TRUE | HP8: TRUE | HQ8: TRUE | HR8: TRUE | HS8: TRUE | HT8: TRUE | HU8: TRUE | HV8: TRUE | HW8: TRUE | HX8: TRUE | HY8: TRUE | HZ8: TRUE | IA8: TRUE | IB8: TRUE | IC8: TRUE | ID8: TRUE | IE8: TRUE | IF8: TRUE | IG8: TRUE | IH8: TRUE | II8: TRUE | IJ8: TRUE | IK8: TRUE | IL8: TRUE | IM8: TRUE | IN8: TRUE | IO8: TRUE | IP8: TRUE | IQ8: TRUE | IR8: TRUE | IS8: TRUE | IT8: TRUE | IU8: TRUE | IV8: TRUE | IW8: TRUE | IX8: TRUE | IY8: TRUE | IZ8: TRUE | JA8: TRUE | JB8: TRUE | JC8: TRUE | JD8: TRUE | JE8: =JE2>$F$10 -> TRUE | JF8: TRUE | JG8: TRUE | JH8: TRUE | JI8: TRUE | JJ8: TRUE | JK8: TRUE | JL8: TRUE | JM8: TRUE | JN8: TRUE | JO8: TRUE | JP8: TRUE | JQ8: TRUE | JR8: TRUE | JS8: TRUE | JT8: TRUE | JU8: TRUE | JV8: TRUE | JW8: TRUE | JX8: TRUE | JY8: TRUE | JZ8: TRUE | KA8: TRUE | KB8: TRUE | KC8: TRUE | KD8: TRUE | KE8: TRUE | KF8: TRUE | KG8: TRUE | KH8: TRUE | KI8: TRUE | KJ8: TRUE | KK8: TRUE | KL8: TRUE | KM8: TRUE | KN8: TRUE | KO8: TRUE | KP8: TRUE | KQ8: TRUE | KR8: TRUE | KS8: TRUE | KT8: TRUE | KU8: TRUE | KV8: TRUE | KW8: TRUE | KX8: TRUE | KY8: TRUE | KZ8: TRUE | LA8: TRUE | LB8: TRUE | LC8: TRUE | LD8: TRUE | LE8: TRUE | LF8: TRUE | LG8: TRUE | LH8: TRUE | LI8: TRUE | LJ8: TRUE | LK8: TRUE | LL8: TRUE | LM8: TRUE | LN8: TRUE | LO8: TRUE | LP8: TRUE | LQ8: =LQ2>$F$10 -> TRUE | LR8: TRUE | LS8: TRUE | LT8: TRUE | LU8: TRUE | LV8: TRUE | LW8: TRUE | LX8: TRUE | LY8: TRUE | LZ8: TRUE | MA8: TRUE | MB8: TRUE | MC8: TRUE | MD8: TRUE | ME8: TRUE | MF8: TRUE | MG8: TRUE | MH8: TRUE | MI8: TRUE | MJ8: TRUE | MK8: TRUE | ML8: TRUE | MM8: TRUE | MN8: TRUE | MO8: TRUE | MP8: TRUE | MQ8: TRUE | MR8: TRUE | MS8: TRUE | MT8: TRUE | MU8: TRUE | MV8: TRUE | MW8: TRUE | MX8: TRUE | MY8: TRUE | MZ8: TRUE | NA8: TRUE | NB8: TRUE | NC8: TRUE | ND8: TRUE | NE8: TRUE | NF8: TRUE | NG8: TRUE | NH8: TRUE | NI8: TRUE | NJ8: TRUE | NK8: TRUE | NL8: TRUE | NM8: TRUE | NN8: TRUE | NO8: TRUE | NP8: TRUE | NQ8: TRUE | NR8: TRUE | NS8: TRUE | NT8: TRUE | NU8: TRUE | NV8: TRUE | NW8: TRUE | NX8: TRUE | NY8: TRUE | NZ8: TRUE | OA8: TRUE | OB8: TRUE | OC8: =OC2>$F$10 -> TRUE | OD8: TRUE | OE8: TRUE | OF8: TRUE | OG8: TRUE | OH8: TRUE | OI8: TRUE | OJ8: TRUE | OK8: TRUE | OL8: TRUE | OM8: TRUE | ON8: TRUE | OO8: TRUE | OP8: TRUE | OQ8: TRUE | OR8: TRUE
A9: Proofs
C10: Valuation year | F10: 5
C11: Terminal year | F11: 15
C12: Growth rate | F12: =G12/100 -> 0.03 | G12: 3
C13: WACC | F13: 0.12
C14: Revenue level | F14: 100 | I14: =+F14*(1+$F$12) -> 103 | J14: =+I14*(1+$F$12) -> 106.09 | K14: 109.2727 | L14: 112.550881 | M14: 115.9274074 | N14: 119.4052297 | O14: 122.9873865 | P14: 126.6770081 | Q14: 130.4773184 | R14: 134.3916379 | S14: 138.4233871 | T14: 142.5760887 | U14: 146.8533713 | V14: 151.2589725 | W14: 155.7967417 | X14: 160.4706439 | Y14: 165.2847632 | Z14: 170.2433061 | AA14: 175.3506053 | AB14: 180.6111235 | AC14: 186.0294572 | AD14: 191.6103409 | AE14: 197.3586511 | AF14: 203.2794106 | AG14: 209.377793 | AH14: 215.6591268 | AI14: 222.1289006 | AJ14: 228.7927676 | AK14: 235.6565506 | AL14: 242.7262471 | AM14: 250.0080345 | AN14: 257.5082756 | AO14: 265.2335238 | AP14: 273.1905296 | AQ14: 281.3862454 | AR14: 289.8278328 | AS14: 298.5226678 | AT14: 307.4783478 | AU14: 316.7026983 | AV14: 326.2037792 | AW14: 335.9898926 | AX14: 346.0695894 | AY14: 356.451677 | AZ14: 367.1452273 | BA14: 378.1595842 | BB14: 389.5043717 | BC14: 401.1895028 | BD14: 413.2251879 | BE14: 425.6219436 | BF14: 438.3906019 | BG14: 451.5423199 | BH14: 465.0885895 | BI14: 479.0412472 | BJ14: 493.4124846 | BK14: 508.2148592 | BL14: 523.4613049 | BM14: 539.1651441 | BN14: 555.3400984 | BO14: 572.0003014 | BP14: 589.1603104 | BQ14: 606.8351197 | BR14: 625.0401733 | BS14: 643.7913785 | BT14: 663.1051199 | BU14: 682.9982735 | BV14: =+BU14*(1+$F$12) -> 703.4882217 | BW14: 724.5928683 | BX14: 746.3306544 | BY14: 768.720574 | BZ14: 791.7821912 | CA14: 815.5356569 | CB14: 840.0017267 | CC14: 865.2017785 | CD14: 891.1578318 | CE14: 917.8925668 | CF14: 945.4293438 | CG14: 973.7922241 | CH14: 1003.005991 | CI14: 1033.096171 | CJ14: 1064.089056 | CK14: 1096.011727 | CL14: 1128.892079 | CM14: 1162.758842 | CN14: 1197.641607 | CO14: 1233.570855 | CP14: 1270.577981 | CQ14: 1308.69532 | CR14: 1347.95618 | CS14: 1388.394865 | CT14: 1430.046711 | CU14: 1472.948112 | CV14: 1517.136556 | CW14: 1562.650652 | CX14: 1609.530172 | CY14: 1657.816077 | CZ14: 1707.550559 | DA14: 1758.777076 | DB14: 1811.540388 | DC14: 1865.8866 | DD14: 1921.863198 | DE14: 1979.519094 | DF14: 2038.904667 | DG14: 2100.071807 | DH14: 2163.073961 | DI14: 2227.96618 | DJ14: 2294.805165 | DK14: 2363.64932 | DL14: 2434.5588 | DM14: 2507.595564 | DN14: 2582.823431 | DO14: 2660.308134 | DP14: 2740.117378 | DQ14: 2822.320899 | DR14: 2906.990526 | DS14: 2994.200242 | DT14: 3084.026249 | DU14: 3176.547037 | DV14: 3271.843448 | DW14: 3369.998751 | DX14: 3471.098714 | DY14: 3575.231675 | DZ14: 3682.488625 | EA14: 3792.963284 | EB14: 3906.752182 | EC14: 4023.954748 | ED14: 4144.67339 | EE14: 4269.013592 | EF14: 4397.084 | EG14: 4528.99652 | EH14: =+EG14*(1+$F$12) -> 4664.866415 | EI14: 4804.812408 | EJ14: 4948.95678 | EK14: 5097.425484 | EL14: 5250.348248 | EM14: 5407.858696 | EN14: 5570.094456 | EO14: 5737.19729 | EP14: 5909.313209 | EQ14: 6086.592605 | ER14: 6269.190383 | ES14: 6457.266095 | ET14: 6650.984078 | EU14: 6850.5136 | EV14: 7056.029008 | EW14: 7267.709878 | EX14: 7485.741174 | EY14: 7710.31341 | EZ14: 7941.622812 | FA14: 8179.871496 | FB14: 8425.267641 | FC14: 8678.02567 | FD14: 8938.366441 | FE14: 9206.517434 | FF14: 9482.712957 | FG14: 9767.194346 | FH14: 10060.21018 | FI14: 10362.01648 | FJ14: 10672.87698 | FK14: 10993.06328 | FL14: 11322.85518 | FM14: 11662.54084 | FN14: 12012.41706 | FO14: 12372.78958 | FP14: 12743.97326 | FQ14: 13126.29246 | FR14: 13520.08123 | FS14: 13925.68367 | FT14: 14343.45418 | FU14: 14773.75781 | FV14: 15216.97054 | FW14: 15673.47966 | FX14: 16143.68405 | FY14: 16627.99457 | FZ14: 17126.83441 | GA14: 17640.63944 | GB14: 18169.85862 | GC14: 18714.95438 | GD14: 19276.40301 | GE14: 19854.6951 | GF14: 20450.33596 | GG14: 21063.84603 | GH14: 21695.76141 | GI14: 22346.63426 | GJ14: 23017.03329 | GK14: 23707.54428 | GL14: 24418.77061 | GM14: 25151.33373 | GN14: 25905.87374 | GO14: 26683.04995 | GP14: 27483.54145 | GQ14: 28308.0477 | GR14: 29157.28913 | GS14: 30032.0078 | GT14: =+GS14*(1+$F$12) -> 30932.96804 | GU14: 31860.95708 | GV14: 32816.78579 | GW14: 33801.28936 | GX14: 34815.32804 | GY14: 35859.78789 | GZ14: 36935.58152 | HA14: 38043.64897 | HB14: 39184.95844 | HC14: 40360.50719 | HD14: 41571.3224 | HE14: 42818.46208 | HF14: 44103.01594 | HG14: 45426.10642 | HH14: 46788.88961 | HI14: 48192.5563 | HJ14: 49638.33299 | HK14: 51127.48298 | HL14: 52661.30747 | HM14: 54241.14669 | HN14: 55868.38109 | HO14: 57544.43252 | HP14: 59270.7655 | HQ14: 61048.88846 | HR14: 62880.35512 | HS14: 64766.76577 | HT14: 66709.76875 | HU14: 68711.06181 | HV14: 70772.39366 | HW14: 72895.56547 | HX14: 75082.43244 | HY14: 77334.90541 | HZ14: 79654.95257 | IA14: 82044.60115 | IB14: 84505.93918 | IC14: 87041.11736 | ID14: 89652.35088 | IE14: 92341.92141 | IF14: 95112.17905 | IG14: 97965.54442 | IH14: 100904.5108 | II14: 103931.6461 | IJ14: 107049.5955 | IK14: 110261.0833 | IL14: 113568.9158 | IM14: 116975.9833 | IN14: 120485.2628 | IO14: 124099.8207 | IP14: 127822.8153 | IQ14: 131657.4998 | IR14: 135607.2247 | IS14: 139675.4415 | IT14: 143865.7047 | IU14: 148181.6759 | IV14: 152627.1262 | IW14: 157205.9399 | IX14: 161922.1181 | IY14: 166779.7817 | IZ14: 171783.1751 | JA14: 176936.6704 | JB14: 182244.7705 | JC14: 187712.1136 | JD14: 193343.477 | JE14: 199143.7813 | JF14: =+JE14*(1+$F$12) -> 205118.0948 | JG14: 211271.6376 | JH14: 217609.7867 | JI14: 224138.0803 | JJ14: 230862.2228 | JK14: 237788.0894 | JL14: 244921.7321 | JM14: 252269.3841 | JN14: 259837.4656 | JO14: 267632.5896 | JP14: 275661.5673 | JQ14: 283931.4143 | JR14: 292449.3567 | JS14: 301222.8374 | JT14: 310259.5225 | JU14: 319567.3082 | JV14: 329154.3275 | JW14: 339028.9573 | JX14: 349199.826 | JY14: 359675.8208 | JZ14: 370466.0954 | KA14: 381580.0783 | KB14: 393027.4806 | KC14: 404818.305 | KD14: 416962.8542 | KE14: 429471.7398 | KF14: 442355.892 | KG14: 455626.5688 | KH14: 469295.3658 | KI14: 483374.2268 | KJ14: 497875.4536 | KK14: 512811.7172 | KL14: 528196.0687 | KM14: 544041.9508 | KN14: 560363.2093 | KO14: 577174.1056 | KP14: 594489.3288 | KQ14: 612324.0086 | KR14: 630693.7289 | KS14: 649614.5407 | KT14: 669102.977 | KU14: 689176.0663 | KV14: 709851.3483 | KW14: =+KV14*(1+$F$12) -> 731146.8887 | KX14: =+KW14*(1+$F$12) -> 753081.2954 | KY14: =+KX14*(1+$F$12) -> 775673.7342 | KZ14: =+KY14*(1+$F$12) -> 798943.9463 | LA14: =+KZ14*(1+$F$12) -> 822912.2646 | LB14: =+LA14*(1+$F$12) -> 847599.6326 | LC14: =+LB14*(1+$F$12) -> 873027.6216 | LD14: =+LC14*(1+$F$12) -> 899218.4502 | LE14: =+LD14*(1+$F$12) -> 926195.0037 | LF14: =+LE14*(1+$F$12) -> 953980.8538 | LG14: =+LF14*(1+$F$12) -> 982600.2794 | LH14: =+LG14*(1+$F$12) -> 1012078.288 | LI14: =+LH14*(1+$F$12) -> 1042440.636 | LJ14: =+LI14*(1+$F$12) -> 1073713.856 | LK14: =+LJ14*(1+$F$12) -> 1105925.271 | LL14: =+LK14*(1+$F$12) -> 1139103.029 | LM14: =+LL14*(1+$F$12) -> 1173276.12 | LN14: =+LM14*(1+$F$12) -> 1208474.404 | LO14: =+LN14*(1+$F$12) -> 1244728.636 | LP14: =+LO14*(1+$F$12) -> 1282070.495 | LQ14: =+LP14*(1+$F$12) -> 1320532.61 | LR14: =+LQ14*(1+$F$12) -> 1360148.588 | LS14: =+LR14*(1+$F$12) -> 1400953.046 | LT14: =+LS14*(1+$F$12) -> 1442981.637 | LU14: =+LT14*(1+$F$12) -> 1486271.086 | LV14: =+LU14*(1+$F$12) -> 1530859.219 | LW14: =+LV14*(1+$F$12) -> 1576784.995 | LX14: =+LW14*(1+$F$12) -> 1624088.545 | LY14: =+LX14*(1+$F$12) -> 1672811.202 | LZ14: =+LY14*(1+$F$12) -> 1722995.538 | MA14: =+LZ14*(1+$F$12) -> 1774685.404 | MB14: =+MA14*(1+$F$12) -> 1827925.966 | MC14: =+MB14*(1+$F$12) -> 1882763.745 | MD14: =+MC14*(1+$F$12) -> 1939246.657 | ME14: =+MD14*(1+$F$12) -> 1997424.057 | MF14: =+ME14*(1+$F$12) -> 2057346.779 | MG14: =+MF14*(1+$F$12) -> 2119067.182 | MH14: =+MG14*(1+$F$12) -> 2182639.198 | MI14: =+MH14*(1+$F$12) -> 2248118.374 | MJ14: =+MI14*(1+$F$12) -> 2315561.925 | MK14: =+MJ14*(1+$F$12) -> 2385028.782 | ML14: =+MK14*(1+$F$12) -> 2456579.646 | MM14: =+ML14*(1+$F$12) -> 2530277.035 | MN14: =+MM14*(1+$F$12) -> 2606185.346 | MO14: =+MN14*(1+$F$12) -> 2684370.907 | MP14: =+MO14*(1+$F$12) -> 2764902.034 | MQ14: =+MP14*(1+$F$12) -> 2847849.095 | MR14: =+MQ14*(1+$F$12) -> 2933284.568 | MS14: =+MR14*(1+$F$12) -> 3021283.105 | MT14: =+MS14*(1+$F$12) -> 3111921.598 | MU14: =+MT14*(1+$F$12) -> 3205279.246 | MV14: =+MU14*(1+$F$12) -> 3301437.623 | MW14: =+MV14*(1+$F$12) -> 3400480.752 | MX14: =+MW14*(1+$F$12) -> 3502495.175 | MY14: =+MX14*(1+$F$12) -> 3607570.03 | MZ14: =+MY14*(1+$F$12) -> 3715797.131 | NA14: =+MZ14*(1+$F$12) -> 3827271.045 | NB14: =+NA14*(1+$F$12) -> 3942089.176 | NC14: =+NB14*(1+$F$12) -> 4060351.851 | ND14: =+NC14*(1+$F$12) -> 4182162.407 | NE14: =+ND14*(1+$F$12) -> 4307627.279 | NF14: =+NE14*(1+$F$12) -> 4436856.097 | NG14: =+NF14*(1+$F$12) -> 4569961.78 | NH14: =+NG14*(1+$F$12) -> 4707060.634 | NI14: =+NH14*(1+$F$12) -> 4848272.453 | NJ14: =+NI14*(1+$F$12) -> 4993720.626 | NK14: =+NJ14*(1+$F$12) -> 5143532.245 | NL14: =+NK14*(1+$F$12) -> 5297838.212 | NM14: =+NL14*(1+$F$12) -> 5456773.359 | NN14: =+NM14*(1+$F$12) -> 5620476.56 | NO14: =+NN14*(1+$F$12) -> 5789090.856 | NP14: =+NO14*(1+$F$12) -> 5962763.582 | NQ14: =+NP14*(1+$F$12) -> 6141646.49 | NR14: =+NQ14*(1+$F$12) -> 6325895.884 | NS14: =+NR14*(1+$F$12) -> 6515672.761 | NT14: =+NS14*(1+$F$12) -> 6711142.944 | NU14: =+NT14*(1+$F$12) -> 6912477.232 | NV14: =+NU14*(1+$F$12) -> 7119851.549 | NW14: =+NV14*(1+$F$12) -> 7333447.095 | NX14: =+NW14*(1+$F$12) -> 7553450.508 | NY14: =+NX14*(1+$F$12) -> 7780054.023 | NZ14: =+NY14*(1+$F$12) -> 8013455.644 | OA14: =+NZ14*(1+$F$12) -> 8253859.313 | OB14: =+OA14*(1+$F$12) -> 8501475.093 | OC14: =+OB14*(1+$F$12) -> 8756519.346 | OD14: =+OC14*(1+$F$12) -> 9019214.926 | OE14: =+OD14*(1+$F$12) -> 9289791.374 | OF14: =+OE14*(1+$F$12) -> 9568485.115 | OG14: =+OF14*(1+$F$12) -> 9855539.668 | OH14: =+OG14*(1+$F$12) -> 10151205.86 | OI14: =+OH14*(1+$F$12) -> 10455742.03 | OJ14: =+OI14*(1+$F$12) -> 10769414.3 | OK14: =+OJ14*(1+$F$12) -> 11092496.72 | OL14: =+OK14*(1+$F$12) -> 11425271.63 | OM14: =+OL14*(1+$F$12) -> 11768029.77 | ON14: =+OM14*(1+$F$12) -> 12121070.67 | OO14: =+ON14*(1+$F$12) -> 12484702.79 | OP14: =+OO14*(1+$F$12) -> 12859243.87 | OQ14: =+OP14*(1+$F$12) -> 13245021.19 | OR14: =+OQ14*(1+$F$12) -> 13642371.82
B16: Proof 1: Accounts Payable: Demonstrates the A/P should not be in bridge because inclued in FCF; Also demonstrates process of making proof
C17: True value assumptions
C18: Accounts payable / revenue | F18: 0.5
C19: Accounts payable | I19: =+I14*$F$18 -> 51.5 | J19: 53.045 | K19: 54.63635 | L19: 56.2754405 | M19: 57.96370372 | N19: 59.70261483 | O19: 61.49369327 | P19: 63.33850407 | Q19: 65.23865919 | R19: 67.19581897 | S19: 69.21169354 | T19: 71.28804434 | U19: 73.42668567 | V19: 75.62948624 | W19: 77.89837083 | X19: 80.23532195 | Y19: 82.64238161 | Z19: 85.12165306 | AA19: 87.67530265 | AB19: 90.30556173 | AC19: 93.01472859 | AD19: 95.80517044 | AE19: 98.67932556 | AF19: 101.6397053 | AG19: 104.6888965 | AH19: 107.8295634 | AI19: 111.0644503 | AJ19: 114.3963838 | AK19: 117.8282753 | AL19: 121.3631236 | AM19: 125.0040173 | AN19: 128.7541378 | AO19: 132.6167619 | AP19: 136.5952648 | AQ19: 140.6931227 | AR19: 144.9139164 | AS19: 149.2613339 | AT19: 153.7391739 | AU19: 158.3513491 | AV19: 163.1018896 | AW19: 167.9949463 | AX19: 173.0347947 | AY19: 178.2258385 | AZ19: 183.5726137 | BA19: 189.0797921 | BB19: 194.7521858 | BC19: 200.5947514 | BD19: 206.612594 | BE19: 212.8109718 | BF19: 219.1953009 | BG19: 225.77116 | BH19: 232.5442948 | BI19: 239.5206236 | BJ19: 246.7062423 | BK19: 254.1074296 | BL19: 261.7306525 | BM19: 269.582572 | BN19: 277.6700492 | BO19: 286.0001507 | BP19: 294.5801552 | BQ19: 303.4175599 | BR19: 312.5200867 | BS19: 321.8956893 | BT19: 331.5525599 | BU19: =+BU14*$F$18 -> 341.4991367 | BV19: 351.7441108 | BW19: 362.2964342 | BX19: 373.1653272 | BY19: 384.360287 | BZ19: 395.8910956 | CA19: 407.7678285 | CB19: 420.0008633 | CC19: 432.6008892 | CD19: 445.5789159 | CE19: 458.9462834 | CF19: 472.7146719 | CG19: 486.896112 | CH19: 501.5029954 | CI19: 516.5480853 | CJ19: 532.0445278 | CK19: 548.0058637 | CL19: 564.4460396 | CM19: 581.3794208 | CN19: 598.8208034 | CO19: 616.7854275 | CP19: 635.2889903 | CQ19: 654.34766 | CR19: 673.9780898 | CS19: 694.1974325 | CT19: 715.0233555 | CU19: 736.4740561 | CV19: 758.5682778 | CW19: 781.3253262 | CX19: 804.7650859 | CY19: 828.9080385 | CZ19: 853.7752797 | DA19: 879.3885381 | DB19: 905.7701942 | DC19: 932.9433 | DD19: 960.931599 | DE19: 989.759547 | DF19: 1019.452333 | DG19: 1050.035903 | DH19: 1081.536981 | DI19: 1113.98309 | DJ19: 1147.402583 | DK19: 1181.82466 | DL19: 1217.2794 | DM19: 1253.797782 | DN19: 1291.411715 | DO19: 1330.154067 | DP19: 1370.058689 | DQ19: 1411.16045 | DR19: 1453.495263 | DS19: 1497.100121 | DT19: 1542.013125 | DU19: 1588.273518 | DV19: 1635.921724 | DW19: 1684.999376 | DX19: 1735.549357 | DY19: 1787.615837 | DZ19: 1841.244313 | EA19: 1896.481642 | EB19: 1953.376091 | EC19: 2011.977374 | ED19: 2072.336695 | EE19: 2134.506796 | EF19: 2198.542 | EG19: =+EG14*$F$18 -> 2264.49826 | EH19: 2332.433208 | EI19: 2402.406204 | EJ19: 2474.47839 | EK19: 2548.712742 | EL19: 2625.174124 | EM19: 2703.929348 | EN19: 2785.047228 | EO19: 2868.598645 | EP19: 2954.656604 | EQ19: 3043.296303 | ER19: 3134.595192 | ES19: 3228.633047 | ET19: 3325.492039 | EU19: 3425.2568 | EV19: 3528.014504 | EW19: 3633.854939 | EX19: 3742.870587 | EY19: 3855.156705 | EZ19: 3970.811406 | FA19: 4089.935748 | FB19: 4212.633821 | FC19: 4339.012835 | FD19: 4469.18322 | FE19: 4603.258717 | FF19: 4741.356478 | FG19: 4883.597173 | FH19: 5030.105088 | FI19: 5181.008241 | FJ19: 5336.438488 | FK19: 5496.531642 | FL19: 5661.427592 | FM19: 5831.270419 | FN19: 6006.208532 | FO19: 6186.394788 | FP19: 6371.986632 | FQ19: 6563.146231 | FR19: 6760.040617 | FS19: 6962.841836 | FT19: 7171.727091 | FU19: 7386.878904 | FV19: 7608.485271 | FW19: 7836.739829 | FX19: 8071.842024 | FY19: 8313.997285 | FZ19: 8563.417203 | GA19: 8820.319719 | GB19: 9084.929311 | GC19: 9357.47719 | GD19: 9638.201506 | GE19: 9927.347551 | GF19: 10225.16798 | GG19: 10531.92302 | GH19: 10847.88071 | GI19: 11173.31713 | GJ19: 11508.51664 | GK19: 11853.77214 | GL19: 12209.38531 | GM19: 12575.66687 | GN19: 12952.93687 | GO19: 13341.52498 | GP19: 13741.77073 | GQ19: 14154.02385 | GR19: 14578.64456 | GS19: =+GS14*$F$18 -> 15016.0039 | GT19: 15466.48402 | GU19: 15930.47854 | GV19: 16408.39289 | GW19: 16900.64468 | GX19: 17407.66402 | GY19: 17929.89394 | GZ19: 18467.79076 | HA19: 19021.82448 | HB19: 19592.47922 | HC19: 20180.25359 | HD19: 20785.6612 | HE19: 21409.23104 | HF19: 22051.50797 | HG19: 22713.05321 | HH19: 23394.44481 | HI19: 24096.27815 | HJ19: 24819.16649 | HK19: 25563.74149 | HL19: 26330.65373 | HM19: 27120.57335 | HN19: 27934.19055 | HO19: 28772.21626 | HP19: 29635.38275 | HQ19: 30524.44423 | HR19: 31440.17756 | HS19: 32383.38289 | HT19: 33354.88437 | HU19: 34355.5309 | HV19: 35386.19683 | HW19: 36447.78274 | HX19: 37541.21622 | HY19: 38667.4527 | HZ19: 39827.47629 | IA19: 41022.30057 | IB19: 42252.96959 | IC19: 43520.55868 | ID19: 44826.17544 | IE19: 46170.9607 | IF19: 47556.08952 | IG19: 48982.77221 | IH19: 50452.25538 | II19: 51965.82304 | IJ19: 53524.79773 | IK19: 55130.54166 | IL19: 56784.45791 | IM19: 58487.99165 | IN19: 60242.6314 | IO19: 62049.91034 | IP19: 63911.40765 | IQ19: 65828.74988 | IR19: 67803.61237 | IS19: 69837.72075 | IT19: 71932.85237 | IU19: 74090.83794 | IV19: 76313.56308 | IW19: 78602.96997 | IX19: 80961.05907 | IY19: 83389.89084 | IZ19: 85891.58757 | JA19: 88468.33519 | JB19: 91122.38525 | JC19: 93856.05681 | JD19: 96671.73851 | JE19: =+JE14*$F$18 -> 99571.89067 | JF19: 102559.0474 | JG19: 105635.8188 | JH19: 108804.8934 | JI19: 112069.0402 | JJ19: 115431.1114 | JK19: 118894.0447 | JL19: 122460.8661 | JM19: 126134.692 | JN19: 129918.7328 | JO19: 133816.2948 | JP19: 137830.7836 | JQ19: 141965.7071 | JR19: 146224.6784 | JS19: 150611.4187 | JT19: 155129.7613 | JU19: 159783.6541 | JV19: 164577.1637 | JW19: 169514.4786 | JX19: 174599.913 | JY19: 179837.9104 | JZ19: 185233.0477 | KA19: 190790.0391 | KB19: 196513.7403 | KC19: 202409.1525 | KD19: 208481.4271 | KE19: 214735.8699 | KF19: 221177.946 | KG19: 227813.2844 | KH19: 234647.6829 | KI19: 241687.1134 | KJ19: 248937.7268 | KK19: 256405.8586 | KL19: 264098.0344 | KM19: 272020.9754 | KN19: 280181.6047 | KO19: 288587.0528 | KP19: 297244.6644 | KQ19: 306162.0043 | KR19: 315346.8644 | KS19: 324807.2704 | KT19: 334551.4885 | KU19: 344588.0331 | KV19: 354925.6741 | KW19: =+KW14*$F$18 -> 365573.4444 | KX19: 376540.6477 | KY19: 387836.8671 | KZ19: 399471.9731 | LA19: 411456.1323 | LB19: 423799.8163 | LC19: 436513.8108 | LD19: 449609.2251 | LE19: 463097.5019 | LF19: 476990.4269 | LG19: 491300.1397 | LH19: 506039.1439 | LI19: 521220.3182 | LJ19: 536856.9278 | LK19: 552962.6356 | LL19: 569551.5147 | LM19: 586638.0601 | LN19: 604237.2019 | LO19: 622364.318 | LP19: 641035.2475 | LQ19: 660266.3049 | LR19: 680074.2941 | LS19: 700476.5229 | LT19: 721490.8186 | LU19: 743135.5432 | LV19: 765429.6095 | LW19: 788392.4977 | LX19: 812044.2727 | LY19: 836405.6009 | LZ19: 861497.7689 | MA19: 887342.7019 | MB19: 913962.983 | MC19: 941381.8725 | MD19: 969623.3287 | ME19: 998712.0285 | MF19: 1028673.389 | MG19: 1059533.591 | MH19: 1091319.599 | MI19: 1124059.187 | MJ19: 1157780.962 | MK19: 1192514.391 | ML19: 1228289.823 | MM19: 1265138.518 | MN19: 1303092.673 | MO19: 1342185.453 | MP19: 1382451.017 | MQ19: 1423924.548 | MR19: 1466642.284 | MS19: 1510641.552 | MT19: 1555960.799 | MU19: 1602639.623 | MV19: 1650718.812 | MW19: 1700240.376 | MX19: 1751247.587 | MY19: 1803785.015 | MZ19: 1857898.565 | NA19: 1913635.522 | NB19: 1971044.588 | NC19: 2030175.926 | ND19: 2091081.203 | NE19: 2153813.64 | NF19: 2218428.049 | NG19: 2284980.89 | NH19: 2353530.317 | NI19: =+NI14*$F$18 -> 2424136.226 | NJ19: 2496860.313 | NK19: 2571766.123 | NL19: 2648919.106 | NM19: 2728386.679 | NN19: 2810238.28 | NO19: 2894545.428 | NP19: 2981381.791 | NQ19: 3070823.245 | NR19: 3162947.942 | NS19: 3257836.38 | NT19: 3355571.472 | NU19: 3456238.616 | NV19: 3559925.774 | NW19: 3666723.548 | NX19: 3776725.254 | NY19: 3890027.012 | NZ19: 4006727.822 | OA19: 4126929.657 | OB19: 4250737.546 | OC19: 4378259.673 | OD19: 4509607.463 | OE19: 4644895.687 | OF19: 4784242.558 | OG19: 4927769.834 | OH19: 5075602.929 | OI19: 5227871.017 | OJ19: 5384707.148 | OK19: 5546248.362 | OL19: 5712635.813 | OM19: 5884014.887 | ON19: 6060535.334 | OO19: 6242351.394 | OP19: 6429621.936 | OQ19: 6622510.594 | OR19: 6821185.912
C20: Revenue | I20: =+I14 -> 103 | J20: =+J14 -> 106.09 | K20: 109.2727 | L20: 112.550881 | M20: 115.9274074 | N20: 119.4052297 | O20: 122.9873865 | P20: 126.6770081 | Q20: 130.4773184 | R20: 134.3916379 | S20: 138.4233871 | T20: 142.5760887 | U20: 146.8533713 | V20: 151.2589725 | W20: 155.7967417 | X20: 160.4706439 | Y20: 165.2847632 | Z20: 170.2433061 | AA20: 175.3506053 | AB20: 180.6111235 | AC20: 186.0294572 | AD20: 191.6103409 | AE20: 197.3586511 | AF20: 203.2794106 | AG20: 209.377793 | AH20: 215.6591268 | AI20: 222.1289006 | AJ20: 228.7927676 | AK20: 235.6565506 | AL20: 242.7262471 | AM20: 250.0080345 | AN20: 257.5082756 | AO20: 265.2335238 | AP20: 273.1905296 | AQ20: 281.3862454 | AR20: 289.8278328 | AS20: 298.5226678 | AT20: 307.4783478 | AU20: 316.7026983 | AV20: 326.2037792 | AW20: 335.9898926 | AX20: 346.0695894 | AY20: 356.451677 | AZ20: 367.1452273 | BA20: 378.1595842 | BB20: 389.5043717 | BC20: 401.1895028 | BD20: 413.2251879 | BE20: 425.6219436 | BF20: 438.3906019 | BG20: 451.5423199 | BH20: 465.0885895 | BI20: 479.0412472 | BJ20: 493.4124846 | BK20: 508.2148592 | BL20: 523.4613049 | BM20: 539.1651441 | BN20: 555.3400984 | BO20: 572.0003014 | BP20: 589.1603104 | BQ20: 606.8351197 | BR20: 625.0401733 | BS20: 643.7913785 | BT20: 663.1051199 | BU20: 682.9982735 | BV20: =+BV14 -> 703.4882217 | BW20: 724.5928683 | BX20: 746.3306544 | BY20: 768.720574 | BZ20: 791.7821912 | CA20: 815.5356569 | CB20: 840.0017267 | CC20: 865.2017785 | CD20: 891.1578318 | CE20: 917.8925668 | CF20: 945.4293438 | CG20: 973.7922241 | CH20: 1003.005991 | CI20: 1033.096171 | CJ20: 1064.089056 | CK20: 1096.011727 | CL20: 1128.892079 | CM20: 1162.758842 | CN20: 1197.641607 | CO20: 1233.570855 | CP20: 1270.577981 | CQ20: 1308.69532 | CR20: 1347.95618 | CS20: 1388.394865 | CT20: 1430.046711 | CU20: 1472.948112 | CV20: 1517.136556 | CW20: 1562.650652 | CX20: 1609.530172 | CY20: 1657.816077 | CZ20: 1707.550559 | DA20: 1758.777076 | DB20: 1811.540388 | DC20: 1865.8866 | DD20: 1921.863198 | DE20: 1979.519094 | DF20: 2038.904667 | DG20: 2100.071807 | DH20: 2163.073961 | DI20: 2227.96618 | DJ20: 2294.805165 | DK20: 2363.64932 | DL20: 2434.5588 | DM20: 2507.595564 | DN20: 2582.823431 | DO20: 2660.308134 | DP20: 2740.117378 | DQ20: 2822.320899 | DR20: 2906.990526 | DS20: 2994.200242 | DT20: 3084.026249 | DU20: 3176.547037 | DV20: 3271.843448 | DW20: 3369.998751 | DX20: 3471.098714 | DY20: 3575.231675 | DZ20: 3682.488625 | EA20: 3792.963284 | EB20: 3906.752182 | EC20: 4023.954748 | ED20: 4144.67339 | EE20: 4269.013592 | EF20: 4397.084 | EG20: 4528.99652 | EH20: =+EH14 -> 4664.866415 | EI20: 4804.812408 | EJ20: 4948.95678 | EK20: 5097.425484 | EL20: 5250.348248 | EM20: 5407.858696 | EN20: 5570.094456 | EO20: 5737.19729 | EP20: 5909.313209 | EQ20: 6086.592605 | ER20: 6269.190383 | ES20: 6457.266095 | ET20: 6650.984078 | EU20: 6850.5136 | EV20: 7056.029008 | EW20: 7267.709878 | EX20: 7485.741174 | EY20: 7710.31341 | EZ20: 7941.622812 | FA20: 8179.871496 | FB20: 8425.267641 | FC20: 8678.02567 | FD20: 8938.366441 | FE20: 9206.517434 | FF20: 9482.712957 | FG20: 9767.194346 | FH20: 10060.21018 | FI20: 10362.01648 | FJ20: 10672.87698 | FK20: 10993.06328 | FL20: 11322.85518 | FM20: 11662.54084 | FN20: 12012.41706 | FO20: 12372.78958 | FP20: 12743.97326 | FQ20: 13126.29246 | FR20: 13520.08123 | FS20: 13925.68367 | FT20: 14343.45418 | FU20: 14773.75781 | FV20: 15216.97054 | FW20: 15673.47966 | FX20: 16143.68405 | FY20: 16627.99457 | FZ20: 17126.83441 | GA20: 17640.63944 | GB20: 18169.85862 | GC20: 18714.95438 | GD20: 19276.40301 | GE20: 19854.6951 | GF20: 20450.33596 | GG20: 21063.84603 | GH20: 21695.76141 | GI20: 22346.63426 | GJ20: 23017.03329 | GK20: 23707.54428 | GL20: 24418.77061 | GM20: 25151.33373 | GN20: 25905.87374 | GO20: 26683.04995 | GP20: 27483.54145 | GQ20: 28308.0477 | GR20: 29157.28913 | GS20: 30032.0078 | GT20: =+GT14 -> 30932.96804 | GU20: 31860.95708 | GV20: 32816.78579 | GW20: 33801.28936 | GX20: 34815.32804 | GY20: 35859.78789 | GZ20: 36935.58152 | HA20: 38043.64897 | HB20: 39184.95844 | HC20: 40360.50719 | HD20: 41571.3224 | HE20: 42818.46208 | HF20: 44103.01594 | HG20: 45426.10642 | HH20: 46788.88961 | HI20: 48192.5563 | HJ20: 49638.33299 | HK20: 51127.48298 | HL20: 52661.30747 | HM20: 54241.14669 | HN20: 55868.38109 | HO20: 57544.43252 | HP20: 59270.7655 | HQ20: 61048.88846 | HR20: 62880.35512 | HS20: 64766.76577 | HT20: 66709.76875 | HU20: 68711.06181 | HV20: 70772.39366 | HW20: 72895.56547 | HX20: 75082.43244 | HY20: 77334.90541 | HZ20: 79654.95257 | IA20: 82044.60115 | IB20: 84505.93918 | IC20: 87041.11736 | ID20: 89652.35088 | IE20: 92341.92141 | IF20: 95112.17905 | IG20: 97965.54442 | IH20: 100904.5108 | II20: 103931.6461 | IJ20: 107049.5955 | IK20: 110261.0833 | IL20: 113568.9158 | IM20: 116975.9833 | IN20: 120485.2628 | IO20: 124099.8207 | IP20: 127822.8153 | IQ20: 131657.4998 | IR20: 135607.2247 | IS20: 139675.4415 | IT20: 143865.7047 | IU20: 148181.6759 | IV20: 152627.1262 | IW20: 157205.9399 | IX20: 161922.1181 | IY20: 166779.7817 | IZ20: 171783.1751 | JA20: 176936.6704 | JB20: 182244.7705 | JC20: 187712.1136 | JD20: 193343.477 | JE20: 199143.7813 | JF20: =+JF14 -> 205118.0948 | JG20: 211271.6376 | JH20: 217609.7867 | JI20: 224138.0803 | JJ20: 230862.2228 | JK20: 237788.0894 | JL20: 244921.7321 | JM20: 252269.3841 | JN20: 259837.4656 | JO20: 267632.5896 | JP20: 275661.5673 | JQ20: 283931.4143 | JR20: 292449.3567 | JS20: 301222.8374 | JT20: 310259.5225 | JU20: 319567.3082 | JV20: 329154.3275 | JW20: 339028.9573 | JX20: 349199.826 | JY20: 359675.8208 | JZ20: 370466.0954 | KA20: 381580.0783 | KB20: 393027.4806 | KC20: 404818.305 | KD20: 416962.8542 | KE20: 429471.7398 | KF20: 442355.892 | KG20: 455626.5688 | KH20: 469295.3658 | KI20: 483374.2268 | KJ20: 497875.4536 | KK20: 512811.7172 | KL20: 528196.0687 | KM20: 544041.9508 | KN20: 560363.2093 | KO20: 577174.1056 | KP20: 594489.3288 | KQ20: 612324.0086 | KR20: 630693.7289 | KS20: 649614.5407 | KT20: 669102.977 | KU20: 689176.0663 | KV20: 709851.3483 | KW20: =+KW14 -> 731146.8887 | KX20: 753081.2954 | KY20: 775673.7342 | KZ20: 798943.9463 | LA20: 822912.2646 | LB20: 847599.6326 | LC20: 873027.6216 | LD20: 899218.4502 | LE20: 926195.0037 | LF20: 953980.8538 | LG20: 982600.2794 | LH20: 1012078.288 | LI20: 1042440.636 | LJ20: 1073713.856 | LK20: 1105925.271 | LL20: 1139103.029 | LM20: 1173276.12 | LN20: 1208474.404 | LO20: 1244728.636 | LP20: 1282070.495 | LQ20: 1320532.61 | LR20: 1360148.588 | LS20: 1400953.046 | LT20: 1442981.637 | LU20: 1486271.086 | LV20: 1530859.219 | LW20: 1576784.995 | LX20: 1624088.545 | LY20: 1672811.202 | LZ20: 1722995.538 | MA20: 1774685.404 | MB20: 1827925.966 | MC20: 1882763.745 | MD20: 1939246.657 | ME20: 1997424.057 | MF20: 2057346.779 | MG20: 2119067.182 | MH20: 2182639.198 | MI20: 2248118.374 | MJ20: 2315561.925 | MK20: 2385028.782 | ML20: 2456579.646 | MM20: 2530277.035 | MN20: 2606185.346 | MO20: 2684370.907 | MP20: 2764902.034 | MQ20: 2847849.095 | MR20: 2933284.568 | MS20: 3021283.105 | MT20: 3111921.598 | MU20: 3205279.246 | MV20: 3301437.623 | MW20: 3400480.752 | MX20: 3502495.175 | MY20: 3607570.03 | MZ20: 3715797.131 | NA20: 3827271.045 | NB20: 3942089.176 | NC20: 4060351.851 | ND20: 4182162.407 | NE20: 4307627.279 | NF20: 4436856.097 | NG20: 4569961.78 | NH20: 4707060.634 | NI20: =+NI14 -> 4848272.453 | NJ20: 4993720.626 | NK20: 5143532.245 | NL20: 5297838.212 | NM20: 5456773.359 | NN20: 5620476.56 | NO20: 5789090.856 | NP20: 5962763.582 | NQ20: 6141646.49 | NR20: 6325895.884 | NS20: 6515672.761 | NT20: 6711142.944 | NU20: 6912477.232 | NV20: 7119851.549 | NW20: 7333447.095 | NX20: 7553450.508 | NY20: 7780054.023 | NZ20: 8013455.644 | OA20: 8253859.313 | OB20: 8501475.093 | OC20: 8756519.346 | OD20: 9019214.926 | OE20: 9289791.374 | OF20: 9568485.115 | OG20: 9855539.668 | OH20: 10151205.86 | OI20: 10455742.03 | OJ20: 10769414.3 | OK20: 11092496.72 | OL20: 11425271.63 | OM20: 11768029.77 | ON20: 12121070.67 | OO20: 12484702.79 | OP20: 12859243.87 | OQ20: 13245021.19 | OR20: 13642371.82
C21: - Accounts payable paid | J21: =+I19 -> 51.5 | K21: 53.045 | L21: 54.63635 | M21: 56.2754405 | N21: 57.96370372 | O21: 59.70261483 | P21: 61.49369327 | Q21: 63.33850407 | R21: 65.23865919 | S21: 67.19581897 | T21: 69.21169354 | U21: 71.28804434 | V21: 73.42668567 | W21: 75.62948624 | X21: 77.89837083 | Y21: 80.23532195 | Z21: 82.64238161 | AA21: 85.12165306 | AB21: 87.67530265 | AC21: 90.30556173 | AD21: 93.01472859 | AE21: 95.80517044 | AF21: 98.67932556 | AG21: 101.6397053 | AH21: 104.6888965 | AI21: 107.8295634 | AJ21: 111.0644503 | AK21: 114.3963838 | AL21: 117.8282753 | AM21: 121.3631236 | AN21: 125.0040173 | AO21: 128.7541378 | AP21: 132.6167619 | AQ21: 136.5952648 | AR21: 140.6931227 | AS21: 144.9139164 | AT21: 149.2613339 | AU21: 153.7391739 | AV21: 158.3513491 | AW21: 163.1018896 | AX21: 167.9949463 | AY21: 173.0347947 | AZ21: 178.2258385 | BA21: 183.5726137 | BB21: 189.0797921 | BC21: 194.7521858 | BD21: 200.5947514 | BE21: 206.612594 | BF21: 212.8109718 | BG21: 219.1953009 | BH21: 225.77116 | BI21: 232.5442948 | BJ21: 239.5206236 | BK21: 246.7062423 | BL21: 254.1074296 | BM21: 261.7306525 | BN21: 269.582572 | BO21: 277.6700492 | BP21: 286.0001507 | BQ21: 294.5801552 | BR21: 303.4175599 | BS21: 312.5200867 | BT21: 321.8956893 | BU21: 331.5525599 | BV21: =+BU19 -> 341.4991367 | BW21: 351.7441108 | BX21: 362.2964342 | BY21: 373.1653272 | BZ21: 384.360287 | CA21: 395.8910956 | CB21: 407.7678285 | CC21: 420.0008633 | CD21: 432.6008892 | CE21: 445.5789159 | CF21: 458.9462834 | CG21: 472.7146719 | CH21: 486.896112 | CI21: 501.5029954 | CJ21: 516.5480853 | CK21: 532.0445278 | CL21: 548.0058637 | CM21: 564.4460396 | CN21: 581.3794208 | CO21: 598.8208034 | CP21: 616.7854275 | CQ21: 635.2889903 | CR21: 654.34766 | CS21: 673.9780898 | CT21: 694.1974325 | CU21: 715.0233555 | CV21: 736.4740561 | CW21: 758.5682778 | CX21: 781.3253262 | CY21: 804.7650859 | CZ21: 828.9080385 | DA21: 853.7752797 | DB21: 879.3885381 | DC21: 905.7701942 | DD21: 932.9433 | DE21: 960.931599 | DF21: 989.759547 | DG21: 1019.452333 | DH21: 1050.035903 | DI21: 1081.536981 | DJ21: 1113.98309 | DK21: 1147.402583 | DL21: 1181.82466 | DM21: 1217.2794 | DN21: 1253.797782 | DO21: 1291.411715 | DP21: 1330.154067 | DQ21: 1370.058689 | DR21: 1411.16045 | DS21: 1453.495263 | DT21: 1497.100121 | DU21: 1542.013125 | DV21: 1588.273518 | DW21: 1635.921724 | DX21: 1684.999376 | DY21: 1735.549357 | DZ21: 1787.615837 | EA21: 1841.244313 | EB21: 1896.481642 | EC21: 1953.376091 | ED21: 2011.977374 | EE21: 2072.336695 | EF21: 2134.506796 | EG21: 2198.542 | EH21: =+EG19 -> 2264.49826 | EI21: 2332.433208 | EJ21: 2402.406204 | EK21: 2474.47839 | EL21: 2548.712742 | EM21: 2625.174124 | EN21: 2703.929348 | EO21: 2785.047228 | EP21: 2868.598645 | EQ21: 2954.656604 | ER21: 3043.296303 | ES21: 3134.595192 | ET21: 3228.633047 | EU21: 3325.492039 | EV21: 3425.2568 | EW21: 3528.014504 | EX21: 3633.854939 | EY21: 3742.870587 | EZ21: 3855.156705 | FA21: 3970.811406 | FB21: 4089.935748 | FC21: 4212.633821 | FD21: 4339.012835 | FE21: 4469.18322 | FF21: 4603.258717 | FG21: 4741.356478 | FH21: 4883.597173 | FI21: 5030.105088 | FJ21: 5181.008241 | FK21: 5336.438488 | FL21: 5496.531642 | FM21: 5661.427592 | FN21: 5831.270419 | FO21: 6006.208532 | FP21: 6186.394788 | FQ21: 6371.986632 | FR21: 6563.146231 | FS21: 6760.040617 | FT21: 6962.841836 | FU21: 7171.727091 | FV21: 7386.878904 | FW21: 7608.485271 | FX21: 7836.739829 | FY21: 8071.842024 | FZ21: 8313.997285 | GA21: 8563.417203 | GB21: 8820.319719 | GC21: 9084.929311 | GD21: 9357.47719 | GE21: 9638.201506 | GF21: 9927.347551 | GG21: 10225.16798 | GH21: 10531.92302 | GI21: 10847.88071 | GJ21: 11173.31713 | GK21: 11508.51664 | GL21: 11853.77214 | GM21: 12209.38531 | GN21: 12575.66687 | GO21: 12952.93687 | GP21: 13341.52498 | GQ21: 13741.77073 | GR21: 14154.02385 | GS21: 14578.64456 | GT21: =+GS19 -> 15016.0039 | GU21: 15466.48402 | GV21: 15930.47854 | GW21: 16408.39289 | GX21: 16900.64468 | GY21: 17407.66402 | GZ21: 17929.89394 | HA21: 18467.79076 | HB21: 19021.82448 | HC21: 19592.47922 | HD21: 20180.25359 | HE21: 20785.6612 | HF21: 21409.23104 | HG21: 22051.50797 | HH21: 22713.05321 | HI21: 23394.44481 | HJ21: 24096.27815 | HK21: 24819.16649 | HL21: 25563.74149 | HM21: 26330.65373 | HN21: 27120.57335 | HO21: 27934.19055 | HP21: 28772.21626 | HQ21: 29635.38275 | HR21: 30524.44423 | HS21: 31440.17756 | HT21: 32383.38289 | HU21: 33354.88437 | HV21: 34355.5309 | HW21: 35386.19683 | HX21: 36447.78274 | HY21: 37541.21622 | HZ21: 38667.4527 | IA21: 39827.47629 | IB21: 41022.30057 | IC21: 42252.96959 | ID21: 43520.55868 | IE21: 44826.17544 | IF21: 46170.9607 | IG21: 47556.08952 | IH21: 48982.77221 | II21: 50452.25538 | IJ21: 51965.82304 | IK21: 53524.79773 | IL21: 55130.54166 | IM21: 56784.45791 | IN21: 58487.99165 | IO21: 60242.6314 | IP21: 62049.91034 | IQ21: 63911.40765 | IR21: 65828.74988 | IS21: 67803.61237 | IT21: 69837.72075 | IU21: 71932.85237 | IV21: 74090.83794 | IW21: 76313.56308 | IX21: 78602.96997 | IY21: 80961.05907 | IZ21: 83389.89084 | JA21: 85891.58757 | JB21: 88468.33519 | JC21: 91122.38525 | JD21: 93856.05681 | JE21: 96671.73851 | JF21: =+JE19 -> 99571.89067 | JG21: 102559.0474 | JH21: 105635.8188 | JI21: 108804.8934 | JJ21: 112069.0402 | JK21: 115431.1114 | JL21: 118894.0447 | JM21: 122460.8661 | JN21: 126134.692 | JO21: 129918.7328 | JP21: 133816.2948 | JQ21: 137830.7836 | JR21: 141965.7071 | JS21: 146224.6784 | JT21: 150611.4187 | JU21: 155129.7613 | JV21: 159783.6541 | JW21: 164577.1637 | JX21: 169514.4786 | JY21: 174599.913 | JZ21: 179837.9104 | KA21: 185233.0477 | KB21: 190790.0391 | KC21: 196513.7403 | KD21: 202409.1525 | KE21: 208481.4271 | KF21: 214735.8699 | KG21: 221177.946 | KH21: 227813.2844 | KI21: 234647.6829 | KJ21: 241687.1134 | KK21: 248937.7268 | KL21: 256405.8586 | KM21: 264098.0344 | KN21: 272020.9754 | KO21: 280181.6047 | KP21: 288587.0528 | KQ21: 297244.6644 | KR21: 306162.0043 | KS21: 315346.8644 | KT21: 324807.2704 | KU21: 334551.4885 | KV21: 344588.0331 | KW21: =+KV19 -> 354925.6741 | KX21: =+KW19 -> 365573.4444 | KY21: =+KX19 -> 376540.6477 | KZ21: =+KY19 -> 387836.8671 | LA21: =+KZ19 -> 399471.9731 | LB21: =+LA19 -> 411456.1323 | LC21: =+LB19 -> 423799.8163 | LD21: =+LC19 -> 436513.8108 | LE21: =+LD19 -> 449609.2251 | LF21: =+LE19 -> 463097.5019 | LG21: =+LF19 -> 476990.4269 | LH21: =+LG19 -> 491300.1397 | LI21: =+LH19 -> 506039.1439 | LJ21: =+LI19 -> 521220.3182 | LK21: =+LJ19 -> 536856.9278 | LL21: =+LK19 -> 552962.6356 | LM21: =+LL19 -> 569551.5147 | LN21: =+LM19 -> 586638.0601 | LO21: =+LN19 -> 604237.2019 | LP21: =+LO19 -> 622364.318 | LQ21: =+LP19 -> 641035.2475 | LR21: =+LQ19 -> 660266.3049 | LS21: =+LR19 -> 680074.2941 | LT21: =+LS19 -> 700476.5229 | LU21: =+LT19 -> 721490.8186 | LV21: =+LU19 -> 743135.5432 | LW21: =+LV19 -> 765429.6095 | LX21: =+LW19 -> 788392.4977 | LY21: =+LX19 -> 812044.2727 | LZ21: =+LY19 -> 836405.6009 | MA21: =+LZ19 -> 861497.7689 | MB21: =+MA19 -> 887342.7019 | MC21: =+MB19 -> 913962.983 | MD21: =+MC19 -> 941381.8725 | ME21: =+MD19 -> 969623.3287 | MF21: =+ME19 -> 998712.0285 | MG21: =+MF19 -> 1028673.389 | MH21: =+MG19 -> 1059533.591 | MI21: =+MH19 -> 1091319.599 | MJ21: =+MI19 -> 1124059.187 | MK21: =+MJ19 -> 1157780.962 | ML21: =+MK19 -> 1192514.391 | MM21: =+ML19 -> 1228289.823 | MN21: =+MM19 -> 1265138.518 | MO21: =+MN19 -> 1303092.673 | MP21: =+MO19 -> 1342185.453 | MQ21: =+MP19 -> 1382451.017 | MR21: =+MQ19 -> 1423924.548 | MS21: =+MR19 -> 1466642.284 | MT21: =+MS19 -> 1510641.552 | MU21: =+MT19 -> 1555960.799 | MV21: =+MU19 -> 1602639.623 | MW21: =+MV19 -> 1650718.812 | MX21: =+MW19 -> 1700240.376 | MY21: =+MX19 -> 1751247.587 | MZ21: =+MY19 -> 1803785.015 | NA21: =+MZ19 -> 1857898.565 | NB21: =+NA19 -> 1913635.522 | NC21: =+NB19 -> 1971044.588 | ND21: =+NC19 -> 2030175.926 | NE21: =+ND19 -> 2091081.203 | NF21: =+NE19 -> 2153813.64 | NG21: =+NF19 -> 2218428.049 | NH21: =+NG19 -> 2284980.89 | NI21: =+NH19 -> 2353530.317 | NJ21: =+NI19 -> 2424136.226 | NK21: =+NJ19 -> 2496860.313 | NL21: =+NK19 -> 2571766.123 | NM21: =+NL19 -> 2648919.106 | NN21: =+NM19 -> 2728386.679 | NO21: =+NN19 -> 2810238.28 | NP21: =+NO19 -> 2894545.428 | NQ21: =+NP19 -> 2981381.791 | NR21: =+NQ19 -> 3070823.245 | NS21: =+NR19 -> 3162947.942 | NT21: =+NS19 -> 3257836.38 | NU21: =+NT19 -> 3355571.472 | NV21: =+NU19 -> 3456238.616 | NW21: =+NV19 -> 3559925.774 | NX21: =+NW19 -> 3666723.548 | NY21: =+NX19 -> 3776725.254 | NZ21: =+NY19 -> 3890027.012 | OA21: =+NZ19 -> 4006727.822 | OB21: =+OA19 -> 4126929.657 | OC21: =+OB19 -> 4250737.546 | OD21: =+OC19 -> 4378259.673 | OE21: =+OD19 -> 4509607.463 | OF21: =+OE19 -> 4644895.687 | OG21: =+OF19 -> 4784242.558 | OH21: =+OG19 -> 4927769.834 | OI21: =+OH19 -> 5075602.929 | OJ21: =+OI19 -> 5227871.017 | OK21: =+OJ19 -> 5384707.148 | OL21: =+OK19 -> 5546248.362 | OM21: =+OL19 -> 5712635.813 | ON21: =+OM19 -> 5884014.887 | OO21: =+ON19 -> 6060535.334 | OP21: =+OO19 -> 6242351.394 | OQ21: =+OP19 -> 6429621.936 | OR21: =+OQ19 -> 6622510.594
C22: + Accounts payable generated (lower cash for expenses) | J22: =+J19 -> 53.045 | K22: 54.63635 | L22: 56.2754405 | M22: 57.96370372 | N22: 59.70261483 | O22: 61.49369327 | P22: 63.33850407 | Q22: 65.23865919 | R22: 67.19581897 | S22: 69.21169354 | T22: 71.28804434 | U22: 73.42668567 | V22: 75.62948624 | W22: 77.89837083 | X22: 80.23532195 | Y22: 82.64238161 | Z22: 85.12165306 | AA22: 87.67530265 | AB22: 90.30556173 | AC22: 93.01472859 | AD22: 95.80517044 | AE22: 98.67932556 | AF22: 101.6397053 | AG22: 104.6888965 | AH22: 107.8295634 | AI22: 111.0644503 | AJ22: 114.3963838 | AK22: 117.8282753 | AL22: 121.3631236 | AM22: 125.0040173 | AN22: 128.7541378 | AO22: 132.6167619 | AP22: 136.5952648 | AQ22: 140.6931227 | AR22: 144.9139164 | AS22: 149.2613339 | AT22: 153.7391739 | AU22: 158.3513491 | AV22: 163.1018896 | AW22: 167.9949463 | AX22: 173.0347947 | AY22: 178.2258385 | AZ22: 183.5726137 | BA22: 189.0797921 | BB22: 194.7521858 | BC22: 200.5947514 | BD22: 206.612594 | BE22: 212.8109718 | BF22: 219.1953009 | BG22: 225.77116 | BH22: 232.5442948 | BI22: 239.5206236 | BJ22: 246.7062423 | BK22: 254.1074296 | BL22: 261.7306525 | BM22: 269.582572 | BN22: 277.6700492 | BO22: 286.0001507 | BP22: 294.5801552 | BQ22: 303.4175599 | BR22: 312.5200867 | BS22: 321.8956893 | BT22: 331.5525599 | BU22: 341.4991367 | BV22: =+BV19 -> 351.7441108 | BW22: 362.2964342 | BX22: 373.1653272 | BY22: 384.360287 | BZ22: 395.8910956 | CA22: 407.7678285 | CB22: 420.0008633 | CC22: 432.6008892 | CD22: 445.5789159 | CE22: 458.9462834 | CF22: 472.7146719 | CG22: 486.896112 | CH22: 501.5029954 | CI22: 516.5480853 | CJ22: 532.0445278 | CK22: 548.0058637 | CL22: 564.4460396 | CM22: 581.3794208 | CN22: 598.8208034 | CO22: 616.7854275 | CP22: 635.2889903 | CQ22: 654.34766 | CR22: 673.9780898 | CS22: 694.1974325 | CT22: 715.0233555 | CU22: 736.4740561 | CV22: 758.5682778 | CW22: 781.3253262 | CX22: 804.7650859 | CY22: 828.9080385 | CZ22: 853.7752797 | DA22: 879.3885381 | DB22: 905.7701942 | DC22: 932.9433 | DD22: 960.931599 | DE22: 989.759547 | DF22: 1019.452333 | DG22: 1050.035903 | DH22: 1081.536981 | DI22: 1113.98309 | DJ22: 1147.402583 | DK22: 1181.82466 | DL22: 1217.2794 | DM22: 1253.797782 | DN22: 1291.411715 | DO22: 1330.154067 | DP22: 1370.058689 | DQ22: 1411.16045 | DR22: 1453.495263 | DS22: 1497.100121 | DT22: 1542.013125 | DU22: 1588.273518 | DV22: 1635.921724 | DW22: 1684.999376 | DX22: 1735.549357 | DY22: 1787.615837 | DZ22: 1841.244313 | EA22: 1896.481642 | EB22: 1953.376091 | EC22: 2011.977374 | ED22: 2072.336695 | EE22: 2134.506796 | EF22: 2198.542 | EG22: 2264.49826 | EH22: =+EH19 -> 2332.433208 | EI22: 2402.406204 | EJ22: 2474.47839 | EK22: 2548.712742 | EL22: 2625.174124 | EM22: 2703.929348 | EN22: 2785.047228 | EO22: 2868.598645 | EP22: 2954.656604 | EQ22: 3043.296303 | ER22: 3134.595192 | ES22: 3228.633047 | ET22: 3325.492039 | EU22: 3425.2568 | EV22: 3528.014504 | EW22: 3633.854939 | EX22: 3742.870587 | EY22: 3855.156705 | EZ22: 3970.811406 | FA22: 4089.935748 | FB22: 4212.633821 | FC22: 4339.012835 | FD22: 4469.18322 | FE22: 4603.258717 | FF22: 4741.356478 | FG22: 4883.597173 | FH22: 5030.105088 | FI22: 5181.008241 | FJ22: 5336.438488 | FK22: 5496.531642 | FL22: 5661.427592 | FM22: 5831.270419 | FN22: 6006.208532 | FO22: 6186.394788 | FP22: 6371.986632 | FQ22: 6563.146231 | FR22: 6760.040617 | FS22: 6962.841836 | FT22: 7171.727091 | FU22: 7386.878904 | FV22: 7608.485271 | FW22: 7836.739829 | FX22: 8071.842024 | FY22: 8313.997285 | FZ22: 8563.417203 | GA22: 8820.319719 | GB22: 9084.929311 | GC22: 9357.47719 | GD22: 9638.201506 | GE22: 9927.347551 | GF22: 10225.16798 | GG22: 10531.92302 | GH22: 10847.88071 | GI22: 11173.31713 | GJ22: 11508.51664 | GK22: 11853.77214 | GL22: 12209.38531 | GM22: 12575.66687 | GN22: 12952.93687 | GO22: 13341.52498 | GP22: 13741.77073 | GQ22: 14154.02385 | GR22: 14578.64456 | GS22: 15016.0039 | GT22: =+GT19 -> 15466.48402 | GU22: 15930.47854 | GV22: 16408.39289 | GW22: 16900.64468 | GX22: 17407.66402 | GY22: 17929.89394 | GZ22: 18467.79076 | HA22: 19021.82448 | HB22: 19592.47922 | HC22: 20180.25359 | HD22: 20785.6612 | HE22: 21409.23104 | HF22: 22051.50797 | HG22: 22713.05321 | HH22: 23394.44481 | HI22: 24096.27815 | HJ22: 24819.16649 | HK22: 25563.74149 | HL22: 26330.65373 | HM22: 27120.57335 | HN22: 27934.19055 | HO22: 28772.21626 | HP22: 29635.38275 | HQ22: 30524.44423 | HR22: 31440.17756 | HS22: 32383.38289 | HT22: 33354.88437 | HU22: 34355.5309 | HV22: 35386.19683 | HW22: 36447.78274 | HX22: 37541.21622 | HY22: 38667.4527 | HZ22: 39827.47629 | IA22: 41022.30057 | IB22: 42252.96959 | IC22: 43520.55868 | ID22: 44826.17544 | IE22: 46170.9607 | IF22: 47556.08952 | IG22: 48982.77221 | IH22: 50452.25538 | II22: 51965.82304 | IJ22: 53524.79773 | IK22: 55130.54166 | IL22: 56784.45791 | IM22: 58487.99165 | IN22: 60242.6314 | IO22: 62049.91034 | IP22: 63911.40765 | IQ22: 65828.74988 | IR22: 67803.61237 | IS22: 69837.72075 | IT22: 71932.85237 | IU22: 74090.83794 | IV22: 76313.56308 | IW22: 78602.96997 | IX22: 80961.05907 | IY22: 83389.89084 | IZ22: 85891.58757 | JA22: 88468.33519 | JB22: 91122.38525 | JC22: 93856.05681 | JD22: 96671.73851 | JE22: 99571.89067 | JF22: =+JF19 -> 102559.0474 | JG22: 105635.8188 | JH22: 108804.8934 | JI22: 112069.0402 | JJ22: 115431.1114 | JK22: 118894.0447 | JL22: 122460.8661 | JM22: 126134.692 | JN22: 129918.7328 | JO22: 133816.2948 | JP22: 137830.7836 | JQ22: 141965.7071 | JR22: 146224.6784 | JS22: 150611.4187 | JT22: 155129.7613 | JU22: 159783.6541 | JV22: 164577.1637 | JW22: 169514.4786 | JX22: 174599.913 | JY22: 179837.9104 | JZ22: 185233.0477 | KA22: 190790.0391 | KB22: 196513.7403 | KC22: 202409.1525 | KD22: 208481.4271 | KE22: 214735.8699 | KF22: 221177.946 | KG22: 227813.2844 | KH22: 234647.6829 | KI22: 241687.1134 | KJ22: 248937.7268 | KK22: 256405.8586 | KL22: 264098.0344 | KM22: 272020.9754 | KN22: 280181.6047 | KO22: 288587.0528 | KP22: 297244.6644 | KQ22: 306162.0043 | KR22: 315346.8644 | KS22: 324807.2704 | KT22: 334551.4885 | KU22: 344588.0331 | KV22: 354925.6741 | KW22: =+KW19 -> 365573.4444 | KX22: 376540.6477 | KY22: 387836.8671 | KZ22: 399471.9731 | LA22: 411456.1323 | LB22: 423799.8163 | LC22: 436513.8108 | LD22: 449609.2251 | LE22: 463097.5019 | LF22: 476990.4269 | LG22: 491300.1397 | LH22: 506039.1439 | LI22: 521220.3182 | LJ22: 536856.9278 | LK22: 552962.6356 | LL22: 569551.5147 | LM22: 586638.0601 | LN22: 604237.2019 | LO22: 622364.318 | LP22: 641035.2475 | LQ22: 660266.3049 | LR22: 680074.2941 | LS22: 700476.5229 | LT22: 721490.8186 | LU22: 743135.5432 | LV22: 765429.6095 | LW22: 788392.4977 | LX22: 812044.2727 | LY22: 836405.6009 | LZ22: 861497.7689 | MA22: 887342.7019 | MB22: 913962.983 | MC22: 941381.8725 | MD22: 969623.3287 | ME22: 998712.0285 | MF22: 1028673.389 | MG22: 1059533.591 | MH22: 1091319.599 | MI22: 1124059.187 | MJ22: 1157780.962 | MK22: 1192514.391 | ML22: 1228289.823 | MM22: 1265138.518 | MN22: 1303092.673 | MO22: 1342185.453 | MP22: 1382451.017 | MQ22: 1423924.548 | MR22: 1466642.284 | MS22: 1510641.552 | MT22: 1555960.799 | MU22: 1602639.623 | MV22: 1650718.812 | MW22: 1700240.376 | MX22: 1751247.587 | MY22: 1803785.015 | MZ22: 1857898.565 | NA22: 1913635.522 | NB22: 1971044.588 | NC22: 2030175.926 | ND22: 2091081.203 | NE22: 2153813.64 | NF22: 2218428.049 | NG22: 2284980.89 | NH22: 2353530.317 | NI22: =+NI19 -> 2424136.226 | NJ22: 2496860.313 | NK22: 2571766.123 | NL22: 2648919.106 | NM22: 2728386.679 | NN22: 2810238.28 | NO22: 2894545.428 | NP22: 2981381.791 | NQ22: 3070823.245 | NR22: 3162947.942 | NS22: 3257836.38 | NT22: 3355571.472 | NU22: 3456238.616 | NV22: 3559925.774 | NW22: 3666723.548 | NX22: 3776725.254 | NY22: 3890027.012 | NZ22: 4006727.822 | OA22: 4126929.657 | OB22: 4250737.546 | OC22: 4378259.673 | OD22: 4509607.463 | OE22: 4644895.687 | OF22: 4784242.558 | OG22: 4927769.834 | OH22: 5075602.929 | OI22: 5227871.017 | OJ22: 5384707.148 | OK22: 5546248.362 | OL22: 5712635.813 | OM22: 5884014.887 | ON22: 6060535.334 | OO22: 6242351.394 | OP22: 6429621.936 | OQ22: 6622510.594 | OR22: 6821185.912
C23: True cash flow | J23: =+IF(J8,J20-J21+J22) -> FALSE | K23: FALSE | L23: FALSE | M23: FALSE | N23: 121.1441408 | O23: 124.778465 | P23: 128.5218189 | Q23: 132.3774735 | R23: 136.3487977 | S23: 140.4392616 | T23: 144.6524395 | U23: 148.9920127 | V23: 153.4617731 | W23: 158.0656262 | X23: 162.807595 | Y23: 167.6918229 | Z23: 172.7225776 | AA23: 177.9042549 | AB23: 183.2413825 | AC23: 188.738624 | AD23: 194.4007827 | AE23: 200.2328062 | AF23: 206.2397904 | AG23: 212.4269841 | AH23: 218.7997936 | AI23: 225.3637875 | AJ23: 232.1247011 | AK23: 239.0884421 | AL23: 246.2610954 | AM23: 253.6489282 | AN23: 261.2583961 | AO23: 269.096148 | AP23: 277.1690324 | AQ23: 285.4841034 | AR23: 294.0486265 | AS23: 302.8700853 | AT23: 311.9561878 | AU23: 321.3148735 | AV23: 330.9543197 | AW23: 340.8829493 | AX23: 351.1094377 | AY23: 361.6427209 | AZ23: 372.4920025 | BA23: 383.6667626 | BB23: 395.1767655 | BC23: 407.0320684 | BD23: 419.2430305 | BE23: 431.8203214 | BF23: 444.774931 | BG23: 458.118179 | BH23: 471.8617243 | BI23: 486.0175761 | BJ23: 500.5981033 | BK23: 515.6160464 | BL23: 531.0845278 | BM23: 547.0170637 | BN23: 563.4275756 | BO23: 580.3304028 | BP23: 597.7403149 | BQ23: 615.6725244 | BR23: 634.1427001 | BS23: 653.1669811 | BT23: 672.7619905 | BU23: 692.9448503 | BV23: =+IF(BV8,BV20-BV21+BV22) -> 713.7331958 | BW23: 735.1451916 | BX23: 757.1995474 | BY23: 779.9155338 | BZ23: 803.3129998 | CA23: 827.4123898 | CB23: 852.2347615 | CC23: 877.8018044 | CD23: 904.1358585 | CE23: 931.2599342 | CF23: 959.1977323 | CG23: 987.9736642 | CH23: 1017.612874 | CI23: 1048.14126 | CJ23: 1079.585498 | CK23: 1111.973063 | CL23: 1145.332255 | CM23: 1179.692223 | CN23: 1215.082989 | CO23: 1251.535479 | CP23: 1289.081543 | CQ23: 1327.75399 | CR23: 1367.586609 | CS23: 1408.614208 | CT23: 1450.872634 | CU23: 1494.398813 | CV23: 1539.230777 | CW23: 1585.407701 | CX23: 1632.969932 | CY23: 1681.95903 | CZ23: 1732.417801 | DA23: 1784.390335 | DB23: 1837.922045 | DC23: 1893.059706 | DD23: 1949.851497 | DE23: 2008.347042 | DF23: 2068.597453 | DG23: 2130.655377 | DH23: 2194.575038 | DI23: 2260.412289 | DJ23: 2328.224658 | DK23: 2398.071398 | DL23: 2470.01354 | DM23: 2544.113946 | DN23: 2620.437364 | DO23: 2699.050485 | DP23: 2780.022 | DQ23: 2863.42266 | DR23: 2949.325339 | DS23: 3037.8051 | DT23: 3128.939253 | DU23: 3222.80743 | DV23: 3319.491653 | DW23: 3419.076403 | DX23: 3521.648695 | DY23: 3627.298156 | DZ23: 3736.1171 | EA23: 3848.200613 | EB23: 3963.646632 | EC23: 4082.556031 | ED23: 4205.032712 | EE23: 4331.183693 | EF23: 4461.119204 | EG23: 4594.95278 | EH23: =+IF(EH8,EH20-EH21+EH22) -> 4732.801363 | EI23: 4874.785404 | EJ23: 5021.028966 | EK23: 5171.659835 | EL23: 5326.80963 | EM23: 5486.613919 | EN23: 5651.212337 | EO23: 5820.748707 | EP23: 5995.371168 | EQ23: 6175.232303 | ER23: 6360.489272 | ES23: 6551.30395 | ET23: 6747.843069 | EU23: 6950.278361 | EV23: 7158.786712 | EW23: 7373.550313 | EX23: 7594.756823 | EY23: 7822.599527 | EZ23: 8057.277513 | FA23: 8298.995839 | FB23: 8547.965714 | FC23: 8804.404685 | FD23: 9068.536826 | FE23: 9340.59293 | FF23: 9620.810718 | FG23: 9909.43504 | FH23: 10206.71809 | FI23: 10512.91963 | FJ23: 10828.30722 | FK23: 11153.15644 | FL23: 11487.75113 | FM23: 11832.38367 | FN23: 12187.35518 | FO23: 12552.97583 | FP23: 12929.56511 | FQ23: 13317.45206 | FR23: 13716.97562 | FS23: 14128.48489 | FT23: 14552.33944 | FU23: 14988.90962 | FV23: 15438.57691 | FW23: 15901.73422 | FX23: 16378.78624 | FY23: 16870.14983 | FZ23: 17376.25432 | GA23: 17897.54195 | GB23: 18434.46821 | GC23: 18987.50226 | GD23: 19557.12733 | GE23: 20143.84115 | GF23: 20748.15638 | GG23: 21370.60107 | GH23: 22011.71911 | GI23: 22672.07068 | GJ23: 23352.2328 | GK23: 24052.79978 | GL23: 24774.38378 | GM23: 25517.61529 | GN23: 26283.14375 | GO23: 27071.63806 | GP23: 27883.7872 | GQ23: 28720.30082 | GR23: 29581.90984 | GS23: 30469.36714 | GT23: =+IF(GT8,GT20-GT21+GT22) -> 31383.44815 | GU23: 32324.9516 | GV23: 33294.70015 | GW23: 34293.54115 | GX23: 35322.34738 | GY23: 36382.01781 | GZ23: 37473.47834 | HA23: 38597.68269 | HB23: 39755.61317 | HC23: 40948.28157 | HD23: 42176.73001 | HE23: 43442.03191 | HF23: 44745.29287 | HG23: 46087.65166 | HH23: 47470.28121 | HI23: 48894.38964 | HJ23: 50361.22133 | HK23: 51872.05797 | HL23: 53428.21971 | HM23: 55031.0663 | HN23: 56681.99829 | HO23: 58382.45824 | HP23: 60133.93199 | HQ23: 61937.94995 | HR23: 63796.08845 | HS23: 65709.9711 | HT23: 67681.27023 | HU23: 69711.70834 | HV23: 71803.05959 | HW23: 73957.15138 | HX23: 76175.86592 | HY23: 78461.1419 | HZ23: 80814.97615 | IA23: 83239.42544 | IB23: 85736.6082 | IC23: 88308.70645 | ID23: 90957.96764 | IE23: 93686.70667 | IF23: 96497.30787 | IG23: 99392.2271 | IH23: 102373.9939 | II23: 105445.2137 | IJ23: 108608.5701 | IK23: 111866.8273 | IL23: 115222.8321 | IM23: 118679.517 | IN23: 122239.9025 | IO23: 125907.0996 | IP23: 129684.3126 | IQ23: 133574.842 | IR23: 137582.0872 | IS23: 141709.5499 | IT23: 145960.8364 | IU23: 150339.6614 | IV23: 154849.8513 | IW23: 159495.3468 | IX23: 164280.2072 | IY23: 169208.6135 | IZ23: 174284.8719 | JA23: 179513.418 | JB23: 184898.8206 | JC23: 190445.7852 | JD23: 196159.1587 | JE23: 202043.9335 | JF23: =+IF(JF8,JF20-JF21+JF22) -> 208105.2515 | JG23: 214348.409 | JH23: 220778.8613 | JI23: 227402.2271 | JJ23: 234224.294 | JK23: 241251.0228 | JL23: 248488.5535 | JM23: 255943.2101 | JN23: 263621.5064 | JO23: 271530.1516 | JP23: 279676.0561 | JQ23: 288066.3378 | JR23: 296708.3279 | JS23: 305609.5778 | JT23: 314777.8651 | JU23: 324221.201 | JV23: 333947.8371 | JW23: 343966.2722 | JX23: 354285.2604 | JY23: 364913.8182 | JZ23: 375861.2327 | KA23: 387137.0697 | KB23: 398751.1818 | KC23: 410713.7172 | KD23: 423035.1288 | KE23: 435726.1826 | KF23: 448797.9681 | KG23: 462261.9071 | KH23: 476129.7644 | KI23: 490413.6573 | KJ23: 505126.067 | KK23: 520279.849 | KL23: 535888.2445 | KM23: 551964.8918 | KN23: 568523.8386 | KO23: 585579.5537 | KP23: 603146.9403 | KQ23: 621241.3485 | KR23: 639878.589 | KS23: 659074.9467 | KT23: 678847.1951 | KU23: 699212.6109 | KV23: 720188.9893 | KW23: 741794.6589 | KX23: 764048.4987 | KY23: 786969.9537 | KZ23: 810579.0523 | LA23: 834896.4238 | LB23: 859943.3166 | LC23: 885741.6161 | LD23: 912313.8645 | LE23: 939683.2805 | LF23: 967873.7789 | LG23: 996909.9923 | LH23: 1026817.292 | LI23: 1057621.811 | LJ23: 1089350.465 | LK23: 1122030.979 | LL23: 1155691.908 | LM23: 1190362.666 | LN23: 1226073.546 | LO23: 1262855.752 | LP23: 1300741.425 | LQ23: 1339763.667 | LR23: =+IF(LR8,LR20-LR21+LR22) -> 1379956.577 | LS23: 1421355.275 | LT23: 1463995.933 | LU23: 1507915.811 | LV23: 1553153.285 | LW23: 1599747.884 | LX23: 1647740.32 | LY23: 1697172.53 | LZ23: 1748087.706 | MA23: 1800530.337 | MB23: 1854546.247 | MC23: 1910182.634 | MD23: 1967488.114 | ME23: 2026512.757 | MF23: 2087308.14 | MG23: 2149927.384 | MH23: 2214425.205 | MI23: 2280857.961 | MJ23: 2349283.7 | MK23: 2419762.211 | ML23: 2492355.078 | MM23: 2567125.73 | MN23: 2644139.502 | MO23: 2723463.687 | MP23: 2805167.598 | MQ23: 2889322.626 | MR23: 2976002.304 | MS23: 3065282.373 | MT23: 3157240.845 | MU23: 3251958.07 | MV23: 3349516.812 | MW23: 3450002.316 | MX23: 3553502.386 | MY23: 3660107.457 | MZ23: 3769910.681 | NA23: 3883008.002 | NB23: 3999498.242 | NC23: 4119483.189 | ND23: 4243067.685 | NE23: 4370359.715 | NF23: 4501470.507 | NG23: 4636514.622 | NH23: 4775610.06 | NI23: 4918878.362 | NJ23: 5066444.713 | NK23: 5218438.055 | NL23: 5374991.196 | NM23: 5536240.932 | NN23: 5702328.16 | NO23: 5873398.005 | NP23: 6049599.945 | NQ23: 6231087.943 | NR23: 6418020.582 | NS23: 6610561.199 | NT23: 6808878.035 | NU23: 7013144.376 | NV23: 7223538.707 | NW23: 7440244.869 | NX23: 7663452.215 | NY23: 7893355.781 | NZ23: 8130156.454 | OA23: 8374061.148 | OB23: 8625282.983 | OC23: 8884041.472 | OD23: =+IF(OD8,OD20-OD21+OD22) -> 9150562.716 | OE23: 9425079.598 | OF23: 9707831.986 | OG23: 9999066.945 | OH23: 10299038.95 | OI23: 10608010.12 | OJ23: 10926250.43 | OK23: 11254037.94 | OL23: 11591659.08 | OM23: 11939408.85 | ON23: 12297591.11 | OO23: 12666518.85 | OP23: 13046514.41 | OQ23: 13437909.85 | OR23: 13841047.14
C25: True value (NPV of Cash flow for 300 years) | F25: =NPV(F13,23:23) -> 1346.046008
C27: Valuation Method 1: Include in Bridge
C28: Free cash flow | F28: =NPV(F13,J28:KV28) -> 752.6441895 | J28: =IF(J7,J20) -> FALSE | K28: FALSE | L28: FALSE | M28: FALSE | N28: 119.4052297 | O28: 122.9873865 | P28: 126.6770081 | Q28: 130.4773184 | R28: 134.3916379 | S28: 138.4233871 | T28: 142.5760887 | U28: 146.8533713 | V28: 151.2589725 | W28: 155.7967417 | X28: FALSE | Y28: FALSE | Z28: FALSE | AA28: FALSE | AB28: FALSE | AC28: FALSE | AD28: FALSE | AE28: FALSE | AF28: FALSE | AG28: FALSE | AH28: FALSE | AI28: FALSE | AJ28: FALSE | AK28: FALSE | AL28: FALSE | AM28: FALSE | AN28: FALSE | AO28: FALSE | AP28: FALSE | AQ28: FALSE | AR28: FALSE | AS28: FALSE | AT28: FALSE | AU28: FALSE | AV28: FALSE | AW28: FALSE | AX28: FALSE | AY28: FALSE | AZ28: FALSE | BA28: FALSE | BB28: FALSE | BC28: FALSE | BD28: FALSE | BE28: FALSE | BF28: FALSE | BG28: FALSE | BH28: FALSE | BI28: FALSE | BJ28: FALSE | BK28: FALSE | BL28: FALSE | BM28: FALSE | BN28: FALSE | BO28: FALSE | BP28: FALSE | BQ28: FALSE | BR28: FALSE | BS28: FALSE | BT28: FALSE | BU28: FALSE | BV28: =IF(BV7,BV20) -> FALSE | BW28: FALSE | BX28: FALSE | BY28: FALSE | BZ28: FALSE | CA28: FALSE | CB28: FALSE | CC28: FALSE | CD28: FALSE | CE28: FALSE | CF28: FALSE | CG28: FALSE | CH28: FALSE | CI28: FALSE | CJ28: FALSE | CK28: FALSE | CL28: FALSE | CM28: FALSE | CN28: FALSE | CO28: FALSE | CP28: FALSE | CQ28: FALSE | CR28: FALSE | CS28: FALSE | CT28: FALSE | CU28: FALSE | CV28: FALSE | CW28: FALSE | CX28: FALSE | CY28: FALSE | CZ28: FALSE | DA28: FALSE | DB28: FALSE | DC28: FALSE | DD28: FALSE | DE28: FALSE | DF28: FALSE | DG28: FALSE | DH28: FALSE | DI28: FALSE | DJ28: FALSE | DK28: FALSE | DL28: FALSE | DM28: FALSE | DN28: FALSE | DO28: FALSE | DP28: FALSE | DQ28: FALSE | DR28: FALSE | DS28: FALSE | DT28: FALSE | DU28: FALSE | DV28: FALSE | DW28: FALSE | DX28: FALSE | DY28: FALSE | DZ28: FALSE | EA28: FALSE | EB28: FALSE | EC28: FALSE | ED28: FALSE | EE28: FALSE | EF28: FALSE | EG28: FALSE | EH28: =IF(EH7,EH20) -> FALSE | EI28: FALSE | EJ28: FALSE | EK28: FALSE | EL28: FALSE | EM28: FALSE | EN28: FALSE | EO28: FALSE | EP28: FALSE | EQ28: FALSE | ER28: FALSE | ES28: FALSE | ET28: FALSE | EU28: FALSE | EV28: FALSE | EW28: FALSE | EX28: FALSE | EY28: FALSE | EZ28: FALSE | FA28: FALSE | FB28: FALSE | FC28: FALSE | FD28: FALSE | FE28: FALSE | FF28: FALSE | FG28: FALSE | FH28: FALSE | FI28: FALSE | FJ28: FALSE | FK28: FALSE | FL28: FALSE | FM28: FALSE | FN28: FALSE | FO28: FALSE | FP28: FALSE | FQ28: FALSE | FR28: FALSE | FS28: FALSE | FT28: FALSE | FU28: FALSE | FV28: FALSE | FW28: FALSE | FX28: FALSE | FY28: FALSE | FZ28: FALSE | GA28: FALSE | GB28: FALSE | GC28: FALSE | GD28: FALSE | GE28: FALSE | GF28: FALSE | GG28: FALSE | GH28: FALSE | GI28: FALSE | GJ28: FALSE | GK28: FALSE | GL28: FALSE | GM28: FALSE | GN28: FALSE | GO28: FALSE | GP28: FALSE | GQ28: FALSE | GR28: FALSE | GS28: FALSE | GT28: =IF(GT7,GT20) -> FALSE | GU28: FALSE | GV28: FALSE | GW28: FALSE | GX28: FALSE | GY28: FALSE | GZ28: FALSE | HA28: FALSE | HB28: FALSE | HC28: FALSE | HD28: FALSE | HE28: FALSE | HF28: FALSE | HG28: FALSE | HH28: FALSE | HI28: FALSE | HJ28: FALSE | HK28: FALSE | HL28: FALSE | HM28: FALSE | HN28: FALSE | HO28: FALSE | HP28: FALSE | HQ28: FALSE | HR28: FALSE | HS28: FALSE | HT28: FALSE | HU28: FALSE | HV28: FALSE | HW28: FALSE | HX28: FALSE | HY28: FALSE | HZ28: FALSE | IA28: FALSE | IB28: FALSE | IC28: FALSE | ID28: FALSE | IE28: FALSE | IF28: FALSE | IG28: FALSE | IH28: FALSE | II28: FALSE | IJ28: FALSE | IK28: FALSE | IL28: FALSE | IM28: FALSE | IN28: FALSE | IO28: FALSE | IP28: FALSE | IQ28: FALSE | IR28: FALSE | IS28: FALSE | IT28: FALSE | IU28: FALSE | IV28: FALSE | IW28: FALSE | IX28: FALSE | IY28: FALSE | IZ28: FALSE | JA28: FALSE | JB28: FALSE | JC28: FALSE | JD28: FALSE | JE28: FALSE | JF28: =IF(JF7,JF20) -> FALSE | JG28: FALSE | JH28: FALSE | JI28: FALSE | JJ28: FALSE | JK28: FALSE | JL28: FALSE | JM28: FALSE | JN28: FALSE | JO28: FALSE | JP28: FALSE | JQ28: FALSE | JR28: FALSE | JS28: FALSE | JT28: FALSE | JU28: FALSE | JV28: FALSE | JW28: FALSE | JX28: FALSE | JY28: FALSE | JZ28: FALSE | KA28: FALSE | KB28: FALSE | KC28: FALSE | KD28: FALSE | KE28: FALSE | KF28: FALSE | KG28: FALSE | KH28: FALSE | KI28: FALSE | KJ28: FALSE | KK28: FALSE | KL28: FALSE | KM28: FALSE | KN28: FALSE | KO28: FALSE | KP28: FALSE | KQ28: FALSE | KR28: FALSE | KS28: FALSE | KT28: FALSE | KU28: FALSE | KV28: FALSE | KW28: FALSE | KX28: FALSE | KY28: FALSE | KZ28: FALSE | LA28: FALSE | LB28: FALSE | LC28: FALSE | LD28: FALSE | LE28: FALSE | LF28: FALSE | LG28: FALSE | LH28: FALSE | LI28: FALSE | LJ28: FALSE | LK28: FALSE | LL28: FALSE | LM28: FALSE | LN28: FALSE | LO28: FALSE | LP28: FALSE | LQ28: FALSE | LR28: =IF(LR7,LR20) -> FALSE | LS28: FALSE | LT28: FALSE | LU28: FALSE | LV28: FALSE | LW28: FALSE | LX28: FALSE | LY28: FALSE | LZ28: FALSE | MA28: FALSE | MB28: FALSE | MC28: FALSE | MD28: FALSE | ME28: FALSE | MF28: FALSE | MG28: FALSE | MH28: FALSE | MI28: FALSE | MJ28: FALSE | MK28: FALSE | ML28: FALSE | MM28: FALSE | MN28: FALSE | MO28: FALSE | MP28: FALSE | MQ28: FALSE | MR28: FALSE | MS28: FALSE | MT28: FALSE | MU28: FALSE | MV28: FALSE | MW28: FALSE | MX28: FALSE | MY28: FALSE | MZ28: FALSE | NA28: FALSE | NB28: FALSE | NC28: FALSE | ND28: FALSE | NE28: FALSE | NF28: FALSE | NG28: FALSE | NH28: FALSE | NI28: FALSE | NJ28: FALSE | NK28: FALSE | NL28: FALSE | NM28: FALSE | NN28: FALSE | NO28: FALSE | NP28: FALSE | NQ28: FALSE | NR28: FALSE | NS28: FALSE | NT28: FALSE | NU28: FALSE | NV28: FALSE | NW28: FALSE | NX28: FALSE | NY28: FALSE | NZ28: FALSE | OA28: FALSE | OB28: FALSE | OC28: FALSE | OD28: =IF(OD7,OD20) -> FALSE | OE28: FALSE | OF28: FALSE | OG28: FALSE | OH28: FALSE | OI28: FALSE | OJ28: FALSE | OK28: FALSE | OL28: FALSE | OM28: FALSE | ON28: FALSE | OO28: FALSE | OP28: FALSE | OQ28: FALSE | OR28: FALSE
C29: Terminal cash flow | F29: =NPV(F13,J29:KV29) -> 574.0805844 | J29: =IF(J7,J28*(1+$F$12)/($F$13-$F$12)*J6) -> FALSE | K29: FALSE | L29: FALSE | M29: FALSE | N29: 0 | O29: 0 | P29: 0 | Q29: 0 | R29: 0 | S29: 0 | T29: 0 | U29: 0 | V29: 0 | W29: 1783.007155 | X29: FALSE | Y29: FALSE | Z29: FALSE | AA29: FALSE | AB29: FALSE | AC29: FALSE | AD29: FALSE | AE29: FALSE | AF29: FALSE | AG29: FALSE | AH29: FALSE | AI29: FALSE | AJ29: FALSE | AK29: FALSE | AL29: FALSE | AM29: FALSE | AN29: FALSE | AO29: FALSE | AP29: FALSE | AQ29: FALSE | AR29: FALSE | AS29: FALSE | AT29: FALSE | AU29: FALSE | AV29: FALSE | AW29: FALSE | AX29: FALSE | AY29: FALSE | AZ29: FALSE | BA29: FALSE | BB29: FALSE | BC29: FALSE | BD29: FALSE | BE29: FALSE | BF29: FALSE | BG29: FALSE | BH29: FALSE | BI29: FALSE | BJ29: FALSE | BK29: FALSE | BL29: FALSE | BM29: FALSE | BN29: FALSE | BO29: FALSE | BP29: FALSE | BQ29: FALSE | BR29: FALSE | BS29: FALSE | BT29: FALSE | BU29: FALSE | BV29: =IF(BV7,BV28*(1+$F$12)/($F$13-$F$12)*BV6) -> FALSE | BW29: FALSE | BX29: FALSE | BY29: FALSE | BZ29: FALSE | CA29: FALSE | CB29: FALSE | CC29: FALSE | CD29: FALSE | CE29: FALSE | CF29: FALSE | CG29: FALSE | CH29: FALSE | CI29: FALSE | CJ29: FALSE | CK29: FALSE | CL29: FALSE | CM29: FALSE | CN29: FALSE | CO29: FALSE | CP29: FALSE | CQ29: FALSE | CR29: FALSE | CS29: FALSE | CT29: FALSE | CU29: FALSE | CV29: FALSE | CW29: FALSE | CX29: FALSE | CY29: FALSE | CZ29: FALSE | DA29: FALSE | DB29: FALSE | DC29: FALSE | DD29: FALSE | DE29: FALSE | DF29: FALSE | DG29: FALSE | DH29: FALSE | DI29: FALSE | DJ29: FALSE | DK29: FALSE | DL29: FALSE | DM29: FALSE | DN29: FALSE | DO29: FALSE | DP29: FALSE | DQ29: FALSE | DR29: FALSE | DS29: FALSE | DT29: FALSE | DU29: FALSE | DV29: FALSE | DW29: FALSE | DX29: FALSE | DY29: FALSE | DZ29: FALSE | EA29: FALSE | EB29: FALSE | EC29: FALSE | ED29: FALSE | EE29: FALSE | EF29: FALSE | EG29: FALSE | EH29: =IF(EH7,EH28*(1+$F$12)/($F$13-$F$12)*EH6) -> FALSE | EI29: FALSE | EJ29: FALSE | EK29: FALSE | EL29: FALSE | EM29: FALSE | EN29: FALSE | EO29: FALSE | EP29: FALSE | EQ29: FALSE | ER29: FALSE | ES29: FALSE | ET29: FALSE | EU29: FALSE | EV29: FALSE | EW29: FALSE | EX29: FALSE | EY29: FALSE | EZ29: FALSE | FA29: FALSE | FB29: FALSE | FC29: FALSE | FD29: FALSE | FE29: FALSE | FF29: FALSE | FG29: FALSE | FH29: FALSE | FI29: FALSE | FJ29: FALSE | FK29: FALSE | FL29: FALSE | FM29: FALSE | FN29: FALSE | FO29: FALSE | FP29: FALSE | FQ29: FALSE | FR29: FALSE | FS29: FALSE | FT29: FALSE | FU29: FALSE | FV29: FALSE | FW29: FALSE | FX29: FALSE | FY29: FALSE | FZ29: FALSE | GA29: FALSE | GB29: FALSE | GC29: FALSE | GD29: FALSE | GE29: FALSE | GF29: FALSE | GG29: FALSE | GH29: FALSE | GI29: FALSE | GJ29: FALSE | GK29: FALSE | GL29: FALSE | GM29: FALSE | GN29: FALSE | GO29: FALSE | GP29: FALSE | GQ29: FALSE | GR29: FALSE | GS29: FALSE | GT29: =IF(GT7,GT28*(1+$F$12)/($F$13-$F$12)*GT6) -> FALSE | GU29: FALSE | GV29: FALSE | GW29: FALSE | GX29: FALSE | GY29: FALSE | GZ29: FALSE | HA29: FALSE | HB29: FALSE | HC29: FALSE | HD29: FALSE | HE29: FALSE | HF29: FALSE | HG29: FALSE | HH29: FALSE | HI29: FALSE | HJ29: FALSE | HK29: FALSE | HL29: FALSE | HM29: FALSE | HN29: FALSE | HO29: FALSE | HP29: FALSE | HQ29: FALSE | HR29: FALSE | HS29: FALSE | HT29: FALSE | HU29: FALSE | HV29: FALSE | HW29: FALSE | HX29: FALSE | HY29: FALSE | HZ29: FALSE | IA29: FALSE | IB29: FALSE | IC29: FALSE | ID29: FALSE | IE29: FALSE | IF29: FALSE | IG29: FALSE | IH29: FALSE | II29: FALSE | IJ29: FALSE | IK29: FALSE | IL29: FALSE | IM29: FALSE | IN29: FALSE | IO29: FALSE | IP29: FALSE | IQ29: FALSE | IR29: FALSE | IS29: FALSE | IT29: FALSE | IU29: FALSE | IV29: FALSE | IW29: FALSE | IX29: FALSE | IY29: FALSE | IZ29: FALSE | JA29: FALSE | JB29: FALSE | JC29: FALSE | JD29: FALSE | JE29: FALSE | JF29: =IF(JF7,JF28*(1+$F$12)/($F$13-$F$12)*JF6) -> FALSE | JG29: FALSE | JH29: FALSE | JI29: FALSE | JJ29: FALSE | JK29: FALSE | JL29: FALSE | JM29: FALSE | JN29: FALSE | JO29: FALSE | JP29: FALSE | JQ29: FALSE | JR29: FALSE | JS29: FALSE | JT29: FALSE | JU29: FALSE | JV29: FALSE | JW29: FALSE | JX29: FALSE | JY29: FALSE | JZ29: FALSE | KA29: FALSE | KB29: FALSE | KC29: FALSE | KD29: FALSE | KE29: FALSE | KF29: FALSE | KG29: FALSE | KH29: FALSE | KI29: FALSE | KJ29: FALSE | KK29: FALSE | KL29: FALSE | KM29: FALSE | KN29: FALSE | KO29: FALSE | KP29: FALSE | KQ29: FALSE | KR29: FALSE | KS29: FALSE | KT29: FALSE | KU29: FALSE | KV29: FALSE | KW29: FALSE | KX29: FALSE | KY29: FALSE | KZ29: FALSE | LA29: FALSE | LB29: FALSE | LC29: FALSE | LD29: FALSE | LE29: FALSE | LF29: FALSE | LG29: FALSE | LH29: FALSE | LI29: FALSE | LJ29: FALSE | LK29: FALSE | LL29: FALSE | LM29: FALSE | LN29: FALSE | LO29: FALSE | LP29: FALSE | LQ29: FALSE | LR29: =IF(LR7,LR28*(1+$F$12)/($F$13-$F$12)*LR6) -> FALSE | LS29: FALSE | LT29: FALSE | LU29: FALSE | LV29: FALSE | LW29: FALSE | LX29: FALSE | LY29: FALSE | LZ29: FALSE | MA29: FALSE | MB29: FALSE | MC29: FALSE | MD29: FALSE | ME29: FALSE | MF29: FALSE | MG29: FALSE | MH29: FALSE | MI29: FALSE | MJ29: FALSE | MK29: FALSE | ML29: FALSE | MM29: FALSE | MN29: FALSE | MO29: FALSE | MP29: FALSE | MQ29: FALSE | MR29: FALSE | MS29: FALSE | MT29: FALSE | MU29: FALSE | MV29: FALSE | MW29: FALSE | MX29: FALSE | MY29: FALSE | MZ29: FALSE | NA29: FALSE | NB29: FALSE | NC29: FALSE | ND29: FALSE | NE29: FALSE | NF29: FALSE | NG29: FALSE | NH29: FALSE | NI29: FALSE | NJ29: FALSE | NK29: FALSE | NL29: FALSE | NM29: FALSE | NN29: FALSE | NO29: FALSE | NP29: FALSE | NQ29: FALSE | NR29: FALSE | NS29: FALSE | NT29: FALSE | NU29: FALSE | NV29: FALSE | NW29: FALSE | NX29: FALSE | NY29: FALSE | NZ29: FALSE | OA29: FALSE | OB29: FALSE | OC29: FALSE | OD29: =IF(OD7,OD28*(1+$F$12)/($F$13-$F$12)*OD6) -> FALSE | OE29: FALSE | OF29: FALSE | OG29: FALSE | OH29: FALSE | OI29: FALSE | OJ29: FALSE | OK29: FALSE | OL29: FALSE | OM29: FALSE | ON29: FALSE | OO29: FALSE | OP29: FALSE | OQ29: FALSE | OR29: FALSE
C30: EV | F30: =SUM(F28:F29) -> 1326.724774
C31: - Accounts payable in valuation year | F31: =INDEX(22:22,MATCH(TRUE,5:5,0)) -> 57.96370372
C33: Valuation Method 1 - Include in Bridge | F33: =F30-F31 -> 1268.76107
C34: Error | F34: =F25-F33 -> 77.28493829
C36: Valuation Method 2 - Include in EV
C37: Free cash flow
C38: Revenue | J38: =J20 -> 106.09 | K38: =K20 -> 109.2727 | L38: 112.550881 | M38: 115.9274074 | N38: 119.4052297 | O38: 122.9873865 | P38: 126.6770081 | Q38: 130.4773184 | R38: 134.3916379 | S38: 138.4233871 | T38: 142.5760887 | U38: 146.8533713 | V38: 151.2589725 | W38: 155.7967417 | X38: 160.4706439 | Y38: 165.2847632 | Z38: 170.2433061 | AA38: 175.3506053 | AB38: 180.6111235 | AC38: 186.0294572 | AD38: 191.6103409 | AE38: 197.3586511 | AF38: 203.2794106 | AG38: 209.377793 | AH38: 215.6591268 | AI38: 222.1289006 | AJ38: 228.7927676 | AK38: 235.6565506 | AL38: 242.7262471 | AM38: 250.0080345 | AN38: 257.5082756 | AO38: 265.2335238 | AP38: 273.1905296 | AQ38: 281.3862454 | AR38: 289.8278328 | AS38: 298.5226678 | AT38: 307.4783478 | AU38: 316.7026983 | AV38: 326.2037792 | AW38: 335.9898926 | AX38: 346.0695894 | AY38: 356.451677 | AZ38: 367.1452273 | BA38: 378.1595842 | BB38: 389.5043717 | BC38: 401.1895028 | BD38: 413.2251879 | BE38: 425.6219436 | BF38: 438.3906019 | BG38: 451.5423199 | BH38: 465.0885895 | BI38: 479.0412472 | BJ38: 493.4124846 | BK38: 508.2148592 | BL38: 523.4613049 | BM38: 539.1651441 | BN38: 555.3400984 | BO38: 572.0003014 | BP38: 589.1603104 | BQ38: 606.8351197 | BR38: 625.0401733 | BS38: 643.7913785 | BT38: 663.1051199 | BU38: 682.9982735 | BV38: 703.4882217 | BW38: =BW20 -> 724.5928683 | BX38: 746.3306544 | BY38: 768.720574 | BZ38: 791.7821912 | CA38: 815.5356569 | CB38: 840.0017267 | CC38: 865.2017785 | CD38: 891.1578318 | CE38: 917.8925668 | CF38: 945.4293438 | CG38: 973.7922241 | CH38: 1003.005991 | CI38: 1033.096171 | CJ38: 1064.089056 | CK38: 1096.011727 | CL38: 1128.892079 | CM38: 1162.758842 | CN38: 1197.641607 | CO38: 1233.570855 | CP38: 1270.577981 | CQ38: 1308.69532 | CR38: 1347.95618 | CS38: 1388.394865 | CT38: 1430.046711 | CU38: 1472.948112 | CV38: 1517.136556 | CW38: 1562.650652 | CX38: 1609.530172 | CY38: 1657.816077 | CZ38: 1707.550559 | DA38: 1758.777076 | DB38: 1811.540388 | DC38: 1865.8866 | DD38: 1921.863198 | DE38: 1979.519094 | DF38: 2038.904667 | DG38: 2100.071807 | DH38: 2163.073961 | DI38: 2227.96618 | DJ38: 2294.805165 | DK38: 2363.64932 | DL38: 2434.5588 | DM38: 2507.595564 | DN38: 2582.823431 | DO38: 2660.308134 | DP38: 2740.117378 | DQ38: 2822.320899 | DR38: 2906.990526 | DS38: 2994.200242 | DT38: 3084.026249 | DU38: 3176.547037 | DV38: 3271.843448 | DW38: 3369.998751 | DX38: 3471.098714 | DY38: 3575.231675 | DZ38: 3682.488625 | EA38: 3792.963284 | EB38: 3906.752182 | EC38: 4023.954748 | ED38: 4144.67339 | EE38: 4269.013592 | EF38: 4397.084 | EG38: 4528.99652 | EH38: 4664.866415 | EI38: =EI20 -> 4804.812408 | EJ38: 4948.95678 | EK38: 5097.425484 | EL38: 5250.348248 | EM38: 5407.858696 | EN38: 5570.094456 | EO38: 5737.19729 | EP38: 5909.313209 | EQ38: 6086.592605 | ER38: 6269.190383 | ES38: 6457.266095 | ET38: 6650.984078 | EU38: 6850.5136 | EV38: 7056.029008 | EW38: 7267.709878 | EX38: 7485.741174 | EY38: 7710.31341 | EZ38: 7941.622812 | FA38: 8179.871496 | FB38: 8425.267641 | FC38: 8678.02567 | FD38: 8938.366441 | FE38: 9206.517434 | FF38: 9482.712957 | FG38: 9767.194346 | FH38: 10060.21018 | FI38: 10362.01648 | FJ38: 10672.87698 | FK38: 10993.06328 | FL38: 11322.85518 | FM38: 11662.54084 | FN38: 12012.41706 | FO38: 12372.78958 | FP38: 12743.97326 | FQ38: 13126.29246 | FR38: 13520.08123 | FS38: 13925.68367 | FT38: 14343.45418 | FU38: 14773.75781 | FV38: 15216.97054 | FW38: 15673.47966 | FX38: 16143.68405 | FY38: 16627.99457 | FZ38: 17126.83441 | GA38: 17640.63944 | GB38: 18169.85862 | GC38: 18714.95438 | GD38: 19276.40301 | GE38: 19854.6951 | GF38: 20450.33596 | GG38: 21063.84603 | GH38: 21695.76141 | GI38: 22346.63426 | GJ38: 23017.03329 | GK38: 23707.54428 | GL38: 24418.77061 | GM38: 25151.33373 | GN38: 25905.87374 | GO38: 26683.04995 | GP38: 27483.54145 | GQ38: 28308.0477 | GR38: 29157.28913 | GS38: 30032.0078 | GT38: 30932.96804 | GU38: =GU20 -> 31860.95708 | GV38: 32816.78579 | GW38: 33801.28936 | GX38: 34815.32804 | GY38: 35859.78789 | GZ38: 36935.58152 | HA38: 38043.64897 | HB38: 39184.95844 | HC38: 40360.50719 | HD38: 41571.3224 | HE38: 42818.46208 | HF38: 44103.01594 | HG38: 45426.10642 | HH38: 46788.88961 | HI38: 48192.5563 | HJ38: 49638.33299 | HK38: 51127.48298 | HL38: 52661.30747 | HM38: 54241.14669 | HN38: 55868.38109 | HO38: 57544.43252 | HP38: 59270.7655 | HQ38: 61048.88846 | HR38: 62880.35512 | HS38: 64766.76577 | HT38: 66709.76875 | HU38: 68711.06181 | HV38: 70772.39366 | HW38: 72895.56547 | HX38: 75082.43244 | HY38: 77334.90541 | HZ38: 79654.95257 | IA38: 82044.60115 | IB38: 84505.93918 | IC38: 87041.11736 | ID38: 89652.35088 | IE38: 92341.92141 | IF38: 95112.17905 | IG38: 97965.54442 | IH38: 100904.5108 | II38: 103931.6461 | IJ38: 107049.5955 | IK38: 110261.0833 | IL38: 113568.9158 | IM38: 116975.9833 | IN38: 120485.2628 | IO38: 124099.8207 | IP38: 127822.8153 | IQ38: 131657.4998 | IR38: 135607.2247 | IS38: 139675.4415 | IT38: 143865.7047 | IU38: 148181.6759 | IV38: 152627.1262 | IW38: 157205.9399 | IX38: 161922.1181 | IY38: 166779.7817 | IZ38: 171783.1751 | JA38: 176936.6704 | JB38: 182244.7705 | JC38: 187712.1136 | JD38: 193343.477 | JE38: 199143.7813 | JF38: 205118.0948 | JG38: =JG20 -> 211271.6376 | JH38: 217609.7867 | JI38: 224138.0803 | JJ38: 230862.2228 | JK38: 237788.0894 | JL38: 244921.7321 | JM38: 252269.3841 | JN38: 259837.4656 | JO38: 267632.5896 | JP38: 275661.5673 | JQ38: 283931.4143 | JR38: 292449.3567 | JS38: 301222.8374 | JT38: 310259.5225 | JU38: 319567.3082 | JV38: 329154.3275 | JW38: 339028.9573 | JX38: 349199.826 | JY38: 359675.8208 | JZ38: 370466.0954 | KA38: 381580.0783 | KB38: 393027.4806 | KC38: 404818.305 | KD38: 416962.8542 | KE38: 429471.7398 | KF38: 442355.892 | KG38: 455626.5688 | KH38: 469295.3658 | KI38: 483374.2268 | KJ38: 497875.4536 | KK38: 512811.7172 | KL38: 528196.0687 | KM38: 544041.9508 | KN38: 560363.2093 | KO38: 577174.1056 | KP38: 594489.3288 | KQ38: 612324.0086 | KR38: 630693.7289 | KS38: 649614.5407 | KT38: 669102.977 | KU38: 689176.0663 | KV38: 709851.3483 | KW38: =KW20 -> 731146.8887 | KX38: 753081.2954 | KY38: 775673.7342 | KZ38: 798943.9463 | LA38: 822912.2646 | LB38: 847599.6326 | LC38: 873027.6216 | LD38: 899218.4502 | LE38: 926195.0037 | LF38: 953980.8538 | LG38: 982600.2794 | LH38: 1012078.288 | LI38: 1042440.636 | LJ38: 1073713.856 | LK38: 1105925.271 | LL38: 1139103.029 | LM38: 1173276.12 | LN38: 1208474.404 | LO38: 1244728.636 | LP38: 1282070.495 | LQ38: 1320532.61 | LR38: 1360148.588 | LS38: 1400953.046 | LT38: 1442981.637 | LU38: 1486271.086 | LV38: 1530859.219 | LW38: 1576784.995 | LX38: 1624088.545 | LY38: 1672811.202 | LZ38: 1722995.538 | MA38: 1774685.404 | MB38: 1827925.966 | MC38: 1882763.745 | MD38: 1939246.657 | ME38: 1997424.057 | MF38: 2057346.779 | MG38: 2119067.182 | MH38: 2182639.198 | MI38: 2248118.374 | MJ38: 2315561.925 | MK38: 2385028.782 | ML38: 2456579.646 | MM38: 2530277.035 | MN38: 2606185.346 | MO38: 2684370.907 | MP38: 2764902.034 | MQ38: 2847849.095 | MR38: 2933284.568 | MS38: 3021283.105 | MT38: 3111921.598 | MU38: 3205279.246 | MV38: 3301437.623 | MW38: 3400480.752 | MX38: 3502495.175 | MY38: 3607570.03 | MZ38: 3715797.131 | NA38: 3827271.045 | NB38: 3942089.176 | NC38: 4060351.851 | ND38: 4182162.407 | NE38: 4307627.279 | NF38: 4436856.097 | NG38: 4569961.78 | NH38: 4707060.634 | NI38: =NI20 -> 4848272.453 | NJ38: 4993720.626 | NK38: 5143532.245 | NL38: 5297838.212 | NM38: 5456773.359 | NN38: 5620476.56 | NO38: 5789090.856 | NP38: 5962763.582 | NQ38: 6141646.49 | NR38: 6325895.884 | NS38: 6515672.761 | NT38: 6711142.944 | NU38: 6912477.232 | NV38: 7119851.549 | NW38: 7333447.095 | NX38: 7553450.508 | NY38: 7780054.023 | NZ38: 8013455.644 | OA38: 8253859.313 | OB38: 8501475.093 | OC38: 8756519.346 | OD38: 9019214.926 | OE38: 9289791.374 | OF38: 9568485.115 | OG38: 9855539.668 | OH38: 10151205.86 | OI38: 10455742.03 | OJ38: 10769414.3 | OK38: 11092496.72 | OL38: 11425271.63 | OM38: 11768029.77 | ON38: 12121070.67 | OO38: 12484702.79 | OP38: 12859243.87 | OQ38: 13245021.19 | OR38: 13642371.82
C39: Changes in acoounts payable | J39: =+J22-J21 -> 1.545 | K39: =+K22-K21 -> 1.59135 | L39: 1.6390905 | M39: 1.688263215 | N39: 1.738911111 | O39: 1.791078445 | P39: 1.844810798 | Q39: 1.900155122 | R39: 1.957159776 | S39: 2.015874569 | T39: 2.076350806 | U39: 2.13864133 | V39: 2.20280057 | W39: 2.268884587 | X39: 2.336951125 | Y39: 2.407059659 | Z39: 2.479271448 | AA39: 2.553649592 | AB39: 2.63025908 | AC39: 2.709166852 | AD39: 2.790441858 | AE39: 2.874155113 | AF39: 2.960379767 | AG39: 3.04919116 | AH39: 3.140666894 | AI39: 3.234886901 | AJ39: 3.331933508 | AK39: 3.431891514 | AL39: 3.534848259 | AM39: 3.640893707 | AN39: 3.750120518 | AO39: 3.862624134 | AP39: 3.978502858 | AQ39: 4.097857943 | AR39: 4.220793682 | AS39: 4.347417492 | AT39: 4.477840017 | AU39: 4.612175217 | AV39: 4.750540474 | AW39: 4.893056688 | AX39: 5.039848389 | AY39: 5.19104384 | AZ39: 5.346775156 | BA39: 5.50717841 | BB39: 5.672393762 | BC39: 5.842565575 | BD39: 6.017842543 | BE39: 6.198377819 | BF39: 6.384329153 | BG39: 6.575859028 | BH39: 6.773134799 | BI39: 6.976328843 | BJ39: 7.185618708 | BK39: 7.401187269 | BL39: 7.623222887 | BM39: 7.851919574 | BN39: 8.087477161 | BO39: 8.330101476 | BP39: 8.58000452 | BQ39: 8.837404656 | BR39: 9.102526796 | BS39: 9.3756026 | BT39: 9.656870678 | BU39: 9.946576798 | BV39: 10.2449741 | BW39: =+BW22-BW21 -> 10.55232332 | BX39: 10.86889302 | BY39: 11.19495982 | BZ39: 11.53080861 | CA39: 11.87673287 | CB39: 12.23303485 | CC39: 12.6000259 | CD39: 12.97802668 | CE39: 13.36736748 | CF39: 13.7683885 | CG39: 14.18144016 | CH39: 14.60688336 | CI39: 15.04508986 | CJ39: 15.49644256 | CK39: 15.96133583 | CL39: 16.44017591 | CM39: 16.93338119 | CN39: 17.44138262 | CO39: 17.9646241 | CP39: 18.50356282 | CQ39: 19.05866971 | CR39: 19.6304298 | CS39: 20.21934269 | CT39: 20.82592298 | CU39: 21.45070066 | CV39: 22.09422168 | CW39: 22.75704833 | CX39: 23.43975978 | CY39: 24.14295258 | CZ39: 24.86724116 | DA39: 25.61325839 | DB39: 26.38165614 | DC39: 27.17310583 | DD39: 27.988299 | DE39: 28.82794797 | DF39: 29.69278641 | DG39: 30.58357 | DH39: 31.5010771 | DI39: 32.44610942 | DJ39: 33.4194927 | DK39: 34.42207748 | DL39: 35.4547398 | DM39: 36.518382 | DN39: 37.61393346 | DO39: 38.74235146 | DP39: 39.90462201 | DQ39: 41.10176067 | DR39: 42.33481349 | DS39: 43.60485789 | DT39: 44.91300363 | DU39: 46.26039374 | DV39: 47.64820555 | DW39: 49.07765171 | DX39: 50.54998127 | DY39: 52.0664807 | DZ39: 53.62847512 | EA39: 55.23732938 | EB39: 56.89444926 | EC39: 58.60128274 | ED39: 60.35932122 | EE39: 62.17010086 | EF39: 64.03520388 | EG39: 65.95626 | EH39: 67.9349478 | EI39: =+EI22-EI21 -> 69.97299623 | EJ39: 72.07218612 | EK39: 74.2343517 | EL39: 76.46138225 | EM39: 78.75522372 | EN39: 81.11788043 | EO39: 83.55141685 | EP39: 86.05795935 | EQ39: 88.63969813 | ER39: 91.29888908 | ES39: 94.03785575 | ET39: 96.85899142 | EU39: 99.76476116 | EV39: 102.757704 | EW39: 105.8404351 | EX39: 109.0156482 | EY39: 112.2861176 | EZ39: 115.6547011 | FA39: 119.1243422 | FB39: 122.6980724 | FC39: 126.3790146 | FD39: 130.1703851 | FE39: 134.0754966 | FF39: 138.0977615 | FG39: 142.2406944 | FH39: 146.5079152 | FI39: 150.9031526 | FJ39: 155.4302472 | FK39: 160.0931546 | FL39: 164.8959493 | FM39: 169.8428278 | FN39: 174.9381126 | FO39: 180.186256 | FP39: 185.5918436 | FQ39: 191.1595989 | FR39: 196.8943869 | FS39: 202.8012185 | FT39: 208.8852551 | FU39: 215.1518127 | FV39: 221.6063671 | FW39: 228.2545581 | FX39: 235.1021949 | FY39: 242.1552607 | FZ39: 249.4199185 | GA39: 256.9025161 | GB39: 264.6095916 | GC39: 272.5478793 | GD39: 280.7243157 | GE39: 289.1460452 | GF39: 297.8204265 | GG39: 306.7550393 | GH39: 315.9576905 | GI39: 325.4364212 | GJ39: 335.1995139 | GK39: 345.2554993 | GL39: 355.6131643 | GM39: 366.2815592 | GN39: 377.270006 | GO39: 388.5881061 | GP39: 400.2457493 | GQ39: 412.2531218 | GR39: 424.6207155 | GS39: 437.3593369 | GT39: 450.480117 | GU39: =+GU22-GU21 -> 463.9945205 | GV39: 477.9143562 | GW39: 492.2517868 | GX39: 507.0193404 | GY39: 522.2299207 | GZ39: 537.8968183 | HA39: 554.0337228 | HB39: 570.6547345 | HC39: 587.7743765 | HD39: 605.4076078 | HE39: 623.5698361 | HF39: 642.2769312 | HG39: 661.5452391 | HH39: 681.3915963 | HI39: 701.8333442 | HJ39: 722.8883445 | HK39: 744.5749948 | HL39: 766.9122447 | HM39: 789.919612 | HN39: 813.6172004 | HO39: 838.0257164 | HP39: 863.1664879 | HQ39: 889.0614825 | HR39: 915.733327 | HS39: 943.2053268 | HT39: 971.5014866 | HU39: 1000.646531 | HV39: 1030.665927 | HW39: 1061.585905 | HX39: 1093.433482 | HY39: 1126.236487 | HZ39: 1160.023581 | IA39: 1194.824289 | IB39: 1230.669017 | IC39: 1267.589088 | ID39: 1305.61676 | IE39: 1344.785263 | IF39: 1385.128821 | IG39: 1426.682686 | IH39: 1469.483166 | II39: 1513.567661 | IJ39: 1558.974691 | IK39: 1605.743932 | IL39: 1653.91625 | IM39: 1703.533737 | IN39: 1754.639749 | IO39: 1807.278942 | IP39: 1861.49731 | IQ39: 1917.342229 | IR39: 1974.862496 | IS39: 2034.108371 | IT39: 2095.131622 | IU39: 2157.985571 | IV39: 2222.725138 | IW39: 2289.406892 | IX39: 2358.089099 | IY39: 2428.831772 | IZ39: 2501.696725 | JA39: 2576.747627 | JB39: 2654.050056 | JC39: 2733.671557 | JD39: 2815.681704 | JE39: 2900.152155 | JF39: 2987.15672 | JG39: =+JG22-JG21 -> 3076.771422 | JH39: 3169.074564 | JI39: 3264.146801 | JJ39: 3362.071205 | JK39: 3462.933341 | JL39: 3566.821342 | JM39: 3673.825982 | JN39: 3784.040761 | JO39: 3897.561984 | JP39: 4014.488844 | JQ39: 4134.923509 | JR39: 4258.971214 | JS39: 4386.740351 | JT39: 4518.342561 | JU39: 4653.892838 | JV39: 4793.509623 | JW39: 4937.314912 | JX39: 5085.434359 | JY39: 5237.99739 | JZ39: 5395.137312 | KA39: 5556.991431 | KB39: 5723.701174 | KC39: 5895.412209 | KD39: 6072.274575 | KE39: 6254.442813 | KF39: 6442.076097 | KG39: 6635.33838 | KH39: 6834.398531 | KI39: 7039.430487 | KJ39: 7250.613402 | KK39: 7468.131804 | KL39: 7692.175758 | KM39: 7922.941031 | KN39: 8160.629262 | KO39: 8405.44814 | KP39: 8657.611584 | KQ39: 8917.339931 | KR39: 9184.860129 | KS39: 9460.405933 | KT39: 9744.218111 | KU39: 10036.54465 | KV39: 10337.64099 | KW39: =+KW22-KW21 -> 10647.77022 | KX39: 10967.20333 | KY39: 11296.21943 | KZ39: 11635.10601 | LA39: 11984.15919 | LB39: 12343.68397 | LC39: 12713.99449 | LD39: 13095.41432 | LE39: 13488.27675 | LF39: 13892.92506 | LG39: 14309.71281 | LH39: 14739.00419 | LI39: 15181.17432 | LJ39: 15636.60955 | LK39: 16105.70783 | LL39: 16588.87907 | LM39: 17086.54544 | LN39: 17599.1418 | LO39: 18127.11606 | LP39: 18670.92954 | LQ39: 19231.05743 | LR39: 19807.98915 | LS39: 20402.22882 | LT39: 21014.29569 | LU39: 21644.72456 | LV39: 22294.06629 | LW39: 22962.88828 | LX39: 23651.77493 | LY39: 24361.32818 | LZ39: 25092.16803 | MA39: 25844.93307 | MB39: 26620.28106 | MC39: 27418.88949 | MD39: 28241.45617 | ME39: 29088.69986 | MF39: 29961.36086 | MG39: 30860.20168 | MH39: 31786.00773 | MI39: 32739.58796 | MJ39: 33721.7756 | MK39: 34733.42887 | ML39: 35775.43174 | MM39: 36848.69469 | MN39: 37954.15553 | MO39: 39092.7802 | MP39: 40265.5636 | MQ39: 41473.53051 | MR39: 42717.73643 | MS39: 43999.26852 | MT39: 45319.24657 | MU39: 46678.82397 | MV39: 48079.18869 | MW39: 49521.56435 | MX39: 51007.21128 | MY39: 52537.42762 | MZ39: 54113.55045 | NA39: 55736.95696 | NB39: 57409.06567 | NC39: 59131.33764 | ND39: 60905.27777 | NE39: 62732.4361 | NF39: 64614.40919 | NG39: 66552.84146 | NH39: 68549.4267 | NI39: =+NI22-NI21 -> 70605.90951 | NJ39: 72724.08679 | NK39: 74905.80939 | NL39: 77152.98368 | NM39: 79467.57319 | NN39: 81851.60038 | NO39: 84307.14839 | NP39: 86836.36285 | NQ39: 89441.45373 | NR39: 92124.69734 | NS39: 94888.43826 | NT39: 97735.09141 | NU39: 100667.1442 | NV39: 103687.1585 | NW39: 106797.7732 | NX39: 110001.7064 | NY39: 113301.7576 | NZ39: 116700.8104 | OA39: 120201.8347 | OB39: 123807.8897 | OC39: 127522.1264 | OD39: 131347.7902 | OE39: 135288.2239 | OF39: 139346.8706 | OG39: 143527.2767 | OH39: 147833.095 | OI39: 152268.0879 | OJ39: 156836.1305 | OK39: 161541.2144 | OL39: 166387.4509 | OM39: 171379.0744 | ON39: 176520.4466 | OO39: 181816.06 | OP39: 187270.5418 | OQ39: 192888.6581 | OR39: 198675.3178
C40: Total free cash flow | F40: =NPV(F13,J40:KV40) -> 763.6050272 | J40: =IF(J7,J38+J39) -> FALSE | K40: FALSE | L40: FALSE | M40: FALSE | N40: 121.1441408 | O40: 124.778465 | P40: 128.5218189 | Q40: 132.3774735 | R40: 136.3487977 | S40: 140.4392616 | T40: 144.6524395 | U40: 148.9920127 | V40: 153.4617731 | W40: 158.0656262 | X40: FALSE | Y40: FALSE | Z40: FALSE | AA40: FALSE | AB40: FALSE | AC40: FALSE | AD40: FALSE | AE40: FALSE | AF40: FALSE | AG40: FALSE | AH40: FALSE | AI40: FALSE | AJ40: FALSE | AK40: FALSE | AL40: FALSE | AM40: FALSE | AN40: FALSE | AO40: FALSE | AP40: FALSE | AQ40: FALSE | AR40: FALSE | AS40: FALSE | AT40: FALSE | AU40: FALSE | AV40: FALSE | AW40: FALSE | AX40: FALSE | AY40: FALSE | AZ40: FALSE | BA40: FALSE | BB40: FALSE | BC40: FALSE | BD40: FALSE | BE40: FALSE | BF40: FALSE | BG40: FALSE | BH40: FALSE | BI40: FALSE | BJ40: FALSE | BK40: FALSE | BL40: FALSE | BM40: FALSE | BN40: FALSE | BO40: FALSE | BP40: FALSE | BQ40: FALSE | BR40: FALSE | BS40: FALSE | BT40: FALSE | BU40: FALSE | BV40: =IF(BV7,BV38+BV39) -> FALSE | BW40: FALSE | BX40: FALSE | BY40: FALSE | BZ40: FALSE | CA40: FALSE | CB40: FALSE | CC40: FALSE | CD40: FALSE | CE40: FALSE | CF40: FALSE | CG40: FALSE | CH40: FALSE | CI40: FALSE | CJ40: FALSE | CK40: FALSE | CL40: FALSE | CM40: FALSE | CN40: FALSE | CO40: FALSE | CP40: FALSE | CQ40: FALSE | CR40: FALSE | CS40: FALSE | CT40: FALSE | CU40: FALSE | CV40: FALSE | CW40: FALSE | CX40: FALSE | CY40: FALSE | CZ40: FALSE | DA40: FALSE | DB40: FALSE | DC40: FALSE | DD40: FALSE | DE40: FALSE | DF40: FALSE | DG40: FALSE | DH40: FALSE | DI40: FALSE | DJ40: FALSE | DK40: FALSE | DL40: FALSE | DM40: FALSE | DN40: FALSE | DO40: FALSE | DP40: FALSE | DQ40: FALSE | DR40: FALSE | DS40: FALSE | DT40: FALSE | DU40: FALSE | DV40: FALSE | DW40: FALSE | DX40: FALSE | DY40: FALSE | DZ40: FALSE | EA40: FALSE | EB40: FALSE | EC40: FALSE | ED40: FALSE | EE40: FALSE | EF40: FALSE | EG40: FALSE | EH40: =IF(EH7,EH38+EH39) -> FALSE | EI40: FALSE | EJ40: FALSE | EK40: FALSE | EL40: FALSE | EM40: FALSE | EN40: FALSE | EO40: FALSE | EP40: FALSE | EQ40: FALSE | ER40: FALSE | ES40: FALSE | ET40: FALSE | EU40: FALSE | EV40: FALSE | EW40: FALSE | EX40: FALSE | EY40: FALSE | EZ40: FALSE | FA40: FALSE | FB40: FALSE | FC40: FALSE | FD40: FALSE | FE40: FALSE | FF40: FALSE | FG40: FALSE | FH40: FALSE | FI40: FALSE | FJ40: FALSE | FK40: FALSE | FL40: FALSE | FM40: FALSE | FN40: FALSE | FO40: FALSE | FP40: FALSE | FQ40: FALSE | FR40: FALSE | FS40: FALSE | FT40: FALSE | FU40: FALSE | FV40: FALSE | FW40: FALSE | FX40: FALSE | FY40: FALSE | FZ40: FALSE | GA40: FALSE | GB40: FALSE | GC40: FALSE | GD40: FALSE | GE40: FALSE | GF40: FALSE | GG40: FALSE | GH40: FALSE | GI40: FALSE | GJ40: FALSE | GK40: FALSE | GL40: FALSE | GM40: FALSE | GN40: FALSE | GO40: FALSE | GP40: FALSE | GQ40: FALSE | GR40: FALSE | GS40: FALSE | GT40: =IF(GT7,GT38+GT39) -> FALSE | GU40: FALSE | GV40: FALSE | GW40: FALSE | GX40: FALSE | GY40: FALSE | GZ40: FALSE | HA40: FALSE | HB40: FALSE | HC40: FALSE | HD40: FALSE | HE40: FALSE | HF40: FALSE | HG40: FALSE | HH40: FALSE | HI40: FALSE | HJ40: FALSE | HK40: FALSE | HL40: FALSE | HM40: FALSE | HN40: FALSE | HO40: FALSE | HP40: FALSE | HQ40: FALSE | HR40: FALSE | HS40: FALSE | HT40: FALSE | HU40: FALSE | HV40: FALSE | HW40: FALSE | HX40: FALSE | HY40: FALSE | HZ40: FALSE | IA40: FALSE | IB40: FALSE | IC40: FALSE | ID40: FALSE | IE40: FALSE | IF40: FALSE | IG40: FALSE | IH40: FALSE | II40: FALSE | IJ40: FALSE | IK40: FALSE | IL40: FALSE | IM40: FALSE | IN40: FALSE | IO40: FALSE | IP40: FALSE | IQ40: FALSE | IR40: FALSE | IS40: FALSE | IT40: FALSE | IU40: FALSE | IV40: FALSE | IW40: FALSE | IX40: FALSE | IY40: FALSE | IZ40: FALSE | JA40: FALSE | JB40: FALSE | JC40: FALSE | JD40: FALSE | JE40: FALSE | JF40: =IF(JF7,JF38+JF39) -> FALSE | JG40: FALSE | JH40: FALSE | JI40: FALSE | JJ40: FALSE | JK40: FALSE | JL40: FALSE | JM40: FALSE | JN40: FALSE | JO40: FALSE | JP40: FALSE | JQ40: FALSE | JR40: FALSE | JS40: FALSE | JT40: FALSE | JU40: FALSE | JV40: FALSE | JW40: FALSE | JX40: FALSE | JY40: FALSE | JZ40: FALSE | KA40: FALSE | KB40: FALSE | KC40: FALSE | KD40: FALSE | KE40: FALSE | KF40: FALSE | KG40: FALSE | KH40: FALSE | KI40: FALSE | KJ40: FALSE | KK40: FALSE | KL40: FALSE | KM40: FALSE | KN40: FALSE | KO40: FALSE | KP40: FALSE | KQ40: FALSE | KR40: FALSE | KS40: FALSE | KT40: FALSE | KU40: FALSE | KV40: FALSE | KW40: FALSE | KX40: FALSE | KY40: FALSE | KZ40: FALSE | LA40: FALSE | LB40: FALSE | LC40: FALSE | LD40: FALSE | LE40: FALSE | LF40: FALSE | LG40: FALSE | LH40: FALSE | LI40: FALSE | LJ40: FALSE | LK40: FALSE | LL40: FALSE | LM40: FALSE | LN40: FALSE | LO40: FALSE | LP40: FALSE | LQ40: FALSE | LR40: =IF(LR7,LR38+LR39) -> FALSE | LS40: FALSE | LT40: FALSE | LU40: FALSE | LV40: FALSE | LW40: FALSE | LX40: FALSE | LY40: FALSE | LZ40: FALSE | MA40: FALSE | MB40: FALSE | MC40: FALSE | MD40: FALSE | ME40: FALSE | MF40: FALSE | MG40: FALSE | MH40: FALSE | MI40: FALSE | MJ40: FALSE | MK40: FALSE | ML40: FALSE | MM40: FALSE | MN40: FALSE | MO40: FALSE | MP40: FALSE | MQ40: FALSE | MR40: FALSE | MS40: FALSE | MT40: FALSE | MU40: FALSE | MV40: FALSE | MW40: FALSE | MX40: FALSE | MY40: FALSE | MZ40: FALSE | NA40: FALSE | NB40: FALSE | NC40: FALSE | ND40: FALSE | NE40: FALSE | NF40: FALSE | NG40: FALSE | NH40: FALSE | NI40: FALSE | NJ40: FALSE | NK40: FALSE | NL40: FALSE | NM40: FALSE | NN40: FALSE | NO40: FALSE | NP40: FALSE | NQ40: FALSE | NR40: FALSE | NS40: FALSE | NT40: FALSE | NU40: FALSE | NV40: FALSE | NW40: FALSE | NX40: FALSE | NY40: FALSE | NZ40: FALSE | OA40: FALSE | OB40: FALSE | OC40: FALSE | OD40: =IF(OD7,OD38+OD39) -> FALSE | OE40: FALSE | OF40: FALSE | OG40: FALSE | OH40: FALSE | OI40: FALSE | OJ40: FALSE | OK40: FALSE | OL40: FALSE | OM40: FALSE | ON40: FALSE | OO40: FALSE | OP40: FALSE | OQ40: FALSE | OR40: FALSE
C41: Terminal free cash flow | F41: =NPV(F13,J41:KV41) -> 582.4409813 | J41: =+IF(J7,J40*(1+$F$12)/($F$13-$F$12)*J6) -> FALSE | K41: FALSE | L41: FALSE | M41: FALSE | N41: 0 | O41: 0 | P41: 0 | Q41: 0 | R41: 0 | S41: 0 | T41: 0 | U41: 0 | V41: 0 | W41: 1808.973278 | X41: FALSE | Y41: FALSE | Z41: FALSE | AA41: FALSE | AB41: FALSE | AC41: FALSE | AD41: FALSE | AE41: FALSE | AF41: FALSE | AG41: FALSE | AH41: FALSE | AI41: FALSE | AJ41: FALSE | AK41: FALSE | AL41: FALSE | AM41: FALSE | AN41: FALSE | AO41: FALSE | AP41: FALSE | AQ41: FALSE | AR41: FALSE | AS41: FALSE | AT41: FALSE | AU41: FALSE | AV41: FALSE | AW41: FALSE | AX41: FALSE | AY41: FALSE | AZ41: FALSE | BA41: FALSE | BB41: FALSE | BC41: FALSE | BD41: FALSE | BE41: FALSE | BF41: FALSE | BG41: FALSE | BH41: FALSE | BI41: FALSE | BJ41: FALSE | BK41: FALSE | BL41: FALSE | BM41: FALSE | BN41: FALSE | BO41: FALSE | BP41: FALSE | BQ41: FALSE | BR41: FALSE | BS41: FALSE | BT41: FALSE | BU41: FALSE | BV41: =+IF(BV7,BV40*(1+$F$12)/($F$13-$F$12)*BV6) -> FALSE | BW41: FALSE | BX41: FALSE | BY41: FALSE | BZ41: FALSE | CA41: FALSE | CB41: FALSE | CC41: FALSE | CD41: FALSE | CE41: FALSE | CF41: FALSE | CG41: FALSE | CH41: FALSE | CI41: FALSE | CJ41: FALSE | CK41: FALSE | CL41: FALSE | CM41: FALSE | CN41: FALSE | CO41: FALSE | CP41: FALSE | CQ41: FALSE | CR41: FALSE | CS41: FALSE | CT41: FALSE | CU41: FALSE | CV41: FALSE | CW41: FALSE | CX41: FALSE | CY41: FALSE | CZ41: FALSE | DA41: FALSE | DB41: FALSE | DC41: FALSE | DD41: FALSE | DE41: FALSE | DF41: FALSE | DG41: FALSE | DH41: FALSE | DI41: FALSE | DJ41: FALSE | DK41: FALSE | DL41: FALSE | DM41: FALSE | DN41: FALSE | DO41: FALSE | DP41: FALSE | DQ41: FALSE | DR41: FALSE | DS41: FALSE | DT41: FALSE | DU41: FALSE | DV41: FALSE | DW41: FALSE | DX41: FALSE | DY41: FALSE | DZ41: FALSE | EA41: FALSE | EB41: FALSE | EC41: FALSE | ED41: FALSE | EE41: FALSE | EF41: FALSE | EG41: FALSE | EH41: =+IF(EH7,EH40*(1+$F$12)/($F$13-$F$12)*EH6) -> FALSE | EI41: FALSE | EJ41: FALSE | EK41: FALSE | EL41: FALSE | EM41: FALSE | EN41: FALSE | EO41: FALSE | EP41: FALSE | EQ41: FALSE | ER41: FALSE | ES41: FALSE | ET41: FALSE | EU41: FALSE | EV41: FALSE | EW41: FALSE | EX41: FALSE | EY41: FALSE | EZ41: FALSE | FA41: FALSE | FB41: FALSE | FC41: FALSE | FD41: FALSE | FE41: FALSE | FF41: FALSE | FG41: FALSE | FH41: FALSE | FI41: FALSE | FJ41: FALSE | FK41: FALSE | FL41: FALSE | FM41: FALSE | FN41: FALSE | FO41: FALSE | FP41: FALSE | FQ41: FALSE | FR41: FALSE | FS41: FALSE | FT41: FALSE | FU41: FALSE | FV41: FALSE | FW41: FALSE | FX41: FALSE | FY41: FALSE | FZ41: FALSE | GA41: FALSE | GB41: FALSE | GC41: FALSE | GD41: FALSE | GE41: FALSE | GF41: FALSE | GG41: FALSE | GH41: FALSE | GI41: FALSE | GJ41: FALSE | GK41: FALSE | GL41: FALSE | GM41: FALSE | GN41: FALSE | GO41: FALSE | GP41: FALSE | GQ41: FALSE | GR41: FALSE | GS41: FALSE | GT41: =+IF(GT7,GT40*(1+$F$12)/($F$13-$F$12)*GT6) -> FALSE | GU41: FALSE | GV41: FALSE | GW41: FALSE | GX41: FALSE | GY41: FALSE | GZ41: FALSE | HA41: FALSE | HB41: FALSE | HC41: FALSE | HD41: FALSE | HE41: FALSE | HF41: FALSE | HG41: FALSE | HH41: FALSE | HI41: FALSE | HJ41: FALSE | HK41: FALSE | HL41: FALSE | HM41: FALSE | HN41: FALSE | HO41: FALSE | HP41: FALSE | HQ41: FALSE | HR41: FALSE | HS41: FALSE | HT41: FALSE | HU41: FALSE | HV41: FALSE | HW41: FALSE | HX41: FALSE | HY41: FALSE | HZ41: FALSE | IA41: FALSE | IB41: FALSE | IC41: FALSE | ID41: FALSE | IE41: FALSE | IF41: FALSE | IG41: FALSE | IH41: FALSE | II41: FALSE | IJ41: FALSE | IK41: FALSE | IL41: FALSE | IM41: FALSE | IN41: FALSE | IO41: FALSE | IP41: FALSE | IQ41: FALSE | IR41: FALSE | IS41: FALSE | IT41: FALSE | IU41: FALSE | IV41: FALSE | IW41: FALSE | IX41: FALSE | IY41: FALSE | IZ41: FALSE | JA41: FALSE | JB41: FALSE | JC41: FALSE | JD41: FALSE | JE41: FALSE | JF41: =+IF(JF7,JF40*(1+$F$12)/($F$13-$F$12)*JF6) -> FALSE | JG41: FALSE | JH41: FALSE | JI41: FALSE | JJ41: FALSE | JK41: FALSE | JL41: FALSE | JM41: FALSE | JN41: FALSE | JO41: FALSE | JP41: FALSE | JQ41: FALSE | JR41: FALSE | JS41: FALSE | JT41: FALSE | JU41: FALSE | JV41: FALSE | JW41: FALSE | JX41: FALSE | JY41: FALSE | JZ41: FALSE | KA41: FALSE | KB41: FALSE | KC41: FALSE | KD41: FALSE | KE41: FALSE | KF41: FALSE | KG41: FALSE | KH41: FALSE | KI41: FALSE | KJ41: FALSE | KK41: FALSE | KL41: FALSE | KM41: FALSE | KN41: FALSE | KO41: FALSE | KP41: FALSE | KQ41: FALSE | KR41: FALSE | KS41: FALSE | KT41: FALSE | KU41: FALSE | KV41: FALSE | KW41: FALSE | KX41: FALSE | KY41: FALSE | KZ41: FALSE | LA41: FALSE | LB41: FALSE | LC41: FALSE | LD41: FALSE | LE41: FALSE | LF41: FALSE | LG41: FALSE | LH41: FALSE | LI41: FALSE | LJ41: FALSE | LK41: FALSE | LL41: FALSE | LM41: FALSE | LN41: FALSE | LO41: FALSE | LP41: FALSE | LQ41: FALSE | LR41: =+IF(LR7,LR40*(1+$F$12)/($F$13-$F$12)*LR6) -> FALSE | LS41: FALSE | LT41: FALSE | LU41: FALSE | LV41: FALSE | LW41: FALSE | LX41: FALSE | LY41: FALSE | LZ41: FALSE | MA41: FALSE | MB41: FALSE | MC41: FALSE | MD41: FALSE | ME41: FALSE | MF41: FALSE | MG41: FALSE | MH41: FALSE | MI41: FALSE | MJ41: FALSE | MK41: FALSE | ML41: FALSE | MM41: FALSE | MN41: FALSE | MO41: FALSE | MP41: FALSE | MQ41: FALSE | MR41: FALSE | MS41: FALSE | MT41: FALSE | MU41: FALSE | MV41: FALSE | MW41: FALSE | MX41: FALSE | MY41: FALSE | MZ41: FALSE | NA41: FALSE | NB41: FALSE | NC41: FALSE | ND41: FALSE | NE41: FALSE | NF41: FALSE | NG41: FALSE | NH41: FALSE | NI41: FALSE | NJ41: FALSE | NK41: FALSE | NL41: FALSE | NM41: FALSE | NN41: FALSE | NO41: FALSE | NP41: FALSE | NQ41: FALSE | NR41: FALSE | NS41: FALSE | NT41: FALSE | NU41: FALSE | NV41: FALSE | NW41: FALSE | NX41: FALSE | NY41: FALSE | NZ41: FALSE | OA41: FALSE | OB41: FALSE | OC41: FALSE | OD41: =+IF(OD7,OD40*(1+$F$12)/($F$13-$F$12)*OD6) -> FALSE | OE41: FALSE | OF41: FALSE | OG41: FALSE | OH41: FALSE | OI41: FALSE | OJ41: FALSE | OK41: FALSE | OL41: FALSE | OM41: FALSE | ON41: FALSE | OO41: FALSE | OP41: FALSE | OQ41: FALSE | OR41: FALSE
C43: Valuation Method 2: Not in Bridge | F43: =SUM(F40:F41) -> 1346.046008
C44: Error | F44: =F25-F43 -> -6.821210263e-12
B47: Proof 2: Provisions Related to Warranty Expenses; Demonstrates that should include in EV, NOT in bridge and that changes in provisions should be in Free Cash Flow
C48: True value assumptions
D49: Warranties as Percent of Revenue | F49: 0.1
D50: Year Warranty Paid | F50: 1
D51: Cash Revenue | I51: =I14 -> 103 | J51: =J14 -> 106.09 | K51: 109.2727 | L51: 112.550881 | M51: 115.9274074 | N51: 119.4052297 | O51: 122.9873865 | P51: 126.6770081 | Q51: 130.4773184 | R51: 134.3916379 | S51: 138.4233871 | T51: 142.5760887 | U51: 146.8533713 | V51: 151.2589725 | W51: 155.7967417 | X51: 160.4706439 | Y51: 165.2847632 | Z51: 170.2433061 | AA51: 175.3506053 | AB51: 180.6111235 | AC51: 186.0294572 | AD51: 191.6103409 | AE51: 197.3586511 | AF51: 203.2794106 | AG51: 209.377793 | AH51: 215.6591268 | AI51: 222.1289006 | AJ51: 228.7927676 | AK51: 235.6565506 | AL51: 242.7262471 | AM51: 250.0080345 | AN51: 257.5082756 | AO51: 265.2335238 | AP51: 273.1905296 | AQ51: 281.3862454 | AR51: 289.8278328 | AS51: 298.5226678 | AT51: 307.4783478 | AU51: 316.7026983 | AV51: 326.2037792 | AW51: 335.9898926 | AX51: 346.0695894 | AY51: 356.451677 | AZ51: 367.1452273 | BA51: 378.1595842 | BB51: 389.5043717 | BC51: 401.1895028 | BD51: 413.2251879 | BE51: 425.6219436 | BF51: 438.3906019 | BG51: 451.5423199 | BH51: 465.0885895 | BI51: 479.0412472 | BJ51: 493.4124846 | BK51: 508.2148592 | BL51: 523.4613049 | BM51: 539.1651441 | BN51: 555.3400984 | BO51: 572.0003014 | BP51: 589.1603104 | BQ51: 606.8351197 | BR51: 625.0401733 | BS51: 643.7913785 | BT51: 663.1051199 | BU51: 682.9982735 | BV51: =BV14 -> 703.4882217 | BW51: 724.5928683 | BX51: 746.3306544 | BY51: 768.720574 | BZ51: 791.7821912 | CA51: 815.5356569 | CB51: 840.0017267 | CC51: 865.2017785 | CD51: 891.1578318 | CE51: 917.8925668 | CF51: 945.4293438 | CG51: 973.7922241 | CH51: 1003.005991 | CI51: 1033.096171 | CJ51: 1064.089056 | CK51: 1096.011727 | CL51: 1128.892079 | CM51: 1162.758842 | CN51: 1197.641607 | CO51: 1233.570855 | CP51: 1270.577981 | CQ51: 1308.69532 | CR51: 1347.95618 | CS51: 1388.394865 | CT51: 1430.046711 | CU51: 1472.948112 | CV51: 1517.136556 | CW51: 1562.650652 | CX51: 1609.530172 | CY51: 1657.816077 | CZ51: 1707.550559 | DA51: 1758.777076 | DB51: 1811.540388 | DC51: 1865.8866 | DD51: 1921.863198 | DE51: 1979.519094 | DF51: 2038.904667 | DG51: 2100.071807 | DH51: 2163.073961 | DI51: 2227.96618 | DJ51: 2294.805165 | DK51: 2363.64932 | DL51: 2434.5588 | DM51: 2507.595564 | DN51: 2582.823431 | DO51: 2660.308134 | DP51: 2740.117378 | DQ51: 2822.320899 | DR51: 2906.990526 | DS51: 2994.200242 | DT51: 3084.026249 | DU51: 3176.547037 | DV51: 3271.843448 | DW51: 3369.998751 | DX51: 3471.098714 | DY51: 3575.231675 | DZ51: 3682.488625 | EA51: 3792.963284 | EB51: 3906.752182 | EC51: 4023.954748 | ED51: 4144.67339 | EE51: 4269.013592 | EF51: 4397.084 | EG51: 4528.99652 | EH51: =EH14 -> 4664.866415 | EI51: 4804.812408 | EJ51: 4948.95678 | EK51: 5097.425484 | EL51: 5250.348248 | EM51: 5407.858696 | EN51: 5570.094456 | EO51: 5737.19729 | EP51: 5909.313209 | EQ51: 6086.592605 | ER51: 6269.190383 | ES51: 6457.266095 | ET51: 6650.984078 | EU51: 6850.5136 | EV51: 7056.029008 | EW51: 7267.709878 | EX51: 7485.741174 | EY51: 7710.31341 | EZ51: 7941.622812 | FA51: 8179.871496 | FB51: 8425.267641 | FC51: 8678.02567 | FD51: 8938.366441 | FE51: 9206.517434 | FF51: 9482.712957 | FG51: 9767.194346 | FH51: 10060.21018 | FI51: 10362.01648 | FJ51: 10672.87698 | FK51: 10993.06328 | FL51: 11322.85518 | FM51: 11662.54084 | FN51: 12012.41706 | FO51: 12372.78958 | FP51: 12743.97326 | FQ51: 13126.29246 | FR51: 13520.08123 | FS51: 13925.68367 | FT51: 14343.45418 | FU51: 14773.75781 | FV51: 15216.97054 | FW51: 15673.47966 | FX51: 16143.68405 | FY51: 16627.99457 | FZ51: 17126.83441 | GA51: 17640.63944 | GB51: 18169.85862 | GC51: 18714.95438 | GD51: 19276.40301 | GE51: 19854.6951 | GF51: 20450.33596 | GG51: 21063.84603 | GH51: 21695.76141 | GI51: 22346.63426 | GJ51: 23017.03329 | GK51: 23707.54428 | GL51: 24418.77061 | GM51: 25151.33373 | GN51: 25905.87374 | GO51: 26683.04995 | GP51: 27483.54145 | GQ51: 28308.0477 | GR51: 29157.28913 | GS51: 30032.0078 | GT51: =GT14 -> 30932.96804 | GU51: 31860.95708 | GV51: 32816.78579 | GW51: 33801.28936 | GX51: 34815.32804 | GY51: 35859.78789 | GZ51: 36935.58152 | HA51: 38043.64897 | HB51: 39184.95844 | HC51: 40360.50719 | HD51: 41571.3224 | HE51: 42818.46208 | HF51: 44103.01594 | HG51: 45426.10642 | HH51: 46788.88961 | HI51: 48192.5563 | HJ51: 49638.33299 | HK51: 51127.48298 | HL51: 52661.30747 | HM51: 54241.14669 | HN51: 55868.38109 | HO51: 57544.43252 | HP51: 59270.7655 | HQ51: 61048.88846 | HR51: 62880.35512 | HS51: 64766.76577 | HT51: 66709.76875 | HU51: 68711.06181 | HV51: 70772.39366 | HW51: 72895.56547 | HX51: 75082.43244 | HY51: 77334.90541 | HZ51: 79654.95257 | IA51: 82044.60115 | IB51: 84505.93918 | IC51: 87041.11736 | ID51: 89652.35088 | IE51: 92341.92141 | IF51: 95112.17905 | IG51: 97965.54442 | IH51: 100904.5108 | II51: 103931.6461 | IJ51: 107049.5955 | IK51: 110261.0833 | IL51: 113568.9158 | IM51: 116975.9833 | IN51: 120485.2628 | IO51: 124099.8207 | IP51: 127822.8153 | IQ51: 131657.4998 | IR51: 135607.2247 | IS51: 139675.4415 | IT51: 143865.7047 | IU51: 148181.6759 | IV51: 152627.1262 | IW51: 157205.9399 | IX51: 161922.1181 | IY51: 166779.7817 | IZ51: 171783.1751 | JA51: 176936.6704 | JB51: 182244.7705 | JC51: 187712.1136 | JD51: 193343.477 | JE51: 199143.7813 | JF51: =JF14 -> 205118.0948 | JG51: 211271.6376 | JH51: 217609.7867 | JI51: 224138.0803 | JJ51: 230862.2228 | JK51: 237788.0894 | JL51: 244921.7321 | JM51: 252269.3841 | JN51: 259837.4656 | JO51: 267632.5896 | JP51: 275661.5673 | JQ51: 283931.4143 | JR51: 292449.3567 | JS51: 301222.8374 | JT51: 310259.5225 | JU51: 319567.3082 | JV51: 329154.3275 | JW51: 339028.9573 | JX51: 349199.826 | JY51: 359675.8208 | JZ51: 370466.0954 | KA51: 381580.0783 | KB51: 393027.4806 | KC51: 404818.305 | KD51: 416962.8542 | KE51: 429471.7398 | KF51: 442355.892 | KG51: 455626.5688 | KH51: 469295.3658 | KI51: 483374.2268 | KJ51: 497875.4536 | KK51: 512811.7172 | KL51: 528196.0687 | KM51: 544041.9508 | KN51: 560363.2093 | KO51: 577174.1056 | KP51: 594489.3288 | KQ51: 612324.0086 | KR51: 630693.7289 | KS51: 649614.5407 | KT51: 669102.977 | KU51: 689176.0663 | KV51: 709851.3483 | KW51: =KW14 -> 731146.8887 | KX51: 753081.2954 | KY51: 775673.7342 | KZ51: 798943.9463 | LA51: 822912.2646 | LB51: 847599.6326 | LC51: 873027.6216 | LD51: 899218.4502 | LE51: 926195.0037 | LF51: 953980.8538 | LG51: 982600.2794 | LH51: 1012078.288 | LI51: 1042440.636 | LJ51: 1073713.856 | LK51: 1105925.271 | LL51: 1139103.029 | LM51: 1173276.12 | LN51: 1208474.404 | LO51: 1244728.636 | LP51: 1282070.495 | LQ51: 1320532.61 | LR51: 1360148.588 | LS51: 1400953.046 | LT51: 1442981.637 | LU51: 1486271.086 | LV51: 1530859.219 | LW51: 1576784.995 | LX51: 1624088.545 | LY51: 1672811.202 | LZ51: 1722995.538 | MA51: 1774685.404 | MB51: 1827925.966 | MC51: 1882763.745 | MD51: 1939246.657 | ME51: 1997424.057 | MF51: 2057346.779 | MG51: 2119067.182 | MH51: 2182639.198 | MI51: 2248118.374 | MJ51: 2315561.925 | MK51: 2385028.782 | ML51: 2456579.646 | MM51: 2530277.035 | MN51: 2606185.346 | MO51: 2684370.907 | MP51: 2764902.034 | MQ51: 2847849.095 | MR51: 2933284.568 | MS51: 3021283.105 | MT51: 3111921.598 | MU51: 3205279.246 | MV51: 3301437.623 | MW51: 3400480.752 | MX51: 3502495.175 | MY51: 3607570.03 | MZ51: 3715797.131 | NA51: 3827271.045 | NB51: 3942089.176 | NC51: 4060351.851 | ND51: 4182162.407 | NE51: 4307627.279 | NF51: 4436856.097 | NG51: 4569961.78 | NH51: 4707060.634 | NI51: =NI14 -> 4848272.453 | NJ51: 4993720.626 | NK51: 5143532.245 | NL51: 5297838.212 | NM51: 5456773.359 | NN51: 5620476.56 | NO51: 5789090.856 | NP51: 5962763.582 | NQ51: 6141646.49 | NR51: 6325895.884 | NS51: 6515672.761 | NT51: 6711142.944 | NU51: 6912477.232 | NV51: 7119851.549 | NW51: 7333447.095 | NX51: 7553450.508 | NY51: 7780054.023 | NZ51: 8013455.644 | OA51: 8253859.313 | OB51: 8501475.093 | OC51: 8756519.346 | OD51: 9019214.926 | OE51: 9289791.374 | OF51: 9568485.115 | OG51: 9855539.668 | OH51: 10151205.86 | OI51: 10455742.03 | OJ51: 10769414.3 | OK51: 11092496.72 | OL51: 11425271.63 | OM51: 11768029.77 | ON51: 12121070.67 | OO51: 12484702.79 | OP51: 12859243.87 | OQ51: 13245021.19 | OR51: 13642371.82
D52: Increase in Provisions for Warranties | I52: =I51*$F$49 -> 10.3 | J52: =J51*$F$49 -> 10.609 | K52: 10.92727 | L52: 11.2550881 | M52: 11.59274074 | N52: 11.94052297 | O52: 12.29873865 | P52: 12.66770081 | Q52: 13.04773184 | R52: 13.43916379 | S52: 13.84233871 | T52: 14.25760887 | U52: 14.68533713 | V52: 15.12589725 | W52: 15.57967417 | X52: 16.04706439 | Y52: 16.52847632 | Z52: 17.02433061 | AA52: 17.53506053 | AB52: 18.06111235 | AC52: 18.60294572 | AD52: 19.16103409 | AE52: 19.73586511 | AF52: 20.32794106 | AG52: 20.9377793 | AH52: 21.56591268 | AI52: 22.21289006 | AJ52: 22.87927676 | AK52: 23.56565506 | AL52: 24.27262471 | AM52: 25.00080345 | AN52: 25.75082756 | AO52: 26.52335238 | AP52: 27.31905296 | AQ52: 28.13862454 | AR52: 28.98278328 | AS52: 29.85226678 | AT52: 30.74783478 | AU52: 31.67026983 | AV52: 32.62037792 | AW52: 33.59898926 | AX52: 34.60695894 | AY52: 35.6451677 | AZ52: 36.71452273 | BA52: 37.81595842 | BB52: 38.95043717 | BC52: 40.11895028 | BD52: 41.32251879 | BE52: 42.56219436 | BF52: 43.83906019 | BG52: 45.15423199 | BH52: 46.50885895 | BI52: 47.90412472 | BJ52: 49.34124846 | BK52: 50.82148592 | BL52: 52.34613049 | BM52: 53.91651441 | BN52: 55.53400984 | BO52: 57.20003014 | BP52: 58.91603104 | BQ52: 60.68351197 | BR52: 62.50401733 | BS52: 64.37913785 | BT52: 66.31051199 | BU52: 68.29982735 | BV52: =BV51*$F$49 -> 70.34882217 | BW52: 72.45928683 | BX52: 74.63306544 | BY52: 76.8720574 | BZ52: 79.17821912 | CA52: 81.55356569 | CB52: 84.00017267 | CC52: 86.52017785 | CD52: 89.11578318 | CE52: 91.78925668 | CF52: 94.54293438 | CG52: 97.37922241 | CH52: 100.3005991 | CI52: 103.3096171 | CJ52: 106.4089056 | CK52: 109.6011727 | CL52: 112.8892079 | CM52: 116.2758842 | CN52: 119.7641607 | CO52: 123.3570855 | CP52: 127.0577981 | CQ52: 130.869532 | CR52: 134.795618 | CS52: 138.8394865 | CT52: 143.0046711 | CU52: 147.2948112 | CV52: 151.7136556 | CW52: 156.2650652 | CX52: 160.9530172 | CY52: 165.7816077 | CZ52: 170.7550559 | DA52: 175.8777076 | DB52: 181.1540388 | DC52: 186.58866 | DD52: 192.1863198 | DE52: 197.9519094 | DF52: 203.8904667 | DG52: 210.0071807 | DH52: 216.3073961 | DI52: 222.796618 | DJ52: 229.4805165 | DK52: 236.364932 | DL52: 243.45588 | DM52: 250.7595564 | DN52: 258.2823431 | DO52: 266.0308134 | DP52: 274.0117378 | DQ52: 282.2320899 | DR52: 290.6990526 | DS52: 299.4200242 | DT52: 308.4026249 | DU52: 317.6547037 | DV52: 327.1843448 | DW52: 336.9998751 | DX52: 347.1098714 | DY52: 357.5231675 | DZ52: 368.2488625 | EA52: 379.2963284 | EB52: 390.6752182 | EC52: 402.3954748 | ED52: 414.467339 | EE52: 426.9013592 | EF52: 439.7084 | EG52: 452.899652 | EH52: =EH51*$F$49 -> 466.4866415 | EI52: 480.4812408 | EJ52: 494.895678 | EK52: 509.7425484 | EL52: 525.0348248 | EM52: 540.7858696 | EN52: 557.0094456 | EO52: 573.719729 | EP52: 590.9313209 | EQ52: 608.6592605 | ER52: 626.9190383 | ES52: 645.7266095 | ET52: 665.0984078 | EU52: 685.05136 | EV52: 705.6029008 | EW52: 726.7709878 | EX52: 748.5741174 | EY52: 771.031341 | EZ52: 794.1622812 | FA52: 817.9871496 | FB52: 842.5267641 | FC52: 867.802567 | FD52: 893.8366441 | FE52: 920.6517434 | FF52: 948.2712957 | FG52: 976.7194346 | FH52: 1006.021018 | FI52: 1036.201648 | FJ52: 1067.287698 | FK52: 1099.306328 | FL52: 1132.285518 | FM52: 1166.254084 | FN52: 1201.241706 | FO52: 1237.278958 | FP52: 1274.397326 | FQ52: 1312.629246 | FR52: 1352.008123 | FS52: 1392.568367 | FT52: 1434.345418 | FU52: 1477.375781 | FV52: 1521.697054 | FW52: 1567.347966 | FX52: 1614.368405 | FY52: 1662.799457 | FZ52: 1712.683441 | GA52: 1764.063944 | GB52: 1816.985862 | GC52: 1871.495438 | GD52: 1927.640301 | GE52: 1985.46951 | GF52: 2045.033596 | GG52: 2106.384603 | GH52: 2169.576141 | GI52: 2234.663426 | GJ52: 2301.703329 | GK52: 2370.754428 | GL52: 2441.877061 | GM52: 2515.133373 | GN52: 2590.587374 | GO52: 2668.304995 | GP52: 2748.354145 | GQ52: 2830.80477 | GR52: 2915.728913 | GS52: 3003.20078 | GT52: =GT51*$F$49 -> 3093.296804 | GU52: 3186.095708 | GV52: 3281.678579 | GW52: 3380.128936 | GX52: 3481.532804 | GY52: 3585.978789 | GZ52: 3693.558152 | HA52: 3804.364897 | HB52: 3918.495844 | HC52: 4036.050719 | HD52: 4157.13224 | HE52: 4281.846208 | HF52: 4410.301594 | HG52: 4542.610642 | HH52: 4678.888961 | HI52: 4819.25563 | HJ52: 4963.833299 | HK52: 5112.748298 | HL52: 5266.130747 | HM52: 5424.114669 | HN52: 5586.838109 | HO52: 5754.443252 | HP52: 5927.07655 | HQ52: 6104.888846 | HR52: 6288.035512 | HS52: 6476.676577 | HT52: 6670.976875 | HU52: 6871.106181 | HV52: 7077.239366 | HW52: 7289.556547 | HX52: 7508.243244 | HY52: 7733.490541 | HZ52: 7965.495257 | IA52: 8204.460115 | IB52: 8450.593918 | IC52: 8704.111736 | ID52: 8965.235088 | IE52: 9234.192141 | IF52: 9511.217905 | IG52: 9796.554442 | IH52: 10090.45108 | II52: 10393.16461 | IJ52: 10704.95955 | IK52: 11026.10833 | IL52: 11356.89158 | IM52: 11697.59833 | IN52: 12048.52628 | IO52: 12409.98207 | IP52: 12782.28153 | IQ52: 13165.74998 | IR52: 13560.72247 | IS52: 13967.54415 | IT52: 14386.57047 | IU52: 14818.16759 | IV52: 15262.71262 | IW52: 15720.59399 | IX52: 16192.21181 | IY52: 16677.97817 | IZ52: 17178.31751 | JA52: 17693.66704 | JB52: 18224.47705 | JC52: 18771.21136 | JD52: 19334.3477 | JE52: 19914.37813 | JF52: =JF51*$F$49 -> 20511.80948 | JG52: 21127.16376 | JH52: 21760.97867 | JI52: 22413.80803 | JJ52: 23086.22228 | JK52: 23778.80894 | JL52: 24492.17321 | JM52: 25226.93841 | JN52: 25983.74656 | JO52: 26763.25896 | JP52: 27566.15673 | JQ52: 28393.14143 | JR52: 29244.93567 | JS52: 30122.28374 | JT52: 31025.95225 | JU52: 31956.73082 | JV52: 32915.43275 | JW52: 33902.89573 | JX52: 34919.9826 | JY52: 35967.58208 | JZ52: 37046.60954 | KA52: 38158.00783 | KB52: 39302.74806 | KC52: 40481.8305 | KD52: 41696.28542 | KE52: 42947.17398 | KF52: 44235.5892 | KG52: 45562.65688 | KH52: 46929.53658 | KI52: 48337.42268 | KJ52: 49787.54536 | KK52: 51281.17172 | KL52: 52819.60687 | KM52: 54404.19508 | KN52: 56036.32093 | KO52: 57717.41056 | KP52: 59448.93288 | KQ52: 61232.40086 | KR52: 63069.37289 | KS52: 64961.45407 | KT52: 66910.2977 | KU52: 68917.60663 | KV52: 70985.13483 | KW52: =KW51*$F$49 -> 73114.68887 | KX52: 75308.12954 | KY52: 77567.37342 | KZ52: 79894.39463 | LA52: 82291.22646 | LB52: 84759.96326 | LC52: 87302.76216 | LD52: 89921.84502 | LE52: 92619.50037 | LF52: 95398.08538 | LG52: 98260.02794 | LH52: 101207.8288 | LI52: 104244.0636 | LJ52: 107371.3856 | LK52: 110592.5271 | LL52: 113910.3029 | LM52: 117327.612 | LN52: 120847.4404 | LO52: 124472.8636 | LP52: 128207.0495 | LQ52: 132053.261 | LR52: 136014.8588 | LS52: 140095.3046 | LT52: 144298.1637 | LU52: 148627.1086 | LV52: 153085.9219 | LW52: 157678.4995 | LX52: 162408.8545 | LY52: 167281.1202 | LZ52: 172299.5538 | MA52: 177468.5404 | MB52: 182792.5966 | MC52: 188276.3745 | MD52: 193924.6657 | ME52: 199742.4057 | MF52: 205734.6779 | MG52: 211906.7182 | MH52: 218263.9198 | MI52: 224811.8374 | MJ52: 231556.1925 | MK52: 238502.8782 | ML52: 245657.9646 | MM52: 253027.7035 | MN52: 260618.5346 | MO52: 268437.0907 | MP52: 276490.2034 | MQ52: 284784.9095 | MR52: 293328.4568 | MS52: 302128.3105 | MT52: 311192.1598 | MU52: 320527.9246 | MV52: 330143.7623 | MW52: 340048.0752 | MX52: 350249.5175 | MY52: 360757.003 | MZ52: 371579.7131 | NA52: 382727.1045 | NB52: 394208.9176 | NC52: 406035.1851 | ND52: 418216.2407 | NE52: 430762.7279 | NF52: 443685.6097 | NG52: 456996.178 | NH52: 470706.0634 | NI52: =NI51*$F$49 -> 484827.2453 | NJ52: 499372.0626 | NK52: 514353.2245 | NL52: 529783.8212 | NM52: 545677.3359 | NN52: 562047.656 | NO52: 578909.0856 | NP52: 596276.3582 | NQ52: 614164.649 | NR52: 632589.5884 | NS52: 651567.2761 | NT52: 671114.2944 | NU52: 691247.7232 | NV52: 711985.1549 | NW52: 733344.7095 | NX52: 755345.0508 | NY52: 778005.4023 | NZ52: 801345.5644 | OA52: 825385.9313 | OB52: 850147.5093 | OC52: 875651.9346 | OD52: 901921.4926 | OE52: 928979.1374 | OF52: 956848.5115 | OG52: 985553.9668 | OH52: 1015120.586 | OI52: 1045574.203 | OJ52: 1076941.43 | OK52: 1109249.672 | OL52: 1142527.163 | OM52: 1176802.977 | ON52: 1212107.067 | OO52: 1248470.279 | OP52: 1285924.387 | OQ52: 1324502.119 | OR52: 1364237.182
D53: Reduction in Provisions Warranty Paid | I53: =IF(I2>$F$50,OFFSET(I51,0,-$F$50))*$F$49 -> 0 | J53: 10.3 | K53: 10.609 | L53: 10.92727 | M53: 11.2550881 | N53: 11.59274074 | O53: 11.94052297 | P53: 12.29873865 | Q53: 12.66770081 | R53: 13.04773184 | S53: 13.43916379 | T53: 13.84233871 | U53: 14.25760887 | V53: 14.68533713 | W53: 15.12589725 | X53: 15.57967417 | Y53: 16.04706439 | Z53: 16.52847632 | AA53: 17.02433061 | AB53: 17.53506053 | AC53: 18.06111235 | AD53: 18.60294572 | AE53: 19.16103409 | AF53: 19.73586511 | AG53: 20.32794106 | AH53: 20.9377793 | AI53: 21.56591268 | AJ53: 22.21289006 | AK53: 22.87927676 | AL53: 23.56565506 | AM53: 24.27262471 | AN53: 25.00080345 | AO53: 25.75082756 | AP53: 26.52335238 | AQ53: 27.31905296 | AR53: 28.13862454 | AS53: 28.98278328 | AT53: 29.85226678 | AU53: 30.74783478 | AV53: 31.67026983 | AW53: 32.62037792 | AX53: 33.59898926 | AY53: 34.60695894 | AZ53: 35.6451677 | BA53: 36.71452273 | BB53: 37.81595842 | BC53: 38.95043717 | BD53: 40.11895028 | BE53: 41.32251879 | BF53: 42.56219436 | BG53: 43.83906019 | BH53: 45.15423199 | BI53: 46.50885895 | BJ53: 47.90412472 | BK53: 49.34124846 | BL53: 50.82148592 | BM53: 52.34613049 | BN53: 53.91651441 | BO53: 55.53400984 | BP53: 57.20003014 | BQ53: 58.91603104 | BR53: 60.68351197 | BS53: 62.50401733 | BT53: 64.37913785 | BU53: =IF(BU2>$F$50,OFFSET(BU51,0,-$F$50))*$F$49 -> 66.31051199 | BV53: 68.29982735 | BW53: 70.34882217 | BX53: 72.45928683 | BY53: 74.63306544 | BZ53: 76.8720574 | CA53: 79.17821912 | CB53: 81.55356569 | CC53: 84.00017267 | CD53: 86.52017785 | CE53: 89.11578318 | CF53: 91.78925668 | CG53: 94.54293438 | CH53: 97.37922241 | CI53: 100.3005991 | CJ53: 103.3096171 | CK53: 106.4089056 | CL53: 109.6011727 | CM53: 112.8892079 | CN53: 116.2758842 | CO53: 119.7641607 | CP53: 123.3570855 | CQ53: 127.0577981 | CR53: 130.869532 | CS53: 134.795618 | CT53: 138.8394865 | CU53: 143.0046711 | CV53: 147.2948112 | CW53: 151.7136556 | CX53: 156.2650652 | CY53: 160.9530172 | CZ53: 165.7816077 | DA53: 170.7550559 | DB53: 175.8777076 | DC53: 181.1540388 | DD53: 186.58866 | DE53: 192.1863198 | DF53: 197.9519094 | DG53: 203.8904667 | DH53: 210.0071807 | DI53: 216.3073961 | DJ53: 222.796618 | DK53: 229.4805165 | DL53: 236.364932 | DM53: 243.45588 | DN53: 250.7595564 | DO53: 258.2823431 | DP53: 266.0308134 | DQ53: 274.0117378 | DR53: 282.2320899 | DS53: 290.6990526 | DT53: 299.4200242 | DU53: 308.4026249 | DV53: 317.6547037 | DW53: 327.1843448 | DX53: 336.9998751 | DY53: 347.1098714 | DZ53: 357.5231675 | EA53: 368.2488625 | EB53: 379.2963284 | EC53: 390.6752182 | ED53: 402.3954748 | EE53: 414.467339 | EF53: 426.9013592 | EG53: =IF(EG2>$F$50,OFFSET(EG51,0,-$F$50))*$F$49 -> 439.7084 | EH53: 452.899652 | EI53: 466.4866415 | EJ53: 480.4812408 | EK53: 494.895678 | EL53: 509.7425484 | EM53: 525.0348248 | EN53: 540.7858696 | EO53: 557.0094456 | EP53: 573.719729 | EQ53: 590.9313209 | ER53: 608.6592605 | ES53: 626.9190383 | ET53: 645.7266095 | EU53: 665.0984078 | EV53: 685.05136 | EW53: 705.6029008 | EX53: 726.7709878 | EY53: 748.5741174 | EZ53: 771.031341 | FA53: 794.1622812 | FB53: 817.9871496 | FC53: 842.5267641 | FD53: 867.802567 | FE53: 893.8366441 | FF53: 920.6517434 | FG53: 948.2712957 | FH53: 976.7194346 | FI53: 1006.021018 | FJ53: 1036.201648 | FK53: 1067.287698 | FL53: 1099.306328 | FM53: 1132.285518 | FN53: 1166.254084 | FO53: 1201.241706 | FP53: 1237.278958 | FQ53: 1274.397326 | FR53: 1312.629246 | FS53: 1352.008123 | FT53: 1392.568367 | FU53: 1434.345418 | FV53: 1477.375781 | FW53: 1521.697054 | FX53: 1567.347966 | FY53: 1614.368405 | FZ53: 1662.799457 | GA53: 1712.683441 | GB53: 1764.063944 | GC53: 1816.985862 | GD53: 1871.495438 | GE53: 1927.640301 | GF53: 1985.46951 | GG53: 2045.033596 | GH53: 2106.384603 | GI53: 2169.576141 | GJ53: 2234.663426 | GK53: 2301.703329 | GL53: 2370.754428 | GM53: 2441.877061 | GN53: 2515.133373 | GO53: 2590.587374 | GP53: 2668.304995 | GQ53: 2748.354145 | GR53: 2830.80477 | GS53: =IF(GS2>$F$50,OFFSET(GS51,0,-$F$50))*$F$49 -> 2915.728913 | GT53: 3003.20078 | GU53: 3093.296804 | GV53: 3186.095708 | GW53: 3281.678579 | GX53: 3380.128936 | GY53: 3481.532804 | GZ53: 3585.978789 | HA53: 3693.558152 | HB53: 3804.364897 | HC53: 3918.495844 | HD53: 4036.050719 | HE53: 4157.13224 | HF53: 4281.846208 | HG53: 4410.301594 | HH53: 4542.610642 | HI53: 4678.888961 | HJ53: 4819.25563 | HK53: 4963.833299 | HL53: 5112.748298 | HM53: 5266.130747 | HN53: 5424.114669 | HO53: 5586.838109 | HP53: 5754.443252 | HQ53: 5927.07655 | HR53: 6104.888846 | HS53: 6288.035512 | HT53: 6476.676577 | HU53: 6670.976875 | HV53: 6871.106181 | HW53: 7077.239366 | HX53: 7289.556547 | HY53: 7508.243244 | HZ53: 7733.490541 | IA53: 7965.495257 | IB53: 8204.460115 | IC53: 8450.593918 | ID53: 8704.111736 | IE53: 8965.235088 | IF53: 9234.192141 | IG53: 9511.217905 | IH53: 9796.554442 | II53: 10090.45108 | IJ53: 10393.16461 | IK53: 10704.95955 | IL53: 11026.10833 | IM53: 11356.89158 | IN53: 11697.59833 | IO53: 12048.52628 | IP53: 12409.98207 | IQ53: 12782.28153 | IR53: 13165.74998 | IS53: 13560.72247 | IT53: 13967.54415 | IU53: 14386.57047 | IV53: 14818.16759 | IW53: 15262.71262 | IX53: 15720.59399 | IY53: 16192.21181 | IZ53: 16677.97817 | JA53: 17178.31751 | JB53: 17693.66704 | JC53: 18224.47705 | JD53: 18771.21136 | JE53: =IF(JE2>$F$50,OFFSET(JE51,0,-$F$50))*$F$49 -> 19334.3477 | JF53: 19914.37813 | JG53: 20511.80948 | JH53: 21127.16376 | JI53: 21760.97867 | JJ53: 22413.80803 | JK53: 23086.22228 | JL53: 23778.80894 | JM53: 24492.17321 | JN53: 25226.93841 | JO53: 25983.74656 | JP53: 26763.25896 | JQ53: 27566.15673 | JR53: 28393.14143 | JS53: 29244.93567 | JT53: 30122.28374 | JU53: 31025.95225 | JV53: 31956.73082 | JW53: 32915.43275 | JX53: 33902.89573 | JY53: 34919.9826 | JZ53: 35967.58208 | KA53: 37046.60954 | KB53: 38158.00783 | KC53: 39302.74806 | KD53: 40481.8305 | KE53: 41696.28542 | KF53: 42947.17398 | KG53: 44235.5892 | KH53: 45562.65688 | KI53: 46929.53658 | KJ53: 48337.42268 | KK53: 49787.54536 | KL53: 51281.17172 | KM53: 52819.60687 | KN53: 54404.19508 | KO53: 56036.32093 | KP53: 57717.41056 | KQ53: 59448.93288 | KR53: 61232.40086 | KS53: 63069.37289 | KT53: 64961.45407 | KU53: 66910.2977 | KV53: 68917.60663 | KW53: 70985.13483 | KX53: 73114.68887 | KY53: 75308.12954 | KZ53: 77567.37342 | LA53: 79894.39463 | LB53: 82291.22646 | LC53: 84759.96326 | LD53: 87302.76216 | LE53: 89921.84502 | LF53: 92619.50037 | LG53: 95398.08538 | LH53: 98260.02794 | LI53: 101207.8288 | LJ53: 104244.0636 | LK53: 107371.3856 | LL53: 110592.5271 | LM53: 113910.3029 | LN53: 117327.612 | LO53: 120847.4404 | LP53: 124472.8636 | LQ53: =IF(LQ2>$F$50,OFFSET(LQ51,0,-$F$50))*$F$49 -> 128207.0495 | LR53: 132053.261 | LS53: 136014.8588 | LT53: 140095.3046 | LU53: 144298.1637 | LV53: 148627.1086 | LW53: 153085.9219 | LX53: 157678.4995 | LY53: 162408.8545 | LZ53: 167281.1202 | MA53: 172299.5538 | MB53: 177468.5404 | MC53: 182792.5966 | MD53: 188276.3745 | ME53: 193924.6657 | MF53: 199742.4057 | MG53: 205734.6779 | MH53: 211906.7182 | MI53: 218263.9198 | MJ53: 224811.8374 | MK53: 231556.1925 | ML53: 238502.8782 | MM53: 245657.9646 | MN53: 253027.7035 | MO53: 260618.5346 | MP53: 268437.0907 | MQ53: 276490.2034 | MR53: 284784.9095 | MS53: 293328.4568 | MT53: 302128.3105 | MU53: 311192.1598 | MV53: 320527.9246 | MW53: 330143.7623 | MX53: 340048.0752 | MY53: 350249.5175 | MZ53: 360757.003 | NA53: 371579.7131 | NB53: 382727.1045 | NC53: 394208.9176 | ND53: 406035.1851 | NE53: 418216.2407 | NF53: 430762.7279 | NG53: 443685.6097 | NH53: 456996.178 | NI53: 470706.0634 | NJ53: 484827.2453 | NK53: 499372.0626 | NL53: 514353.2245 | NM53: 529783.8212 | NN53: 545677.3359 | NO53: 562047.656 | NP53: 578909.0856 | NQ53: 596276.3582 | NR53: 614164.649 | NS53: 632589.5884 | NT53: 651567.2761 | NU53: 671114.2944 | NV53: 691247.7232 | NW53: 711985.1549 | NX53: 733344.7095 | NY53: 755345.0508 | NZ53: 778005.4023 | OA53: 801345.5644 | OB53: 825385.9313 | OC53: =IF(OC2>$F$50,OFFSET(OC51,0,-$F$50))*$F$49 -> 850147.5093 | OD53: 875651.9346 | OE53: 901921.4926 | OF53: 928979.1374 | OG53: 956848.5115 | OH53: 985553.9668 | OI53: 1015120.586 | OJ53: 1045574.203 | OK53: 1076941.43 | OL53: 1109249.672 | OM53: 1142527.163 | ON53: 1176802.977 | OO53: 1212107.067 | OP53: 1248470.279 | OQ53: 1285924.387 | OR53: 1324502.119
D54: Balance of Warranty Provision | I54: =F54+I52-I53 -> 10.3 | J54: =I54+J52-J53 -> 10.609 | K54: 10.92727 | L54: 11.2550881 | M54: 11.59274074 | N54: 11.94052297 | O54: 12.29873865 | P54: 12.66770081 | Q54: 13.04773184 | R54: 13.43916379 | S54: 13.84233871 | T54: 14.25760887 | U54: 14.68533713 | V54: 15.12589725 | W54: 15.57967417 | X54: 16.04706439 | Y54: 16.52847632 | Z54: 17.02433061 | AA54: 17.53506053 | AB54: 18.06111235 | AC54: 18.60294572 | AD54: 19.16103409 | AE54: 19.73586511 | AF54: 20.32794106 | AG54: 20.9377793 | AH54: 21.56591268 | AI54: 22.21289006 | AJ54: 22.87927676 | AK54: 23.56565506 | AL54: 24.27262471 | AM54: 25.00080345 | AN54: 25.75082756 | AO54: 26.52335238 | AP54: 27.31905296 | AQ54: 28.13862454 | AR54: 28.98278328 | AS54: 29.85226678 | AT54: 30.74783478 | AU54: 31.67026983 | AV54: 32.62037792 | AW54: 33.59898926 | AX54: 34.60695894 | AY54: 35.6451677 | AZ54: 36.71452273 | BA54: 37.81595842 | BB54: 38.95043717 | BC54: 40.11895028 | BD54: 41.32251879 | BE54: 42.56219436 | BF54: 43.83906019 | BG54: 45.15423199 | BH54: 46.50885895 | BI54: 47.90412472 | BJ54: 49.34124846 | BK54: 50.82148592 | BL54: 52.34613049 | BM54: 53.91651441 | BN54: 55.53400984 | BO54: 57.20003014 | BP54: 58.91603104 | BQ54: 60.68351197 | BR54: 62.50401733 | BS54: 64.37913785 | BT54: 66.31051199 | BU54: 68.29982735 | BV54: =BU54+BV52-BV53 -> 70.34882217 | BW54: 72.45928683 | BX54: 74.63306544 | BY54: 76.8720574 | BZ54: 79.17821912 | CA54: 81.55356569 | CB54: 84.00017267 | CC54: 86.52017785 | CD54: 89.11578318 | CE54: 91.78925668 | CF54: 94.54293438 | CG54: 97.37922241 | CH54: 100.3005991 | CI54: 103.3096171 | CJ54: 106.4089056 | CK54: 109.6011727 | CL54: 112.8892079 | CM54: 116.2758842 | CN54: 119.7641607 | CO54: 123.3570855 | CP54: 127.0577981 | CQ54: 130.869532 | CR54: 134.795618 | CS54: 138.8394865 | CT54: 143.0046711 | CU54: 147.2948112 | CV54: 151.7136556 | CW54: 156.2650652 | CX54: 160.9530172 | CY54: 165.7816077 | CZ54: 170.7550559 | DA54: 175.8777076 | DB54: 181.1540388 | DC54: 186.58866 | DD54: 192.1863198 | DE54: 197.9519094 | DF54: 203.8904667 | DG54: 210.0071807 | DH54: 216.3073961 | DI54: 222.796618 | DJ54: 229.4805165 | DK54: 236.364932 | DL54: 243.45588 | DM54: 250.7595564 | DN54: 258.2823431 | DO54: 266.0308134 | DP54: 274.0117378 | DQ54: 282.2320899 | DR54: 290.6990526 | DS54: 299.4200242 | DT54: 308.4026249 | DU54: 317.6547037 | DV54: 327.1843448 | DW54: 336.9998751 | DX54: 347.1098714 | DY54: 357.5231675 | DZ54: 368.2488625 | EA54: 379.2963284 | EB54: 390.6752182 | EC54: 402.3954748 | ED54: 414.467339 | EE54: 426.9013592 | EF54: 439.7084 | EG54: 452.899652 | EH54: =EG54+EH52-EH53 -> 466.4866415 | EI54: 480.4812408 | EJ54: 494.895678 | EK54: 509.7425484 | EL54: 525.0348248 | EM54: 540.7858696 | EN54: 557.0094456 | EO54: 573.719729 | EP54: 590.9313209 | EQ54: 608.6592605 | ER54: 626.9190383 | ES54: 645.7266095 | ET54: 665.0984078 | EU54: 685.05136 | EV54: 705.6029008 | EW54: 726.7709878 | EX54: 748.5741174 | EY54: 771.031341 | EZ54: 794.1622812 | FA54: 817.9871496 | FB54: 842.5267641 | FC54: 867.802567 | FD54: 893.8366441 | FE54: 920.6517434 | FF54: 948.2712957 | FG54: 976.7194346 | FH54: 1006.021018 | FI54: 1036.201648 | FJ54: 1067.287698 | FK54: 1099.306328 | FL54: 1132.285518 | FM54: 1166.254084 | FN54: 1201.241706 | FO54: 1237.278958 | FP54: 1274.397326 | FQ54: 1312.629246 | FR54: 1352.008123 | FS54: 1392.568367 | FT54: 1434.345418 | FU54: 1477.375781 | FV54: 1521.697054 | FW54: 1567.347966 | FX54: 1614.368405 | FY54: 1662.799457 | FZ54: 1712.683441 | GA54: 1764.063944 | GB54: 1816.985862 | GC54: 1871.495438 | GD54: 1927.640301 | GE54: 1985.46951 | GF54: 2045.033596 | GG54: 2106.384603 | GH54: 2169.576141 | GI54: 2234.663426 | GJ54: 2301.703329 | GK54: 2370.754428 | GL54: 2441.877061 | GM54: 2515.133373 | GN54: 2590.587374 | GO54: 2668.304995 | GP54: 2748.354145 | GQ54: 2830.80477 | GR54: 2915.728913 | GS54: 3003.20078 | GT54: =GS54+GT52-GT53 -> 3093.296804 | GU54: 3186.095708 | GV54: 3281.678579 | GW54: 3380.128936 | GX54: 3481.532804 | GY54: 3585.978789 | GZ54: 3693.558152 | HA54: 3804.364897 | HB54: 3918.495844 | HC54: 4036.050719 | HD54: 4157.13224 | HE54: 4281.846208 | HF54: 4410.301594 | HG54: 4542.610642 | HH54: 4678.888961 | HI54: 4819.25563 | HJ54: 4963.833299 | HK54: 5112.748298 | HL54: 5266.130747 | HM54: 5424.114669 | HN54: 5586.838109 | HO54: 5754.443252 | HP54: 5927.07655 | HQ54: 6104.888846 | HR54: 6288.035512 | HS54: 6476.676577 | HT54: 6670.976875 | HU54: 6871.106181 | HV54: 7077.239366 | HW54: 7289.556547 | HX54: 7508.243244 | HY54: 7733.490541 | HZ54: 7965.495257 | IA54: 8204.460115 | IB54: 8450.593918 | IC54: 8704.111736 | ID54: 8965.235088 | IE54: 9234.192141 | IF54: 9511.217905 | IG54: 9796.554442 | IH54: 10090.45108 | II54: 10393.16461 | IJ54: 10704.95955 | IK54: 11026.10833 | IL54: 11356.89158 | IM54: 11697.59833 | IN54: 12048.52628 | IO54: 12409.98207 | IP54: 12782.28153 | IQ54: 13165.74998 | IR54: 13560.72247 | IS54: 13967.54415 | IT54: 14386.57047 | IU54: 14818.16759 | IV54: 15262.71262 | IW54: 15720.59399 | IX54: 16192.21181 | IY54: 16677.97817 | IZ54: 17178.31751 | JA54: 17693.66704 | JB54: 18224.47705 | JC54: 18771.21136 | JD54: 19334.3477 | JE54: 19914.37813 | JF54: =JE54+JF52-JF53 -> 20511.80948 | JG54: 21127.16376 | JH54: 21760.97867 | JI54: 22413.80803 | JJ54: 23086.22228 | JK54: 23778.80894 | JL54: 24492.17321 | JM54: 25226.93841 | JN54: 25983.74656 | JO54: 26763.25896 | JP54: 27566.15673 | JQ54: 28393.14143 | JR54: 29244.93567 | JS54: 30122.28374 | JT54: 31025.95225 | JU54: 31956.73082 | JV54: 32915.43275 | JW54: 33902.89573 | JX54: 34919.9826 | JY54: 35967.58208 | JZ54: 37046.60954 | KA54: 38158.00783 | KB54: 39302.74806 | KC54: 40481.8305 | KD54: 41696.28542 | KE54: 42947.17398 | KF54: 44235.5892 | KG54: 45562.65688 | KH54: 46929.53658 | KI54: 48337.42268 | KJ54: 49787.54536 | KK54: 51281.17172 | KL54: 52819.60687 | KM54: 54404.19508 | KN54: 56036.32093 | KO54: 57717.41056 | KP54: 59448.93288 | KQ54: 61232.40086 | KR54: 63069.37289 | KS54: 64961.45407 | KT54: 66910.2977 | KU54: 68917.60663 | KV54: 70985.13483 | KW54: =KV54+KW52-KW53 -> 73114.68887 | KX54: =KW54+KX52-KX53 -> 75308.12954 | KY54: =KX54+KY52-KY53 -> 77567.37342 | KZ54: =KY54+KZ52-KZ53 -> 79894.39463 | LA54: =KZ54+LA52-LA53 -> 82291.22646 | LB54: =LA54+LB52-LB53 -> 84759.96326 | LC54: =LB54+LC52-LC53 -> 87302.76216 | LD54: =LC54+LD52-LD53 -> 89921.84502 | LE54: =LD54+LE52-LE53 -> 92619.50037 | LF54: =LE54+LF52-LF53 -> 95398.08538 | LG54: =LF54+LG52-LG53 -> 98260.02794 | LH54: =LG54+LH52-LH53 -> 101207.8288 | LI54: =LH54+LI52-LI53 -> 104244.0636 | LJ54: =LI54+LJ52-LJ53 -> 107371.3856 | LK54: =LJ54+LK52-LK53 -> 110592.5271 | LL54: =LK54+LL52-LL53 -> 113910.3029 | LM54: =LL54+LM52-LM53 -> 117327.612 | LN54: =LM54+LN52-LN53 -> 120847.4404 | LO54: =LN54+LO52-LO53 -> 124472.8636 | LP54: =LO54+LP52-LP53 -> 128207.0495 | LQ54: =LP54+LQ52-LQ53 -> 132053.261 | LR54: =LQ54+LR52-LR53 -> 136014.8588 | LS54: =LR54+LS52-LS53 -> 140095.3046 | LT54: =LS54+LT52-LT53 -> 144298.1637 | LU54: =LT54+LU52-LU53 -> 148627.1086 | LV54: =LU54+LV52-LV53 -> 153085.9219 | LW54: =LV54+LW52-LW53 -> 157678.4995 | LX54: =LW54+LX52-LX53 -> 162408.8545 | LY54: =LX54+LY52-LY53 -> 167281.1202 | LZ54: =LY54+LZ52-LZ53 -> 172299.5538 | MA54: =LZ54+MA52-MA53 -> 177468.5404 | MB54: =MA54+MB52-MB53 -> 182792.5966 | MC54: =MB54+MC52-MC53 -> 188276.3745 | MD54: =MC54+MD52-MD53 -> 193924.6657 | ME54: =MD54+ME52-ME53 -> 199742.4057 | MF54: =ME54+MF52-MF53 -> 205734.6779 | MG54: =MF54+MG52-MG53 -> 211906.7182 | MH54: =MG54+MH52-MH53 -> 218263.9198 | MI54: =MH54+MI52-MI53 -> 224811.8374 | MJ54: =MI54+MJ52-MJ53 -> 231556.1925 | MK54: =MJ54+MK52-MK53 -> 238502.8782 | ML54: =MK54+ML52-ML53 -> 245657.9646 | MM54: =ML54+MM52-MM53 -> 253027.7035 | MN54: =MM54+MN52-MN53 -> 260618.5346 | MO54: =MN54+MO52-MO53 -> 268437.0907 | MP54: =MO54+MP52-MP53 -> 276490.2034 | MQ54: =MP54+MQ52-MQ53 -> 284784.9095 | MR54: =MQ54+MR52-MR53 -> 293328.4568 | MS54: =MR54+MS52-MS53 -> 302128.3105 | MT54: =MS54+MT52-MT53 -> 311192.1598 | MU54: =MT54+MU52-MU53 -> 320527.9246 | MV54: =MU54+MV52-MV53 -> 330143.7623 | MW54: =MV54+MW52-MW53 -> 340048.0752 | MX54: =MW54+MX52-MX53 -> 350249.5175 | MY54: =MX54+MY52-MY53 -> 360757.003 | MZ54: =MY54+MZ52-MZ53 -> 371579.7131 | NA54: =MZ54+NA52-NA53 -> 382727.1045 | NB54: =NA54+NB52-NB53 -> 394208.9176 | NC54: =NB54+NC52-NC53 -> 406035.1851 | ND54: =NC54+ND52-ND53 -> 418216.2407 | NE54: =ND54+NE52-NE53 -> 430762.7279 | NF54: =NE54+NF52-NF53 -> 443685.6097 | NG54: =NF54+NG52-NG53 -> 456996.178 | NH54: =NG54+NH52-NH53 -> 470706.0634 | NI54: =NH54+NI52-NI53 -> 484827.2453 | NJ54: =NI54+NJ52-NJ53 -> 499372.0626 | NK54: =NJ54+NK52-NK53 -> 514353.2245 | NL54: =NK54+NL52-NL53 -> 529783.8212 | NM54: =NL54+NM52-NM53 -> 545677.3359 | NN54: =NM54+NN52-NN53 -> 562047.656 | NO54: =NN54+NO52-NO53 -> 578909.0856 | NP54: =NO54+NP52-NP53 -> 596276.3582 | NQ54: =NP54+NQ52-NQ53 -> 614164.649 | NR54: =NQ54+NR52-NR53 -> 632589.5884 | NS54: =NR54+NS52-NS53 -> 651567.2761 | NT54: =NS54+NT52-NT53 -> 671114.2944 | NU54: =NT54+NU52-NU53 -> 691247.7232 | NV54: =NU54+NV52-NV53 -> 711985.1549 | NW54: =NV54+NW52-NW53 -> 733344.7095 | NX54: =NW54+NX52-NX53 -> 755345.0508 | NY54: =NX54+NY52-NY53 -> 778005.4023 | NZ54: =NY54+NZ52-NZ53 -> 801345.5644 | OA54: =NZ54+OA52-OA53 -> 825385.9313 | OB54: =OA54+OB52-OB53 -> 850147.5093 | OC54: =OB54+OC52-OC53 -> 875651.9346 | OD54: =OC54+OD52-OD53 -> 901921.4926 | OE54: =OD54+OE52-OE53 -> 928979.1374 | OF54: =OE54+OF52-OF53 -> 956848.5115 | OG54: =OF54+OG52-OG53 -> 985553.9668 | OH54: =OG54+OH52-OH53 -> 1015120.586 | OI54: =OH54+OI52-OI53 -> 1045574.203 | OJ54: =OI54+OJ52-OJ53 -> 1076941.43 | OK54: =OJ54+OK52-OK53 -> 1109249.672 | OL54: =OK54+OL52-OL53 -> 1142527.163 | OM54: =OL54+OM52-OM53 -> 1176802.977 | ON54: =OM54+ON52-ON53 -> 1212107.067 | OO54: =ON54+OO52-OO53 -> 1248470.279 | OP54: =OO54+OP52-OP53 -> 1285924.387 | OQ54: =OP54+OQ52-OQ53 -> 1324502.119 | OR54: =OQ54+OR52-OR53 -> 1364237.182
D56: EBITDA: Revenues less Provision | I56: =I51-I52 -> 92.7 | J56: =J51-J52 -> 95.481 | K56: 98.34543 | L56: 101.2957929 | M56: 104.3346667 | N56: 107.4647067 | O56: 110.6886479 | P56: 114.0093073 | Q56: 117.4295865 | R56: 120.9524741 | S56: 124.5810484 | T56: 128.3184798 | U56: 132.1680342 | V56: 136.1330752 | W56: 140.2170675 | X56: 144.4235795 | Y56: 148.7562869 | Z56: 153.2189755 | AA56: 157.8155448 | AB56: 162.5500111 | AC56: 167.4265115 | AD56: 172.4493068 | AE56: 177.622786 | AF56: 182.9514696 | AG56: 188.4400137 | AH56: 194.0932141 | AI56: 199.9160105 | AJ56: 205.9134908 | AK56: 212.0908955 | AL56: 218.4536224 | AM56: 225.0072311 | AN56: 231.757448 | AO56: 238.7101715 | AP56: 245.8714766 | AQ56: 253.2476209 | AR56: 260.8450495 | AS56: 268.670401 | AT56: 276.730513 | AU56: 285.0324284 | AV56: 293.5834013 | AW56: 302.3909033 | AX56: 311.4626304 | AY56: 320.8065093 | AZ56: 330.4307046 | BA56: 340.3436257 | BB56: 350.5539345 | BC56: 361.0705526 | BD56: 371.9026691 | BE56: 383.0597492 | BF56: 394.5515417 | BG56: 406.3880879 | BH56: 418.5797306 | BI56: 431.1371225 | BJ56: 444.0712362 | BK56: 457.3933732 | BL56: 471.1151744 | BM56: 485.2486297 | BN56: 499.8060886 | BO56: 514.8002712 | BP56: 530.2442794 | BQ56: 546.1516077 | BR56: 562.536156 | BS56: 579.4122407 | BT56: 596.7946079 | BU56: 614.6984461 | BV56: =BV51-BV52 -> 633.1393995 | BW56: 652.1335815 | BX56: 671.6975889 | BY56: 691.8485166 | BZ56: 712.6039721 | CA56: 733.9820913 | CB56: 756.001554 | CC56: 778.6816006 | CD56: 802.0420486 | CE56: 826.1033101 | CF56: 850.8864094 | CG56: 876.4130017 | CH56: 902.7053917 | CI56: 929.7865535 | CJ56: 957.6801501 | CK56: 986.4105546 | CL56: 1016.002871 | CM56: 1046.482957 | CN56: 1077.877446 | CO56: 1110.213769 | CP56: 1143.520183 | CQ56: 1177.825788 | CR56: 1213.160562 | CS56: 1249.555379 | CT56: 1287.04204 | CU56: 1325.653301 | CV56: 1365.4229 | CW56: 1406.385587 | CX56: 1448.577155 | CY56: 1492.034469 | CZ56: 1536.795503 | DA56: 1582.899369 | DB56: 1630.38635 | DC56: 1679.29794 | DD56: 1729.676878 | DE56: 1781.567185 | DF56: 1835.0142 | DG56: 1890.064626 | DH56: 1946.766565 | DI56: 2005.169562 | DJ56: 2065.324649 | DK56: 2127.284388 | DL56: 2191.10292 | DM56: 2256.836007 | DN56: 2324.541088 | DO56: 2394.27732 | DP56: 2466.10564 | DQ56: 2540.088809 | DR56: 2616.291473 | DS56: 2694.780218 | DT56: 2775.623624 | DU56: 2858.892333 | DV56: 2944.659103 | DW56: 3032.998876 | DX56: 3123.988842 | DY56: 3217.708507 | DZ56: 3314.239763 | EA56: 3413.666956 | EB56: 3516.076964 | EC56: 3621.559273 | ED56: 3730.206051 | EE56: 3842.112233 | EF56: 3957.3756 | EG56: 4076.096868 | EH56: =EH51-EH52 -> 4198.379774 | EI56: 4324.331167 | EJ56: 4454.061102 | EK56: 4587.682935 | EL56: 4725.313423 | EM56: 4867.072826 | EN56: 5013.085011 | EO56: 5163.477561 | EP56: 5318.381888 | EQ56: 5477.933345 | ER56: 5642.271345 | ES56: 5811.539485 | ET56: 5985.88567 | EU56: 6165.46224 | EV56: 6350.426107 | EW56: 6540.93889 | EX56: 6737.167057 | EY56: 6939.282069 | EZ56: 7147.460531 | FA56: 7361.884347 | FB56: 7582.740877 | FC56: 7810.223103 | FD56: 8044.529797 | FE56: 8285.86569 | FF56: 8534.441661 | FG56: 8790.474911 | FH56: 9054.189158 | FI56: 9325.814833 | FJ56: 9605.589278 | FK56: 9893.756956 | FL56: 10190.56967 | FM56: 10496.28676 | FN56: 10811.17536 | FO56: 11135.51062 | FP56: 11469.57594 | FQ56: 11813.66322 | FR56: 12168.07311 | FS56: 12533.1153 | FT56: 12909.10876 | FU56: 13296.38203 | FV56: 13695.27349 | FW56: 14106.13169 | FX56: 14529.31564 | FY56: 14965.19511 | FZ56: 15414.15097 | GA56: 15876.57549 | GB56: 16352.87276 | GC56: 16843.45894 | GD56: 17348.76271 | GE56: 17869.22559 | GF56: 18405.30236 | GG56: 18957.46143 | GH56: 19526.18527 | GI56: 20111.97083 | GJ56: 20715.32996 | GK56: 21336.78986 | GL56: 21976.89355 | GM56: 22636.20036 | GN56: 23315.28637 | GO56: 24014.74496 | GP56: 24735.18731 | GQ56: 25477.24293 | GR56: 26241.56022 | GS56: 27028.80702 | GT56: =GT51-GT52 -> 27839.67123 | GU56: 28674.86137 | GV56: 29535.10721 | GW56: 30421.16043 | GX56: 31333.79524 | GY56: 32273.8091 | GZ56: 33242.02337 | HA56: 34239.28407 | HB56: 35266.46259 | HC56: 36324.45647 | HD56: 37414.19016 | HE56: 38536.61587 | HF56: 39692.71435 | HG56: 40883.49578 | HH56: 42110.00065 | HI56: 43373.30067 | HJ56: 44674.49969 | HK56: 46014.73468 | HL56: 47395.17672 | HM56: 48817.03202 | HN56: 50281.54298 | HO56: 51789.98927 | HP56: 53343.68895 | HQ56: 54943.99962 | HR56: 56592.31961 | HS56: 58290.08919 | HT56: 60038.79187 | HU56: 61839.95563 | HV56: 63695.1543 | HW56: 65606.00892 | HX56: 67574.18919 | HY56: 69601.41487 | HZ56: 71689.45731 | IA56: 73840.14103 | IB56: 76055.34526 | IC56: 78337.00562 | ID56: 80687.11579 | IE56: 83107.72926 | IF56: 85600.96114 | IG56: 88168.98998 | IH56: 90814.05968 | II56: 93538.48147 | IJ56: 96344.63591 | IK56: 99234.97499 | IL56: 102212.0242 | IM56: 105278.385 | IN56: 108436.7365 | IO56: 111689.8386 | IP56: 115040.5338 | IQ56: 118491.7498 | IR56: 122046.5023 | IS56: 125707.8973 | IT56: 129479.1343 | IU56: 133363.5083 | IV56: 137364.4135 | IW56: 141485.3459 | IX56: 145729.9063 | IY56: 150101.8035 | IZ56: 154604.8576 | JA56: 159243.0033 | JB56: 164020.2934 | JC56: 168940.9023 | JD56: 174009.1293 | JE56: 179229.4032 | JF56: =JF51-JF52 -> 184606.2853 | JG56: 190144.4739 | JH56: 195848.8081 | JI56: 201724.2723 | JJ56: 207776.0005 | JK56: 214009.2805 | JL56: 220429.5589 | JM56: 227042.4457 | JN56: 233853.719 | JO56: 240869.3306 | JP56: 248095.4105 | JQ56: 255538.2729 | JR56: 263204.421 | JS56: 271100.5537 | JT56: 279233.5703 | JU56: 287610.5774 | JV56: 296238.8947 | JW56: 305126.0615 | JX56: 314279.8434 | JY56: 323708.2387 | JZ56: 333419.4859 | KA56: 343422.0704 | KB56: 353724.7325 | KC56: 364336.4745 | KD56: 375266.5688 | KE56: 386524.5658 | KF56: 398120.3028 | KG56: 410063.9119 | KH56: 422365.8292 | KI56: 435036.8041 | KJ56: 448087.9082 | KK56: 461530.5455 | KL56: 475376.4619 | KM56: 489637.7557 | KN56: 504326.8884 | KO56: 519456.695 | KP56: 535040.3959 | KQ56: 551091.6078 | KR56: 567624.356 | KS56: 584653.0867 | KT56: 602192.6793 | KU56: 620258.4596 | KV56: 638866.2134 | KW56: =KW51-KW52 -> 658032.1998 | KX56: 677773.1658 | KY56: 698106.3608 | KZ56: 719049.5516 | LA56: 740621.0382 | LB56: 762839.6693 | LC56: 785724.8594 | LD56: 809296.6052 | LE56: 833575.5033 | LF56: 858582.7684 | LG56: 884340.2515 | LH56: 910870.459 | LI56: 938196.5728 | LJ56: 966342.47 | LK56: 995332.7441 | LL56: 1025192.726 | LM56: 1055948.508 | LN56: 1087626.963 | LO56: 1120255.772 | LP56: 1153863.446 | LQ56: 1188479.349 | LR56: 1224133.729 | LS56: 1260857.741 | LT56: 1298683.473 | LU56: 1337643.978 | LV56: 1377773.297 | LW56: 1419106.496 | LX56: 1461679.691 | LY56: 1505530.082 | LZ56: 1550695.984 | MA56: 1597216.864 | MB56: 1645133.369 | MC56: 1694487.37 | MD56: 1745321.992 | ME56: 1797681.651 | MF56: 1851612.101 | MG56: 1907160.464 | MH56: 1964375.278 | MI56: 2023306.536 | MJ56: 2084005.732 | MK56: 2146525.904 | ML56: 2210921.681 | MM56: 2277249.332 | MN56: 2345566.812 | MO56: 2415933.816 | MP56: 2488411.831 | MQ56: 2563064.186 | MR56: 2639956.111 | MS56: 2719154.794 | MT56: 2800729.438 | MU56: 2884751.321 | MV56: 2971293.861 | MW56: 3060432.677 | MX56: 3152245.657 | MY56: 3246813.027 | MZ56: 3344217.418 | NA56: 3444543.94 | NB56: 3547880.258 | NC56: 3654316.666 | ND56: 3763946.166 | NE56: 3876864.551 | NF56: 3993170.488 | NG56: 4112965.602 | NH56: 4236354.57 | NI56: =NI51-NI52 -> 4363445.207 | NJ56: 4494348.564 | NK56: 4629179.021 | NL56: 4768054.391 | NM56: 4911096.023 | NN56: 5058428.904 | NO56: 5210181.771 | NP56: 5366487.224 | NQ56: 5527481.841 | NR56: 5693306.296 | NS56: 5864105.485 | NT56: 6040028.649 | NU56: 6221229.509 | NV56: 6407866.394 | NW56: 6600102.386 | NX56: 6798105.457 | NY56: 7002048.621 | NZ56: 7212110.08 | OA56: 7428473.382 | OB56: 7651327.584 | OC56: 7880867.411 | OD56: 8117293.433 | OE56: 8360812.236 | OF56: 8611636.604 | OG56: 8869985.702 | OH56: 9136085.273 | OI56: 9410167.831 | OJ56: 9692472.866 | OK56: 9983247.052 | OL56: 10282744.46 | OM56: 10591226.8 | ON56: 10908963.6 | OO56: 11236232.51 | OP56: 11573319.48 | OQ56: 11920519.07 | OR56: 12278134.64
D57: Actual Cash Flow | I57: =IF(I8,I51-I53) -> FALSE | J57: FALSE | K57: FALSE | L57: FALSE | M57: FALSE | N57: 107.8124889 | O57: 111.0468636 | P57: 114.3782695 | Q57: 117.8096176 | R57: 121.3439061 | S57: 124.9842233 | T57: 128.73375 | U57: 132.5957625 | V57: 136.5736354 | W57: 140.6708444 | X57: 144.8909697 | Y57: 149.2376988 | Z57: 153.7148298 | AA57: 158.3262747 | AB57: 163.0760629 | AC57: 167.9683448 | AD57: 173.0073952 | AE57: 178.197617 | AF57: 183.5435455 | AG57: 189.0498519 | AH57: 194.7213475 | AI57: 200.5629879 | AJ57: 206.5798775 | AK57: 212.7772738 | AL57: 219.1605921 | AM57: 225.7354098 | AN57: 232.5074721 | AO57: 239.4826963 | AP57: 246.6671772 | AQ57: 254.0671925 | AR57: 261.6892083 | AS57: 269.5398845 | AT57: 277.626081 | AU57: 285.9548635 | AV57: 294.5335094 | AW57: 303.3695147 | AX57: 312.4706001 | AY57: 321.8447181 | AZ57: 331.5000596 | BA57: 341.4450614 | BB57: 351.6884133 | BC57: 362.2390657 | BD57: 373.1062376 | BE57: 384.2994248 | BF57: 395.8284075 | BG57: 407.7032597 | BH57: 419.9343575 | BI57: 432.5323883 | BJ57: 445.5083599 | BK57: 458.8736107 | BL57: 472.639819 | BM57: 486.8190136 | BN57: 501.423584 | BO57: 516.4662915 | BP57: 531.9602803 | BQ57: 547.9190887 | BR57: 564.3566613 | BS57: 581.2873612 | BT57: 598.725982 | BU57: =IF(BU8,BU51-BU53) -> 616.6877615 | BV57: 635.1883943 | BW57: 654.2440461 | BX57: 673.8713675 | BY57: 694.0875086 | BZ57: 714.9101338 | CA57: 736.3574378 | CB57: 758.448161 | CC57: 781.2016058 | CD57: 804.637654 | CE57: 828.7767836 | CF57: 853.6400871 | CG57: 879.2492897 | CH57: 905.6267684 | CI57: 932.7955714 | CJ57: 960.7794386 | CK57: 989.6028217 | CL57: 1019.290906 | CM57: 1049.869634 | CN57: 1081.365723 | CO57: 1113.806694 | CP57: 1147.220895 | CQ57: 1181.637522 | CR57: 1217.086648 | CS57: 1253.599247 | CT57: 1291.207224 | CU57: 1329.943441 | CV57: 1369.841744 | CW57: 1410.936997 | CX57: 1453.265107 | CY57: 1496.86306 | CZ57: 1541.768952 | DA57: 1588.02202 | DB57: 1635.662681 | DC57: 1684.732561 | DD57: 1735.274538 | DE57: 1787.332774 | DF57: 1840.952757 | DG57: 1896.18134 | DH57: 1953.06678 | DI57: 2011.658784 | DJ57: 2072.008547 | DK57: 2134.168804 | DL57: 2198.193868 | DM57: 2264.139684 | DN57: 2332.063874 | DO57: 2402.025791 | DP57: 2474.086564 | DQ57: 2548.309161 | DR57: 2624.758436 | DS57: 2703.501189 | DT57: 2784.606225 | DU57: 2868.144412 | DV57: 2954.188744 | DW57: 3042.814406 | DX57: 3134.098838 | DY57: 3228.121804 | DZ57: 3324.965458 | EA57: 3424.714421 | EB57: 3527.455854 | EC57: 3633.27953 | ED57: 3742.277916 | EE57: 3854.546253 | EF57: 3970.182641 | EG57: =IF(EG8,EG51-EG53) -> 4089.28812 | EH57: 4211.966763 | EI57: 4338.325766 | EJ57: 4468.475539 | EK57: 4602.529806 | EL57: 4740.6057 | EM57: 4882.823871 | EN57: 5029.308587 | EO57: 5180.187844 | EP57: 5335.59348 | EQ57: 5495.661284 | ER57: 5660.531123 | ES57: 5830.347056 | ET57: 6005.257468 | EU57: 6185.415192 | EV57: 6370.977648 | EW57: 6562.106977 | EX57: 6758.970187 | EY57: 6961.739292 | EZ57: 7170.591471 | FA57: 7385.709215 | FB57: 7607.280492 | FC57: 7835.498906 | FD57: 8070.563874 | FE57: 8312.68079 | FF57: 8562.061213 | FG57: 8818.92305 | FH57: 9083.490741 | FI57: 9355.995464 | FJ57: 9636.675327 | FK57: 9925.775587 | FL57: 10223.54885 | FM57: 10530.25532 | FN57: 10846.16298 | FO57: 11171.54787 | FP57: 11506.69431 | FQ57: 11851.89513 | FR57: 12207.45199 | FS57: 12573.67555 | FT57: 12950.88582 | FU57: 13339.41239 | FV57: 13739.59476 | FW57: 14151.7826 | FX57: 14576.33608 | FY57: 15013.62616 | FZ57: 15464.03495 | GA57: 15927.956 | GB57: 16405.79468 | GC57: 16897.96852 | GD57: 17404.90757 | GE57: 17927.0548 | GF57: 18464.86645 | GG57: 19018.81244 | GH57: 19589.37681 | GI57: 20177.05812 | GJ57: 20782.36986 | GK57: 21405.84096 | GL57: 22048.01618 | GM57: 22709.45667 | GN57: 23390.74037 | GO57: 24092.46258 | GP57: 24815.23646 | GQ57: 25559.69355 | GR57: 26326.48436 | GS57: =IF(GS8,GS51-GS53) -> 27116.27889 | GT57: 27929.76726 | GU57: 28767.66027 | GV57: 29630.69008 | GW57: 30519.61078 | GX57: 31435.19911 | GY57: 32378.25508 | GZ57: 33349.60273 | HA57: 34350.09082 | HB57: 35380.59354 | HC57: 36442.01135 | HD57: 37535.27169 | HE57: 38661.32984 | HF57: 39821.16973 | HG57: 41015.80482 | HH57: 42246.27897 | HI57: 43513.66734 | HJ57: 44819.07736 | HK57: 46163.64968 | HL57: 47548.55917 | HM57: 48975.01594 | HN57: 50444.26642 | HO57: 51957.59441 | HP57: 53516.32225 | HQ57: 55121.81191 | HR57: 56775.46627 | HS57: 58478.73026 | HT57: 60233.09217 | HU57: 62040.08493 | HV57: 63901.28748 | HW57: 65818.32611 | HX57: 67792.87589 | HY57: 69826.66217 | HZ57: 71921.46203 | IA57: 74079.10589 | IB57: 76301.47907 | IC57: 78590.52344 | ID57: 80948.23914 | IE57: 83376.68632 | IF57: 85877.98691 | IG57: 88454.32651 | IH57: 91107.95631 | II57: 93841.195 | IJ57: 96656.43085 | IK57: 99556.12377 | IL57: 102542.8075 | IM57: 105619.0917 | IN57: 108787.6645 | IO57: 112051.2944 | IP57: 115412.8332 | IQ57: 118875.2182 | IR57: 122441.4748 | IS57: 126114.719 | IT57: 129898.1606 | IU57: 133795.1054 | IV57: 137808.9586 | IW57: 141943.2273 | IX57: 146201.5241 | IY57: 150587.5699 | IZ57: 155105.197 | JA57: 159758.3529 | JB57: 164551.1035 | JC57: 169487.6366 | JD57: 174572.2657 | JE57: =IF(JE8,JE51-JE53) -> 179809.4336 | JF57: 185203.7166 | JG57: 190759.8281 | JH57: 196482.623 | JI57: 202377.1017 | JJ57: 208448.4147 | JK57: 214701.8672 | JL57: 221142.9232 | JM57: 227777.2109 | JN57: 234610.5272 | JO57: 241648.843 | JP57: 248898.3083 | JQ57: 256365.2576 | JR57: 264056.2153 | JS57: 271977.9017 | JT57: 280137.2388 | JU57: 288541.356 | JV57: 297197.5966 | JW57: 306113.5245 | JX57: 315296.9303 | JY57: 324755.8382 | JZ57: 334498.5133 | KA57: 344533.4687 | KB57: 354869.4728 | KC57: 365515.557 | KD57: 376481.0237 | KE57: 387775.4544 | KF57: 399408.718 | KG57: 411390.9796 | KH57: 423732.7089 | KI57: 436444.6902 | KJ57: 449538.0309 | KK57: 463024.1718 | KL57: 476914.897 | KM57: 491222.3439 | KN57: 505959.0142 | KO57: 521137.7847 | KP57: 536771.9182 | KQ57: 552875.0757 | KR57: 569461.328 | KS57: 586545.1679 | KT57: 604141.5229 | KU57: 622265.7686 | KV57: 640933.7416 | KW57: 660161.7539 | KX57: 679966.6065 | KY57: 700365.6047 | KZ57: 721376.5728 | LA57: 743017.87 | LB57: 765308.4061 | LC57: 788267.6583 | LD57: 811915.6881 | LE57: 836273.1587 | LF57: 861361.3535 | LG57: 887202.1941 | LH57: 913818.2599 | LI57: 941232.8077 | LJ57: 969469.7919 | LK57: 998553.8857 | LL57: 1028510.502 | LM57: 1059365.817 | LN57: 1091146.792 | LO57: 1123881.196 | LP57: 1157597.631 | LQ57: =IF(LQ8,LQ51-LQ53) -> 1192325.56 | LR57: 1228095.327 | LS57: 1264938.187 | LT57: 1302886.333 | LU57: 1341972.923 | LV57: 1382232.11 | LW57: 1423699.074 | LX57: 1466410.046 | LY57: 1510402.347 | LZ57: 1555714.418 | MA57: 1602385.85 | MB57: 1650457.426 | MC57: 1699971.148 | MD57: 1750970.283 | ME57: 1803499.391 | MF57: 1857604.373 | MG57: 1913332.504 | MH57: 1970732.479 | MI57: 2029854.454 | MJ57: 2090750.087 | MK57: 2153472.59 | ML57: 2218076.768 | MM57: 2284619.071 | MN57: 2353157.643 | MO57: 2423752.372 | MP57: 2496464.943 | MQ57: 2571358.892 | MR57: 2648499.658 | MS57: 2727954.648 | MT57: 2809793.288 | MU57: 2894087.086 | MV57: 2980909.699 | MW57: 3070336.99 | MX57: 3162447.099 | MY57: 3257320.512 | MZ57: 3355040.128 | NA57: 3455691.332 | NB57: 3559362.072 | NC57: 3666142.934 | ND57: 3776127.222 | NE57: 3889411.038 | NF57: 4006093.37 | NG57: 4126276.171 | NH57: 4250064.456 | NI57: 4377566.389 | NJ57: 4508893.381 | NK57: 4644160.182 | NL57: 4783484.988 | NM57: 4926989.538 | NN57: 5074799.224 | NO57: 5227043.2 | NP57: 5383854.496 | NQ57: 5545370.131 | NR57: 5711731.235 | NS57: 5883083.172 | NT57: 6059575.668 | NU57: 6241362.938 | NV57: 6428603.826 | NW57: 6621461.94 | NX57: 6820105.799 | NY57: 7024708.973 | NZ57: 7235450.242 | OA57: 7452513.749 | OB57: 7676089.162 | OC57: =IF(OC8,OC51-OC53) -> 7906371.836 | OD57: 8143562.991 | OE57: 8387869.881 | OF57: 8639505.978 | OG57: 8898691.157 | OH57: 9165651.892 | OI57: 9440621.448 | OJ57: 9723840.092 | OK57: 10015555.29 | OL57: 10316021.95 | OM57: 10625502.61 | ON57: 10944267.69 | OO57: 11272595.72 | OP57: 11610773.59 | OQ57: 11959096.8 | OR57: 12317869.7
D59: True value | F59: =NPV($F$13,57:57) -> 1197.916543
C61: Method 1: Include in EV without changes in provisions
D62: EBITDA | F62: =NPV($F$13,I62:KV62) -> 677.3797706 | I62: =IF(I7,I56) -> FALSE | J62: FALSE | K62: FALSE | L62: FALSE | M62: FALSE | N62: 107.4647067 | O62: 110.6886479 | P62: 114.0093073 | Q62: 117.4295865 | R62: 120.9524741 | S62: 124.5810484 | T62: 128.3184798 | U62: 132.1680342 | V62: 136.1330752 | W62: 140.2170675 | X62: FALSE | Y62: FALSE | Z62: FALSE | AA62: FALSE | AB62: FALSE | AC62: FALSE | AD62: FALSE | AE62: FALSE | AF62: FALSE | AG62: FALSE | AH62: FALSE | AI62: FALSE | AJ62: FALSE | AK62: FALSE | AL62: FALSE | AM62: FALSE | AN62: FALSE | AO62: FALSE | AP62: FALSE | AQ62: FALSE | AR62: FALSE | AS62: FALSE | AT62: FALSE | AU62: FALSE | AV62: FALSE | AW62: FALSE | AX62: FALSE | AY62: FALSE | AZ62: FALSE | BA62: FALSE | BB62: FALSE | BC62: FALSE | BD62: FALSE | BE62: FALSE | BF62: FALSE | BG62: FALSE | BH62: FALSE | BI62: FALSE | BJ62: FALSE | BK62: FALSE | BL62: FALSE | BM62: FALSE | BN62: FALSE | BO62: FALSE | BP62: FALSE | BQ62: FALSE | BR62: FALSE | BS62: FALSE | BT62: FALSE | BU62: =IF(BU7,BU56) -> FALSE | BV62: FALSE | BW62: FALSE | BX62: FALSE | BY62: FALSE | BZ62: FALSE | CA62: FALSE | CB62: FALSE | CC62: FALSE | CD62: FALSE | CE62: FALSE | CF62: FALSE | CG62: FALSE | CH62: FALSE | CI62: FALSE | CJ62: FALSE | CK62: FALSE | CL62: FALSE | CM62: FALSE | CN62: FALSE | CO62: FALSE | CP62: FALSE | CQ62: FALSE | CR62: FALSE | CS62: FALSE | CT62: FALSE | CU62: FALSE | CV62: FALSE | CW62: FALSE | CX62: FALSE | CY62: FALSE | CZ62: FALSE | DA62: FALSE | DB62: FALSE | DC62: FALSE | DD62: FALSE | DE62: FALSE | DF62: FALSE | DG62: FALSE | DH62: FALSE | DI62: FALSE | DJ62: FALSE | DK62: FALSE | DL62: FALSE | DM62: FALSE | DN62: FALSE | DO62: FALSE | DP62: FALSE | DQ62: FALSE | DR62: FALSE | DS62: FALSE | DT62: FALSE | DU62: FALSE | DV62: FALSE | DW62: FALSE | DX62: FALSE | DY62: FALSE | DZ62: FALSE | EA62: FALSE | EB62: FALSE | EC62: FALSE | ED62: FALSE | EE62: FALSE | EF62: FALSE | EG62: =IF(EG7,EG56) -> FALSE | EH62: FALSE | EI62: FALSE | EJ62: FALSE | EK62: FALSE | EL62: FALSE | EM62: FALSE | EN62: FALSE | EO62: FALSE | EP62: FALSE | EQ62: FALSE | ER62: FALSE | ES62: FALSE | ET62: FALSE | EU62: FALSE | EV62: FALSE | EW62: FALSE | EX62: FALSE | EY62: FALSE | EZ62: FALSE | FA62: FALSE | FB62: FALSE | FC62: FALSE | FD62: FALSE | FE62: FALSE | FF62: FALSE | FG62: FALSE | FH62: FALSE | FI62: FALSE | FJ62: FALSE | FK62: FALSE | FL62: FALSE | FM62: FALSE | FN62: FALSE | FO62: FALSE | FP62: FALSE | FQ62: FALSE | FR62: FALSE | FS62: FALSE | FT62: FALSE | FU62: FALSE | FV62: FALSE | FW62: FALSE | FX62: FALSE | FY62: FALSE | FZ62: FALSE | GA62: FALSE | GB62: FALSE | GC62: FALSE | GD62: FALSE | GE62: FALSE | GF62: FALSE | GG62: FALSE | GH62: FALSE | GI62: FALSE | GJ62: FALSE | GK62: FALSE | GL62: FALSE | GM62: FALSE | GN62: FALSE | GO62: FALSE | GP62: FALSE | GQ62: FALSE | GR62: FALSE | GS62: =IF(GS7,GS56) -> FALSE | GT62: FALSE | GU62: FALSE | GV62: FALSE | GW62: FALSE | GX62: FALSE | GY62: FALSE | GZ62: FALSE | HA62: FALSE | HB62: FALSE | HC62: FALSE | HD62: FALSE | HE62: FALSE | HF62: FALSE | HG62: FALSE | HH62: FALSE | HI62: FALSE | HJ62: FALSE | HK62: FALSE | HL62: FALSE | HM62: FALSE | HN62: FALSE | HO62: FALSE | HP62: FALSE | HQ62: FALSE | HR62: FALSE | HS62: FALSE | HT62: FALSE | HU62: FALSE | HV62: FALSE | HW62: FALSE | HX62: FALSE | HY62: FALSE | HZ62: FALSE | IA62: FALSE | IB62: FALSE | IC62: FALSE | ID62: FALSE | IE62: FALSE | IF62: FALSE | IG62: FALSE | IH62: FALSE | II62: FALSE | IJ62: FALSE | IK62: FALSE | IL62: FALSE | IM62: FALSE | IN62: FALSE | IO62: FALSE | IP62: FALSE | IQ62: FALSE | IR62: FALSE | IS62: FALSE | IT62: FALSE | IU62: FALSE | IV62: FALSE | IW62: FALSE | IX62: FALSE | IY62: FALSE | IZ62: FALSE | JA62: FALSE | JB62: FALSE | JC62: FALSE | JD62: FALSE | JE62: =IF(JE7,JE56) -> FALSE | JF62: FALSE | JG62: FALSE | JH62: FALSE | JI62: FALSE | JJ62: FALSE | JK62: FALSE | JL62: FALSE | JM62: FALSE | JN62: FALSE | JO62: FALSE | JP62: FALSE | JQ62: FALSE | JR62: FALSE | JS62: FALSE | JT62: FALSE | JU62: FALSE | JV62: FALSE | JW62: FALSE | JX62: FALSE | JY62: FALSE | JZ62: FALSE | KA62: FALSE | KB62: FALSE | KC62: FALSE | KD62: FALSE | KE62: FALSE | KF62: FALSE | KG62: FALSE | KH62: FALSE | KI62: FALSE | KJ62: FALSE | KK62: FALSE | KL62: FALSE | KM62: FALSE | KN62: FALSE | KO62: FALSE | KP62: FALSE | KQ62: FALSE | KR62: FALSE | KS62: FALSE | KT62: FALSE | KU62: FALSE | KV62: FALSE | KW62: FALSE | KX62: FALSE | KY62: FALSE | KZ62: FALSE | LA62: FALSE | LB62: FALSE | LC62: FALSE | LD62: FALSE | LE62: FALSE | LF62: FALSE | LG62: FALSE | LH62: FALSE | LI62: FALSE | LJ62: FALSE | LK62: FALSE | LL62: FALSE | LM62: FALSE | LN62: FALSE | LO62: FALSE | LP62: FALSE | LQ62: =IF(LQ7,LQ56) -> FALSE | LR62: FALSE | LS62: FALSE | LT62: FALSE | LU62: FALSE | LV62: FALSE | LW62: FALSE | LX62: FALSE | LY62: FALSE | LZ62: FALSE | MA62: FALSE | MB62: FALSE | MC62: FALSE | MD62: FALSE | ME62: FALSE | MF62: FALSE | MG62: FALSE | MH62: FALSE | MI62: FALSE | MJ62: FALSE | MK62: FALSE | ML62: FALSE | MM62: FALSE | MN62: FALSE | MO62: FALSE | MP62: FALSE | MQ62: FALSE | MR62: FALSE | MS62: FALSE | MT62: FALSE | MU62: FALSE | MV62: FALSE | MW62: FALSE | MX62: FALSE | MY62: FALSE | MZ62: FALSE | NA62: FALSE | NB62: FALSE | NC62: FALSE | ND62: FALSE | NE62: FALSE | NF62: FALSE | NG62: FALSE | NH62: FALSE | NI62: FALSE | NJ62: FALSE | NK62: FALSE | NL62: FALSE | NM62: FALSE | NN62: FALSE | NO62: FALSE | NP62: FALSE | NQ62: FALSE | NR62: FALSE | NS62: FALSE | NT62: FALSE | NU62: FALSE | NV62: FALSE | NW62: FALSE | NX62: FALSE | NY62: FALSE | NZ62: FALSE | OA62: FALSE | OB62: FALSE | OC62: =IF(OC7,OC56) -> FALSE | OD62: FALSE | OE62: FALSE | OF62: FALSE | OG62: FALSE | OH62: FALSE | OI62: FALSE | OJ62: FALSE | OK62: FALSE | OL62: FALSE | OM62: FALSE | ON62: FALSE | OO62: FALSE | OP62: FALSE | OQ62: FALSE | OR62: FALSE
D63: Terminal Value | F63: =NPV($F$13,I63:KV63) -> 516.672526 | I63: =IF(I$7,I62*(1+$F$12)/($F$13-$F$12)*I$6) -> FALSE | J63: FALSE | K63: FALSE | L63: FALSE | M63: FALSE | N63: 0 | O63: 0 | P63: 0 | Q63: 0 | R63: 0 | S63: 0 | T63: 0 | U63: 0 | V63: 0 | W63: 1604.706439 | X63: FALSE | Y63: FALSE | Z63: FALSE | AA63: FALSE | AB63: FALSE | AC63: FALSE | AD63: FALSE | AE63: FALSE | AF63: FALSE | AG63: FALSE | AH63: FALSE | AI63: FALSE | AJ63: FALSE | AK63: FALSE | AL63: FALSE | AM63: FALSE | AN63: FALSE | AO63: FALSE | AP63: FALSE | AQ63: FALSE | AR63: FALSE | AS63: FALSE | AT63: FALSE | AU63: FALSE | AV63: FALSE | AW63: FALSE | AX63: FALSE | AY63: FALSE | AZ63: FALSE | BA63: FALSE | BB63: FALSE | BC63: FALSE | BD63: FALSE | BE63: FALSE | BF63: FALSE | BG63: FALSE | BH63: FALSE | BI63: FALSE | BJ63: FALSE | BK63: FALSE | BL63: FALSE | BM63: FALSE | BN63: FALSE | BO63: FALSE | BP63: FALSE | BQ63: FALSE | BR63: FALSE | BS63: FALSE | BT63: FALSE | BU63: =IF(BU$7,BU62*(1+$F$12)/($F$13-$F$12)*BU$6) -> FALSE | BV63: FALSE | BW63: FALSE | BX63: FALSE | BY63: FALSE | BZ63: FALSE | CA63: FALSE | CB63: FALSE | CC63: FALSE | CD63: FALSE | CE63: FALSE | CF63: FALSE | CG63: FALSE | CH63: FALSE | CI63: FALSE | CJ63: FALSE | CK63: FALSE | CL63: FALSE | CM63: FALSE | CN63: FALSE | CO63: FALSE | CP63: FALSE | CQ63: FALSE | CR63: FALSE | CS63: FALSE | CT63: FALSE | CU63: FALSE | CV63: FALSE | CW63: FALSE | CX63: FALSE | CY63: FALSE | CZ63: FALSE | DA63: FALSE | DB63: FALSE | DC63: FALSE | DD63: FALSE | DE63: FALSE | DF63: FALSE | DG63: FALSE | DH63: FALSE | DI63: FALSE | DJ63: FALSE | DK63: FALSE | DL63: FALSE | DM63: FALSE | DN63: FALSE | DO63: FALSE | DP63: FALSE | DQ63: FALSE | DR63: FALSE | DS63: FALSE | DT63: FALSE | DU63: FALSE | DV63: FALSE | DW63: FALSE | DX63: FALSE | DY63: FALSE | DZ63: FALSE | EA63: FALSE | EB63: FALSE | EC63: FALSE | ED63: FALSE | EE63: FALSE | EF63: FALSE | EG63: =IF(EG$7,EG62*(1+$F$12)/($F$13-$F$12)*EG$6) -> FALSE | EH63: FALSE | EI63: FALSE | EJ63: FALSE | EK63: FALSE | EL63: FALSE | EM63: FALSE | EN63: FALSE | EO63: FALSE | EP63: FALSE | EQ63: FALSE | ER63: FALSE | ES63: FALSE | ET63: FALSE | EU63: FALSE | EV63: FALSE | EW63: FALSE | EX63: FALSE | EY63: FALSE | EZ63: FALSE | FA63: FALSE | FB63: FALSE | FC63: FALSE | FD63: FALSE | FE63: FALSE | FF63: FALSE | FG63: FALSE | FH63: FALSE | FI63: FALSE | FJ63: FALSE | FK63: FALSE | FL63: FALSE | FM63: FALSE | FN63: FALSE | FO63: FALSE | FP63: FALSE | FQ63: FALSE | FR63: FALSE | FS63: FALSE | FT63: FALSE | FU63: FALSE | FV63: FALSE | FW63: FALSE | FX63: FALSE | FY63: FALSE | FZ63: FALSE | GA63: FALSE | GB63: FALSE | GC63: FALSE | GD63: FALSE | GE63: FALSE | GF63: FALSE | GG63: FALSE | GH63: FALSE | GI63: FALSE | GJ63: FALSE | GK63: FALSE | GL63: FALSE | GM63: FALSE | GN63: FALSE | GO63: FALSE | GP63: FALSE | GQ63: FALSE | GR63: FALSE | GS63: =IF(GS$7,GS62*(1+$F$12)/($F$13-$F$12)*GS$6) -> FALSE | GT63: FALSE | GU63: FALSE | GV63: FALSE | GW63: FALSE | GX63: FALSE | GY63: FALSE | GZ63: FALSE | HA63: FALSE | HB63: FALSE | HC63: FALSE | HD63: FALSE | HE63: FALSE | HF63: FALSE | HG63: FALSE | HH63: FALSE | HI63: FALSE | HJ63: FALSE | HK63: FALSE | HL63: FALSE | HM63: FALSE | HN63: FALSE | HO63: FALSE | HP63: FALSE | HQ63: FALSE | HR63: FALSE | HS63: FALSE | HT63: FALSE | HU63: FALSE | HV63: FALSE | HW63: FALSE | HX63: FALSE | HY63: FALSE | HZ63: FALSE | IA63: FALSE | IB63: FALSE | IC63: FALSE | ID63: FALSE | IE63: FALSE | IF63: FALSE | IG63: FALSE | IH63: FALSE | II63: FALSE | IJ63: FALSE | IK63: FALSE | IL63: FALSE | IM63: FALSE | IN63: FALSE | IO63: FALSE | IP63: FALSE | IQ63: FALSE | IR63: FALSE | IS63: FALSE | IT63: FALSE | IU63: FALSE | IV63: FALSE | IW63: FALSE | IX63: FALSE | IY63: FALSE | IZ63: FALSE | JA63: FALSE | JB63: FALSE | JC63: FALSE | JD63: FALSE | JE63: =IF(JE$7,JE62*(1+$F$12)/($F$13-$F$12)*JE$6) -> FALSE | JF63: FALSE | JG63: FALSE | JH63: FALSE | JI63: FALSE | JJ63: FALSE | JK63: FALSE | JL63: FALSE | JM63: FALSE | JN63: FALSE | JO63: FALSE | JP63: FALSE | JQ63: FALSE | JR63: FALSE | JS63: FALSE | JT63: FALSE | JU63: FALSE | JV63: FALSE | JW63: FALSE | JX63: FALSE | JY63: FALSE | JZ63: FALSE | KA63: FALSE | KB63: FALSE | KC63: FALSE | KD63: FALSE | KE63: FALSE | KF63: FALSE | KG63: FALSE | KH63: FALSE | KI63: FALSE | KJ63: FALSE | KK63: FALSE | KL63: FALSE | KM63: FALSE | KN63: FALSE | KO63: FALSE | KP63: FALSE | KQ63: FALSE | KR63: FALSE | KS63: FALSE | KT63: FALSE | KU63: FALSE | KV63: FALSE | KW63: FALSE | KX63: FALSE | KY63: FALSE | KZ63: FALSE | LA63: FALSE | LB63: FALSE | LC63: FALSE | LD63: FALSE | LE63: FALSE | LF63: FALSE | LG63: FALSE | LH63: FALSE | LI63: FALSE | LJ63: FALSE | LK63: FALSE | LL63: FALSE | LM63: FALSE | LN63: FALSE | LO63: FALSE | LP63: FALSE | LQ63: =IF(LQ$7,LQ62*(1+$F$12)/($F$13-$F$12)*LQ$6) -> FALSE | LR63: FALSE | LS63: FALSE | LT63: FALSE | LU63: FALSE | LV63: FALSE | LW63: FALSE | LX63: FALSE | LY63: FALSE | LZ63: FALSE | MA63: FALSE | MB63: FALSE | MC63: FALSE | MD63: FALSE | ME63: FALSE | MF63: FALSE | MG63: FALSE | MH63: FALSE | MI63: FALSE | MJ63: FALSE | MK63: FALSE | ML63: FALSE | MM63: FALSE | MN63: FALSE | MO63: FALSE | MP63: FALSE | MQ63: FALSE | MR63: FALSE | MS63: FALSE | MT63: FALSE | MU63: FALSE | MV63: FALSE | MW63: FALSE | MX63: FALSE | MY63: FALSE | MZ63: FALSE | NA63: FALSE | NB63: FALSE | NC63: FALSE | ND63: FALSE | NE63: FALSE | NF63: FALSE | NG63: FALSE | NH63: FALSE | NI63: FALSE | NJ63: FALSE | NK63: FALSE | NL63: FALSE | NM63: FALSE | NN63: FALSE | NO63: FALSE | NP63: FALSE | NQ63: FALSE | NR63: FALSE | NS63: FALSE | NT63: FALSE | NU63: FALSE | NV63: FALSE | NW63: FALSE | NX63: FALSE | NY63: FALSE | NZ63: FALSE | OA63: FALSE | OB63: FALSE | OC63: =IF(OC$7,OC62*(1+$F$12)/($F$13-$F$12)*OC$6) -> FALSE | OD63: FALSE | OE63: FALSE | OF63: FALSE | OG63: FALSE | OH63: FALSE | OI63: FALSE | OJ63: FALSE | OK63: FALSE | OL63: FALSE | OM63: FALSE | ON63: FALSE | OO63: FALSE | OP63: FALSE | OQ63: FALSE | OR63: FALSE
D64: Enterprise Value | F64: =SUM(F62:F63) -> 1194.052297
D65: Error | F65: =F64-F59 -> -3.864246914
C67: Method 2: Deduct Provision in Bridge
D68: Enterprise Value | F68: =F64 -> 1194.052297
D69: Less: Provision | F69: =INDEX(54:54,MATCH(TRUE,5:5,0)) -> 11.59274074
D70: Equity Value | F70: =F68-F69 -> 1182.459556
D71: Error | F71: =F70-F59 -> -15.45698766
C73: Method 3: Include Changes in Provisions in FCF
D74: EBITDA | I74: =I62 -> FALSE | J74: =J62 -> FALSE | K74: FALSE | L74: FALSE | M74: FALSE | N74: 107.4647067 | O74: 110.6886479 | P74: 114.0093073 | Q74: 117.4295865 | R74: 120.9524741 | S74: 124.5810484 | T74: 128.3184798 | U74: 132.1680342 | V74: 136.1330752 | W74: 140.2170675 | X74: FALSE | Y74: FALSE | Z74: FALSE | AA74: FALSE | AB74: FALSE | AC74: FALSE | AD74: FALSE | AE74: FALSE | AF74: FALSE | AG74: FALSE | AH74: FALSE | AI74: FALSE | AJ74: FALSE | AK74: FALSE | AL74: FALSE | AM74: FALSE | AN74: FALSE | AO74: FALSE | AP74: FALSE | AQ74: FALSE | AR74: FALSE | AS74: FALSE | AT74: FALSE | AU74: FALSE | AV74: FALSE | AW74: FALSE | AX74: FALSE | AY74: FALSE | AZ74: FALSE | BA74: FALSE | BB74: FALSE | BC74: FALSE | BD74: FALSE | BE74: FALSE | BF74: FALSE | BG74: FALSE | BH74: FALSE | BI74: FALSE | BJ74: FALSE | BK74: FALSE | BL74: FALSE | BM74: FALSE | BN74: FALSE | BO74: FALSE | BP74: FALSE | BQ74: FALSE | BR74: FALSE | BS74: FALSE | BT74: FALSE | BU74: FALSE | BV74: =BV62 -> FALSE | BW74: FALSE | BX74: FALSE | BY74: FALSE | BZ74: FALSE | CA74: FALSE | CB74: FALSE | CC74: FALSE | CD74: FALSE | CE74: FALSE | CF74: FALSE | CG74: FALSE | CH74: FALSE | CI74: FALSE | CJ74: FALSE | CK74: FALSE | CL74: FALSE | CM74: FALSE | CN74: FALSE | CO74: FALSE | CP74: FALSE | CQ74: FALSE | CR74: FALSE | CS74: FALSE | CT74: FALSE | CU74: FALSE | CV74: FALSE | CW74: FALSE | CX74: FALSE | CY74: FALSE | CZ74: FALSE | DA74: FALSE | DB74: FALSE | DC74: FALSE | DD74: FALSE | DE74: FALSE | DF74: FALSE | DG74: FALSE | DH74: FALSE | DI74: FALSE | DJ74: FALSE | DK74: FALSE | DL74: FALSE | DM74: FALSE | DN74: FALSE | DO74: FALSE | DP74: FALSE | DQ74: FALSE | DR74: FALSE | DS74: FALSE | DT74: FALSE | DU74: FALSE | DV74: FALSE | DW74: FALSE | DX74: FALSE | DY74: FALSE | DZ74: FALSE | EA74: FALSE | EB74: FALSE | EC74: FALSE | ED74: FALSE | EE74: FALSE | EF74: FALSE | EG74: FALSE | EH74: =EH62 -> FALSE | EI74: FALSE | EJ74: FALSE | EK74: FALSE | EL74: FALSE | EM74: FALSE | EN74: FALSE | EO74: FALSE | EP74: FALSE | EQ74: FALSE | ER74: FALSE | ES74: FALSE | ET74: FALSE | EU74: FALSE | EV74: FALSE | EW74: FALSE | EX74: FALSE | EY74: FALSE | EZ74: FALSE | FA74: FALSE | FB74: FALSE | FC74: FALSE | FD74: FALSE | FE74: FALSE | FF74: FALSE | FG74: FALSE | FH74: FALSE | FI74: FALSE | FJ74: FALSE | FK74: FALSE | FL74: FALSE | FM74: FALSE | FN74: FALSE | FO74: FALSE | FP74: FALSE | FQ74: FALSE | FR74: FALSE | FS74: FALSE | FT74: FALSE | FU74: FALSE | FV74: FALSE | FW74: FALSE | FX74: FALSE | FY74: FALSE | FZ74: FALSE | GA74: FALSE | GB74: FALSE | GC74: FALSE | GD74: FALSE | GE74: FALSE | GF74: FALSE | GG74: FALSE | GH74: FALSE | GI74: FALSE | GJ74: FALSE | GK74: FALSE | GL74: FALSE | GM74: FALSE | GN74: FALSE | GO74: FALSE | GP74: FALSE | GQ74: FALSE | GR74: FALSE | GS74: FALSE | GT74: =GT62 -> FALSE | GU74: FALSE | GV74: FALSE | GW74: FALSE | GX74: FALSE | GY74: FALSE | GZ74: FALSE | HA74: FALSE | HB74: FALSE | HC74: FALSE | HD74: FALSE | HE74: FALSE | HF74: FALSE | HG74: FALSE | HH74: FALSE | HI74: FALSE | HJ74: FALSE | HK74: FALSE | HL74: FALSE | HM74: FALSE | HN74: FALSE | HO74: FALSE | HP74: FALSE | HQ74: FALSE | HR74: FALSE | HS74: FALSE | HT74: FALSE | HU74: FALSE | HV74: FALSE | HW74: FALSE | HX74: FALSE | HY74: FALSE | HZ74: FALSE | IA74: FALSE | IB74: FALSE | IC74: FALSE | ID74: FALSE | IE74: FALSE | IF74: FALSE | IG74: FALSE | IH74: FALSE | II74: FALSE | IJ74: FALSE | IK74: FALSE | IL74: FALSE | IM74: FALSE | IN74: FALSE | IO74: FALSE | IP74: FALSE | IQ74: FALSE | IR74: FALSE | IS74: FALSE | IT74: FALSE | IU74: FALSE | IV74: FALSE | IW74: FALSE | IX74: FALSE | IY74: FALSE | IZ74: FALSE | JA74: FALSE | JB74: FALSE | JC74: FALSE | JD74: FALSE | JE74: FALSE | JF74: =JF62 -> FALSE | JG74: FALSE | JH74: FALSE | JI74: FALSE | JJ74: FALSE | JK74: FALSE | JL74: FALSE | JM74: FALSE | JN74: FALSE | JO74: FALSE | JP74: FALSE | JQ74: FALSE | JR74: FALSE | JS74: FALSE | JT74: FALSE | JU74: FALSE | JV74: FALSE | JW74: FALSE | JX74: FALSE | JY74: FALSE | JZ74: FALSE | KA74: FALSE | KB74: FALSE | KC74: FALSE | KD74: FALSE | KE74: FALSE | KF74: FALSE | KG74: FALSE | KH74: FALSE | KI74: FALSE | KJ74: FALSE | KK74: FALSE | KL74: FALSE | KM74: FALSE | KN74: FALSE | KO74: FALSE | KP74: FALSE | KQ74: FALSE | KR74: FALSE | KS74: FALSE | KT74: FALSE | KU74: FALSE | KV74: FALSE | KW74: =KW62 -> FALSE | KX74: FALSE | KY74: FALSE | KZ74: FALSE | LA74: FALSE | LB74: FALSE | LC74: FALSE | LD74: FALSE | LE74: FALSE | LF74: FALSE | LG74: FALSE | LH74: FALSE | LI74: FALSE | LJ74: FALSE | LK74: FALSE | LL74: FALSE | LM74: FALSE | LN74: FALSE | LO74: FALSE | LP74: FALSE | LQ74: FALSE | LR74: FALSE | LS74: FALSE | LT74: FALSE | LU74: FALSE | LV74: FALSE | LW74: FALSE | LX74: FALSE | LY74: FALSE | LZ74: FALSE | MA74: FALSE | MB74: FALSE | MC74: FALSE | MD74: FALSE | ME74: FALSE | MF74: FALSE | MG74: FALSE | MH74: FALSE | MI74: FALSE | MJ74: FALSE | MK74: FALSE | ML74: FALSE | MM74: FALSE | MN74: FALSE | MO74: FALSE | MP74: FALSE | MQ74: FALSE | MR74: FALSE | MS74: FALSE | MT74: FALSE | MU74: FALSE | MV74: FALSE | MW74: FALSE | MX74: FALSE | MY74: FALSE | MZ74: FALSE | NA74: FALSE | NB74: FALSE | NC74: FALSE | ND74: FALSE | NE74: FALSE | NF74: FALSE | NG74: FALSE | NH74: FALSE | NI74: =NI62 -> FALSE | NJ74: FALSE | NK74: FALSE | NL74: FALSE | NM74: FALSE | NN74: FALSE | NO74: FALSE | NP74: FALSE | NQ74: FALSE | NR74: FALSE | NS74: FALSE | NT74: FALSE | NU74: FALSE | NV74: FALSE | NW74: FALSE | NX74: FALSE | NY74: FALSE | NZ74: FALSE | OA74: FALSE | OB74: FALSE | OC74: FALSE | OD74: FALSE | OE74: FALSE | OF74: FALSE | OG74: FALSE | OH74: FALSE | OI74: FALSE | OJ74: FALSE | OK74: FALSE | OL74: FALSE | OM74: FALSE | ON74: FALSE | OO74: FALSE | OP74: FALSE | OQ74: FALSE | OR74: FALSE
D75: Add: Changes in Provisions | I75: =IF(I7,I52-I53) -> FALSE | J75: FALSE | K75: FALSE | L75: FALSE | M75: FALSE | N75: 0.3477822223 | O75: 0.358215689 | P75: 0.3689621596 | Q75: 0.3800310244 | R75: 0.3914319551 | S75: 0.4031749138 | T75: 0.4152701612 | U75: 0.4277282661 | V75: 0.440560114 | W75: 0.4537769175 | X75: FALSE | Y75: FALSE | Z75: FALSE | AA75: FALSE | AB75: FALSE | AC75: FALSE | AD75: FALSE | AE75: FALSE | AF75: FALSE | AG75: FALSE | AH75: FALSE | AI75: FALSE | AJ75: FALSE | AK75: FALSE | AL75: FALSE | AM75: FALSE | AN75: FALSE | AO75: FALSE | AP75: FALSE | AQ75: FALSE | AR75: FALSE | AS75: FALSE | AT75: FALSE | AU75: FALSE | AV75: FALSE | AW75: FALSE | AX75: FALSE | AY75: FALSE | AZ75: FALSE | BA75: FALSE | BB75: FALSE | BC75: FALSE | BD75: FALSE | BE75: FALSE | BF75: FALSE | BG75: FALSE | BH75: FALSE | BI75: FALSE | BJ75: FALSE | BK75: FALSE | BL75: FALSE | BM75: FALSE | BN75: FALSE | BO75: FALSE | BP75: FALSE | BQ75: FALSE | BR75: FALSE | BS75: FALSE | BT75: FALSE | BU75: =IF(BU7,BU52-BU53) -> FALSE | BV75: FALSE | BW75: FALSE | BX75: FALSE | BY75: FALSE | BZ75: FALSE | CA75: FALSE | CB75: FALSE | CC75: FALSE | CD75: FALSE | CE75: FALSE | CF75: FALSE | CG75: FALSE | CH75: FALSE | CI75: FALSE | CJ75: FALSE | CK75: FALSE | CL75: FALSE | CM75: FALSE | CN75: FALSE | CO75: FALSE | CP75: FALSE | CQ75: FALSE | CR75: FALSE | CS75: FALSE | CT75: FALSE | CU75: FALSE | CV75: FALSE | CW75: FALSE | CX75: FALSE | CY75: FALSE | CZ75: FALSE | DA75: FALSE | DB75: FALSE | DC75: FALSE | DD75: FALSE | DE75: FALSE | DF75: FALSE | DG75: FALSE | DH75: FALSE | DI75: FALSE | DJ75: FALSE | DK75: FALSE | DL75: FALSE | DM75: FALSE | DN75: FALSE | DO75: FALSE | DP75: FALSE | DQ75: FALSE | DR75: FALSE | DS75: FALSE | DT75: FALSE | DU75: FALSE | DV75: FALSE | DW75: FALSE | DX75: FALSE | DY75: FALSE | DZ75: FALSE | EA75: FALSE | EB75: FALSE | EC75: FALSE | ED75: FALSE | EE75: FALSE | EF75: FALSE | EG75: =IF(EG7,EG52-EG53) -> FALSE | EH75: FALSE | EI75: FALSE | EJ75: FALSE | EK75: FALSE | EL75: FALSE | EM75: FALSE | EN75: FALSE | EO75: FALSE | EP75: FALSE | EQ75: FALSE | ER75: FALSE | ES75: FALSE | ET75: FALSE | EU75: FALSE | EV75: FALSE | EW75: FALSE | EX75: FALSE | EY75: FALSE | EZ75: FALSE | FA75: FALSE | FB75: FALSE | FC75: FALSE | FD75: FALSE | FE75: FALSE | FF75: FALSE | FG75: FALSE | FH75: FALSE | FI75: FALSE | FJ75: FALSE | FK75: FALSE | FL75: FALSE | FM75: FALSE | FN75: FALSE | FO75: FALSE | FP75: FALSE | FQ75: FALSE | FR75: FALSE | FS75: FALSE | FT75: FALSE | FU75: FALSE | FV75: FALSE | FW75: FALSE | FX75: FALSE | FY75: FALSE | FZ75: FALSE | GA75: FALSE | GB75: FALSE | GC75: FALSE | GD75: FALSE | GE75: FALSE | GF75: FALSE | GG75: FALSE | GH75: FALSE | GI75: FALSE | GJ75: FALSE | GK75: FALSE | GL75: FALSE | GM75: FALSE | GN75: FALSE | GO75: FALSE | GP75: FALSE | GQ75: FALSE | GR75: FALSE | GS75: =IF(GS7,GS52-GS53) -> FALSE | GT75: FALSE | GU75: FALSE | GV75: FALSE | GW75: FALSE | GX75: FALSE | GY75: FALSE | GZ75: FALSE | HA75: FALSE | HB75: FALSE | HC75: FALSE | HD75: FALSE | HE75: FALSE | HF75: FALSE | HG75: FALSE | HH75: FALSE | HI75: FALSE | HJ75: FALSE | HK75: FALSE | HL75: FALSE | HM75: FALSE | HN75: FALSE | HO75: FALSE | HP75: FALSE | HQ75: FALSE | HR75: FALSE | HS75: FALSE | HT75: FALSE | HU75: FALSE | HV75: FALSE | HW75: FALSE | HX75: FALSE | HY75: FALSE | HZ75: FALSE | IA75: FALSE | IB75: FALSE | IC75: FALSE | ID75: FALSE | IE75: FALSE | IF75: FALSE | IG75: FALSE | IH75: FALSE | II75: FALSE | IJ75: FALSE | IK75: FALSE | IL75: FALSE | IM75: FALSE | IN75: FALSE | IO75: FALSE | IP75: FALSE | IQ75: FALSE | IR75: FALSE | IS75: FALSE | IT75: FALSE | IU75: FALSE | IV75: FALSE | IW75: FALSE | IX75: FALSE | IY75: FALSE | IZ75: FALSE | JA75: FALSE | JB75: FALSE | JC75: FALSE | JD75: FALSE | JE75: =IF(JE7,JE52-JE53) -> FALSE | JF75: FALSE | JG75: FALSE | JH75: FALSE | JI75: FALSE | JJ75: FALSE | JK75: FALSE | JL75: FALSE | JM75: FALSE | JN75: FALSE | JO75: FALSE | JP75: FALSE | JQ75: FALSE | JR75: FALSE | JS75: FALSE | JT75: FALSE | JU75: FALSE | JV75: FALSE | JW75: FALSE | JX75: FALSE | JY75: FALSE | JZ75: FALSE | KA75: FALSE | KB75: FALSE | KC75: FALSE | KD75: FALSE | KE75: FALSE | KF75: FALSE | KG75: FALSE | KH75: FALSE | KI75: FALSE | KJ75: FALSE | KK75: FALSE | KL75: FALSE | KM75: FALSE | KN75: FALSE | KO75: FALSE | KP75: FALSE | KQ75: FALSE | KR75: FALSE | KS75: FALSE | KT75: FALSE | KU75: FALSE | KV75: FALSE | KW75: FALSE | KX75: FALSE | KY75: FALSE | KZ75: FALSE | LA75: FALSE | LB75: FALSE | LC75: FALSE | LD75: FALSE | LE75: FALSE | LF75: FALSE | LG75: FALSE | LH75: FALSE | LI75: FALSE | LJ75: FALSE | LK75: FALSE | LL75: FALSE | LM75: FALSE | LN75: FALSE | LO75: FALSE | LP75: FALSE | LQ75: =IF(LQ7,LQ52-LQ53) -> FALSE | LR75: FALSE | LS75: FALSE | LT75: FALSE | LU75: FALSE | LV75: FALSE | LW75: FALSE | LX75: FALSE | LY75: FALSE | LZ75: FALSE | MA75: FALSE | MB75: FALSE | MC75: FALSE | MD75: FALSE | ME75: FALSE | MF75: FALSE | MG75: FALSE | MH75: FALSE | MI75: FALSE | MJ75: FALSE | MK75: FALSE | ML75: FALSE | MM75: FALSE | MN75: FALSE | MO75: FALSE | MP75: FALSE | MQ75: FALSE | MR75: FALSE | MS75: FALSE | MT75: FALSE | MU75: FALSE | MV75: FALSE | MW75: FALSE | MX75: FALSE | MY75: FALSE | MZ75: FALSE | NA75: FALSE | NB75: FALSE | NC75: FALSE | ND75: FALSE | NE75: FALSE | NF75: FALSE | NG75: FALSE | NH75: FALSE | NI75: FALSE | NJ75: FALSE | NK75: FALSE | NL75: FALSE | NM75: FALSE | NN75: FALSE | NO75: FALSE | NP75: FALSE | NQ75: FALSE | NR75: FALSE | NS75: FALSE | NT75: FALSE | NU75: FALSE | NV75: FALSE | NW75: FALSE | NX75: FALSE | NY75: FALSE | NZ75: FALSE | OA75: FALSE | OB75: FALSE | OC75: =IF(OC7,OC52-OC53) -> FALSE | OD75: FALSE | OE75: FALSE | OF75: FALSE | OG75: FALSE | OH75: FALSE | OI75: FALSE | OJ75: FALSE | OK75: FALSE | OL75: FALSE | OM75: FALSE | ON75: FALSE | OO75: FALSE | OP75: FALSE | OQ75: FALSE | OR75: FALSE
D76: Free Cash Flow | F76: =NPV($F$13,I76:KV76) -> 679.5719381 | I76: =IF(I7,I74+I75) -> FALSE | J76: FALSE | K76: FALSE | L76: FALSE | M76: FALSE | N76: 107.8124889 | O76: 111.0468636 | P76: 114.3782695 | Q76: 117.8096176 | R76: 121.3439061 | S76: 124.9842233 | T76: 128.73375 | U76: 132.5957625 | V76: 136.5736354 | W76: 140.6708444 | X76: FALSE | Y76: FALSE | Z76: FALSE | AA76: FALSE | AB76: FALSE | AC76: FALSE | AD76: FALSE | AE76: FALSE | AF76: FALSE | AG76: FALSE | AH76: FALSE | AI76: FALSE | AJ76: FALSE | AK76: FALSE | AL76: FALSE | AM76: FALSE | AN76: FALSE | AO76: FALSE | AP76: FALSE | AQ76: FALSE | AR76: FALSE | AS76: FALSE | AT76: FALSE | AU76: FALSE | AV76: FALSE | AW76: FALSE | AX76: FALSE | AY76: FALSE | AZ76: FALSE | BA76: FALSE | BB76: FALSE | BC76: FALSE | BD76: FALSE | BE76: FALSE | BF76: FALSE | BG76: FALSE | BH76: FALSE | BI76: FALSE | BJ76: FALSE | BK76: FALSE | BL76: FALSE | BM76: FALSE | BN76: FALSE | BO76: FALSE | BP76: FALSE | BQ76: FALSE | BR76: FALSE | BS76: FALSE | BT76: FALSE | BU76: =IF(BU7,BU74+BU75) -> FALSE | BV76: FALSE | BW76: FALSE | BX76: FALSE | BY76: FALSE | BZ76: FALSE | CA76: FALSE | CB76: FALSE | CC76: FALSE | CD76: FALSE | CE76: FALSE | CF76: FALSE | CG76: FALSE | CH76: FALSE | CI76: FALSE | CJ76: FALSE | CK76: FALSE | CL76: FALSE | CM76: FALSE | CN76: FALSE | CO76: FALSE | CP76: FALSE | CQ76: FALSE | CR76: FALSE | CS76: FALSE | CT76: FALSE | CU76: FALSE | CV76: FALSE | CW76: FALSE | CX76: FALSE | CY76: FALSE | CZ76: FALSE | DA76: FALSE | DB76: FALSE | DC76: FALSE | DD76: FALSE | DE76: FALSE | DF76: FALSE | DG76: FALSE | DH76: FALSE | DI76: FALSE | DJ76: FALSE | DK76: FALSE | DL76: FALSE | DM76: FALSE | DN76: FALSE | DO76: FALSE | DP76: FALSE | DQ76: FALSE | DR76: FALSE | DS76: FALSE | DT76: FALSE | DU76: FALSE | DV76: FALSE | DW76: FALSE | DX76: FALSE | DY76: FALSE | DZ76: FALSE | EA76: FALSE | EB76: FALSE | EC76: FALSE | ED76: FALSE | EE76: FALSE | EF76: FALSE | EG76: =IF(EG7,EG74+EG75) -> FALSE | EH76: FALSE | EI76: FALSE | EJ76: FALSE | EK76: FALSE | EL76: FALSE | EM76: FALSE | EN76: FALSE | EO76: FALSE | EP76: FALSE | EQ76: FALSE | ER76: FALSE | ES76: FALSE | ET76: FALSE | EU76: FALSE | EV76: FALSE | EW76: FALSE | EX76: FALSE | EY76: FALSE | EZ76: FALSE | FA76: FALSE | FB76: FALSE | FC76: FALSE | FD76: FALSE | FE76: FALSE | FF76: FALSE | FG76: FALSE | FH76: FALSE | FI76: FALSE | FJ76: FALSE | FK76: FALSE | FL76: FALSE | FM76: FALSE | FN76: FALSE | FO76: FALSE | FP76: FALSE | FQ76: FALSE | FR76: FALSE | FS76: FALSE | FT76: FALSE | FU76: FALSE | FV76: FALSE | FW76: FALSE | FX76: FALSE | FY76: FALSE | FZ76: FALSE | GA76: FALSE | GB76: FALSE | GC76: FALSE | GD76: FALSE | GE76: FALSE | GF76: FALSE | GG76: FALSE | GH76: FALSE | GI76: FALSE | GJ76: FALSE | GK76: FALSE | GL76: FALSE | GM76: FALSE | GN76: FALSE | GO76: FALSE | GP76: FALSE | GQ76: FALSE | GR76: FALSE | GS76: =IF(GS7,GS74+GS75) -> FALSE | GT76: FALSE | GU76: FALSE | GV76: FALSE | GW76: FALSE | GX76: FALSE | GY76: FALSE | GZ76: FALSE | HA76: FALSE | HB76: FALSE | HC76: FALSE | HD76: FALSE | HE76: FALSE | HF76: FALSE | HG76: FALSE | HH76: FALSE | HI76: FALSE | HJ76: FALSE | HK76: FALSE | HL76: FALSE | HM76: FALSE | HN76: FALSE | HO76: FALSE | HP76: FALSE | HQ76: FALSE | HR76: FALSE | HS76: FALSE | HT76: FALSE | HU76: FALSE | HV76: FALSE | HW76: FALSE | HX76: FALSE | HY76: FALSE | HZ76: FALSE | IA76: FALSE | IB76: FALSE | IC76: FALSE | ID76: FALSE | IE76: FALSE | IF76: FALSE | IG76: FALSE | IH76: FALSE | II76: FALSE | IJ76: FALSE | IK76: FALSE | IL76: FALSE | IM76: FALSE | IN76: FALSE | IO76: FALSE | IP76: FALSE | IQ76: FALSE | IR76: FALSE | IS76: FALSE | IT76: FALSE | IU76: FALSE | IV76: FALSE | IW76: FALSE | IX76: FALSE | IY76: FALSE | IZ76: FALSE | JA76: FALSE | JB76: FALSE | JC76: FALSE | JD76: FALSE | JE76: =IF(JE7,JE74+JE75) -> FALSE | JF76: FALSE | JG76: FALSE | JH76: FALSE | JI76: FALSE | JJ76: FALSE | JK76: FALSE | JL76: FALSE | JM76: FALSE | JN76: FALSE | JO76: FALSE | JP76: FALSE | JQ76: FALSE | JR76: FALSE | JS76: FALSE | JT76: FALSE | JU76: FALSE | JV76: FALSE | JW76: FALSE | JX76: FALSE | JY76: FALSE | JZ76: FALSE | KA76: FALSE | KB76: FALSE | KC76: FALSE | KD76: FALSE | KE76: FALSE | KF76: FALSE | KG76: FALSE | KH76: FALSE | KI76: FALSE | KJ76: FALSE | KK76: FALSE | KL76: FALSE | KM76: FALSE | KN76: FALSE | KO76: FALSE | KP76: FALSE | KQ76: FALSE | KR76: FALSE | KS76: FALSE | KT76: FALSE | KU76: FALSE | KV76: FALSE | KW76: FALSE | KX76: FALSE | KY76: FALSE | KZ76: FALSE | LA76: FALSE | LB76: FALSE | LC76: FALSE | LD76: FALSE | LE76: FALSE | LF76: FALSE | LG76: FALSE | LH76: FALSE | LI76: FALSE | LJ76: FALSE | LK76: FALSE | LL76: FALSE | LM76: FALSE | LN76: FALSE | LO76: FALSE | LP76: FALSE | LQ76: =IF(LQ7,LQ74+LQ75) -> FALSE | LR76: FALSE | LS76: FALSE | LT76: FALSE | LU76: FALSE | LV76: FALSE | LW76: FALSE | LX76: FALSE | LY76: FALSE | LZ76: FALSE | MA76: FALSE | MB76: FALSE | MC76: FALSE | MD76: FALSE | ME76: FALSE | MF76: FALSE | MG76: FALSE | MH76: FALSE | MI76: FALSE | MJ76: FALSE | MK76: FALSE | ML76: FALSE | MM76: FALSE | MN76: FALSE | MO76: FALSE | MP76: FALSE | MQ76: FALSE | MR76: FALSE | MS76: FALSE | MT76: FALSE | MU76: FALSE | MV76: FALSE | MW76: FALSE | MX76: FALSE | MY76: FALSE | MZ76: FALSE | NA76: FALSE | NB76: FALSE | NC76: FALSE | ND76: FALSE | NE76: FALSE | NF76: FALSE | NG76: FALSE | NH76: FALSE | NI76: FALSE | NJ76: FALSE | NK76: FALSE | NL76: FALSE | NM76: FALSE | NN76: FALSE | NO76: FALSE | NP76: FALSE | NQ76: FALSE | NR76: FALSE | NS76: FALSE | NT76: FALSE | NU76: FALSE | NV76: FALSE | NW76: FALSE | NX76: FALSE | NY76: FALSE | NZ76: FALSE | OA76: FALSE | OB76: FALSE | OC76: =IF(OC7,OC74+OC75) -> FALSE | OD76: FALSE | OE76: FALSE | OF76: FALSE | OG76: FALSE | OH76: FALSE | OI76: FALSE | OJ76: FALSE | OK76: FALSE | OL76: FALSE | OM76: FALSE | ON76: FALSE | OO76: FALSE | OP76: FALSE | OQ76: FALSE | OR76: FALSE
D77: Add: Terminal Value | F77: =NPV($F$13,I77:KV77) -> 518.3446053 | I77: =IF(I$7,I76*(1+$F$12)/($F$13-$F$12)*I$6) -> FALSE | J77: FALSE | K77: FALSE | L77: FALSE | M77: FALSE | N77: 0 | O77: 0 | P77: 0 | Q77: 0 | R77: 0 | S77: 0 | T77: 0 | U77: 0 | V77: 0 | W77: 1609.899664 | X77: FALSE | Y77: FALSE | Z77: FALSE | AA77: FALSE | AB77: FALSE | AC77: FALSE | AD77: FALSE | AE77: FALSE | AF77: FALSE | AG77: FALSE | AH77: FALSE | AI77: FALSE | AJ77: FALSE | AK77: FALSE | AL77: FALSE | AM77: FALSE | AN77: FALSE | AO77: FALSE | AP77: FALSE | AQ77: FALSE | AR77: FALSE | AS77: FALSE | AT77: FALSE | AU77: FALSE | AV77: FALSE | AW77: FALSE | AX77: FALSE | AY77: FALSE | AZ77: FALSE | BA77: FALSE | BB77: FALSE | BC77: FALSE | BD77: FALSE | BE77: FALSE | BF77: FALSE | BG77: FALSE | BH77: FALSE | BI77: FALSE | BJ77: FALSE | BK77: FALSE | BL77: FALSE | BM77: FALSE | BN77: FALSE | BO77: FALSE | BP77: FALSE | BQ77: FALSE | BR77: FALSE | BS77: FALSE | BT77: FALSE | BU77: =IF(BU$7,BU76*(1+$F$12)/($F$13-$F$12)*BU$6) -> FALSE | BV77: FALSE | BW77: FALSE | BX77: FALSE | BY77: FALSE | BZ77: FALSE | CA77: FALSE | CB77: FALSE | CC77: FALSE | CD77: FALSE | CE77: FALSE | CF77: FALSE | CG77: FALSE | CH77: FALSE | CI77: FALSE | CJ77: FALSE | CK77: FALSE | CL77: FALSE | CM77: FALSE | CN77: FALSE | CO77: FALSE | CP77: FALSE | CQ77: FALSE | CR77: FALSE | CS77: FALSE | CT77: FALSE | CU77: FALSE | CV77: FALSE | CW77: FALSE | CX77: FALSE | CY77: FALSE | CZ77: FALSE | DA77: FALSE | DB77: FALSE | DC77: FALSE | DD77: FALSE | DE77: FALSE | DF77: FALSE | DG77: FALSE | DH77: FALSE | DI77: FALSE | DJ77: FALSE | DK77: FALSE | DL77: FALSE | DM77: FALSE | DN77: FALSE | DO77: FALSE | DP77: FALSE | DQ77: FALSE | DR77: FALSE | DS77: FALSE | DT77: FALSE | DU77: FALSE | DV77: FALSE | DW77: FALSE | DX77: FALSE | DY77: FALSE | DZ77: FALSE | EA77: FALSE | EB77: FALSE | EC77: FALSE | ED77: FALSE | EE77: FALSE | EF77: FALSE | EG77: =IF(EG$7,EG76*(1+$F$12)/($F$13-$F$12)*EG$6) -> FALSE | EH77: FALSE | EI77: FALSE | EJ77: FALSE | EK77: FALSE | EL77: FALSE | EM77: FALSE | EN77: FALSE | EO77: FALSE | EP77: FALSE | EQ77: FALSE | ER77: FALSE | ES77: FALSE | ET77: FALSE | EU77: FALSE | EV77: FALSE | EW77: FALSE | EX77: FALSE | EY77: FALSE | EZ77: FALSE | FA77: FALSE | FB77: FALSE | FC77: FALSE | FD77: FALSE | FE77: FALSE | FF77: FALSE | FG77: FALSE | FH77: FALSE | FI77: FALSE | FJ77: FALSE | FK77: FALSE | FL77: FALSE | FM77: FALSE | FN77: FALSE | FO77: FALSE | FP77: FALSE | FQ77: FALSE | FR77: FALSE | FS77: FALSE | FT77: FALSE | FU77: FALSE | FV77: FALSE | FW77: FALSE | FX77: FALSE | FY77: FALSE | FZ77: FALSE | GA77: FALSE | GB77: FALSE | GC77: FALSE | GD77: FALSE | GE77: FALSE | GF77: FALSE | GG77: FALSE | GH77: FALSE | GI77: FALSE | GJ77: FALSE | GK77: FALSE | GL77: FALSE | GM77: FALSE | GN77: FALSE | GO77: FALSE | GP77: FALSE | GQ77: FALSE | GR77: FALSE | GS77: =IF(GS$7,GS76*(1+$F$12)/($F$13-$F$12)*GS$6) -> FALSE | GT77: FALSE | GU77: FALSE | GV77: FALSE | GW77: FALSE | GX77: FALSE | GY77: FALSE | GZ77: FALSE | HA77: FALSE | HB77: FALSE | HC77: FALSE | HD77: FALSE | HE77: FALSE | HF77: FALSE | HG77: FALSE | HH77: FALSE | HI77: FALSE | HJ77: FALSE | HK77: FALSE | HL77: FALSE | HM77: FALSE | HN77: FALSE | HO77: FALSE | HP77: FALSE | HQ77: FALSE | HR77: FALSE | HS77: FALSE | HT77: FALSE | HU77: FALSE | HV77: FALSE | HW77: FALSE | HX77: FALSE | HY77: FALSE | HZ77: FALSE | IA77: FALSE | IB77: FALSE | IC77: FALSE | ID77: FALSE | IE77: FALSE | IF77: FALSE | IG77: FALSE | IH77: FALSE | II77: FALSE | IJ77: FALSE | IK77: FALSE | IL77: FALSE | IM77: FALSE | IN77: FALSE | IO77: FALSE | IP77: FALSE | IQ77: FALSE | IR77: FALSE | IS77: FALSE | IT77: FALSE | IU77: FALSE | IV77: FALSE | IW77: FALSE | IX77: FALSE | IY77: FALSE | IZ77: FALSE | JA77: FALSE | JB77: FALSE | JC77: FALSE | JD77: FALSE | JE77: =IF(JE$7,JE76*(1+$F$12)/($F$13-$F$12)*JE$6) -> FALSE | JF77: FALSE | JG77: FALSE | JH77: FALSE | JI77: FALSE | JJ77: FALSE | JK77: FALSE | JL77: FALSE | JM77: FALSE | JN77: FALSE | JO77: FALSE | JP77: FALSE | JQ77: FALSE | JR77: FALSE | JS77: FALSE | JT77: FALSE | JU77: FALSE | JV77: FALSE | JW77: FALSE | JX77: FALSE | JY77: FALSE | JZ77: FALSE | KA77: FALSE | KB77: FALSE | KC77: FALSE | KD77: FALSE | KE77: FALSE | KF77: FALSE | KG77: FALSE | KH77: FALSE | KI77: FALSE | KJ77: FALSE | KK77: FALSE | KL77: FALSE | KM77: FALSE | KN77: FALSE | KO77: FALSE | KP77: FALSE | KQ77: FALSE | KR77: FALSE | KS77: FALSE | KT77: FALSE | KU77: FALSE | KV77: FALSE | KW77: FALSE | KX77: FALSE | KY77: FALSE | KZ77: FALSE | LA77: FALSE | LB77: FALSE | LC77: FALSE | LD77: FALSE | LE77: FALSE | LF77: FALSE | LG77: FALSE | LH77: FALSE | LI77: FALSE | LJ77: FALSE | LK77: FALSE | LL77: FALSE | LM77: FALSE | LN77: FALSE | LO77: FALSE | LP77: FALSE | LQ77: =IF(LQ$7,LQ76*(1+$F$12)/($F$13-$F$12)*LQ$6) -> FALSE | LR77: FALSE | LS77: FALSE | LT77: FALSE | LU77: FALSE | LV77: FALSE | LW77: FALSE | LX77: FALSE | LY77: FALSE | LZ77: FALSE | MA77: FALSE | MB77: FALSE | MC77: FALSE | MD77: FALSE | ME77: FALSE | MF77: FALSE | MG77: FALSE | MH77: FALSE | MI77: FALSE | MJ77: FALSE | MK77: FALSE | ML77: FALSE | MM77: FALSE | MN77: FALSE | MO77: FALSE | MP77: FALSE | MQ77: FALSE | MR77: FALSE | MS77: FALSE | MT77: FALSE | MU77: FALSE | MV77: FALSE | MW77: FALSE | MX77: FALSE | MY77: FALSE | MZ77: FALSE | NA77: FALSE | NB77: FALSE | NC77: FALSE | ND77: FALSE | NE77: FALSE | NF77: FALSE | NG77: FALSE | NH77: FALSE | NI77: FALSE | NJ77: FALSE | NK77: FALSE | NL77: FALSE | NM77: FALSE | NN77: FALSE | NO77: FALSE | NP77: FALSE | NQ77: FALSE | NR77: FALSE | NS77: FALSE | NT77: FALSE | NU77: FALSE | NV77: FALSE | NW77: FALSE | NX77: FALSE | NY77: FALSE | NZ77: FALSE | OA77: FALSE | OB77: FALSE | OC77: =IF(OC$7,OC76*(1+$F$12)/($F$13-$F$12)*OC$6) -> FALSE | OD77: FALSE | OE77: FALSE | OF77: FALSE | OG77: FALSE | OH77: FALSE | OI77: FALSE | OJ77: FALSE | OK77: FALSE | OL77: FALSE | OM77: FALSE | ON77: FALSE | OO77: FALSE | OP77: FALSE | OQ77: FALSE | OR77: FALSE
D78: Enterprise Value | F78: =SUM(F76:F77) -> 1197.916543
D79: Error | F79: =F78-F59 -> 5.456968211e-12
B81: Notes:
C82: Shold be like Accounts Payable and should include changes in warranties as a component of cash flow
C83: Worst case is to include provisions in bride -- double counts the negative effect because expenses of the warranties are included in the WACC
B84: Proof 3: Provisions Related to Dismanteling/Decommissioning: When cash flow is after explicit period INCLUDE in BRIDGE
C85: True Value Assumptions and Accounting Mechanics
D86: Dismanteling Cost as Percent of Revenues | F86: 3
D87: Single Year Dismanteling Paid | F87: 30
D88: Discount Rate for Dismanteling | F88: 0.04
D89: Cash Revenue | I89: =I14 -> 103 | J89: =J14 -> 106.09 | K89: 109.2727 | L89: 112.550881 | M89: 115.9274074 | N89: 119.4052297 | O89: 122.9873865 | P89: 126.6770081 | Q89: 130.4773184 | R89: 134.3916379 | S89: 138.4233871 | T89: 142.5760887 | U89: 146.8533713 | V89: 151.2589725 | W89: 155.7967417 | X89: 160.4706439 | Y89: 165.2847632 | Z89: 170.2433061 | AA89: 175.3506053 | AB89: 180.6111235 | AC89: 186.0294572 | AD89: 191.6103409 | AE89: 197.3586511 | AF89: 203.2794106 | AG89: 209.377793 | AH89: 215.6591268 | AI89: 222.1289006 | AJ89: 228.7927676 | AK89: 235.6565506 | AL89: 242.7262471 | AM89: 250.0080345 | AN89: 257.5082756 | AO89: 265.2335238 | AP89: 273.1905296 | AQ89: 281.3862454 | AR89: 289.8278328 | AS89: 298.5226678 | AT89: 307.4783478 | AU89: 316.7026983 | AV89: 326.2037792 | AW89: 335.9898926 | AX89: 346.0695894 | AY89: 356.451677 | AZ89: 367.1452273 | BA89: 378.1595842 | BB89: 389.5043717 | BC89: 401.1895028 | BD89: 413.2251879 | BE89: 425.6219436 | BF89: 438.3906019 | BG89: 451.5423199 | BH89: 465.0885895 | BI89: 479.0412472 | BJ89: 493.4124846 | BK89: 508.2148592 | BL89: 523.4613049 | BM89: 539.1651441 | BN89: 555.3400984 | BO89: 572.0003014 | BP89: 589.1603104 | BQ89: 606.8351197 | BR89: 625.0401733 | BS89: 643.7913785 | BT89: 663.1051199 | BU89: 682.9982735 | BV89: =BV14 -> 703.4882217 | BW89: 724.5928683 | BX89: 746.3306544 | BY89: 768.720574 | BZ89: 791.7821912 | CA89: 815.5356569 | CB89: 840.0017267 | CC89: 865.2017785 | CD89: 891.1578318 | CE89: 917.8925668 | CF89: 945.4293438 | CG89: 973.7922241 | CH89: 1003.005991 | CI89: 1033.096171 | CJ89: 1064.089056 | CK89: 1096.011727 | CL89: 1128.892079 | CM89: 1162.758842 | CN89: 1197.641607 | CO89: 1233.570855 | CP89: 1270.577981 | CQ89: 1308.69532 | CR89: 1347.95618 | CS89: 1388.394865 | CT89: 1430.046711 | CU89: 1472.948112 | CV89: 1517.136556 | CW89: 1562.650652 | CX89: 1609.530172 | CY89: 1657.816077 | CZ89: 1707.550559 | DA89: 1758.777076 | DB89: 1811.540388 | DC89: 1865.8866 | DD89: 1921.863198 | DE89: 1979.519094 | DF89: 2038.904667 | DG89: 2100.071807 | DH89: 2163.073961 | DI89: 2227.96618 | DJ89: 2294.805165 | DK89: 2363.64932 | DL89: 2434.5588 | DM89: 2507.595564 | DN89: 2582.823431 | DO89: 2660.308134 | DP89: 2740.117378 | DQ89: 2822.320899 | DR89: 2906.990526 | DS89: 2994.200242 | DT89: 3084.026249 | DU89: 3176.547037 | DV89: 3271.843448 | DW89: 3369.998751 | DX89: 3471.098714 | DY89: 3575.231675 | DZ89: 3682.488625 | EA89: 3792.963284 | EB89: 3906.752182 | EC89: 4023.954748 | ED89: 4144.67339 | EE89: 4269.013592 | EF89: 4397.084 | EG89: 4528.99652 | EH89: =EH14 -> 4664.866415 | EI89: 4804.812408 | EJ89: 4948.95678 | EK89: 5097.425484 | EL89: 5250.348248 | EM89: 5407.858696 | EN89: 5570.094456 | EO89: 5737.19729 | EP89: 5909.313209 | EQ89: 6086.592605 | ER89: 6269.190383 | ES89: 6457.266095 | ET89: 6650.984078 | EU89: 6850.5136 | EV89: 7056.029008 | EW89: 7267.709878 | EX89: 7485.741174 | EY89: 7710.31341 | EZ89: 7941.622812 | FA89: 8179.871496 | FB89: 8425.267641 | FC89: 8678.02567 | FD89: 8938.366441 | FE89: 9206.517434 | FF89: 9482.712957 | FG89: 9767.194346 | FH89: 10060.21018 | FI89: 10362.01648 | FJ89: 10672.87698 | FK89: 10993.06328 | FL89: 11322.85518 | FM89: 11662.54084 | FN89: 12012.41706 | FO89: 12372.78958 | FP89: 12743.97326 | FQ89: 13126.29246 | FR89: 13520.08123 | FS89: 13925.68367 | FT89: 14343.45418 | FU89: 14773.75781 | FV89: 15216.97054 | FW89: 15673.47966 | FX89: 16143.68405 | FY89: 16627.99457 | FZ89: 17126.83441 | GA89: 17640.63944 | GB89: 18169.85862 | GC89: 18714.95438 | GD89: 19276.40301 | GE89: 19854.6951 | GF89: 20450.33596 | GG89: 21063.84603 | GH89: 21695.76141 | GI89: 22346.63426 | GJ89: 23017.03329 | GK89: 23707.54428 | GL89: 24418.77061 | GM89: 25151.33373 | GN89: 25905.87374 | GO89: 26683.04995 | GP89: 27483.54145 | GQ89: 28308.0477 | GR89: 29157.28913 | GS89: 30032.0078 | GT89: =GT14 -> 30932.96804 | GU89: 31860.95708 | GV89: 32816.78579 | GW89: 33801.28936 | GX89: 34815.32804 | GY89: 35859.78789 | GZ89: 36935.58152 | HA89: 38043.64897 | HB89: 39184.95844 | HC89: 40360.50719 | HD89: 41571.3224 | HE89: 42818.46208 | HF89: 44103.01594 | HG89: 45426.10642 | HH89: 46788.88961 | HI89: 48192.5563 | HJ89: 49638.33299 | HK89: 51127.48298 | HL89: 52661.30747 | HM89: 54241.14669 | HN89: 55868.38109 | HO89: 57544.43252 | HP89: 59270.7655 | HQ89: 61048.88846 | HR89: 62880.35512 | HS89: 64766.76577 | HT89: 66709.76875 | HU89: 68711.06181 | HV89: 70772.39366 | HW89: 72895.56547 | HX89: 75082.43244 | HY89: 77334.90541 | HZ89: 79654.95257 | IA89: 82044.60115 | IB89: 84505.93918 | IC89: 87041.11736 | ID89: 89652.35088 | IE89: 92341.92141 | IF89: 95112.17905 | IG89: 97965.54442 | IH89: 100904.5108 | II89: 103931.6461 | IJ89: 107049.5955 | IK89: 110261.0833 | IL89: 113568.9158 | IM89: 116975.9833 | IN89: 120485.2628 | IO89: 124099.8207 | IP89: 127822.8153 | IQ89: 131657.4998 | IR89: 135607.2247 | IS89: 139675.4415 | IT89: 143865.7047 | IU89: 148181.6759 | IV89: 152627.1262 | IW89: 157205.9399 | IX89: 161922.1181 | IY89: 166779.7817 | IZ89: 171783.1751 | JA89: 176936.6704 | JB89: 182244.7705 | JC89: 187712.1136 | JD89: 193343.477 | JE89: 199143.7813 | JF89: =JF14 -> 205118.0948 | JG89: 211271.6376 | JH89: 217609.7867 | JI89: 224138.0803 | JJ89: 230862.2228 | JK89: 237788.0894 | JL89: 244921.7321 | JM89: 252269.3841 | JN89: 259837.4656 | JO89: 267632.5896 | JP89: 275661.5673 | JQ89: 283931.4143 | JR89: 292449.3567 | JS89: 301222.8374 | JT89: 310259.5225 | JU89: 319567.3082 | JV89: 329154.3275 | JW89: 339028.9573 | JX89: 349199.826 | JY89: 359675.8208 | JZ89: 370466.0954 | KA89: 381580.0783 | KB89: 393027.4806 | KC89: 404818.305 | KD89: 416962.8542 | KE89: 429471.7398 | KF89: 442355.892 | KG89: 455626.5688 | KH89: 469295.3658 | KI89: 483374.2268 | KJ89: 497875.4536 | KK89: 512811.7172 | KL89: 528196.0687 | KM89: 544041.9508 | KN89: 560363.2093 | KO89: 577174.1056 | KP89: 594489.3288 | KQ89: 612324.0086 | KR89: 630693.7289 | KS89: 649614.5407 | KT89: 669102.977 | KU89: 689176.0663 | KV89: 709851.3483 | KW89: =KW14 -> 731146.8887 | KX89: 753081.2954 | KY89: 775673.7342 | KZ89: 798943.9463 | LA89: 822912.2646 | LB89: 847599.6326 | LC89: 873027.6216 | LD89: 899218.4502 | LE89: 926195.0037 | LF89: 953980.8538 | LG89: 982600.2794 | LH89: 1012078.288 | LI89: 1042440.636 | LJ89: 1073713.856 | LK89: 1105925.271 | LL89: 1139103.029 | LM89: 1173276.12 | LN89: 1208474.404 | LO89: 1244728.636 | LP89: 1282070.495 | LQ89: 1320532.61 | LR89: 1360148.588 | LS89: 1400953.046 | LT89: 1442981.637 | LU89: 1486271.086 | LV89: 1530859.219 | LW89: 1576784.995 | LX89: 1624088.545 | LY89: 1672811.202 | LZ89: 1722995.538 | MA89: 1774685.404 | MB89: 1827925.966 | MC89: 1882763.745 | MD89: 1939246.657 | ME89: 1997424.057 | MF89: 2057346.779 | MG89: 2119067.182 | MH89: 2182639.198 | MI89: 2248118.374 | MJ89: 2315561.925 | MK89: 2385028.782 | ML89: 2456579.646 | MM89: 2530277.035 | MN89: 2606185.346 | MO89: 2684370.907 | MP89: 2764902.034 | MQ89: 2847849.095 | MR89: 2933284.568 | MS89: 3021283.105 | MT89: 3111921.598 | MU89: 3205279.246 | MV89: 3301437.623 | MW89: 3400480.752 | MX89: 3502495.175 | MY89: 3607570.03 | MZ89: 3715797.131 | NA89: 3827271.045 | NB89: 3942089.176 | NC89: 4060351.851 | ND89: 4182162.407 | NE89: 4307627.279 | NF89: 4436856.097 | NG89: 4569961.78 | NH89: 4707060.634 | NI89: =NI14 -> 4848272.453 | NJ89: 4993720.626 | NK89: 5143532.245 | NL89: 5297838.212 | NM89: 5456773.359 | NN89: 5620476.56 | NO89: 5789090.856 | NP89: 5962763.582 | NQ89: 6141646.49 | NR89: 6325895.884 | NS89: 6515672.761 | NT89: 6711142.944 | NU89: 6912477.232 | NV89: 7119851.549 | NW89: 7333447.095 | NX89: 7553450.508 | NY89: 7780054.023 | NZ89: 8013455.644 | OA89: 8253859.313 | OB89: 8501475.093 | OC89: 8756519.346 | OD89: 9019214.926 | OE89: 9289791.374 | OF89: 9568485.115 | OG89: 9855539.668 | OH89: 10151205.86 | OI89: 10455742.03 | OJ89: 10769414.3 | OK89: 11092496.72 | OL89: 11425271.63 | OM89: 11768029.77 | ON89: 12121070.67 | OO89: 12484702.79 | OP89: 12859243.87 | OQ89: 13245021.19 | OR89: 13642371.82
D90: Nominal Dismanteling Cost | I90: =I89*(I2=$F$87)*$F$86 -> 0 | J90: 0 | K90: 0 | L90: 0 | M90: 0 | N90: 0 | O90: 0 | P90: 0 | Q90: 0 | R90: 0 | S90: 0 | T90: 0 | U90: 0 | V90: 0 | W90: 0 | X90: 0 | Y90: 0 | Z90: 0 | AA90: 0 | AB90: 0 | AC90: 0 | AD90: 0 | AE90: 0 | AF90: 0 | AG90: 0 | AH90: 0 | AI90: 0 | AJ90: 0 | AK90: 0 | AL90: 728.1787414 | AM90: 0 | AN90: 0 | AO90: 0 | AP90: 0 | AQ90: 0 | AR90: 0 | AS90: 0 | AT90: 0 | AU90: 0 | AV90: 0 | AW90: 0 | AX90: 0 | AY90: 0 | AZ90: 0 | BA90: 0 | BB90: 0 | BC90: 0 | BD90: 0 | BE90: 0 | BF90: 0 | BG90: 0 | BH90: 0 | BI90: 0 | BJ90: 0 | BK90: 0 | BL90: 0 | BM90: 0 | BN90: 0 | BO90: 0 | BP90: 0 | BQ90: 0 | BR90: 0 | BS90: 0 | BT90: 0 | BU90: =BU89*(BU2=$F$87)*$F$86 -> 0 | BV90: 0 | BW90: 0 | BX90: 0 | BY90: 0 | BZ90: 0 | CA90: 0 | CB90: 0 | CC90: 0 | CD90: 0 | CE90: 0 | CF90: 0 | CG90: 0 | CH90: 0 | CI90: 0 | CJ90: 0 | CK90: 0 | CL90: 0 | CM90: 0 | CN90: 0 | CO90: 0 | CP90: 0 | CQ90: 0 | CR90: 0 | CS90: 0 | CT90: 0 | CU90: 0 | CV90: 0 | CW90: 0 | CX90: 0 | CY90: 0 | CZ90: 0 | DA90: 0 | DB90: 0 | DC90: 0 | DD90: 0 | DE90: 0 | DF90: 0 | DG90: 0 | DH90: 0 | DI90: 0 | DJ90: 0 | DK90: 0 | DL90: 0 | DM90: 0 | DN90: 0 | DO90: 0 | DP90: 0 | DQ90: 0 | DR90: 0 | DS90: 0 | DT90: 0 | DU90: 0 | DV90: 0 | DW90: 0 | DX90: 0 | DY90: 0 | DZ90: 0 | EA90: 0 | EB90: 0 | EC90: 0 | ED90: 0 | EE90: 0 | EF90: 0 | EG90: =EG89*(EG2=$F$87)*$F$86 -> 0 | EH90: 0 | EI90: 0 | EJ90: 0 | EK90: 0 | EL90: 0 | EM90: 0 | EN90: 0 | EO90: 0 | EP90: 0 | EQ90: 0 | ER90: 0 | ES90: 0 | ET90: 0 | EU90: 0 | EV90: 0 | EW90: 0 | EX90: 0 | EY90: 0 | EZ90: 0 | FA90: 0 | FB90: 0 | FC90: 0 | FD90: 0 | FE90: 0 | FF90: 0 | FG90: 0 | FH90: 0 | FI90: 0 | FJ90: 0 | FK90: 0 | FL90: 0 | FM90: 0 | FN90: 0 | FO90: 0 | FP90: 0 | FQ90: 0 | FR90: 0 | FS90: 0 | FT90: 0 | FU90: 0 | FV90: 0 | FW90: 0 | FX90: 0 | FY90: 0 | FZ90: 0 | GA90: 0 | GB90: 0 | GC90: 0 | GD90: 0 | GE90: 0 | GF90: 0 | GG90: 0 | GH90: 0 | GI90: 0 | GJ90: 0 | GK90: 0 | GL90: 0 | GM90: 0 | GN90: 0 | GO90: 0 | GP90: 0 | GQ90: 0 | GR90: 0 | GS90: =GS89*(GS2=$F$87)*$F$86 -> 0 | GT90: 0 | GU90: 0 | GV90: 0 | GW90: 0 | GX90: 0 | GY90: 0 | GZ90: 0 | HA90: 0 | HB90: 0 | HC90: 0 | HD90: 0 | HE90: 0 | HF90: 0 | HG90: 0 | HH90: 0 | HI90: 0 | HJ90: 0 | HK90: 0 | HL90: 0 | HM90: 0 | HN90: 0 | HO90: 0 | HP90: 0 | HQ90: 0 | HR90: 0 | HS90: 0 | HT90: 0 | HU90: 0 | HV90: 0 | HW90: 0 | HX90: 0 | HY90: 0 | HZ90: 0 | IA90: 0 | IB90: 0 | IC90: 0 | ID90: 0 | IE90: 0 | IF90: 0 | IG90: 0 | IH90: 0 | II90: 0 | IJ90: 0 | IK90: 0 | IL90: 0 | IM90: 0 | IN90: 0 | IO90: 0 | IP90: 0 | IQ90: 0 | IR90: 0 | IS90: 0 | IT90: 0 | IU90: 0 | IV90: 0 | IW90: 0 | IX90: 0 | IY90: 0 | IZ90: 0 | JA90: 0 | JB90: 0 | JC90: 0 | JD90: 0 | JE90: =JE89*(JE2=$F$87)*$F$86 -> 0 | JF90: 0 | JG90: 0 | JH90: 0 | JI90: 0 | JJ90: 0 | JK90: 0 | JL90: 0 | JM90: 0 | JN90: 0 | JO90: 0 | JP90: 0 | JQ90: 0 | JR90: 0 | JS90: 0 | JT90: 0 | JU90: 0 | JV90: 0 | JW90: 0 | JX90: 0 | JY90: 0 | JZ90: 0 | KA90: 0 | KB90: 0 | KC90: 0 | KD90: 0 | KE90: 0 | KF90: 0 | KG90: 0 | KH90: 0 | KI90: 0 | KJ90: 0 | KK90: 0 | KL90: 0 | KM90: 0 | KN90: 0 | KO90: 0 | KP90: 0 | KQ90: 0 | KR90: 0 | KS90: 0 | KT90: 0 | KU90: 0 | KV90: 0 | KW90: 0 | KX90: 0 | KY90: 0 | KZ90: 0 | LA90: 0 | LB90: 0 | LC90: 0 | LD90: 0 | LE90: 0 | LF90: 0 | LG90: 0 | LH90: 0 | LI90: 0 | LJ90: 0 | LK90: 0 | LL90: 0 | LM90: 0 | LN90: 0 | LO90: 0 | LP90: 0 | LQ90: =LQ89*(LQ2=$F$87)*$F$86 -> 0 | LR90: 0 | LS90: 0 | LT90: 0 | LU90: 0 | LV90: 0 | LW90: 0 | LX90: 0 | LY90: 0 | LZ90: 0 | MA90: 0 | MB90: 0 | MC90: 0 | MD90: 0 | ME90: 0 | MF90: 0 | MG90: 0 | MH90: 0 | MI90: 0 | MJ90: 0 | MK90: 0 | ML90: 0 | MM90: 0 | MN90: 0 | MO90: 0 | MP90: 0 | MQ90: 0 | MR90: 0 | MS90: 0 | MT90: 0 | MU90: 0 | MV90: 0 | MW90: 0 | MX90: 0 | MY90: 0 | MZ90: 0 | NA90: 0 | NB90: 0 | NC90: 0 | ND90: 0 | NE90: 0 | NF90: 0 | NG90: 0 | NH90: 0 | NI90: 0 | NJ90: 0 | NK90: 0 | NL90: 0 | NM90: 0 | NN90: 0 | NO90: 0 | NP90: 0 | NQ90: 0 | NR90: 0 | NS90: 0 | NT90: 0 | NU90: 0 | NV90: 0 | NW90: 0 | NX90: 0 | NY90: 0 | NZ90: 0 | OA90: 0 | OB90: 0 | OC90: =OC89*(OC2=$F$87)*$F$86 -> 0 | OD90: 0 | OE90: 0 | OF90: 0 | OG90: 0 | OH90: 0 | OI90: 0 | OJ90: 0 | OK90: 0 | OL90: 0 | OM90: 0 | ON90: 0 | OO90: 0 | OP90: 0 | OQ90: 0 | OR90: 0
D91: Present Value of Dismanteling at WACC | F91: =F88 -> 0.04 | I91: =NPV($F$91,I90:KV90)*(1+$F$91) -> 233.4915436 | J91: =NPV($F$91,J90:KV90)*(1+$F$91) -> 242.8312053 | K91: =NPV($F$91,K90:KV90)*(1+$F$91) -> 252.5444535 | L91: =NPV($F$91,L90:KV90)*(1+$F$91) -> 262.6462317 | M91: =NPV($F$91,M90:KV90)*(1+$F$91) -> 273.1520809 | N91: =NPV($F$91,N90:KV90)*(1+$F$91) -> 284.0781642 | O91: =NPV($F$91,O90:KV90)*(1+$F$91) -> 295.4412907 | P91: =NPV($F$91,P90:KV90)*(1+$F$91) -> 307.2589424 | Q91: =NPV($F$91,Q90:KV90)*(1+$F$91) -> 319.5493001 | R91: =NPV($F$91,R90:KV90)*(1+$F$91) -> 332.3312721 | S91: =NPV($F$91,S90:KV90)*(1+$F$91) -> 345.6245229 | T91: =NPV($F$91,T90:KV90)*(1+$F$91) -> 359.4495039 | U91: =NPV($F$91,U90:KV90)*(1+$F$91) -> 373.827484 | V91: =NPV($F$91,V90:KV90)*(1+$F$91) -> 388.7805834 | W91: =NPV($F$91,W90:KV90)*(1+$F$91) -> 404.3318067 | X91: =NPV($F$91,X90:KV90)*(1+$F$91) -> 420.505079 | Y91: =NPV($F$91,Y90:KV90)*(1+$F$91) -> 437.3252821 | Z91: =NPV($F$91,Z90:KV90)*(1+$F$91) -> 454.8182934 | AA91: =NPV($F$91,AA90:KV90)*(1+$F$91) -> 473.0110252 | AB91: =NPV($F$91,AB90:KV90)*(1+$F$91) -> 491.9314662 | AC91: =NPV($F$91,AC90:KV90)*(1+$F$91) -> 511.6087248 | AD91: =NPV($F$91,AD90:KV90)*(1+$F$91) -> 532.0730738 | AE91: =NPV($F$91,AE90:KV90)*(1+$F$91) -> 553.3559968 | AF91: =NPV($F$91,AF90:KV90)*(1+$F$91) -> 575.4902366 | AG91: =NPV($F$91,AG90:KV90)*(1+$F$91) -> 598.5098461 | AH91: =NPV($F$91,AH90:KV90)*(1+$F$91) -> 622.4502399 | AI91: =NPV($F$91,AI90:KV90)*(1+$F$91) -> 647.3482495 | AJ91: =NPV($F$91,AJ90:KV90)*(1+$F$91) -> 673.2421795 | AK91: =NPV($F$91,AK90:KV90)*(1+$F$91) -> 700.1718667 | AL91: =NPV($F$91,AL90:KV90)*(1+$F$91) -> 728.1787414 | AM91: =NPV($F$91,AM90:KV90)*(1+$F$91) -> 0 | AN91: =NPV($F$91,AN90:KV90)*(1+$F$91) -> 0 | AO91: =NPV($F$91,AO90:KV90)*(1+$F$91) -> 0 | AP91: =NPV($F$91,AP90:KV90)*(1+$F$91) -> 0 | AQ91: =NPV($F$91,AQ90:KV90)*(1+$F$91) -> 0 | AR91: =NPV($F$91,AR90:KV90)*(1+$F$91) -> 0 | AS91: =NPV($F$91,AS90:KV90)*(1+$F$91) -> 0 | AT91: =NPV($F$91,AT90:KV90)*(1+$F$91) -> 0 | AU91: =NPV($F$91,AU90:KV90)*(1+$F$91) -> 0 | AV91: =NPV($F$91,AV90:KV90)*(1+$F$91) -> 0 | AW91: =NPV($F$91,AW90:KV90)*(1+$F$91) -> 0 | AX91: =NPV($F$91,AX90:KV90)*(1+$F$91) -> 0 | AY91: =NPV($F$91,AY90:KV90)*(1+$F$91) -> 0 | AZ91: =NPV($F$91,AZ90:KV90)*(1+$F$91) -> 0 | BA91: =NPV($F$91,BA90:KV90)*(1+$F$91) -> 0 | BB91: =NPV($F$91,BB90:KV90)*(1+$F$91) -> 0 | BC91: =NPV($F$91,BC90:KV90)*(1+$F$91) -> 0 | BD91: =NPV($F$91,BD90:KV90)*(1+$F$91) -> 0 | BE91: =NPV($F$91,BE90:KV90)*(1+$F$91) -> 0 | BF91: =NPV($F$91,BF90:KV90)*(1+$F$91) -> 0 | BG91: =NPV($F$91,BG90:KV90)*(1+$F$91) -> 0 | BH91: =NPV($F$91,BH90:KV90)*(1+$F$91) -> 0 | BI91: =NPV($F$91,BI90:KV90)*(1+$F$91) -> 0 | BJ91: =NPV($F$91,BJ90:KV90)*(1+$F$91) -> 0 | BK91: =NPV($F$91,BK90:KV90)*(1+$F$91) -> 0 | BL91: =NPV($F$91,BL90:KV90)*(1+$F$91) -> 0 | BM91: =NPV($F$91,BM90:KV90)*(1+$F$91) -> 0 | BN91: =NPV($F$91,BN90:KV90)*(1+$F$91) -> 0 | BO91: =NPV($F$91,BO90:KV90)*(1+$F$91) -> 0 | BP91: =NPV($F$91,BP90:KV90)*(1+$F$91) -> 0 | BQ91: =NPV($F$91,BQ90:KV90)*(1+$F$91) -> 0 | BR91: =NPV($F$91,BR90:KV90)*(1+$F$91) -> 0 | BS91: =NPV($F$91,BS90:KV90)*(1+$F$91) -> 0 | BT91: =NPV($F$91,BT90:KV90)*(1+$F$91) -> 0 | BU91: =NPV($F$91,BU90:KV90)*(1+$F$91) -> 0 | BV91: =NPV($F$91,BV90:KV90)*(1+$F$91) -> 0 | BW91: =NPV($F$91,BW90:KV90)*(1+$F$91) -> 0 | BX91: =NPV($F$91,BX90:KV90)*(1+$F$91) -> 0 | BY91: =NPV($F$91,BY90:KV90)*(1+$F$91) -> 0 | BZ91: =NPV($F$91,BZ90:KV90)*(1+$F$91) -> 0 | CA91: =NPV($F$91,CA90:KV90)*(1+$F$91) -> 0 | CB91: =NPV($F$91,CB90:KV90)*(1+$F$91) -> 0 | CC91: =NPV($F$91,CC90:KV90)*(1+$F$91) -> 0 | CD91: =NPV($F$91,CD90:KV90)*(1+$F$91) -> 0 | CE91: =NPV($F$91,CE90:KV90)*(1+$F$91) -> 0 | CF91: =NPV($F$91,CF90:KV90)*(1+$F$91) -> 0 | CG91: =NPV($F$91,CG90:KV90)*(1+$F$91) -> 0 | CH91: =NPV($F$91,CH90:KV90)*(1+$F$91) -> 0 | CI91: =NPV($F$91,CI90:KV90)*(1+$F$91) -> 0 | CJ91: =NPV($F$91,CJ90:KV90)*(1+$F$91) -> 0 | CK91: =NPV($F$91,CK90:KV90)*(1+$F$91) -> 0 | CL91: =NPV($F$91,CL90:KV90)*(1+$F$91) -> 0 | CM91: =NPV($F$91,CM90:KV90)*(1+$F$91) -> 0 | CN91: =NPV($F$91,CN90:KV90)*(1+$F$91) -> 0 | CO91: =NPV($F$91,CO90:KV90)*(1+$F$91) -> 0 | CP91: =NPV($F$91,CP90:KV90)*(1+$F$91) -> 0 | CQ91: =NPV($F$91,CQ90:KV90)*(1+$F$91) -> 0 | CR91: =NPV($F$91,CR90:KV90)*(1+$F$91) -> 0 | CS91: =NPV($F$91,CS90:KV90)*(1+$F$91) -> 0 | CT91: =NPV($F$91,CT90:KV90)*(1+$F$91) -> 0 | CU91: =NPV($F$91,CU90:KV90)*(1+$F$91) -> 0 | CV91: =NPV($F$91,CV90:KV90)*(1+$F$91) -> 0 | CW91: =NPV($F$91,CW90:KV90)*(1+$F$91) -> 0 | CX91: =NPV($F$91,CX90:KV90)*(1+$F$91) -> 0 | CY91: =NPV($F$91,CY90:KV90)*(1+$F$91) -> 0 | CZ91: =NPV($F$91,CZ90:KV90)*(1+$F$91) -> 0 | DA91: =NPV($F$91,DA90:KV90)*(1+$F$91) -> 0 | DB91: =NPV($F$91,DB90:KV90)*(1+$F$91) -> 0 | DC91: =NPV($F$91,DC90:KV90)*(1+$F$91) -> 0 | DD91: =NPV($F$91,DD90:KV90)*(1+$F$91) -> 0 | DE91: =NPV($F$91,DE90:KV90)*(1+$F$91) -> 0 | DF91: =NPV($F$91,DF90:KV90)*(1+$F$91) -> 0 | DG91: =NPV($F$91,DG90:KV90)*(1+$F$91) -> 0 | DH91: =NPV($F$91,DH90:KV90)*(1+$F$91) -> 0 | DI91: =NPV($F$91,DI90:KV90)*(1+$F$91) -> 0 | DJ91: =NPV($F$91,DJ90:KV90)*(1+$F$91) -> 0 | DK91: =NPV($F$91,DK90:KV90)*(1+$F$91) -> 0 | DL91: =NPV($F$91,DL90:KV90)*(1+$F$91) -> 0 | DM91: =NPV($F$91,DM90:KV90)*(1+$F$91) -> 0 | DN91: =NPV($F$91,DN90:KV90)*(1+$F$91) -> 0 | DO91: =NPV($F$91,DO90:KV90)*(1+$F$91) -> 0 | DP91: =NPV($F$91,DP90:KV90)*(1+$F$91) -> 0 | DQ91: =NPV($F$91,DQ90:KV90)*(1+$F$91) -> 0 | DR91: =NPV($F$91,DR90:KV90)*(1+$F$91) -> 0 | DS91: =NPV($F$91,DS90:KV90)*(1+$F$91) -> 0 | DT91: =NPV($F$91,DT90:KV90)*(1+$F$91) -> 0 | DU91: =NPV($F$91,DU90:KV90)*(1+$F$91) -> 0 | DV91: =NPV($F$91,DV90:KV90)*(1+$F$91) -> 0 | DW91: =NPV($F$91,DW90:KV90)*(1+$F$91) -> 0 | DX91: =NPV($F$91,DX90:KV90)*(1+$F$91) -> 0 | DY91: =NPV($F$91,DY90:KV90)*(1+$F$91) -> 0 | DZ91: =NPV($F$91,DZ90:KV90)*(1+$F$91) -> 0 | EA91: =NPV($F$91,EA90:KV90)*(1+$F$91) -> 0 | EB91: =NPV($F$91,EB90:KV90)*(1+$F$91) -> 0 | EC91: =NPV($F$91,EC90:KV90)*(1+$F$91) -> 0 | ED91: =NPV($F$91,ED90:KV90)*(1+$F$91) -> 0 | EE91: =NPV($F$91,EE90:KV90)*(1+$F$91) -> 0 | EF91: =NPV($F$91,EF90:KV90)*(1+$F$91) -> 0 | EG91: =NPV($F$91,EG90:KV90)*(1+$F$91) -> 0 | EH91: =NPV($F$91,EH90:KV90)*(1+$F$91) -> 0 | EI91: =NPV($F$91,EI90:KV90)*(1+$F$91) -> 0 | EJ91: =NPV($F$91,EJ90:KV90)*(1+$F$91) -> 0 | EK91: =NPV($F$91,EK90:KV90)*(1+$F$91) -> 0 | EL91: =NPV($F$91,EL90:KV90)*(1+$F$91) -> 0 | EM91: =NPV($F$91,EM90:KV90)*(1+$F$91) -> 0 | EN91: =NPV($F$91,EN90:KV90)*(1+$F$91) -> 0 | EO91: =NPV($F$91,EO90:KV90)*(1+$F$91) -> 0 | EP91: =NPV($F$91,EP90:KV90)*(1+$F$91) -> 0 | EQ91: =NPV($F$91,EQ90:KV90)*(1+$F$91) -> 0 | ER91: =NPV($F$91,ER90:KV90)*(1+$F$91) -> 0 | ES91: =NPV($F$91,ES90:KV90)*(1+$F$91) -> 0 | ET91: =NPV($F$91,ET90:KV90)*(1+$F$91) -> 0 | EU91: =NPV($F$91,EU90:KV90)*(1+$F$91) -> 0 | EV91: =NPV($F$91,EV90:KV90)*(1+$F$91) -> 0 | EW91: =NPV($F$91,EW90:KV90)*(1+$F$91) -> 0 | EX91: =NPV($F$91,EX90:KV90)*(1+$F$91) -> 0 | EY91: =NPV($F$91,EY90:KV90)*(1+$F$91) -> 0 | EZ91: =NPV($F$91,EZ90:KV90)*(1+$F$91) -> 0 | FA91: =NPV($F$91,FA90:KV90)*(1+$F$91) -> 0 | FB91: =NPV($F$91,FB90:KV90)*(1+$F$91) -> 0 | FC91: =NPV($F$91,FC90:KV90)*(1+$F$91) -> 0 | FD91: =NPV($F$91,FD90:KV90)*(1+$F$91) -> 0 | FE91: =NPV($F$91,FE90:KV90)*(1+$F$91) -> 0 | FF91: =NPV($F$91,FF90:KV90)*(1+$F$91) -> 0 | FG91: =NPV($F$91,FG90:KV90)*(1+$F$91) -> 0 | FH91: =NPV($F$91,FH90:KV90)*(1+$F$91) -> 0 | FI91: =NPV($F$91,FI90:KV90)*(1+$F$91) -> 0 | FJ91: =NPV($F$91,FJ90:KV90)*(1+$F$91) -> 0 | FK91: =NPV($F$91,FK90:KV90)*(1+$F$91) -> 0 | FL91: =NPV($F$91,FL90:KV90)*(1+$F$91) -> 0 | FM91: =NPV($F$91,FM90:KV90)*(1+$F$91) -> 0 | FN91: =NPV($F$91,FN90:KV90)*(1+$F$91) -> 0 | FO91: =NPV($F$91,FO90:KV90)*(1+$F$91) -> 0 | FP91: =NPV($F$91,FP90:KV90)*(1+$F$91) -> 0 | FQ91: =NPV($F$91,FQ90:KV90)*(1+$F$91) -> 0 | FR91: =NPV($F$91,FR90:KV90)*(1+$F$91) -> 0 | FS91: =NPV($F$91,FS90:KV90)*(1+$F$91) -> 0 | FT91: =NPV($F$91,FT90:KV90)*(1+$F$91) -> 0 | FU91: =NPV($F$91,FU90:KV90)*(1+$F$91) -> 0 | FV91: =NPV($F$91,FV90:KV90)*(1+$F$91) -> 0 | FW91: =NPV($F$91,FW90:KV90)*(1+$F$91) -> 0 | FX91: =NPV($F$91,FX90:KV90)*(1+$F$91) -> 0 | FY91: =NPV($F$91,FY90:KV90)*(1+$F$91) -> 0 | FZ91: =NPV($F$91,FZ90:KV90)*(1+$F$91) -> 0 | GA91: =NPV($F$91,GA90:KV90)*(1+$F$91) -> 0 | GB91: =NPV($F$91,GB90:KV90)*(1+$F$91) -> 0 | GC91: =NPV($F$91,GC90:KV90)*(1+$F$91) -> 0 | GD91: =NPV($F$91,GD90:KV90)*(1+$F$91) -> 0 | GE91: =NPV($F$91,GE90:KV90)*(1+$F$91) -> 0 | GF91: =NPV($F$91,GF90:KV90)*(1+$F$91) -> 0 | GG91: =NPV($F$91,GG90:KV90)*(1+$F$91) -> 0 | GH91: =NPV($F$91,GH90:KV90)*(1+$F$91) -> 0 | GI91: =NPV($F$91,GI90:KV90)*(1+$F$91) -> 0 | GJ91: =NPV($F$91,GJ90:KV90)*(1+$F$91) -> 0 | GK91: =NPV($F$91,GK90:KV90)*(1+$F$91) -> 0 | GL91: =NPV($F$91,GL90:KV90)*(1+$F$91) -> 0 | GM91: =NPV($F$91,GM90:KV90)*(1+$F$91) -> 0 | GN91: =NPV($F$91,GN90:KV90)*(1+$F$91) -> 0 | GO91: =NPV($F$91,GO90:KV90)*(1+$F$91) -> 0 | GP91: =NPV($F$91,GP90:KV90)*(1+$F$91) -> 0 | GQ91: =NPV($F$91,GQ90:KV90)*(1+$F$91) -> 0 | GR91: =NPV($F$91,GR90:KV90)*(1+$F$91) -> 0 | GS91: =NPV($F$91,GS90:KV90)*(1+$F$91) -> 0 | GT91: =NPV($F$91,GT90:KV90)*(1+$F$91) -> 0 | GU91: =NPV($F$91,GU90:KV90)*(1+$F$91) -> 0 | GV91: =NPV($F$91,GV90:KV90)*(1+$F$91) -> 0 | GW91: =NPV($F$91,GW90:KV90)*(1+$F$91) -> 0 | GX91: =NPV($F$91,GX90:KV90)*(1+$F$91) -> 0 | GY91: =NPV($F$91,GY90:KV90)*(1+$F$91) -> 0 | GZ91: =NPV($F$91,GZ90:KV90)*(1+$F$91) -> 0 | HA91: =NPV($F$91,HA90:KV90)*(1+$F$91) -> 0 | HB91: =NPV($F$91,HB90:KV90)*(1+$F$91) -> 0 | HC91: =NPV($F$91,HC90:KV90)*(1+$F$91) -> 0 | HD91: =NPV($F$91,HD90:KV90)*(1+$F$91) -> 0 | HE91: =NPV($F$91,HE90:KV90)*(1+$F$91) -> 0 | HF91: =NPV($F$91,HF90:KV90)*(1+$F$91) -> 0 | HG91: =NPV($F$91,HG90:KV90)*(1+$F$91) -> 0 | HH91: =NPV($F$91,HH90:KV90)*(1+$F$91) -> 0 | HI91: =NPV($F$91,HI90:KV90)*(1+$F$91) -> 0 | HJ91: =NPV($F$91,HJ90:KV90)*(1+$F$91) -> 0 | HK91: =NPV($F$91,HK90:KV90)*(1+$F$91) -> 0 | HL91: =NPV($F$91,HL90:KV90)*(1+$F$91) -> 0 | HM91: =NPV($F$91,HM90:KV90)*(1+$F$91) -> 0 | HN91: =NPV($F$91,HN90:KV90)*(1+$F$91) -> 0 | HO91: =NPV($F$91,HO90:KV90)*(1+$F$91) -> 0 | HP91: =NPV($F$91,HP90:KV90)*(1+$F$91) -> 0 | HQ91: =NPV($F$91,HQ90:KV90)*(1+$F$91) -> 0 | HR91: =NPV($F$91,HR90:KV90)*(1+$F$91) -> 0 | HS91: =NPV($F$91,HS90:KV90)*(1+$F$91) -> 0 | HT91: =NPV($F$91,HT90:KV90)*(1+$F$91) -> 0 | HU91: =NPV($F$91,HU90:KV90)*(1+$F$91) -> 0 | HV91: =NPV($F$91,HV90:KV90)*(1+$F$91) -> 0 | HW91: =NPV($F$91,HW90:KV90)*(1+$F$91) -> 0 | HX91: =NPV($F$91,HX90:KV90)*(1+$F$91) -> 0 | HY91: =NPV($F$91,HY90:KV90)*(1+$F$91) -> 0 | HZ91: =NPV($F$91,HZ90:KV90)*(1+$F$91) -> 0 | IA91: =NPV($F$91,IA90:KV90)*(1+$F$91) -> 0 | IB91: =NPV($F$91,IB90:KV90)*(1+$F$91) -> 0 | IC91: =NPV($F$91,IC90:KV90)*(1+$F$91) -> 0 | ID91: =NPV($F$91,ID90:KV90)*(1+$F$91) -> 0 | IE91: =NPV($F$91,IE90:KV90)*(1+$F$91) -> 0 | IF91: =NPV($F$91,IF90:KV90)*(1+$F$91) -> 0 | IG91: =NPV($F$91,IG90:KV90)*(1+$F$91) -> 0 | IH91: =NPV($F$91,IH90:KV90)*(1+$F$91) -> 0 | II91: =NPV($F$91,II90:KV90)*(1+$F$91) -> 0 | IJ91: =NPV($F$91,IJ90:KV90)*(1+$F$91) -> 0 | IK91: =NPV($F$91,IK90:KV90)*(1+$F$91) -> 0 | IL91: =NPV($F$91,IL90:KV90)*(1+$F$91) -> 0 | IM91: =NPV($F$91,IM90:KV90)*(1+$F$91) -> 0 | IN91: =NPV($F$91,IN90:KV90)*(1+$F$91) -> 0 | IO91: =NPV($F$91,IO90:KV90)*(1+$F$91) -> 0 | IP91: =NPV($F$91,IP90:KV90)*(1+$F$91) -> 0 | IQ91: =NPV($F$91,IQ90:KV90)*(1+$F$91) -> 0 | IR91: =NPV($F$91,IR90:KV90)*(1+$F$91) -> 0 | IS91: =NPV($F$91,IS90:KV90)*(1+$F$91) -> 0 | IT91: =NPV($F$91,IT90:KV90)*(1+$F$91) -> 0 | IU91: =NPV($F$91,IU90:KV90)*(1+$F$91) -> 0 | IV91: =NPV($F$91,IV90:KV90)*(1+$F$91) -> 0 | IW91: =NPV($F$91,IW90:KV90)*(1+$F$91) -> 0 | IX91: =NPV($F$91,IX90:KV90)*(1+$F$91) -> 0 | IY91: =NPV($F$91,IY90:KV90)*(1+$F$91) -> 0 | IZ91: =NPV($F$91,IZ90:KV90)*(1+$F$91) -> 0 | JA91: =NPV($F$91,JA90:KV90)*(1+$F$91) -> 0 | JB91: =NPV($F$91,JB90:KV90)*(1+$F$91) -> 0 | JC91: =NPV($F$91,JC90:KV90)*(1+$F$91) -> 0 | JD91: =NPV($F$91,JD90:KV90)*(1+$F$91) -> 0 | JE91: =NPV($F$91,JE90:KV90)*(1+$F$91) -> 0 | JF91: =NPV($F$91,JF90:KV90)*(1+$F$91) -> 0 | JG91: =NPV($F$91,JG90:KV90)*(1+$F$91) -> 0 | JH91: =NPV($F$91,JH90:KV90)*(1+$F$91) -> 0 | JI91: =NPV($F$91,JI90:KV90)*(1+$F$91) -> 0 | JJ91: =NPV($F$91,JJ90:KV90)*(1+$F$91) -> 0 | JK91: =NPV($F$91,JK90:KV90)*(1+$F$91) -> 0 | JL91: =NPV($F$91,JL90:KV90)*(1+$F$91) -> 0 | JM91: =NPV($F$91,JM90:KV90)*(1+$F$91) -> 0 | JN91: =NPV($F$91,JN90:KV90)*(1+$F$91) -> 0 | JO91: =NPV($F$91,JO90:KV90)*(1+$F$91) -> 0 | JP91: =NPV($F$91,JP90:KV90)*(1+$F$91) -> 0 | JQ91: =NPV($F$91,JQ90:KV90)*(1+$F$91) -> 0 | JR91: =NPV($F$91,JR90:KV90)*(1+$F$91) -> 0 | JS91: =NPV($F$91,JS90:KV90)*(1+$F$91) -> 0 | JT91: =NPV($F$91,JT90:KV90)*(1+$F$91) -> 0 | JU91: =NPV($F$91,JU90:KV90)*(1+$F$91) -> 0 | JV91: =NPV($F$91,JV90:KV90)*(1+$F$91) -> 0 | JW91: =NPV($F$91,JW90:KV90)*(1+$F$91) -> 0 | JX91: =NPV($F$91,JX90:KV90)*(1+$F$91) -> 0 | JY91: =NPV($F$91,JY90:KV90)*(1+$F$91) -> 0 | JZ91: =NPV($F$91,JZ90:KV90)*(1+$F$91) -> 0 | KA91: =NPV($F$91,KA90:KV90)*(1+$F$91) -> 0 | KB91: =NPV($F$91,KB90:KV90)*(1+$F$91) -> 0 | KC91: =NPV($F$91,KC90:KV90)*(1+$F$91) -> 0 | KD91: =NPV($F$91,KD90:KV90)*(1+$F$91) -> 0 | KE91: =NPV($F$91,KE90:KV90)*(1+$F$91) -> 0 | KF91: =NPV($F$91,KF90:KV90)*(1+$F$91) -> 0 | KG91: =NPV($F$91,KG90:KV90)*(1+$F$91) -> 0 | KH91: =NPV($F$91,KH90:KV90)*(1+$F$91) -> 0 | KI91: =NPV($F$91,KI90:KV90)*(1+$F$91) -> 0 | KJ91: =NPV($F$91,KJ90:KV90)*(1+$F$91) -> 0 | KK91: =NPV($F$91,KK90:KV90)*(1+$F$91) -> 0 | KL91: =NPV($F$91,KL90:KV90)*(1+$F$91) -> 0 | KM91: =NPV($F$91,KM90:KV90)*(1+$F$91) -> 0 | KN91: =NPV($F$91,KN90:KV90)*(1+$F$91) -> 0 | KO91: =NPV($F$91,KO90:KV90)*(1+$F$91) -> 0 | KP91: =NPV($F$91,KP90:KV90)*(1+$F$91) -> 0 | KQ91: =NPV($F$91,KQ90:KV90)*(1+$F$91) -> 0 | KR91: =NPV($F$91,KR90:KV90)*(1+$F$91) -> 0 | KS91: =NPV($F$91,KS90:KV90)*(1+$F$91) -> 0 | KT91: =NPV($F$91,KT90:KV90)*(1+$F$91) -> 0 | KU91: =NPV($F$91,KU90:KV90)*(1+$F$91) -> 0 | KV91: =NPV($F$91,KV90:KV90)*(1+$F$91) -> 0 | KW91: =NPV($F$91,KW90:KW90)*(1+$F$91) -> 0 | KX91: 0 | KY91: 0 | KZ91: 0 | LA91: 0 | LB91: 0 | LC91: 0 | LD91: 0 | LE91: 0 | LF91: 0 | LG91: 0 | LH91: 0 | LI91: 0 | LJ91: 0 | LK91: 0 | LL91: 0 | LM91: 0 | LN91: 0 | LO91: 0 | LP91: 0 | LQ91: 0 | LR91: 0 | LS91: 0 | LT91: 0 | LU91: 0 | LV91: 0 | LW91: 0 | LX91: 0 | LY91: 0 | LZ91: 0 | MA91: 0 | MB91: 0 | MC91: 0 | MD91: 0 | ME91: 0 | MF91: 0 | MG91: 0 | MH91: 0 | MI91: 0 | MJ91: 0 | MK91: 0 | ML91: 0 | MM91: 0 | MN91: 0 | MO91: 0 | MP91: 0 | MQ91: 0 | MR91: 0 | MS91: 0 | MT91: 0 | MU91: 0 | MV91: 0 | MW91: 0 | MX91: 0 | MY91: 0 | MZ91: 0 | NA91: 0 | NB91: 0 | NC91: 0 | ND91: 0 | NE91: 0 | NF91: 0 | NG91: 0 | NH91: 0 | NI91: =NPV($F$91,NI90:NI90)*(1+$F$91) -> 0 | NJ91: 0 | NK91: 0 | NL91: 0 | NM91: 0 | NN91: 0 | NO91: 0 | NP91: 0 | NQ91: 0 | NR91: 0 | NS91: 0 | NT91: 0 | NU91: 0 | NV91: 0 | NW91: 0 | NX91: 0 | NY91: 0 | NZ91: 0 | OA91: 0 | OB91: 0 | OC91: 0 | OD91: 0 | OE91: 0 | OF91: 0 | OG91: 0 | OH91: 0 | OI91: 0 | OJ91: 0 | OK91: 0 | OL91: 0 | OM91: 0 | ON91: 0 | OO91: 0 | OP91: 0 | OQ91: 0 | OR91: 0
D92: Increase in Provision | I92: =(I91-H91)*(I2<=$F$87) -> 233.4915436 | J92: 9.339661743 | K92: 9.713248212 | L92: 10.10177814 | M92: 10.50584927 | N92: 10.92608324 | O92: 11.36312657 | P92: 11.81765163 | Q92: 12.29035769 | R92: 12.781972 | S92: 13.29325088 | T92: 13.82498092 | U92: 14.37798015 | V92: 14.95309936 | W92: 15.55122333 | X92: 16.17327227 | Y92: 16.82020316 | Z92: 17.49301129 | AA92: 18.19273174 | AB92: 18.92044101 | AC92: 19.67725865 | AD92: 20.46434899 | AE92: 21.28292295 | AF92: 22.13423987 | AG92: 23.01960946 | AH92: 23.94039384 | AI92: 24.8980096 | AJ92: 25.89392998 | AK92: 26.92968718 | AL92: 28.00687467 | AM92: 0 | AN92: 0 | AO92: 0 | AP92: 0 | AQ92: 0 | AR92: 0 | AS92: 0 | AT92: 0 | AU92: 0 | AV92: 0 | AW92: 0 | AX92: 0 | AY92: 0 | AZ92: 0 | BA92: 0 | BB92: 0 | BC92: 0 | BD92: 0 | BE92: 0 | BF92: 0 | BG92: 0 | BH92: 0 | BI92: 0 | BJ92: 0 | BK92: 0 | BL92: 0 | BM92: 0 | BN92: 0 | BO92: 0 | BP92: 0 | BQ92: 0 | BR92: 0 | BS92: 0 | BT92: 0 | BU92: =(BU91-BT91)*(BU2<=$F$87) -> 0 | BV92: 0 | BW92: 0 | BX92: 0 | BY92: 0 | BZ92: 0 | CA92: 0 | CB92: 0 | CC92: 0 | CD92: 0 | CE92: 0 | CF92: 0 | CG92: 0 | CH92: 0 | CI92: 0 | CJ92: 0 | CK92: 0 | CL92: 0 | CM92: 0 | CN92: 0 | CO92: 0 | CP92: 0 | CQ92: 0 | CR92: 0 | CS92: 0 | CT92: 0 | CU92: 0 | CV92: 0 | CW92: 0 | CX92: 0 | CY92: 0 | CZ92: 0 | DA92: 0 | DB92: 0 | DC92: 0 | DD92: 0 | DE92: 0 | DF92: 0 | DG92: 0 | DH92: 0 | DI92: 0 | DJ92: 0 | DK92: 0 | DL92: 0 | DM92: 0 | DN92: 0 | DO92: 0 | DP92: 0 | DQ92: 0 | DR92: 0 | DS92: 0 | DT92: 0 | DU92: 0 | DV92: 0 | DW92: 0 | DX92: 0 | DY92: 0 | DZ92: 0 | EA92: 0 | EB92: 0 | EC92: 0 | ED92: 0 | EE92: 0 | EF92: 0 | EG92: =(EG91-EF91)*(EG2<=$F$87) -> 0 | EH92: 0 | EI92: 0 | EJ92: 0 | EK92: 0 | EL92: 0 | EM92: 0 | EN92: 0 | EO92: 0 | EP92: 0 | EQ92: 0 | ER92: 0 | ES92: 0 | ET92: 0 | EU92: 0 | EV92: 0 | EW92: 0 | EX92: 0 | EY92: 0 | EZ92: 0 | FA92: 0 | FB92: 0 | FC92: 0 | FD92: 0 | FE92: 0 | FF92: 0 | FG92: 0 | FH92: 0 | FI92: 0 | FJ92: 0 | FK92: 0 | FL92: 0 | FM92: 0 | FN92: 0 | FO92: 0 | FP92: 0 | FQ92: 0 | FR92: 0 | FS92: 0 | FT92: 0 | FU92: 0 | FV92: 0 | FW92: 0 | FX92: 0 | FY92: 0 | FZ92: 0 | GA92: 0 | GB92: 0 | GC92: 0 | GD92: 0 | GE92: 0 | GF92: 0 | GG92: 0 | GH92: 0 | GI92: 0 | GJ92: 0 | GK92: 0 | GL92: 0 | GM92: 0 | GN92: 0 | GO92: 0 | GP92: 0 | GQ92: 0 | GR92: 0 | GS92: =(GS91-GR91)*(GS2<=$F$87) -> 0 | GT92: 0 | GU92: 0 | GV92: 0 | GW92: 0 | GX92: 0 | GY92: 0 | GZ92: 0 | HA92: 0 | HB92: 0 | HC92: 0 | HD92: 0 | HE92: 0 | HF92: 0 | HG92: 0 | HH92: 0 | HI92: 0 | HJ92: 0 | HK92: 0 | HL92: 0 | HM92: 0 | HN92: 0 | HO92: 0 | HP92: 0 | HQ92: 0 | HR92: 0 | HS92: 0 | HT92: 0 | HU92: 0 | HV92: 0 | HW92: 0 | HX92: 0 | HY92: 0 | HZ92: 0 | IA92: 0 | IB92: 0 | IC92: 0 | ID92: 0 | IE92: 0 | IF92: 0 | IG92: 0 | IH92: 0 | II92: 0 | IJ92: 0 | IK92: 0 | IL92: 0 | IM92: 0 | IN92: 0 | IO92: 0 | IP92: 0 | IQ92: 0 | IR92: 0 | IS92: 0 | IT92: 0 | IU92: 0 | IV92: 0 | IW92: 0 | IX92: 0 | IY92: 0 | IZ92: 0 | JA92: 0 | JB92: 0 | JC92: 0 | JD92: 0 | JE92: =(JE91-JD91)*(JE2<=$F$87) -> 0 | JF92: 0 | JG92: 0 | JH92: 0 | JI92: 0 | JJ92: 0 | JK92: 0 | JL92: 0 | JM92: 0 | JN92: 0 | JO92: 0 | JP92: 0 | JQ92: 0 | JR92: 0 | JS92: 0 | JT92: 0 | JU92: 0 | JV92: 0 | JW92: 0 | JX92: 0 | JY92: 0 | JZ92: 0 | KA92: 0 | KB92: 0 | KC92: 0 | KD92: 0 | KE92: 0 | KF92: 0 | KG92: 0 | KH92: 0 | KI92: 0 | KJ92: 0 | KK92: 0 | KL92: 0 | KM92: 0 | KN92: 0 | KO92: 0 | KP92: 0 | KQ92: 0 | KR92: 0 | KS92: 0 | KT92: 0 | KU92: 0 | KV92: 0 | KW92: 0 | KX92: 0 | KY92: 0 | KZ92: 0 | LA92: 0 | LB92: 0 | LC92: 0 | LD92: 0 | LE92: 0 | LF92: 0 | LG92: 0 | LH92: 0 | LI92: 0 | LJ92: 0 | LK92: 0 | LL92: 0 | LM92: 0 | LN92: 0 | LO92: 0 | LP92: 0 | LQ92: =(LQ91-LP91)*(LQ2<=$F$87) -> 0 | LR92: 0 | LS92: 0 | LT92: 0 | LU92: 0 | LV92: 0 | LW92: 0 | LX92: 0 | LY92: 0 | LZ92: 0 | MA92: 0 | MB92: 0 | MC92: 0 | MD92: 0 | ME92: 0 | MF92: 0 | MG92: 0 | MH92: 0 | MI92: 0 | MJ92: 0 | MK92: 0 | ML92: 0 | MM92: 0 | MN92: 0 | MO92: 0 | MP92: 0 | MQ92: 0 | MR92: 0 | MS92: 0 | MT92: 0 | MU92: 0 | MV92: 0 | MW92: 0 | MX92: 0 | MY92: 0 | MZ92: 0 | NA92: 0 | NB92: 0 | NC92: 0 | ND92: 0 | NE92: 0 | NF92: 0 | NG92: 0 | NH92: 0 | NI92: 0 | NJ92: 0 | NK92: 0 | NL92: 0 | NM92: 0 | NN92: 0 | NO92: 0 | NP92: 0 | NQ92: 0 | NR92: 0 | NS92: 0 | NT92: 0 | NU92: 0 | NV92: 0 | NW92: 0 | NX92: 0 | NY92: 0 | NZ92: 0 | OA92: 0 | OB92: 0 | OC92: =(OC91-OB91)*(OC2<=$F$87) -> 0 | OD92: 0 | OE92: 0 | OF92: 0 | OG92: 0 | OH92: 0 | OI92: 0 | OJ92: 0 | OK92: 0 | OL92: 0 | OM92: 0 | ON92: 0 | OO92: 0 | OP92: 0 | OQ92: 0 | OR92: 0
D93: Balance of Warranty Provision | I93: =H93+I92-I90 -> 233.4915436 | J93: =I93+J92-J90 -> 242.8312053 | K93: 252.5444535 | L93: 262.6462317 | M93: 273.1520809 | N93: 284.0781642 | O93: 295.4412907 | P93: 307.2589424 | Q93: 319.5493001 | R93: 332.3312721 | S93: 345.6245229 | T93: 359.4495039 | U93: 373.827484 | V93: 388.7805834 | W93: 404.3318067 | X93: 420.505079 | Y93: 437.3252821 | Z93: 454.8182934 | AA93: 473.0110252 | AB93: 491.9314662 | AC93: 511.6087248 | AD93: 532.0730738 | AE93: 553.3559968 | AF93: 575.4902366 | AG93: 598.5098461 | AH93: 622.4502399 | AI93: 647.3482495 | AJ93: 673.2421795 | AK93: 700.1718667 | AL93: 0 | AM93: 0 | AN93: 0 | AO93: 0 | AP93: 0 | AQ93: 0 | AR93: 0 | AS93: 0 | AT93: 0 | AU93: 0 | AV93: 0 | AW93: 0 | AX93: 0 | AY93: 0 | AZ93: 0 | BA93: 0 | BB93: 0 | BC93: 0 | BD93: 0 | BE93: 0 | BF93: 0 | BG93: 0 | BH93: 0 | BI93: 0 | BJ93: 0 | BK93: 0 | BL93: 0 | BM93: 0 | BN93: 0 | BO93: 0 | BP93: 0 | BQ93: 0 | BR93: 0 | BS93: 0 | BT93: 0 | BU93: 0 | BV93: =BU93+BV92-BV90 -> 0 | BW93: 0 | BX93: 0 | BY93: 0 | BZ93: 0 | CA93: 0 | CB93: 0 | CC93: 0 | CD93: 0 | CE93: 0 | CF93: 0 | CG93: 0 | CH93: 0 | CI93: 0 | CJ93: 0 | CK93: 0 | CL93: 0 | CM93: 0 | CN93: 0 | CO93: 0 | CP93: 0 | CQ93: 0 | CR93: 0 | CS93: 0 | CT93: 0 | CU93: 0 | CV93: 0 | CW93: 0 | CX93: 0 | CY93: 0 | CZ93: 0 | DA93: 0 | DB93: 0 | DC93: 0 | DD93: 0 | DE93: 0 | DF93: 0 | DG93: 0 | DH93: 0 | DI93: 0 | DJ93: 0 | DK93: 0 | DL93: 0 | DM93: 0 | DN93: 0 | DO93: 0 | DP93: 0 | DQ93: 0 | DR93: 0 | DS93: 0 | DT93: 0 | DU93: 0 | DV93: 0 | DW93: 0 | DX93: 0 | DY93: 0 | DZ93: 0 | EA93: 0 | EB93: 0 | EC93: 0 | ED93: 0 | EE93: 0 | EF93: 0 | EG93: 0 | EH93: =EG93+EH92-EH90 -> 0 | EI93: 0 | EJ93: 0 | EK93: 0 | EL93: 0 | EM93: 0 | EN93: 0 | EO93: 0 | EP93: 0 | EQ93: 0 | ER93: 0 | ES93: 0 | ET93: 0 | EU93: 0 | EV93: 0 | EW93: 0 | EX93: 0 | EY93: 0 | EZ93: 0 | FA93: 0 | FB93: 0 | FC93: 0 | FD93: 0 | FE93: 0 | FF93: 0 | FG93: 0 | FH93: 0 | FI93: 0 | FJ93: 0 | FK93: 0 | FL93: 0 | FM93: 0 | FN93: 0 | FO93: 0 | FP93: 0 | FQ93: 0 | FR93: 0 | FS93: 0 | FT93: 0 | FU93: 0 | FV93: 0 | FW93: 0 | FX93: 0 | FY93: 0 | FZ93: 0 | GA93: 0 | GB93: 0 | GC93: 0 | GD93: 0 | GE93: 0 | GF93: 0 | GG93: 0 | GH93: 0 | GI93: 0 | GJ93: 0 | GK93: 0 | GL93: 0 | GM93: 0 | GN93: 0 | GO93: 0 | GP93: 0 | GQ93: 0 | GR93: 0 | GS93: 0 | GT93: =GS93+GT92-GT90 -> 0 | GU93: 0 | GV93: 0 | GW93: 0 | GX93: 0 | GY93: 0 | GZ93: 0 | HA93: 0 | HB93: 0 | HC93: 0 | HD93: 0 | HE93: 0 | HF93: 0 | HG93: 0 | HH93: 0 | HI93: 0 | HJ93: 0 | HK93: 0 | HL93: 0 | HM93: 0 | HN93: 0 | HO93: 0 | HP93: 0 | HQ93: 0 | HR93: 0 | HS93: 0 | HT93: 0 | HU93: 0 | HV93: 0 | HW93: 0 | HX93: 0 | HY93: 0 | HZ93: 0 | IA93: 0 | IB93: 0 | IC93: 0 | ID93: 0 | IE93: 0 | IF93: 0 | IG93: 0 | IH93: 0 | II93: 0 | IJ93: 0 | IK93: 0 | IL93: 0 | IM93: 0 | IN93: 0 | IO93: 0 | IP93: 0 | IQ93: 0 | IR93: 0 | IS93: 0 | IT93: 0 | IU93: 0 | IV93: 0 | IW93: 0 | IX93: 0 | IY93: 0 | IZ93: 0 | JA93: 0 | JB93: 0 | JC93: 0 | JD93: 0 | JE93: 0 | JF93: =JE93+JF92-JF90 -> 0 | JG93: 0 | JH93: 0 | JI93: 0 | JJ93: 0 | JK93: 0 | JL93: 0 | JM93: 0 | JN93: 0 | JO93: 0 | JP93: 0 | JQ93: 0 | JR93: 0 | JS93: 0 | JT93: 0 | JU93: 0 | JV93: 0 | JW93: 0 | JX93: 0 | JY93: 0 | JZ93: 0 | KA93: 0 | KB93: 0 | KC93: 0 | KD93: 0 | KE93: 0 | KF93: 0 | KG93: 0 | KH93: 0 | KI93: 0 | KJ93: 0 | KK93: 0 | KL93: 0 | KM93: 0 | KN93: 0 | KO93: 0 | KP93: 0 | KQ93: 0 | KR93: 0 | KS93: 0 | KT93: 0 | KU93: 0 | KV93: 0 | KW93: =KV93+KW92-KW90 -> 0 | KX93: =KW93+KX92-KX90 -> 0 | KY93: =KX93+KY92-KY90 -> 0 | KZ93: =KY93+KZ92-KZ90 -> 0 | LA93: =KZ93+LA92-LA90 -> 0 | LB93: =LA93+LB92-LB90 -> 0 | LC93: =LB93+LC92-LC90 -> 0 | LD93: =LC93+LD92-LD90 -> 0 | LE93: =LD93+LE92-LE90 -> 0 | LF93: =LE93+LF92-LF90 -> 0 | LG93: =LF93+LG92-LG90 -> 0 | LH93: =LG93+LH92-LH90 -> 0 | LI93: =LH93+LI92-LI90 -> 0 | LJ93: =LI93+LJ92-LJ90 -> 0 | LK93: =LJ93+LK92-LK90 -> 0 | LL93: =LK93+LL92-LL90 -> 0 | LM93: =LL93+LM92-LM90 -> 0 | LN93: =LM93+LN92-LN90 -> 0 | LO93: =LN93+LO92-LO90 -> 0 | LP93: =LO93+LP92-LP90 -> 0 | LQ93: =LP93+LQ92-LQ90 -> 0 | LR93: =LQ93+LR92-LR90 -> 0 | LS93: =LR93+LS92-LS90 -> 0 | LT93: =LS93+LT92-LT90 -> 0 | LU93: =LT93+LU92-LU90 -> 0 | LV93: =LU93+LV92-LV90 -> 0 | LW93: =LV93+LW92-LW90 -> 0 | LX93: =LW93+LX92-LX90 -> 0 | LY93: =LX93+LY92-LY90 -> 0 | LZ93: =LY93+LZ92-LZ90 -> 0 | MA93: =LZ93+MA92-MA90 -> 0 | MB93: =MA93+MB92-MB90 -> 0 | MC93: =MB93+MC92-MC90 -> 0 | MD93: =MC93+MD92-MD90 -> 0 | ME93: =MD93+ME92-ME90 -> 0 | MF93: =ME93+MF92-MF90 -> 0 | MG93: =MF93+MG92-MG90 -> 0 | MH93: =MG93+MH92-MH90 -> 0 | MI93: =MH93+MI92-MI90 -> 0 | MJ93: =MI93+MJ92-MJ90 -> 0 | MK93: =MJ93+MK92-MK90 -> 0 | ML93: =MK93+ML92-ML90 -> 0 | MM93: =ML93+MM92-MM90 -> 0 | MN93: =MM93+MN92-MN90 -> 0 | MO93: =MN93+MO92-MO90 -> 0 | MP93: =MO93+MP92-MP90 -> 0 | MQ93: =MP93+MQ92-MQ90 -> 0 | MR93: =MQ93+MR92-MR90 -> 0 | MS93: =MR93+MS92-MS90 -> 0 | MT93: =MS93+MT92-MT90 -> 0 | MU93: =MT93+MU92-MU90 -> 0 | MV93: =MU93+MV92-MV90 -> 0 | MW93: =MV93+MW92-MW90 -> 0 | MX93: =MW93+MX92-MX90 -> 0 | MY93: =MX93+MY92-MY90 -> 0 | MZ93: =MY93+MZ92-MZ90 -> 0 | NA93: =MZ93+NA92-NA90 -> 0 | NB93: =NA93+NB92-NB90 -> 0 | NC93: =NB93+NC92-NC90 -> 0 | ND93: =NC93+ND92-ND90 -> 0 | NE93: =ND93+NE92-NE90 -> 0 | NF93: =NE93+NF92-NF90 -> 0 | NG93: =NF93+NG92-NG90 -> 0 | NH93: =NG93+NH92-NH90 -> 0 | NI93: =NH93+NI92-NI90 -> 0 | NJ93: =NI93+NJ92-NJ90 -> 0 | NK93: =NJ93+NK92-NK90 -> 0 | NL93: =NK93+NL92-NL90 -> 0 | NM93: =NL93+NM92-NM90 -> 0 | NN93: =NM93+NN92-NN90 -> 0 | NO93: =NN93+NO92-NO90 -> 0 | NP93: =NO93+NP92-NP90 -> 0 | NQ93: =NP93+NQ92-NQ90 -> 0 | NR93: =NQ93+NR92-NR90 -> 0 | NS93: =NR93+NS92-NS90 -> 0 | NT93: =NS93+NT92-NT90 -> 0 | NU93: =NT93+NU92-NU90 -> 0 | NV93: =NU93+NV92-NV90 -> 0 | NW93: =NV93+NW92-NW90 -> 0 | NX93: =NW93+NX92-NX90 -> 0 | NY93: =NX93+NY92-NY90 -> 0 | NZ93: =NY93+NZ92-NZ90 -> 0 | OA93: =NZ93+OA92-OA90 -> 0 | OB93: =OA93+OB92-OB90 -> 0 | OC93: =OB93+OC92-OC90 -> 0 | OD93: =OC93+OD92-OD90 -> 0 | OE93: =OD93+OE92-OE90 -> 0 | OF93: =OE93+OF92-OF90 -> 0 | OG93: =OF93+OG92-OG90 -> 0 | OH93: =OG93+OH92-OH90 -> 0 | OI93: =OH93+OI92-OI90 -> 0 | OJ93: =OI93+OJ92-OJ90 -> 0 | OK93: =OJ93+OK92-OK90 -> 0 | OL93: =OK93+OL92-OL90 -> 0 | OM93: =OL93+OM92-OM90 -> 0 | ON93: =OM93+ON92-ON90 -> 0 | OO93: =ON93+OO92-OO90 -> 0 | OP93: =OO93+OP92-OP90 -> 0 | OQ93: =OP93+OQ92-OQ90 -> 0 | OR93: =OQ93+OR92-OR90 -> 0
D95: Revnues | F95: =NPV($F$13,I95:KV95) -> 1326.724774 | I95: =IF(I8,I89) -> FALSE | J95: FALSE | K95: FALSE | L95: FALSE | M95: FALSE | N95: 119.4052297 | O95: 122.9873865 | P95: 126.6770081 | Q95: 130.4773184 | R95: 134.3916379 | S95: 138.4233871 | T95: 142.5760887 | U95: 146.8533713 | V95: 151.2589725 | W95: 155.7967417 | X95: 160.4706439 | Y95: 165.2847632 | Z95: 170.2433061 | AA95: 175.3506053 | AB95: 180.6111235 | AC95: 186.0294572 | AD95: 191.6103409 | AE95: 197.3586511 | AF95: 203.2794106 | AG95: 209.377793 | AH95: 215.6591268 | AI95: 222.1289006 | AJ95: 228.7927676 | AK95: 235.6565506 | AL95: 242.7262471 | AM95: 250.0080345 | AN95: 257.5082756 | AO95: 265.2335238 | AP95: 273.1905296 | AQ95: 281.3862454 | AR95: 289.8278328 | AS95: 298.5226678 | AT95: 307.4783478 | AU95: 316.7026983 | AV95: 326.2037792 | AW95: 335.9898926 | AX95: 346.0695894 | AY95: 356.451677 | AZ95: 367.1452273 | BA95: 378.1595842 | BB95: 389.5043717 | BC95: 401.1895028 | BD95: 413.2251879 | BE95: 425.6219436 | BF95: 438.3906019 | BG95: 451.5423199 | BH95: 465.0885895 | BI95: 479.0412472 | BJ95: 493.4124846 | BK95: 508.2148592 | BL95: 523.4613049 | BM95: 539.1651441 | BN95: 555.3400984 | BO95: 572.0003014 | BP95: 589.1603104 | BQ95: 606.8351197 | BR95: 625.0401733 | BS95: 643.7913785 | BT95: 663.1051199 | BU95: =IF(BU8,BU89) -> 682.9982735 | BV95: 703.4882217 | BW95: 724.5928683 | BX95: 746.3306544 | BY95: 768.720574 | BZ95: 791.7821912 | CA95: 815.5356569 | CB95: 840.0017267 | CC95: 865.2017785 | CD95: 891.1578318 | CE95: 917.8925668 | CF95: 945.4293438 | CG95: 973.7922241 | CH95: 1003.005991 | CI95: 1033.096171 | CJ95: 1064.089056 | CK95: 1096.011727 | CL95: 1128.892079 | CM95: 1162.758842 | CN95: 1197.641607 | CO95: 1233.570855 | CP95: 1270.577981 | CQ95: 1308.69532 | CR95: 1347.95618 | CS95: 1388.394865 | CT95: 1430.046711 | CU95: 1472.948112 | CV95: 1517.136556 | CW95: 1562.650652 | CX95: 1609.530172 | CY95: 1657.816077 | CZ95: 1707.550559 | DA95: 1758.777076 | DB95: 1811.540388 | DC95: 1865.8866 | DD95: 1921.863198 | DE95: 1979.519094 | DF95: 2038.904667 | DG95: 2100.071807 | DH95: 2163.073961 | DI95: 2227.96618 | DJ95: 2294.805165 | DK95: 2363.64932 | DL95: 2434.5588 | DM95: 2507.595564 | DN95: 2582.823431 | DO95: 2660.308134 | DP95: 2740.117378 | DQ95: 2822.320899 | DR95: 2906.990526 | DS95: 2994.200242 | DT95: 3084.026249 | DU95: 3176.547037 | DV95: 3271.843448 | DW95: 3369.998751 | DX95: 3471.098714 | DY95: 3575.231675 | DZ95: 3682.488625 | EA95: 3792.963284 | EB95: 3906.752182 | EC95: 4023.954748 | ED95: 4144.67339 | EE95: 4269.013592 | EF95: 4397.084 | EG95: =IF(EG8,EG89) -> 4528.99652 | EH95: 4664.866415 | EI95: 4804.812408 | EJ95: 4948.95678 | EK95: 5097.425484 | EL95: 5250.348248 | EM95: 5407.858696 | EN95: 5570.094456 | EO95: 5737.19729 | EP95: 5909.313209 | EQ95: 6086.592605 | ER95: 6269.190383 | ES95: 6457.266095 | ET95: 6650.984078 | EU95: 6850.5136 | EV95: 7056.029008 | EW95: 7267.709878 | EX95: 7485.741174 | EY95: 7710.31341 | EZ95: 7941.622812 | FA95: 8179.871496 | FB95: 8425.267641 | FC95: 8678.02567 | FD95: 8938.366441 | FE95: 9206.517434 | FF95: 9482.712957 | FG95: 9767.194346 | FH95: 10060.21018 | FI95: 10362.01648 | FJ95: 10672.87698 | FK95: 10993.06328 | FL95: 11322.85518 | FM95: 11662.54084 | FN95: 12012.41706 | FO95: 12372.78958 | FP95: 12743.97326 | FQ95: 13126.29246 | FR95: 13520.08123 | FS95: 13925.68367 | FT95: 14343.45418 | FU95: 14773.75781 | FV95: 15216.97054 | FW95: 15673.47966 | FX95: 16143.68405 | FY95: 16627.99457 | FZ95: 17126.83441 | GA95: 17640.63944 | GB95: 18169.85862 | GC95: 18714.95438 | GD95: 19276.40301 | GE95: 19854.6951 | GF95: 20450.33596 | GG95: 21063.84603 | GH95: 21695.76141 | GI95: 22346.63426 | GJ95: 23017.03329 | GK95: 23707.54428 | GL95: 24418.77061 | GM95: 25151.33373 | GN95: 25905.87374 | GO95: 26683.04995 | GP95: 27483.54145 | GQ95: 28308.0477 | GR95: 29157.28913 | GS95: =IF(GS8,GS89) -> 30032.0078 | GT95: 30932.96804 | GU95: 31860.95708 | GV95: 32816.78579 | GW95: 33801.28936 | GX95: 34815.32804 | GY95: 35859.78789 | GZ95: 36935.58152 | HA95: 38043.64897 | HB95: 39184.95844 | HC95: 40360.50719 | HD95: 41571.3224 | HE95: 42818.46208 | HF95: 44103.01594 | HG95: 45426.10642 | HH95: 46788.88961 | HI95: 48192.5563 | HJ95: 49638.33299 | HK95: 51127.48298 | HL95: 52661.30747 | HM95: 54241.14669 | HN95: 55868.38109 | HO95: 57544.43252 | HP95: 59270.7655 | HQ95: 61048.88846 | HR95: 62880.35512 | HS95: 64766.76577 | HT95: 66709.76875 | HU95: 68711.06181 | HV95: 70772.39366 | HW95: 72895.56547 | HX95: 75082.43244 | HY95: 77334.90541 | HZ95: 79654.95257 | IA95: 82044.60115 | IB95: 84505.93918 | IC95: 87041.11736 | ID95: 89652.35088 | IE95: 92341.92141 | IF95: 95112.17905 | IG95: 97965.54442 | IH95: 100904.5108 | II95: 103931.6461 | IJ95: 107049.5955 | IK95: 110261.0833 | IL95: 113568.9158 | IM95: 116975.9833 | IN95: 120485.2628 | IO95: 124099.8207 | IP95: 127822.8153 | IQ95: 131657.4998 | IR95: 135607.2247 | IS95: 139675.4415 | IT95: 143865.7047 | IU95: 148181.6759 | IV95: 152627.1262 | IW95: 157205.9399 | IX95: 161922.1181 | IY95: 166779.7817 | IZ95: 171783.1751 | JA95: 176936.6704 | JB95: 182244.7705 | JC95: 187712.1136 | JD95: 193343.477 | JE95: =IF(JE8,JE89) -> 199143.7813 | JF95: 205118.0948 | JG95: 211271.6376 | JH95: 217609.7867 | JI95: 224138.0803 | JJ95: 230862.2228 | JK95: 237788.0894 | JL95: 244921.7321 | JM95: 252269.3841 | JN95: 259837.4656 | JO95: 267632.5896 | JP95: 275661.5673 | JQ95: 283931.4143 | JR95: 292449.3567 | JS95: 301222.8374 | JT95: 310259.5225 | JU95: 319567.3082 | JV95: 329154.3275 | JW95: 339028.9573 | JX95: 349199.826 | JY95: 359675.8208 | JZ95: 370466.0954 | KA95: 381580.0783 | KB95: 393027.4806 | KC95: 404818.305 | KD95: 416962.8542 | KE95: 429471.7398 | KF95: 442355.892 | KG95: 455626.5688 | KH95: 469295.3658 | KI95: 483374.2268 | KJ95: 497875.4536 | KK95: 512811.7172 | KL95: 528196.0687 | KM95: 544041.9508 | KN95: 560363.2093 | KO95: 577174.1056 | KP95: 594489.3288 | KQ95: 612324.0086 | KR95: 630693.7289 | KS95: 649614.5407 | KT95: 669102.977 | KU95: 689176.0663 | KV95: 709851.3483 | KW95: 731146.8887 | KX95: 753081.2954 | KY95: 775673.7342 | KZ95: 798943.9463 | LA95: 822912.2646 | LB95: 847599.6326 | LC95: 873027.6216 | LD95: 899218.4502 | LE95: 926195.0037 | LF95: 953980.8538 | LG95: 982600.2794 | LH95: 1012078.288 | LI95: 1042440.636 | LJ95: 1073713.856 | LK95: 1105925.271 | LL95: 1139103.029 | LM95: 1173276.12 | LN95: 1208474.404 | LO95: 1244728.636 | LP95: 1282070.495 | LQ95: =IF(LQ8,LQ89) -> 1320532.61 | LR95: 1360148.588 | LS95: 1400953.046 | LT95: 1442981.637 | LU95: 1486271.086 | LV95: 1530859.219 | LW95: 1576784.995 | LX95: 1624088.545 | LY95: 1672811.202 | LZ95: 1722995.538 | MA95: 1774685.404 | MB95: 1827925.966 | MC95: 1882763.745 | MD95: 1939246.657 | ME95: 1997424.057 | MF95: 2057346.779 | MG95: 2119067.182 | MH95: 2182639.198 | MI95: 2248118.374 | MJ95: 2315561.925 | MK95: 2385028.782 | ML95: 2456579.646 | MM95: 2530277.035 | MN95: 2606185.346 | MO95: 2684370.907 | MP95: 2764902.034 | MQ95: 2847849.095 | MR95: 2933284.568 | MS95: 3021283.105 | MT95: 3111921.598 | MU95: 3205279.246 | MV95: 3301437.623 | MW95: 3400480.752 | MX95: 3502495.175 | MY95: 3607570.03 | MZ95: 3715797.131 | NA95: 3827271.045 | NB95: 3942089.176 | NC95: 4060351.851 | ND95: 4182162.407 | NE95: 4307627.279 | NF95: 4436856.097 | NG95: 4569961.78 | NH95: 4707060.634 | NI95: 4848272.453 | NJ95: 4993720.626 | NK95: 5143532.245 | NL95: 5297838.212 | NM95: 5456773.359 | NN95: 5620476.56 | NO95: 5789090.856 | NP95: 5962763.582 | NQ95: 6141646.49 | NR95: 6325895.884 | NS95: 6515672.761 | NT95: 6711142.944 | NU95: 6912477.232 | NV95: 7119851.549 | NW95: 7333447.095 | NX95: 7553450.508 | NY95: 7780054.023 | NZ95: 8013455.644 | OA95: 8253859.313 | OB95: 8501475.093 | OC95: =IF(OC8,OC89) -> 8756519.346 | OD95: 9019214.926 | OE95: 9289791.374 | OF95: 9568485.115 | OG95: 9855539.668 | OH95: 10151205.86 | OI95: 10455742.03 | OJ95: 10769414.3 | OK95: 11092496.72 | OL95: 11425271.63 | OM95: 11768029.77 | ON95: 12121070.67 | OO95: 12484702.79 | OP95: 12859243.87 | OQ95: 13245021.19 | OR95: 13642371.82
D96: Dismaneling Cost | F96: =NPV(F88,I96:KV96) -> 273.1520809 | I96: =IF(I8,I90) -> FALSE | J96: FALSE | K96: FALSE | L96: FALSE | M96: FALSE | N96: 0 | O96: 0 | P96: 0 | Q96: 0 | R96: 0 | S96: 0 | T96: 0 | U96: 0 | V96: 0 | W96: 0 | X96: 0 | Y96: 0 | Z96: 0 | AA96: 0 | AB96: 0 | AC96: 0 | AD96: 0 | AE96: 0 | AF96: 0 | AG96: 0 | AH96: 0 | AI96: 0 | AJ96: 0 | AK96: 0 | AL96: 728.1787414 | AM96: 0 | AN96: 0 | AO96: 0 | AP96: 0 | AQ96: 0 | AR96: 0 | AS96: 0 | AT96: 0 | AU96: 0 | AV96: 0 | AW96: 0 | AX96: 0 | AY96: 0 | AZ96: 0 | BA96: 0 | BB96: 0 | BC96: 0 | BD96: 0 | BE96: 0 | BF96: 0 | BG96: 0 | BH96: 0 | BI96: 0 | BJ96: 0 | BK96: 0 | BL96: 0 | BM96: 0 | BN96: 0 | BO96: 0 | BP96: 0 | BQ96: 0 | BR96: 0 | BS96: 0 | BT96: 0 | BU96: =IF(BU8,BU90) -> 0 | BV96: 0 | BW96: 0 | BX96: 0 | BY96: 0 | BZ96: 0 | CA96: 0 | CB96: 0 | CC96: 0 | CD96: 0 | CE96: 0 | CF96: 0 | CG96: 0 | CH96: 0 | CI96: 0 | CJ96: 0 | CK96: 0 | CL96: 0 | CM96: 0 | CN96: 0 | CO96: 0 | CP96: 0 | CQ96: 0 | CR96: 0 | CS96: 0 | CT96: 0 | CU96: 0 | CV96: 0 | CW96: 0 | CX96: 0 | CY96: 0 | CZ96: 0 | DA96: 0 | DB96: 0 | DC96: 0 | DD96: 0 | DE96: 0 | DF96: 0 | DG96: 0 | DH96: 0 | DI96: 0 | DJ96: 0 | DK96: 0 | DL96: 0 | DM96: 0 | DN96: 0 | DO96: 0 | DP96: 0 | DQ96: 0 | DR96: 0 | DS96: 0 | DT96: 0 | DU96: 0 | DV96: 0 | DW96: 0 | DX96: 0 | DY96: 0 | DZ96: 0 | EA96: 0 | EB96: 0 | EC96: 0 | ED96: 0 | EE96: 0 | EF96: 0 | EG96: =IF(EG8,EG90) -> 0 | EH96: 0 | EI96: 0 | EJ96: 0 | EK96: 0 | EL96: 0 | EM96: 0 | EN96: 0 | EO96: 0 | EP96: 0 | EQ96: 0 | ER96: 0 | ES96: 0 | ET96: 0 | EU96: 0 | EV96: 0 | EW96: 0 | EX96: 0 | EY96: 0 | EZ96: 0 | FA96: 0 | FB96: 0 | FC96: 0 | FD96: 0 | FE96: 0 | FF96: 0 | FG96: 0 | FH96: 0 | FI96: 0 | FJ96: 0 | FK96: 0 | FL96: 0 | FM96: 0 | FN96: 0 | FO96: 0 | FP96: 0 | FQ96: 0 | FR96: 0 | FS96: 0 | FT96: 0 | FU96: 0 | FV96: 0 | FW96: 0 | FX96: 0 | FY96: 0 | FZ96: 0 | GA96: 0 | GB96: 0 | GC96: 0 | GD96: 0 | GE96: 0 | GF96: 0 | GG96: 0 | GH96: 0 | GI96: 0 | GJ96: 0 | GK96: 0 | GL96: 0 | GM96: 0 | GN96: 0 | GO96: 0 | GP96: 0 | GQ96: 0 | GR96: 0 | GS96: =IF(GS8,GS90) -> 0 | GT96: 0 | GU96: 0 | GV96: 0 | GW96: 0 | GX96: 0 | GY96: 0 | GZ96: 0 | HA96: 0 | HB96: 0 | HC96: 0 | HD96: 0 | HE96: 0 | HF96: 0 | HG96: 0 | HH96: 0 | HI96: 0 | HJ96: 0 | HK96: 0 | HL96: 0 | HM96: 0 | HN96: 0 | HO96: 0 | HP96: 0 | HQ96: 0 | HR96: 0 | HS96: 0 | HT96: 0 | HU96: 0 | HV96: 0 | HW96: 0 | HX96: 0 | HY96: 0 | HZ96: 0 | IA96: 0 | IB96: 0 | IC96: 0 | ID96: 0 | IE96: 0 | IF96: 0 | IG96: 0 | IH96: 0 | II96: 0 | IJ96: 0 | IK96: 0 | IL96: 0 | IM96: 0 | IN96: 0 | IO96: 0 | IP96: 0 | IQ96: 0 | IR96: 0 | IS96: 0 | IT96: 0 | IU96: 0 | IV96: 0 | IW96: 0 | IX96: 0 | IY96: 0 | IZ96: 0 | JA96: 0 | JB96: 0 | JC96: 0 | JD96: 0 | JE96: =IF(JE8,JE90) -> 0 | JF96: 0 | JG96: 0 | JH96: 0 | JI96: 0 | JJ96: 0 | JK96: 0 | JL96: 0 | JM96: 0 | JN96: 0 | JO96: 0 | JP96: 0 | JQ96: 0 | JR96: 0 | JS96: 0 | JT96: 0 | JU96: 0 | JV96: 0 | JW96: 0 | JX96: 0 | JY96: 0 | JZ96: 0 | KA96: 0 | KB96: 0 | KC96: 0 | KD96: 0 | KE96: 0 | KF96: 0 | KG96: 0 | KH96: 0 | KI96: 0 | KJ96: 0 | KK96: 0 | KL96: 0 | KM96: 0 | KN96: 0 | KO96: 0 | KP96: 0 | KQ96: 0 | KR96: 0 | KS96: 0 | KT96: 0 | KU96: 0 | KV96: 0 | KW96: 0 | KX96: 0 | KY96: 0 | KZ96: 0 | LA96: 0 | LB96: 0 | LC96: 0 | LD96: 0 | LE96: 0 | LF96: 0 | LG96: 0 | LH96: 0 | LI96: 0 | LJ96: 0 | LK96: 0 | LL96: 0 | LM96: 0 | LN96: 0 | LO96: 0 | LP96: 0 | LQ96: =IF(LQ8,LQ90) -> 0 | LR96: 0 | LS96: 0 | LT96: 0 | LU96: 0 | LV96: 0 | LW96: 0 | LX96: 0 | LY96: 0 | LZ96: 0 | MA96: 0 | MB96: 0 | MC96: 0 | MD96: 0 | ME96: 0 | MF96: 0 | MG96: 0 | MH96: 0 | MI96: 0 | MJ96: 0 | MK96: 0 | ML96: 0 | MM96: 0 | MN96: 0 | MO96: 0 | MP96: 0 | MQ96: 0 | MR96: 0 | MS96: 0 | MT96: 0 | MU96: 0 | MV96: 0 | MW96: 0 | MX96: 0 | MY96: 0 | MZ96: 0 | NA96: 0 | NB96: 0 | NC96: 0 | ND96: 0 | NE96: 0 | NF96: 0 | NG96: 0 | NH96: 0 | NI96: 0 | NJ96: 0 | NK96: 0 | NL96: 0 | NM96: 0 | NN96: 0 | NO96: 0 | NP96: 0 | NQ96: 0 | NR96: 0 | NS96: 0 | NT96: 0 | NU96: 0 | NV96: 0 | NW96: 0 | NX96: 0 | NY96: 0 | NZ96: 0 | OA96: 0 | OB96: 0 | OC96: =IF(OC8,OC90) -> 0 | OD96: 0 | OE96: 0 | OF96: 0 | OG96: 0 | OH96: 0 | OI96: 0 | OJ96: 0 | OK96: 0 | OL96: 0 | OM96: 0 | ON96: 0 | OO96: 0 | OP96: 0 | OQ96: 0 | OR96: 0
D97: Total True Value | F97: =F95-F96 -> 1053.572693
C99: Method 1: EV and no Adjustment to Bridge
D100: EBITDA | I100: =IF(I7,I89) -> FALSE | J100: FALSE | K100: FALSE | L100: FALSE | M100: FALSE | N100: 119.4052297 | O100: 122.9873865 | P100: 126.6770081 | Q100: 130.4773184 | R100: 134.3916379 | S100: 138.4233871 | T100: 142.5760887 | U100: 146.8533713 | V100: 151.2589725 | W100: 155.7967417 | X100: FALSE | Y100: FALSE | Z100: FALSE | AA100: FALSE | AB100: FALSE | AC100: FALSE | AD100: FALSE | AE100: FALSE | AF100: FALSE | AG100: FALSE | AH100: FALSE | AI100: FALSE | AJ100: FALSE | AK100: FALSE | AL100: FALSE | AM100: FALSE | AN100: FALSE | AO100: FALSE | AP100: FALSE | AQ100: FALSE | AR100: FALSE | AS100: FALSE | AT100: FALSE | AU100: FALSE | AV100: FALSE | AW100: FALSE | AX100: FALSE | AY100: FALSE | AZ100: FALSE | BA100: FALSE | BB100: FALSE | BC100: FALSE | BD100: FALSE | BE100: FALSE | BF100: FALSE | BG100: FALSE | BH100: FALSE | BI100: FALSE | BJ100: FALSE | BK100: FALSE | BL100: FALSE | BM100: FALSE | BN100: FALSE | BO100: FALSE | BP100: FALSE | BQ100: FALSE | BR100: FALSE | BS100: FALSE | BT100: FALSE | BU100: =IF(BU7,BU89) -> FALSE | BV100: FALSE | BW100: FALSE | BX100: FALSE | BY100: FALSE | BZ100: FALSE | CA100: FALSE | CB100: FALSE | CC100: FALSE | CD100: FALSE | CE100: FALSE | CF100: FALSE | CG100: FALSE | CH100: FALSE | CI100: FALSE | CJ100: FALSE | CK100: FALSE | CL100: FALSE | CM100: FALSE | CN100: FALSE | CO100: FALSE | CP100: FALSE | CQ100: FALSE | CR100: FALSE | CS100: FALSE | CT100: FALSE | CU100: FALSE | CV100: FALSE | CW100: FALSE | CX100: FALSE | CY100: FALSE | CZ100: FALSE | DA100: FALSE | DB100: FALSE | DC100: FALSE | DD100: FALSE | DE100: FALSE | DF100: FALSE | DG100: FALSE | DH100: FALSE | DI100: FALSE | DJ100: FALSE | DK100: FALSE | DL100: FALSE | DM100: FALSE | DN100: FALSE | DO100: FALSE | DP100: FALSE | DQ100: FALSE | DR100: FALSE | DS100: FALSE | DT100: FALSE | DU100: FALSE | DV100: FALSE | DW100: FALSE | DX100: FALSE | DY100: FALSE | DZ100: FALSE | EA100: FALSE | EB100: FALSE | EC100: FALSE | ED100: FALSE | EE100: FALSE | EF100: FALSE | EG100: =IF(EG7,EG89) -> FALSE | EH100: FALSE | EI100: FALSE | EJ100: FALSE | EK100: FALSE | EL100: FALSE | EM100: FALSE | EN100: FALSE | EO100: FALSE | EP100: FALSE | EQ100: FALSE | ER100: FALSE | ES100: FALSE | ET100: FALSE | EU100: FALSE | EV100: FALSE | EW100: FALSE | EX100: FALSE | EY100: FALSE | EZ100: FALSE | FA100: FALSE | FB100: FALSE | FC100: FALSE | FD100: FALSE | FE100: FALSE | FF100: FALSE | FG100: FALSE | FH100: FALSE | FI100: FALSE | FJ100: FALSE | FK100: FALSE | FL100: FALSE | FM100: FALSE | FN100: FALSE | FO100: FALSE | FP100: FALSE | FQ100: FALSE | FR100: FALSE | FS100: FALSE | FT100: FALSE | FU100: FALSE | FV100: FALSE | FW100: FALSE | FX100: FALSE | FY100: FALSE | FZ100: FALSE | GA100: FALSE | GB100: FALSE | GC100: FALSE | GD100: FALSE | GE100: FALSE | GF100: FALSE | GG100: FALSE | GH100: FALSE | GI100: FALSE | GJ100: FALSE | GK100: FALSE | GL100: FALSE | GM100: FALSE | GN100: FALSE | GO100: FALSE | GP100: FALSE | GQ100: FALSE | GR100: FALSE | GS100: =IF(GS7,GS89) -> FALSE | GT100: FALSE | GU100: FALSE | GV100: FALSE | GW100: FALSE | GX100: FALSE | GY100: FALSE | GZ100: FALSE | HA100: FALSE | HB100: FALSE | HC100: FALSE | HD100: FALSE | HE100: FALSE | HF100: FALSE | HG100: FALSE | HH100: FALSE | HI100: FALSE | HJ100: FALSE | HK100: FALSE | HL100: FALSE | HM100: FALSE | HN100: FALSE | HO100: FALSE | HP100: FALSE | HQ100: FALSE | HR100: FALSE | HS100: FALSE | HT100: FALSE | HU100: FALSE | HV100: FALSE | HW100: FALSE | HX100: FALSE | HY100: FALSE | HZ100: FALSE | IA100: FALSE | IB100: FALSE | IC100: FALSE | ID100: FALSE | IE100: FALSE | IF100: FALSE | IG100: FALSE | IH100: FALSE | II100: FALSE | IJ100: FALSE | IK100: FALSE | IL100: FALSE | IM100: FALSE | IN100: FALSE | IO100: FALSE | IP100: FALSE | IQ100: FALSE | IR100: FALSE | IS100: FALSE | IT100: FALSE | IU100: FALSE | IV100: FALSE | IW100: FALSE | IX100: FALSE | IY100: FALSE | IZ100: FALSE | JA100: FALSE | JB100: FALSE | JC100: FALSE | JD100: FALSE | JE100: =IF(JE7,JE89) -> FALSE | JF100: FALSE | JG100: FALSE | JH100: FALSE | JI100: FALSE | JJ100: FALSE | JK100: FALSE | JL100: FALSE | JM100: FALSE | JN100: FALSE | JO100: FALSE | JP100: FALSE | JQ100: FALSE | JR100: FALSE | JS100: FALSE | JT100: FALSE | JU100: FALSE | JV100: FALSE | JW100: FALSE | JX100: FALSE | JY100: FALSE | JZ100: FALSE | KA100: FALSE | KB100: FALSE | KC100: FALSE | KD100: FALSE | KE100: FALSE | KF100: FALSE | KG100: FALSE | KH100: FALSE | KI100: FALSE | KJ100: FALSE | KK100: FALSE | KL100: FALSE | KM100: FALSE | KN100: FALSE | KO100: FALSE | KP100: FALSE | KQ100: FALSE | KR100: FALSE | KS100: FALSE | KT100: FALSE | KU100: FALSE | KV100: FALSE | KW100: FALSE | KX100: FALSE | KY100: FALSE | KZ100: FALSE | LA100: FALSE | LB100: FALSE | LC100: FALSE | LD100: FALSE | LE100: FALSE | LF100: FALSE | LG100: FALSE | LH100: FALSE | LI100: FALSE | LJ100: FALSE | LK100: FALSE | LL100: FALSE | LM100: FALSE | LN100: FALSE | LO100: FALSE | LP100: FALSE | LQ100: =IF(LQ7,LQ89) -> FALSE | LR100: FALSE | LS100: FALSE | LT100: FALSE | LU100: FALSE | LV100: FALSE | LW100: FALSE | LX100: FALSE | LY100: FALSE | LZ100: FALSE | MA100: FALSE | MB100: FALSE | MC100: FALSE | MD100: FALSE | ME100: FALSE | MF100: FALSE | MG100: FALSE | MH100: FALSE | MI100: FALSE | MJ100: FALSE | MK100: FALSE | ML100: FALSE | MM100: FALSE | MN100: FALSE | MO100: FALSE | MP100: FALSE | MQ100: FALSE | MR100: FALSE | MS100: FALSE | MT100: FALSE | MU100: FALSE | MV100: FALSE | MW100: FALSE | MX100: FALSE | MY100: FALSE | MZ100: FALSE | NA100: FALSE | NB100: FALSE | NC100: FALSE | ND100: FALSE | NE100: FALSE | NF100: FALSE | NG100: FALSE | NH100: FALSE | NI100: FALSE | NJ100: FALSE | NK100: FALSE | NL100: FALSE | NM100: FALSE | NN100: FALSE | NO100: FALSE | NP100: FALSE | NQ100: FALSE | NR100: FALSE | NS100: FALSE | NT100: FALSE | NU100: FALSE | NV100: FALSE | NW100: FALSE | NX100: FALSE | NY100: FALSE | NZ100: FALSE | OA100: FALSE | OB100: FALSE | OC100: =IF(OC7,OC89) -> FALSE | OD100: FALSE | OE100: FALSE | OF100: FALSE | OG100: FALSE | OH100: FALSE | OI100: FALSE | OJ100: FALSE | OK100: FALSE | OL100: FALSE | OM100: FALSE | ON100: FALSE | OO100: FALSE | OP100: FALSE | OQ100: FALSE | OR100: FALSE
D101: Less: Cash Cost | I101: =IF(I7,I90) -> FALSE | J101: FALSE | K101: FALSE | L101: FALSE | M101: FALSE | N101: 0 | O101: 0 | P101: 0 | Q101: 0 | R101: 0 | S101: 0 | T101: 0 | U101: 0 | V101: 0 | W101: 0 | X101: FALSE | Y101: FALSE | Z101: FALSE | AA101: FALSE | AB101: FALSE | AC101: FALSE | AD101: FALSE | AE101: FALSE | AF101: FALSE | AG101: FALSE | AH101: FALSE | AI101: FALSE | AJ101: FALSE | AK101: FALSE | AL101: FALSE | AM101: FALSE | AN101: FALSE | AO101: FALSE | AP101: FALSE | AQ101: FALSE | AR101: FALSE | AS101: FALSE | AT101: FALSE | AU101: FALSE | AV101: FALSE | AW101: FALSE | AX101: FALSE | AY101: FALSE | AZ101: FALSE | BA101: FALSE | BB101: FALSE | BC101: FALSE | BD101: FALSE | BE101: FALSE | BF101: FALSE | BG101: FALSE | BH101: FALSE | BI101: FALSE | BJ101: FALSE | BK101: FALSE | BL101: FALSE | BM101: FALSE | BN101: FALSE | BO101: FALSE | BP101: FALSE | BQ101: FALSE | BR101: FALSE | BS101: FALSE | BT101: FALSE | BU101: =IF(BU7,BU90) -> FALSE | BV101: FALSE | BW101: FALSE | BX101: FALSE | BY101: FALSE | BZ101: FALSE | CA101: FALSE | CB101: FALSE | CC101: FALSE | CD101: FALSE | CE101: FALSE | CF101: FALSE | CG101: FALSE | CH101: FALSE | CI101: FALSE | CJ101: FALSE | CK101: FALSE | CL101: FALSE | CM101: FALSE | CN101: FALSE | CO101: FALSE | CP101: FALSE | CQ101: FALSE | CR101: FALSE | CS101: FALSE | CT101: FALSE | CU101: FALSE | CV101: FALSE | CW101: FALSE | CX101: FALSE | CY101: FALSE | CZ101: FALSE | DA101: FALSE | DB101: FALSE | DC101: FALSE | DD101: FALSE | DE101: FALSE | DF101: FALSE | DG101: FALSE | DH101: FALSE | DI101: FALSE | DJ101: FALSE | DK101: FALSE | DL101: FALSE | DM101: FALSE | DN101: FALSE | DO101: FALSE | DP101: FALSE | DQ101: FALSE | DR101: FALSE | DS101: FALSE | DT101: FALSE | DU101: FALSE | DV101: FALSE | DW101: FALSE | DX101: FALSE | DY101: FALSE | DZ101: FALSE | EA101: FALSE | EB101: FALSE | EC101: FALSE | ED101: FALSE | EE101: FALSE | EF101: FALSE | EG101: =IF(EG7,EG90) -> FALSE | EH101: FALSE | EI101: FALSE | EJ101: FALSE | EK101: FALSE | EL101: FALSE | EM101: FALSE | EN101: FALSE | EO101: FALSE | EP101: FALSE | EQ101: FALSE | ER101: FALSE | ES101: FALSE | ET101: FALSE | EU101: FALSE | EV101: FALSE | EW101: FALSE | EX101: FALSE | EY101: FALSE | EZ101: FALSE | FA101: FALSE | FB101: FALSE | FC101: FALSE | FD101: FALSE | FE101: FALSE | FF101: FALSE | FG101: FALSE | FH101: FALSE | FI101: FALSE | FJ101: FALSE | FK101: FALSE | FL101: FALSE | FM101: FALSE | FN101: FALSE | FO101: FALSE | FP101: FALSE | FQ101: FALSE | FR101: FALSE | FS101: FALSE | FT101: FALSE | FU101: FALSE | FV101: FALSE | FW101: FALSE | FX101: FALSE | FY101: FALSE | FZ101: FALSE | GA101: FALSE | GB101: FALSE | GC101: FALSE | GD101: FALSE | GE101: FALSE | GF101: FALSE | GG101: FALSE | GH101: FALSE | GI101: FALSE | GJ101: FALSE | GK101: FALSE | GL101: FALSE | GM101: FALSE | GN101: FALSE | GO101: FALSE | GP101: FALSE | GQ101: FALSE | GR101: FALSE | GS101: =IF(GS7,GS90) -> FALSE | GT101: FALSE | GU101: FALSE | GV101: FALSE | GW101: FALSE | GX101: FALSE | GY101: FALSE | GZ101: FALSE | HA101: FALSE | HB101: FALSE | HC101: FALSE | HD101: FALSE | HE101: FALSE | HF101: FALSE | HG101: FALSE | HH101: FALSE | HI101: FALSE | HJ101: FALSE | HK101: FALSE | HL101: FALSE | HM101: FALSE | HN101: FALSE | HO101: FALSE | HP101: FALSE | HQ101: FALSE | HR101: FALSE | HS101: FALSE | HT101: FALSE | HU101: FALSE | HV101: FALSE | HW101: FALSE | HX101: FALSE | HY101: FALSE | HZ101: FALSE | IA101: FALSE | IB101: FALSE | IC101: FALSE | ID101: FALSE | IE101: FALSE | IF101: FALSE | IG101: FALSE | IH101: FALSE | II101: FALSE | IJ101: FALSE | IK101: FALSE | IL101: FALSE | IM101: FALSE | IN101: FALSE | IO101: FALSE | IP101: FALSE | IQ101: FALSE | IR101: FALSE | IS101: FALSE | IT101: FALSE | IU101: FALSE | IV101: FALSE | IW101: FALSE | IX101: FALSE | IY101: FALSE | IZ101: FALSE | JA101: FALSE | JB101: FALSE | JC101: FALSE | JD101: FALSE | JE101: =IF(JE7,JE90) -> FALSE | JF101: FALSE | JG101: FALSE | JH101: FALSE | JI101: FALSE | JJ101: FALSE | JK101: FALSE | JL101: FALSE | JM101: FALSE | JN101: FALSE | JO101: FALSE | JP101: FALSE | JQ101: FALSE | JR101: FALSE | JS101: FALSE | JT101: FALSE | JU101: FALSE | JV101: FALSE | JW101: FALSE | JX101: FALSE | JY101: FALSE | JZ101: FALSE | KA101: FALSE | KB101: FALSE | KC101: FALSE | KD101: FALSE | KE101: FALSE | KF101: FALSE | KG101: FALSE | KH101: FALSE | KI101: FALSE | KJ101: FALSE | KK101: FALSE | KL101: FALSE | KM101: FALSE | KN101: FALSE | KO101: FALSE | KP101: FALSE | KQ101: FALSE | KR101: FALSE | KS101: FALSE | KT101: FALSE | KU101: FALSE | KV101: FALSE | KW101: FALSE | KX101: FALSE | KY101: FALSE | KZ101: FALSE | LA101: FALSE | LB101: FALSE | LC101: FALSE | LD101: FALSE | LE101: FALSE | LF101: FALSE | LG101: FALSE | LH101: FALSE | LI101: FALSE | LJ101: FALSE | LK101: FALSE | LL101: FALSE | LM101: FALSE | LN101: FALSE | LO101: FALSE | LP101: FALSE | LQ101: =IF(LQ7,LQ90) -> FALSE | LR101: FALSE | LS101: FALSE | LT101: FALSE | LU101: FALSE | LV101: FALSE | LW101: FALSE | LX101: FALSE | LY101: FALSE | LZ101: FALSE | MA101: FALSE | MB101: FALSE | MC101: FALSE | MD101: FALSE | ME101: FALSE | MF101: FALSE | MG101: FALSE | MH101: FALSE | MI101: FALSE | MJ101: FALSE | MK101: FALSE | ML101: FALSE | MM101: FALSE | MN101: FALSE | MO101: FALSE | MP101: FALSE | MQ101: FALSE | MR101: FALSE | MS101: FALSE | MT101: FALSE | MU101: FALSE | MV101: FALSE | MW101: FALSE | MX101: FALSE | MY101: FALSE | MZ101: FALSE | NA101: FALSE | NB101: FALSE | NC101: FALSE | ND101: FALSE | NE101: FALSE | NF101: FALSE | NG101: FALSE | NH101: FALSE | NI101: FALSE | NJ101: FALSE | NK101: FALSE | NL101: FALSE | NM101: FALSE | NN101: FALSE | NO101: FALSE | NP101: FALSE | NQ101: FALSE | NR101: FALSE | NS101: FALSE | NT101: FALSE | NU101: FALSE | NV101: FALSE | NW101: FALSE | NX101: FALSE | NY101: FALSE | NZ101: FALSE | OA101: FALSE | OB101: FALSE | OC101: =IF(OC7,OC90) -> FALSE | OD101: FALSE | OE101: FALSE | OF101: FALSE | OG101: FALSE | OH101: FALSE | OI101: FALSE | OJ101: FALSE | OK101: FALSE | OL101: FALSE | OM101: FALSE | ON101: FALSE | OO101: FALSE | OP101: FALSE | OQ101: FALSE | OR101: FALSE
D102: Free Cash Flow | F102: =NPV($F$13,I102:KV102) -> 752.6441895 | I102: =IF(I7,I100-I101) -> FALSE | J102: FALSE | K102: FALSE | L102: FALSE | M102: FALSE | N102: 119.4052297 | O102: 122.9873865 | P102: 126.6770081 | Q102: 130.4773184 | R102: 134.3916379 | S102: 138.4233871 | T102: 142.5760887 | U102: 146.8533713 | V102: 151.2589725 | W102: 155.7967417 | X102: FALSE | Y102: FALSE | Z102: FALSE | AA102: FALSE | AB102: FALSE | AC102: FALSE | AD102: FALSE | AE102: FALSE | AF102: FALSE | AG102: FALSE | AH102: FALSE | AI102: FALSE | AJ102: FALSE | AK102: FALSE | AL102: FALSE | AM102: FALSE | AN102: FALSE | AO102: FALSE | AP102: FALSE | AQ102: FALSE | AR102: FALSE | AS102: FALSE | AT102: FALSE | AU102: FALSE | AV102: FALSE | AW102: FALSE | AX102: FALSE | AY102: FALSE | AZ102: FALSE | BA102: FALSE | BB102: FALSE | BC102: FALSE | BD102: FALSE | BE102: FALSE | BF102: FALSE | BG102: FALSE | BH102: FALSE | BI102: FALSE | BJ102: FALSE | BK102: FALSE | BL102: FALSE | BM102: FALSE | BN102: FALSE | BO102: FALSE | BP102: FALSE | BQ102: FALSE | BR102: FALSE | BS102: FALSE | BT102: FALSE | BU102: =IF(BU7,BU100-BU101) -> FALSE | BV102: FALSE | BW102: FALSE | BX102: FALSE | BY102: FALSE | BZ102: FALSE | CA102: FALSE | CB102: FALSE | CC102: FALSE | CD102: FALSE | CE102: FALSE | CF102: FALSE | CG102: FALSE | CH102: FALSE | CI102: FALSE | CJ102: FALSE | CK102: FALSE | CL102: FALSE | CM102: FALSE | CN102: FALSE | CO102: FALSE | CP102: FALSE | CQ102: FALSE | CR102: FALSE | CS102: FALSE | CT102: FALSE | CU102: FALSE | CV102: FALSE | CW102: FALSE | CX102: FALSE | CY102: FALSE | CZ102: FALSE | DA102: FALSE | DB102: FALSE | DC102: FALSE | DD102: FALSE | DE102: FALSE | DF102: FALSE | DG102: FALSE | DH102: FALSE | DI102: FALSE | DJ102: FALSE | DK102: FALSE | DL102: FALSE | DM102: FALSE | DN102: FALSE | DO102: FALSE | DP102: FALSE | DQ102: FALSE | DR102: FALSE | DS102: FALSE | DT102: FALSE | DU102: FALSE | DV102: FALSE | DW102: FALSE | DX102: FALSE | DY102: FALSE | DZ102: FALSE | EA102: FALSE | EB102: FALSE | EC102: FALSE | ED102: FALSE | EE102: FALSE | EF102: FALSE | EG102: =IF(EG7,EG100-EG101) -> FALSE | EH102: FALSE | EI102: FALSE | EJ102: FALSE | EK102: FALSE | EL102: FALSE | EM102: FALSE | EN102: FALSE | EO102: FALSE | EP102: FALSE | EQ102: FALSE | ER102: FALSE | ES102: FALSE | ET102: FALSE | EU102: FALSE | EV102: FALSE | EW102: FALSE | EX102: FALSE | EY102: FALSE | EZ102: FALSE | FA102: FALSE | FB102: FALSE | FC102: FALSE | FD102: FALSE | FE102: FALSE | FF102: FALSE | FG102: FALSE | FH102: FALSE | FI102: FALSE | FJ102: FALSE | FK102: FALSE | FL102: FALSE | FM102: FALSE | FN102: FALSE | FO102: FALSE | FP102: FALSE | FQ102: FALSE | FR102: FALSE | FS102: FALSE | FT102: FALSE | FU102: FALSE | FV102: FALSE | FW102: FALSE | FX102: FALSE | FY102: FALSE | FZ102: FALSE | GA102: FALSE | GB102: FALSE | GC102: FALSE | GD102: FALSE | GE102: FALSE | GF102: FALSE | GG102: FALSE | GH102: FALSE | GI102: FALSE | GJ102: FALSE | GK102: FALSE | GL102: FALSE | GM102: FALSE | GN102: FALSE | GO102: FALSE | GP102: FALSE | GQ102: FALSE | GR102: FALSE | GS102: =IF(GS7,GS100-GS101) -> FALSE | GT102: FALSE | GU102: FALSE | GV102: FALSE | GW102: FALSE | GX102: FALSE | GY102: FALSE | GZ102: FALSE | HA102: FALSE | HB102: FALSE | HC102: FALSE | HD102: FALSE | HE102: FALSE | HF102: FALSE | HG102: FALSE | HH102: FALSE | HI102: FALSE | HJ102: FALSE | HK102: FALSE | HL102: FALSE | HM102: FALSE | HN102: FALSE | HO102: FALSE | HP102: FALSE | HQ102: FALSE | HR102: FALSE | HS102: FALSE | HT102: FALSE | HU102: FALSE | HV102: FALSE | HW102: FALSE | HX102: FALSE | HY102: FALSE | HZ102: FALSE | IA102: FALSE | IB102: FALSE | IC102: FALSE | ID102: FALSE | IE102: FALSE | IF102: FALSE | IG102: FALSE | IH102: FALSE | II102: FALSE | IJ102: FALSE | IK102: FALSE | IL102: FALSE | IM102: FALSE | IN102: FALSE | IO102: FALSE | IP102: FALSE | IQ102: FALSE | IR102: FALSE | IS102: FALSE | IT102: FALSE | IU102: FALSE | IV102: FALSE | IW102: FALSE | IX102: FALSE | IY102: FALSE | IZ102: FALSE | JA102: FALSE | JB102: FALSE | JC102: FALSE | JD102: FALSE | JE102: =IF(JE7,JE100-JE101) -> FALSE | JF102: FALSE | JG102: FALSE | JH102: FALSE | JI102: FALSE | JJ102: FALSE | JK102: FALSE | JL102: FALSE | JM102: FALSE | JN102: FALSE | JO102: FALSE | JP102: FALSE | JQ102: FALSE | JR102: FALSE | JS102: FALSE | JT102: FALSE | JU102: FALSE | JV102: FALSE | JW102: FALSE | JX102: FALSE | JY102: FALSE | JZ102: FALSE | KA102: FALSE | KB102: FALSE | KC102: FALSE | KD102: FALSE | KE102: FALSE | KF102: FALSE | KG102: FALSE | KH102: FALSE | KI102: FALSE | KJ102: FALSE | KK102: FALSE | KL102: FALSE | KM102: FALSE | KN102: FALSE | KO102: FALSE | KP102: FALSE | KQ102: FALSE | KR102: FALSE | KS102: FALSE | KT102: FALSE | KU102: FALSE | KV102: FALSE | KW102: FALSE | KX102: FALSE | KY102: FALSE | KZ102: FALSE | LA102: FALSE | LB102: FALSE | LC102: FALSE | LD102: FALSE | LE102: FALSE | LF102: FALSE | LG102: FALSE | LH102: FALSE | LI102: FALSE | LJ102: FALSE | LK102: FALSE | LL102: FALSE | LM102: FALSE | LN102: FALSE | LO102: FALSE | LP102: FALSE | LQ102: =IF(LQ7,LQ100-LQ101) -> FALSE | LR102: FALSE | LS102: FALSE | LT102: FALSE | LU102: FALSE | LV102: FALSE | LW102: FALSE | LX102: FALSE | LY102: FALSE | LZ102: FALSE | MA102: FALSE | MB102: FALSE | MC102: FALSE | MD102: FALSE | ME102: FALSE | MF102: FALSE | MG102: FALSE | MH102: FALSE | MI102: FALSE | MJ102: FALSE | MK102: FALSE | ML102: FALSE | MM102: FALSE | MN102: FALSE | MO102: FALSE | MP102: FALSE | MQ102: FALSE | MR102: FALSE | MS102: FALSE | MT102: FALSE | MU102: FALSE | MV102: FALSE | MW102: FALSE | MX102: FALSE | MY102: FALSE | MZ102: FALSE | NA102: FALSE | NB102: FALSE | NC102: FALSE | ND102: FALSE | NE102: FALSE | NF102: FALSE | NG102: FALSE | NH102: FALSE | NI102: FALSE | NJ102: FALSE | NK102: FALSE | NL102: FALSE | NM102: FALSE | NN102: FALSE | NO102: FALSE | NP102: FALSE | NQ102: FALSE | NR102: FALSE | NS102: FALSE | NT102: FALSE | NU102: FALSE | NV102: FALSE | NW102: FALSE | NX102: FALSE | NY102: FALSE | NZ102: FALSE | OA102: FALSE | OB102: FALSE | OC102: =IF(OC7,OC100-OC101) -> FALSE | OD102: FALSE | OE102: FALSE | OF102: FALSE | OG102: FALSE | OH102: FALSE | OI102: FALSE | OJ102: FALSE | OK102: FALSE | OL102: FALSE | OM102: FALSE | ON102: FALSE | OO102: FALSE | OP102: FALSE | OQ102: FALSE | OR102: FALSE
D103: Terminal Value | F103: =NPV($F$13,I103:KV103) -> 574.0805844 | I103: =IF(I$7,I102*(1+$F$12)/($F$13-$F$12)*I$6) -> FALSE | J103: FALSE | K103: FALSE | L103: FALSE | M103: FALSE | N103: 0 | O103: 0 | P103: 0 | Q103: 0 | R103: 0 | S103: 0 | T103: 0 | U103: 0 | V103: 0 | W103: 1783.007155 | X103: FALSE | Y103: FALSE | Z103: FALSE | AA103: FALSE | AB103: FALSE | AC103: FALSE | AD103: FALSE | AE103: FALSE | AF103: FALSE | AG103: FALSE | AH103: FALSE | AI103: FALSE | AJ103: FALSE | AK103: FALSE | AL103: FALSE | AM103: FALSE | AN103: FALSE | AO103: FALSE | AP103: FALSE | AQ103: FALSE | AR103: FALSE | AS103: FALSE | AT103: FALSE | AU103: FALSE | AV103: FALSE | AW103: FALSE | AX103: FALSE | AY103: FALSE | AZ103: FALSE | BA103: FALSE | BB103: FALSE | BC103: FALSE | BD103: FALSE | BE103: FALSE | BF103: FALSE | BG103: FALSE | BH103: FALSE | BI103: FALSE | BJ103: FALSE | BK103: FALSE | BL103: FALSE | BM103: FALSE | BN103: FALSE | BO103: FALSE | BP103: FALSE | BQ103: FALSE | BR103: FALSE | BS103: FALSE | BT103: FALSE | BU103: =IF(BU$7,BU102*(1+$F$12)/($F$13-$F$12)*BU$6) -> FALSE | BV103: FALSE | BW103: FALSE | BX103: FALSE | BY103: FALSE | BZ103: FALSE | CA103: FALSE | CB103: FALSE | CC103: FALSE | CD103: FALSE | CE103: FALSE | CF103: FALSE | CG103: FALSE | CH103: FALSE | CI103: FALSE | CJ103: FALSE | CK103: FALSE | CL103: FALSE | CM103: FALSE | CN103: FALSE | CO103: FALSE | CP103: FALSE | CQ103: FALSE | CR103: FALSE | CS103: FALSE | CT103: FALSE | CU103: FALSE | CV103: FALSE | CW103: FALSE | CX103: FALSE | CY103: FALSE | CZ103: FALSE | DA103: FALSE | DB103: FALSE | DC103: FALSE | DD103: FALSE | DE103: FALSE | DF103: FALSE | DG103: FALSE | DH103: FALSE | DI103: FALSE | DJ103: FALSE | DK103: FALSE | DL103: FALSE | DM103: FALSE | DN103: FALSE | DO103: FALSE | DP103: FALSE | DQ103: FALSE | DR103: FALSE | DS103: FALSE | DT103: FALSE | DU103: FALSE | DV103: FALSE | DW103: FALSE | DX103: FALSE | DY103: FALSE | DZ103: FALSE | EA103: FALSE | EB103: FALSE | EC103: FALSE | ED103: FALSE | EE103: FALSE | EF103: FALSE | EG103: =IF(EG$7,EG102*(1+$F$12)/($F$13-$F$12)*EG$6) -> FALSE | EH103: FALSE | EI103: FALSE | EJ103: FALSE | EK103: FALSE | EL103: FALSE | EM103: FALSE | EN103: FALSE | EO103: FALSE | EP103: FALSE | EQ103: FALSE | ER103: FALSE | ES103: FALSE | ET103: FALSE | EU103: FALSE | EV103: FALSE | EW103: FALSE | EX103: FALSE | EY103: FALSE | EZ103: FALSE | FA103: FALSE | FB103: FALSE | FC103: FALSE | FD103: FALSE | FE103: FALSE | FF103: FALSE | FG103: FALSE | FH103: FALSE | FI103: FALSE | FJ103: FALSE | FK103: FALSE | FL103: FALSE | FM103: FALSE | FN103: FALSE | FO103: FALSE | FP103: FALSE | FQ103: FALSE | FR103: FALSE | FS103: FALSE | FT103: FALSE | FU103: FALSE | FV103: FALSE | FW103: FALSE | FX103: FALSE | FY103: FALSE | FZ103: FALSE | GA103: FALSE | GB103: FALSE | GC103: FALSE | GD103: FALSE | GE103: FALSE | GF103: FALSE | GG103: FALSE | GH103: FALSE | GI103: FALSE | GJ103: FALSE | GK103: FALSE | GL103: FALSE | GM103: FALSE | GN103: FALSE | GO103: FALSE | GP103: FALSE | GQ103: FALSE | GR103: FALSE | GS103: =IF(GS$7,GS102*(1+$F$12)/($F$13-$F$12)*GS$6) -> FALSE | GT103: FALSE | GU103: FALSE | GV103: FALSE | GW103: FALSE | GX103: FALSE | GY103: FALSE | GZ103: FALSE | HA103: FALSE | HB103: FALSE | HC103: FALSE | HD103: FALSE | HE103: FALSE | HF103: FALSE | HG103: FALSE | HH103: FALSE | HI103: FALSE | HJ103: FALSE | HK103: FALSE | HL103: FALSE | HM103: FALSE | HN103: FALSE | HO103: FALSE | HP103: FALSE | HQ103: FALSE | HR103: FALSE | HS103: FALSE | HT103: FALSE | HU103: FALSE | HV103: FALSE | HW103: FALSE | HX103: FALSE | HY103: FALSE | HZ103: FALSE | IA103: FALSE | IB103: FALSE | IC103: FALSE | ID103: FALSE | IE103: FALSE | IF103: FALSE | IG103: FALSE | IH103: FALSE | II103: FALSE | IJ103: FALSE | IK103: FALSE | IL103: FALSE | IM103: FALSE | IN103: FALSE | IO103: FALSE | IP103: FALSE | IQ103: FALSE | IR103: FALSE | IS103: FALSE | IT103: FALSE | IU103: FALSE | IV103: FALSE | IW103: FALSE | IX103: FALSE | IY103: FALSE | IZ103: FALSE | JA103: FALSE | JB103: FALSE | JC103: FALSE | JD103: FALSE | JE103: =IF(JE$7,JE102*(1+$F$12)/($F$13-$F$12)*JE$6) -> FALSE | JF103: FALSE | JG103: FALSE | JH103: FALSE | JI103: FALSE | JJ103: FALSE | JK103: FALSE | JL103: FALSE | JM103: FALSE | JN103: FALSE | JO103: FALSE | JP103: FALSE | JQ103: FALSE | JR103: FALSE | JS103: FALSE | JT103: FALSE | JU103: FALSE | JV103: FALSE | JW103: FALSE | JX103: FALSE | JY103: FALSE | JZ103: FALSE | KA103: FALSE | KB103: FALSE | KC103: FALSE | KD103: FALSE | KE103: FALSE | KF103: FALSE | KG103: FALSE | KH103: FALSE | KI103: FALSE | KJ103: FALSE | KK103: FALSE | KL103: FALSE | KM103: FALSE | KN103: FALSE | KO103: FALSE | KP103: FALSE | KQ103: FALSE | KR103: FALSE | KS103: FALSE | KT103: FALSE | KU103: FALSE | KV103: FALSE | KW103: FALSE | KX103: FALSE | KY103: FALSE | KZ103: FALSE | LA103: FALSE | LB103: FALSE | LC103: FALSE | LD103: FALSE | LE103: FALSE | LF103: FALSE | LG103: FALSE | LH103: FALSE | LI103: FALSE | LJ103: FALSE | LK103: FALSE | LL103: FALSE | LM103: FALSE | LN103: FALSE | LO103: FALSE | LP103: FALSE | LQ103: =IF(LQ$7,LQ102*(1+$F$12)/($F$13-$F$12)*LQ$6) -> FALSE | LR103: FALSE | LS103: FALSE | LT103: FALSE | LU103: FALSE | LV103: FALSE | LW103: FALSE | LX103: FALSE | LY103: FALSE | LZ103: FALSE | MA103: FALSE | MB103: FALSE | MC103: FALSE | MD103: FALSE | ME103: FALSE | MF103: FALSE | MG103: FALSE | MH103: FALSE | MI103: FALSE | MJ103: FALSE | MK103: FALSE | ML103: FALSE | MM103: FALSE | MN103: FALSE | MO103: FALSE | MP103: FALSE | MQ103: FALSE | MR103: FALSE | MS103: FALSE | MT103: FALSE | MU103: FALSE | MV103: FALSE | MW103: FALSE | MX103: FALSE | MY103: FALSE | MZ103: FALSE | NA103: FALSE | NB103: FALSE | NC103: FALSE | ND103: FALSE | NE103: FALSE | NF103: FALSE | NG103: FALSE | NH103: FALSE | NI103: FALSE | NJ103: FALSE | NK103: FALSE | NL103: FALSE | NM103: FALSE | NN103: FALSE | NO103: FALSE | NP103: FALSE | NQ103: FALSE | NR103: FALSE | NS103: FALSE | NT103: FALSE | NU103: FALSE | NV103: FALSE | NW103: FALSE | NX103: FALSE | NY103: FALSE | NZ103: FALSE | OA103: FALSE | OB103: FALSE | OC103: =IF(OC$7,OC102*(1+$F$12)/($F$13-$F$12)*OC$6) -> FALSE | OD103: FALSE | OE103: FALSE | OF103: FALSE | OG103: FALSE | OH103: FALSE | OI103: FALSE | OJ103: FALSE | OK103: FALSE | OL103: FALSE | OM103: FALSE | ON103: FALSE | OO103: FALSE | OP103: FALSE | OQ103: FALSE | OR103: FALSE
D104: Enterprise Value | F104: =SUM(F102:F103) -> 1326.724774
D105: Error | F105: =F104-F97 -> 273.152081
C107: Method 2: Include in Bridge
D108: Enterprise Value from Above | F108: =F104 -> 1326.724774
D109: Less: Provision | F109: =INDEX(93:93,MATCH(TRUE,5:5,0)) -> 273.1520809
D110: Net Equity Value | F110: =F108-F109 -> 1053.572693
D111: Error | F111: =F110-F97 -> 2.457272785e-08
C113: Method 3: Include changes in provisions as negative cash flow
